Workbook

Sheet Aux.
D1: MOD. COMPOS. | E1: COMPOSIÇÕES/ LISTA AUXILIAR | F1: INDEXADO | G1: ORÇAMENTO
B2: material | C2: SINAPI | D2: SINAPI | E2: SINAPI | F2: SINAPI | G2: SINAPI
B3: mão de obra | C3: SICRO | D3: SICRO | E3: SICRO | F3: SICRO | G3: SICRO
B4: insumo | C4: SICRO EQUIP. | D4: SMOV | E4: SICRO EQUIP. | F4: SICRO EQUIP. | G4: MERCADO
B5: equipamento | C5: SMOV | D5: DAER | E5: MERCADO | F5: MERCADO | G5: CCU
C6: MERCADO | D6: - | E6: INDEXADO | F6: CCU | G6: -
C7: DAER | E7: CCU | F7: - | G7: INDEXADO
C8: CCU | E8: - | F8: ANP | G8: ANP
E9: ANP | F9: DAER | G9: DAER
C10: INDEXADO | E10: DAER | F10: CONSULTORIA DNIT | G10: CONSULTORIA DNIT
E11: CONSULTORIA DNIT | F11: PREGÃO ELETRÔNICO | G11: PREGÃO ELETRÔNICO
B12: CREA/RS | E12: PREGÃO ELETRÔNICO | F12: DMLU | G12: DMLU
B13: CAU/RS | E13: DMLU | F13: DMAE | G13: DMAE
E14: DMAE | F14: CEEE | G14: CEEE
E15: CEEE | F15: EPTC | G15: EPTC
B16: Tabela Desonerada | E16: EPTC | F16: CREA | G16: CREA
B17: Tabela Não Desonerada | E17: CREA | F17: CAU | G17: CAU
E18: CAU | F18: ORSE | G18: ORSE
E19: ORSE | F19: SEINFRA | G19: SEINFRA
B20: nº ART: | E20: SEINFRA | F20: CEHOP | G20: CEHOP
B21: nº RRT: | E21: CEHOP | F21: SUDECAP | G21: SUDECAP
E22: SUDECAP | F22: DER-PR | G22: DER-PR
E23: DER-PR | F23: SIURB | G23: SIURB
E24: SIURB | F24: =E25 -> PLAN. TÉC. SOCIAL | G24: =E25 -> PLAN. TÉC. SOCIAL
E25: PLAN. TÉC. SOCIAL | F25: =E26 -> PLAN. TÉC. COOPERATIVISMO | G25: =E26 -> PLAN. TÉC. COOPERATIVISMO
E26: PLAN. TÉC. COOPERATIVISMO

Sheet Modelo de Proposta (hidden)
B1: FÓRMULAS P/ CURVA ABC | D1: PREFEITURA MUNICIPAL DE PORTO ALEGRE
D2: ='Orçamento N_DESON.'!D2:S2 -> Departamento Municipal de Habitação - DEMHAB
D3: PLANILHA ORÇAMENTÁRIA
E4: Razão Social: | H4: CNPJ: | M4: Tabela Não Desonerada
D5: Serviço: | F5: =Dados!C5 -> Nucleo Urbano Informal Cooperativa João Goulart - COOHAJOGO - Levantamento Planialtimétrico, Projeto Urbanístico de Regularização Fundiária e Trabalho Social | R5: Encargos sociais (hora):
D6: Local: | F6: =Dados!C6 -> Rua Manoel Marques, 23 - Porto Alegre/RS | R6: Encargos sociais (mês):
D7: Item | E7: Código | F7: Fonte | G7: Descrição | H7: Unid. | I7: Quant. | J7: Custo Unitário (R$) | N7: BDI | O7: Preço Unitário (R$) | P7: Preço Total (R$)
J8: Equip. | K8: Mão de Obra | L8: Material | M8: Total | P8: Equip. | Q8: Mão de Obra | R8: Material | S8: Total
D10: ='Orçamento N_DESON.'!D10 -> 1 | G10: ='Orçamento N_DESON.'!G10 -> ETAPA I - Reconhecimento da área de intervenção e reunião com lideranças locais | S10: =S62 -> 0
B11: =S11/$S$1150 ->  | D11: ='Orçamento N_DESON.'!D11 -> 1.1 | E11: ='Orçamento N_DESON.'!E11 -> CCU-01 | F11: ='Orçamento N_DESON.'!F11 -> CCU | G11: ='Orçamento N_DESON.'!G11 -> ETAPA I REUNIÃO INTERNA | H11: ='Orçamento N_DESON.'!H11 -> HORA | I11: ='Orçamento N_DESON.'!I11 -> 4 | M11: =SUM(J11:L11) -> 0 | O11: =IF(N11="-",M11,TRUNC(M11*(1+N11),2)) -> 0 | P11: =IFERROR(TRUNC(TRUNC((J11*(1+$N11)),2)*$I11,2),0) -> 0 | Q11: =IFERROR(TRUNC(TRUNC((K11*(1+$N11)),2)*$I11,2),0) -> 0 | R11: =S11-Q11-P11 -> 0 | S11: =IFERROR(TRUNC(O11*I11,2),0) -> 0
D12: ='Orçamento N_DESON.'!D12 -> 1.2 | E12: ='Orçamento N_DESON.'!E12 -> CCU-02 | F12: ='Orçamento N_DESON.'!F12 -> CCU | G12: =IF(OR($F12="ANP",$F12="DAER",$F12="CONSULTORIA DNIT",$F12="PREGÃO ELETRÔNICO",$F12="DMLU",$F12="DMAE",$F12="EPTC"),VLOOKUP($E12,'Planilha Auxiliar'!$A$4:$L$1000,8,FALSE()),IF($F12="INDEXADO",CONCATENATE(VLOOKUP($E12,'Index DESON.'!$A$9:$S$1305,3,FALSE())," (",VLOOKUP($E12,'Index DESON.'!$A$9:$S$1305,2,FALSE()),")"),IF($F12="CCU",VLOOKUP($E12,'Resumo CCU DESON.'!$A$2:$D$202,2,FALSE()),IF($F12="MERCADO",VLOOKUP($E12,'Planillha de cotações'!$B$7:$L$102,2,FALSE()),IF($F12="PLEO",VLOOKUP($E12,'PLEO DESON.'!$A$4:$D$14999,2,FALSE()),IF($F12="SICRO",VLOOKUP($E12,'SICRO DESON.'!$A$4:$D$50010,2,FALSE()),IF($F12="SINAPI",IFERROR((VLOOKUP($E12,'comp. SINAPI DESON.'!$G$7:$L$50000,2,FALSE())),(VLOOKUP($E12,'ins. SINAPI DESON.'!$A$8:$E$15000,2,FALSE()))),"-"))))))) -> ETAPA I RECONHECIMENTO DA AREA DE INTERVENÇÃO | H12: =IF(OR($F12="ANP",$F12="DAER",$F12="CONSULTORIA DNIT",$F12="PREGÃO ELETRÔNICO",$F12="DMLU",$F12="DMAE",$F12="EPTC"),VLOOKUP($E12,'Planilha Auxiliar'!$A$4:$L$1000,9,FALSE()),IF($F12="INDEXADO",VLOOKUP($E12,'Index DESON.'!$A$9:$S$1305,4,FALSE()),IF($F12="CCU",VLOOKUP($E12,'Resumo CCU DESON.'!$A$2:$D$202,3,FALSE()),IF($F12="MERCADO",VLOOKUP('Modelo de Proposta'!$E12,'Planillha de cotações'!$B$7:$L$1143,7,FALSE()),IF($F12="PLEO",VLOOKUP($E12,'PLEO DESON.'!$A$4:$D$14999,3,FALSE()),IF($F12="SICRO",VLOOKUP($E12,'SICRO DESON.'!$A$4:$D$50010,3,FALSE()),IF($F12="SINAPI",IFERROR((VLOOKUP($E12,'comp. SINAPI DESON.'!$G$7:$L$50000,3,FALSE())),(VLOOKUP($E12,'ins. SINAPI DESON.'!$A$8:$E$15000,3,FALSE()))),"-"))))))) -> HORAS | I12: ='Orçamento N_DESON.'!I12 -> 6 | M12: 0 | O12: 0 | P12: 0 | Q12: 0 | R12: 0 | S12: 0
D13: ='Orçamento N_DESON.'!D13 -> 1.3 | E13: ='Orçamento N_DESON.'!E13 -> CCU-17 | F13: ='Orçamento N_DESON.'!F13 -> CCU | G13: =IF(OR($F13="ANP",$F13="DAER",$F13="CONSULTORIA DNIT",$F13="PREGÃO ELETRÔNICO",$F13="DMLU",$F13="DMAE",$F13="EPTC"),VLOOKUP($E13,'Planilha Auxiliar'!$A$4:$L$1000,8,FALSE()),IF($F13="INDEXADO",CONCATENATE(VLOOKUP($E13,'Index DESON.'!$A$9:$S$1305,3,FALSE())," (",VLOOKUP($E13,'Index DESON.'!$A$9:$S$1305,2,FALSE()),")"),IF($F13="CCU",VLOOKUP($E13,'Resumo CCU DESON.'!$A$2:$D$202,2,FALSE()),IF($F13="MERCADO",VLOOKUP($E13,'Planillha de cotações'!$B$7:$L$102,2,FALSE()),IF($F13="PLEO",VLOOKUP($E13,'PLEO DESON.'!$A$4:$D$14999,2,FALSE()),IF($F13="SICRO",VLOOKUP($E13,'SICRO DESON.'!$A$4:$D$50010,2,FALSE()),IF($F13="SINAPI",IFERROR((VLOOKUP($E13,'comp. SINAPI DESON.'!$G$7:$L$50000,2,FALSE())),(VLOOKUP($E13,'ins. SINAPI DESON.'!$A$8:$E$15000,2,FALSE()))),"-"))))))) -> VEÍCULO COM MOTORISTA | H13: =IF(OR($F13="ANP",$F13="DAER",$F13="CONSULTORIA DNIT",$F13="PREGÃO ELETRÔNICO",$F13="DMLU",$F13="DMAE",$F13="EPTC"),VLOOKUP($E13,'Planilha Auxiliar'!$A$4:$L$1000,9,FALSE()),IF($F13="INDEXADO",VLOOKUP($E13,'Index DESON.'!$A$9:$S$1305,4,FALSE()),IF($F13="CCU",VLOOKUP($E13,'Resumo CCU DESON.'!$A$2:$D$202,3,FALSE()),IF($F13="MERCADO",VLOOKUP('Modelo de Proposta'!$E13,'Planillha de cotações'!$B$7:$L$1143,7,FALSE()),IF($F13="PLEO",VLOOKUP($E13,'PLEO DESON.'!$A$4:$D$14999,3,FALSE()),IF($F13="SICRO",VLOOKUP($E13,'SICRO DESON.'!$A$4:$D$50010,3,FALSE()),IF($F13="SINAPI",IFERROR((VLOOKUP($E13,'comp. SINAPI DESON.'!$G$7:$L$50000,3,FALSE())),(VLOOKUP($E13,'ins. SINAPI DESON.'!$A$8:$E$15000,3,FALSE()))),"-"))))))) -> HORA | I13: ='Orçamento N_DESON.'!I13 -> 4 | M13: 0 | O13: 0 | P13: 0 | Q13: 0 | R13: 0 | S13: 0
D14: ='Orçamento N_DESON.'!D14 -> 1.4 | E14: ='Orçamento N_DESON.'!E14 -> CCU-03 | F14: ='Orçamento N_DESON.'!F14 -> CCU | G14: =IF(OR($F14="ANP",$F14="DAER",$F14="CONSULTORIA DNIT",$F14="PREGÃO ELETRÔNICO",$F14="DMLU",$F14="DMAE",$F14="EPTC"),VLOOKUP($E14,'Planilha Auxiliar'!$A$4:$L$1000,8,FALSE()),IF($F14="INDEXADO",CONCATENATE(VLOOKUP($E14,'Index DESON.'!$A$9:$S$1305,3,FALSE())," (",VLOOKUP($E14,'Index DESON.'!$A$9:$S$1305,2,FALSE()),")"),IF($F14="CCU",VLOOKUP($E14,'Resumo CCU DESON.'!$A$2:$D$202,2,FALSE()),IF($F14="MERCADO",VLOOKUP($E14,'Planillha de cotações'!$B$7:$L$102,2,FALSE()),IF($F14="PLEO",VLOOKUP($E14,'PLEO DESON.'!$A$4:$D$14999,2,FALSE()),IF($F14="SICRO",VLOOKUP($E14,'SICRO DESON.'!$A$4:$D$50010,2,FALSE()),IF($F14="SINAPI",IFERROR((VLOOKUP($E14,'comp. SINAPI DESON.'!$G$7:$L$50000,2,FALSE())),(VLOOKUP($E14,'ins. SINAPI DESON.'!$A$8:$E$15000,2,FALSE()))),"-"))))))) -> ETAPA I REUNIÃO COM LIDERANÇAS | H14: =IF(OR($F14="ANP",$F14="DAER",$F14="CONSULTORIA DNIT",$F14="PREGÃO ELETRÔNICO",$F14="DMLU",$F14="DMAE",$F14="EPTC"),VLOOKUP($E14,'Planilha Auxiliar'!$A$4:$L$1000,9,FALSE()),IF($F14="INDEXADO",VLOOKUP($E14,'Index DESON.'!$A$9:$S$1305,4,FALSE()),IF($F14="CCU",VLOOKUP($E14,'Resumo CCU DESON.'!$A$2:$D$202,3,FALSE()),IF($F14="MERCADO",VLOOKUP('Modelo de Proposta'!$E14,'Planillha de cotações'!$B$7:$L$1143,7,FALSE()),IF($F14="PLEO",VLOOKUP($E14,'PLEO DESON.'!$A$4:$D$14999,3,FALSE()),IF($F14="SICRO",VLOOKUP($E14,'SICRO DESON.'!$A$4:$D$50010,3,FALSE()),IF($F14="SINAPI",IFERROR((VLOOKUP($E14,'comp. SINAPI DESON.'!$G$7:$L$50000,3,FALSE())),(VLOOKUP($E14,'ins. SINAPI DESON.'!$A$8:$E$15000,3,FALSE()))),"-"))))))) -> HORAS | I14: ='Orçamento N_DESON.'!I14 -> 8 | M14: 0 | O14: 0 | P14: 0 | Q14: 0 | R14: 0 | S14: 0
D15: ='Orçamento N_DESON.'!D15 -> 1.5 | E15: ='Orçamento N_DESON.'!E15 -> CCU-17 | F15: ='Orçamento N_DESON.'!F15 -> CCU | G15: =IF(OR($F15="ANP",$F15="DAER",$F15="CONSULTORIA DNIT",$F15="PREGÃO ELETRÔNICO",$F15="DMLU",$F15="DMAE",$F15="EPTC"),VLOOKUP($E15,'Planilha Auxiliar'!$A$4:$L$1000,8,FALSE()),IF($F15="INDEXADO",CONCATENATE(VLOOKUP($E15,'Index DESON.'!$A$9:$S$1305,3,FALSE())," (",VLOOKUP($E15,'Index DESON.'!$A$9:$S$1305,2,FALSE()),")"),IF($F15="CCU",VLOOKUP($E15,'Resumo CCU DESON.'!$A$2:$D$202,2,FALSE()),IF($F15="MERCADO",VLOOKUP($E15,'Planillha de cotações'!$B$7:$L$102,2,FALSE()),IF($F15="PLEO",VLOOKUP($E15,'PLEO DESON.'!$A$4:$D$14999,2,FALSE()),IF($F15="SICRO",VLOOKUP($E15,'SICRO DESON.'!$A$4:$D$50010,2,FALSE()),IF($F15="SINAPI",IFERROR((VLOOKUP($E15,'comp. SINAPI DESON.'!$G$7:$L$50000,2,FALSE())),(VLOOKUP($E15,'ins. SINAPI DESON.'!$A$8:$E$15000,2,FALSE()))),"-"))))))) -> VEÍCULO COM MOTORISTA | H15: =IF(OR($F15="ANP",$F15="DAER",$F15="CONSULTORIA DNIT",$F15="PREGÃO ELETRÔNICO",$F15="DMLU",$F15="DMAE",$F15="EPTC"),VLOOKUP($E15,'Planilha Auxiliar'!$A$4:$L$1000,9,FALSE()),IF($F15="INDEXADO",VLOOKUP($E15,'Index DESON.'!$A$9:$S$1305,4,FALSE()),IF($F15="CCU",VLOOKUP($E15,'Resumo CCU DESON.'!$A$2:$D$202,3,FALSE()),IF($F15="MERCADO",VLOOKUP('Modelo de Proposta'!$E15,'Planillha de cotações'!$B$7:$L$1143,7,FALSE()),IF($F15="PLEO",VLOOKUP($E15,'PLEO DESON.'!$A$4:$D$14999,3,FALSE()),IF($F15="SICRO",VLOOKUP($E15,'SICRO DESON.'!$A$4:$D$50010,3,FALSE()),IF($F15="SINAPI",IFERROR((VLOOKUP($E15,'comp. SINAPI DESON.'!$G$7:$L$50000,3,FALSE())),(VLOOKUP($E15,'ins. SINAPI DESON.'!$A$8:$E$15000,3,FALSE()))),"-"))))))) -> HORA | I15: ='Orçamento N_DESON.'!I15 -> 4 | M15: 0 | O15: 0 | P15: 0 | Q15: 0 | R15: 0 | S15: 0
D16: ='Orçamento N_DESON.'!D16 -> 1.6 | E16: ='Orçamento N_DESON.'!E16 -> CCU-15 | F16: ='Orçamento N_DESON.'!F16 -> CCU | G16: =IF(OR($F16="ANP",$F16="DAER",$F16="CONSULTORIA DNIT",$F16="PREGÃO ELETRÔNICO",$F16="DMLU",$F16="DMAE",$F16="EPTC"),VLOOKUP($E16,'Planilha Auxiliar'!$A$4:$L$1000,8,FALSE()),IF($F16="INDEXADO",CONCATENATE(VLOOKUP($E16,'Index DESON.'!$A$9:$S$1305,3,FALSE())," (",VLOOKUP($E16,'Index DESON.'!$A$9:$S$1305,2,FALSE()),")"),IF($F16="CCU",VLOOKUP($E16,'Resumo CCU DESON.'!$A$2:$D$202,2,FALSE()),IF($F16="MERCADO",VLOOKUP($E16,'Planillha de cotações'!$B$7:$L$102,2,FALSE()),IF($F16="PLEO",VLOOKUP($E16,'PLEO DESON.'!$A$4:$D$14999,2,FALSE()),IF($F16="SICRO",VLOOKUP($E16,'SICRO DESON.'!$A$4:$D$50010,2,FALSE()),IF($F16="SINAPI",IFERROR((VLOOKUP($E16,'comp. SINAPI DESON.'!$G$7:$L$50000,2,FALSE())),(VLOOKUP($E16,'ins. SINAPI DESON.'!$A$8:$E$15000,2,FALSE()))),"-"))))))) -> KIT REUNIÃO | H16: =IF(OR($F16="ANP",$F16="DAER",$F16="CONSULTORIA DNIT",$F16="PREGÃO ELETRÔNICO",$F16="DMLU",$F16="DMAE",$F16="EPTC"),VLOOKUP($E16,'Planilha Auxiliar'!$A$4:$L$1000,9,FALSE()),IF($F16="INDEXADO",VLOOKUP($E16,'Index DESON.'!$A$9:$S$1305,4,FALSE()),IF($F16="CCU",VLOOKUP($E16,'Resumo CCU DESON.'!$A$2:$D$202,3,FALSE()),IF($F16="MERCADO",VLOOKUP('Modelo de Proposta'!$E16,'Planillha de cotações'!$B$7:$L$1143,7,FALSE()),IF($F16="PLEO",VLOOKUP($E16,'PLEO DESON.'!$A$4:$D$14999,3,FALSE()),IF($F16="SICRO",VLOOKUP($E16,'SICRO DESON.'!$A$4:$D$50010,3,FALSE()),IF($F16="SINAPI",IFERROR((VLOOKUP($E16,'comp. SINAPI DESON.'!$G$7:$L$50000,3,FALSE())),(VLOOKUP($E16,'ins. SINAPI DESON.'!$A$8:$E$15000,3,FALSE()))),"-"))))))) -> UNIDADE | I16: ='Orçamento N_DESON.'!I16 -> 1 | M16: 0 | O16: 0 | P16: 0 | Q16: 0 | R16: 0 | S16: 0
D17: ='Orçamento N_DESON.'!D17 -> 1.7 | E17: ='Orçamento N_DESON.'!E17 -> CCU-04 | F17: ='Orçamento N_DESON.'!F17 -> CCU | G17: =IF(OR($F17="ANP",$F17="DAER",$F17="CONSULTORIA DNIT",$F17="PREGÃO ELETRÔNICO",$F17="DMLU",$F17="DMAE",$F17="EPTC"),VLOOKUP($E17,'Planilha Auxiliar'!$A$4:$L$1000,8,FALSE()),IF($F17="INDEXADO",CONCATENATE(VLOOKUP($E17,'Index DESON.'!$A$9:$S$1305,3,FALSE())," (",VLOOKUP($E17,'Index DESON.'!$A$9:$S$1305,2,FALSE()),")"),IF($F17="CCU",VLOOKUP($E17,'Resumo CCU DESON.'!$A$2:$D$202,2,FALSE()),IF($F17="MERCADO",VLOOKUP($E17,'Planillha de cotações'!$B$7:$L$102,2,FALSE()),IF($F17="PLEO",VLOOKUP($E17,'PLEO DESON.'!$A$4:$D$14999,2,FALSE()),IF($F17="SICRO",VLOOKUP($E17,'SICRO DESON.'!$A$4:$D$50010,2,FALSE()),IF($F17="SINAPI",IFERROR((VLOOKUP($E17,'comp. SINAPI DESON.'!$G$7:$L$50000,2,FALSE())),(VLOOKUP($E17,'ins. SINAPI DESON.'!$A$8:$E$15000,2,FALSE()))),"-"))))))) -> ETAPA I RELATÓRIO | H17: =IF(OR($F17="ANP",$F17="DAER",$F17="CONSULTORIA DNIT",$F17="PREGÃO ELETRÔNICO",$F17="DMLU",$F17="DMAE",$F17="EPTC"),VLOOKUP($E17,'Planilha Auxiliar'!$A$4:$L$1000,9,FALSE()),IF($F17="INDEXADO",VLOOKUP($E17,'Index DESON.'!$A$9:$S$1305,4,FALSE()),IF($F17="CCU",VLOOKUP($E17,'Resumo CCU DESON.'!$A$2:$D$202,3,FALSE()),IF($F17="MERCADO",VLOOKUP('Modelo de Proposta'!$E17,'Planillha de cotações'!$B$7:$L$1143,7,FALSE()),IF($F17="PLEO",VLOOKUP($E17,'PLEO DESON.'!$A$4:$D$14999,3,FALSE()),IF($F17="SICRO",VLOOKUP($E17,'SICRO DESON.'!$A$4:$D$50010,3,FALSE()),IF($F17="SINAPI",IFERROR((VLOOKUP($E17,'comp. SINAPI DESON.'!$G$7:$L$50000,3,FALSE())),(VLOOKUP($E17,'ins. SINAPI DESON.'!$A$8:$E$15000,3,FALSE()))),"-"))))))) -> HORAS | I17: ='Orçamento N_DESON.'!I17 -> 8 | M17: 0 | O17: 0 | P17: 0 | Q17: 0 | R17: 0 | S17: 0
D18: ='Orçamento N_DESON.'!D18 -> 1.8 | E18: ='Orçamento N_DESON.'!E18 -> CCU-16 | F18: ='Orçamento N_DESON.'!F18 -> CCU | G18: =IF(OR($F18="ANP",$F18="DAER",$F18="CONSULTORIA DNIT",$F18="PREGÃO ELETRÔNICO",$F18="DMLU",$F18="DMAE",$F18="EPTC"),VLOOKUP($E18,'Planilha Auxiliar'!$A$4:$L$1000,8,FALSE()),IF($F18="INDEXADO",CONCATENATE(VLOOKUP($E18,'Index DESON.'!$A$9:$S$1305,3,FALSE())," (",VLOOKUP($E18,'Index DESON.'!$A$9:$S$1305,2,FALSE()),")"),IF($F18="CCU",VLOOKUP($E18,'Resumo CCU DESON.'!$A$2:$D$202,2,FALSE()),IF($F18="MERCADO",VLOOKUP($E18,'Planillha de cotações'!$B$7:$L$102,2,FALSE()),IF($F18="PLEO",VLOOKUP($E18,'PLEO DESON.'!$A$4:$D$14999,2,FALSE()),IF($F18="SICRO",VLOOKUP($E18,'SICRO DESON.'!$A$4:$D$50010,2,FALSE()),IF($F18="SINAPI",IFERROR((VLOOKUP($E18,'comp. SINAPI DESON.'!$G$7:$L$50000,2,FALSE())),(VLOOKUP($E18,'ins. SINAPI DESON.'!$A$8:$E$15000,2,FALSE()))),"-"))))))) -> KIT RELATÓRIO | H18: =IF(OR($F18="ANP",$F18="DAER",$F18="CONSULTORIA DNIT",$F18="PREGÃO ELETRÔNICO",$F18="DMLU",$F18="DMAE",$F18="EPTC"),VLOOKUP($E18,'Planilha Auxiliar'!$A$4:$L$1000,9,FALSE()),IF($F18="INDEXADO",VLOOKUP($E18,'Index DESON.'!$A$9:$S$1305,4,FALSE()),IF($F18="CCU",VLOOKUP($E18,'Resumo CCU DESON.'!$A$2:$D$202,3,FALSE()),IF($F18="MERCADO",VLOOKUP('Modelo de Proposta'!$E18,'Planillha de cotações'!$B$7:$L$1143,7,FALSE()),IF($F18="PLEO",VLOOKUP($E18,'PLEO DESON.'!$A$4:$D$14999,3,FALSE()),IF($F18="SICRO",VLOOKUP($E18,'SICRO DESON.'!$A$4:$D$50010,3,FALSE()),IF($F18="SINAPI",IFERROR((VLOOKUP($E18,'comp. SINAPI DESON.'!$G$7:$L$50000,3,FALSE())),(VLOOKUP($E18,'ins. SINAPI DESON.'!$A$8:$E$15000,3,FALSE()))),"-"))))))) -> UNIDADE | I18: ='Orçamento N_DESON.'!I18 -> 1 | M18: 0 | O18: 0 | P18: 0 | Q18: 0 | R18: 0 | S18: 0
D19: ='Orçamento N_DESON.'!D19 -> 1.9 | E19: ='Orçamento N_DESON.'!E19 -> 0 | F19: ='Orçamento N_DESON.'!F19 -> 0 | G19: =IF(OR($F19="ANP",$F19="DAER",$F19="CONSULTORIA DNIT",$F19="PREGÃO ELETRÔNICO",$F19="DMLU",$F19="DMAE",$F19="EPTC"),VLOOKUP($E19,'Planilha Auxiliar'!$A$4:$L$1000,8,FALSE()),IF($F19="INDEXADO",CONCATENATE(VLOOKUP($E19,'Index DESON.'!$A$9:$S$1305,3,FALSE())," (",VLOOKUP($E19,'Index DESON.'!$A$9:$S$1305,2,FALSE()),")"),IF($F19="CCU",VLOOKUP($E19,'Resumo CCU DESON.'!$A$2:$D$202,2,FALSE()),IF($F19="MERCADO",VLOOKUP($E19,'Planillha de cotações'!$B$7:$L$102,2,FALSE()),IF($F19="PLEO",VLOOKUP($E19,'PLEO DESON.'!$A$4:$D$14999,2,FALSE()),IF($F19="SICRO",VLOOKUP($E19,'SICRO DESON.'!$A$4:$D$50010,2,FALSE()),IF($F19="SINAPI",IFERROR((VLOOKUP($E19,'comp. SINAPI DESON.'!$G$7:$L$50000,2,FALSE())),(VLOOKUP($E19,'ins. SINAPI DESON.'!$A$8:$E$15000,2,FALSE()))),"-"))))))) -> - | H19: =IF(OR($F19="ANP",$F19="DAER",$F19="CONSULTORIA DNIT",$F19="PREGÃO ELETRÔNICO",$F19="DMLU",$F19="DMAE",$F19="EPTC"),VLOOKUP($E19,'Planilha Auxiliar'!$A$4:$L$1000,9,FALSE()),IF($F19="INDEXADO",VLOOKUP($E19,'Index DESON.'!$A$9:$S$1305,4,FALSE()),IF($F19="CCU",VLOOKUP($E19,'Resumo CCU DESON.'!$A$2:$D$202,3,FALSE()),IF($F19="MERCADO",VLOOKUP('Modelo de Proposta'!$E19,'Planillha de cotações'!$B$7:$L$1143,7,FALSE()),IF($F19="PLEO",VLOOKUP($E19,'PLEO DESON.'!$A$4:$D$14999,3,FALSE()),IF($F19="SICRO",VLOOKUP($E19,'SICRO DESON.'!$A$4:$D$50010,3,FALSE()),IF($F19="SINAPI",IFERROR((VLOOKUP($E19,'comp. SINAPI DESON.'!$G$7:$L$50000,3,FALSE())),(VLOOKUP($E19,'ins. SINAPI DESON.'!$A$8:$E$15000,3,FALSE()))),"-"))))))) -> - | I19: ='Orçamento N_DESON.'!I19 -> 0 | M19: 0 | O19: 0 | P19: 0 | Q19: 0 | R19: 0 | S19: 0
D20: ='Orçamento N_DESON.'!D20 -> 1.10 | E20: ='Orçamento N_DESON.'!E20 -> 0 | F20: ='Orçamento N_DESON.'!F20 -> 0 | G20: =IF(OR($F20="ANP",$F20="DAER",$F20="CONSULTORIA DNIT",$F20="PREGÃO ELETRÔNICO",$F20="DMLU",$F20="DMAE",$F20="EPTC"),VLOOKUP($E20,'Planilha Auxiliar'!$A$4:$L$1000,8,FALSE()),IF($F20="INDEXADO",CONCATENATE(VLOOKUP($E20,'Index DESON.'!$A$9:$S$1305,3,FALSE())," (",VLOOKUP($E20,'Index DESON.'!$A$9:$S$1305,2,FALSE()),")"),IF($F20="CCU",VLOOKUP($E20,'Resumo CCU DESON.'!$A$2:$D$202,2,FALSE()),IF($F20="MERCADO",VLOOKUP($E20,'Planillha de cotações'!$B$7:$L$102,2,FALSE()),IF($F20="PLEO",VLOOKUP($E20,'PLEO DESON.'!$A$4:$D$14999,2,FALSE()),IF($F20="SICRO",VLOOKUP($E20,'SICRO DESON.'!$A$4:$D$50010,2,FALSE()),IF($F20="SINAPI",IFERROR((VLOOKUP($E20,'comp. SINAPI DESON.'!$G$7:$L$50000,2,FALSE())),(VLOOKUP($E20,'ins. SINAPI DESON.'!$A$8:$E$15000,2,FALSE()))),"-"))))))) -> - | H20: =IF(OR($F20="ANP",$F20="DAER",$F20="CONSULTORIA DNIT",$F20="PREGÃO ELETRÔNICO",$F20="DMLU",$F20="DMAE",$F20="EPTC"),VLOOKUP($E20,'Planilha Auxiliar'!$A$4:$L$1000,9,FALSE()),IF($F20="INDEXADO",VLOOKUP($E20,'Index DESON.'!$A$9:$S$1305,4,FALSE()),IF($F20="CCU",VLOOKUP($E20,'Resumo CCU DESON.'!$A$2:$D$202,3,FALSE()),IF($F20="MERCADO",VLOOKUP('Modelo de Proposta'!$E20,'Planillha de cotações'!$B$7:$L$1143,7,FALSE()),IF($F20="PLEO",VLOOKUP($E20,'PLEO DESON.'!$A$4:$D$14999,3,FALSE()),IF($F20="SICRO",VLOOKUP($E20,'SICRO DESON.'!$A$4:$D$50010,3,FALSE()),IF($F20="SINAPI",IFERROR((VLOOKUP($E20,'comp. SINAPI DESON.'!$G$7:$L$50000,3,FALSE())),(VLOOKUP($E20,'ins. SINAPI DESON.'!$A$8:$E$15000,3,FALSE()))),"-"))))))) -> - | I20: ='Orçamento N_DESON.'!I20 -> 0 | M20: 0 | O20: 0 | P20: 0 | Q20: 0 | R20: 0 | S20: 0
D21: ='Orçamento N_DESON.'!D21 -> 1.11 | E21: ='Orçamento N_DESON.'!E21 -> 0 | F21: ='Orçamento N_DESON.'!F21 -> 0 | G21: =IF(OR($F21="ANP",$F21="DAER",$F21="CONSULTORIA DNIT",$F21="PREGÃO ELETRÔNICO",$F21="DMLU",$F21="DMAE",$F21="EPTC"),VLOOKUP($E21,'Planilha Auxiliar'!$A$4:$L$1000,8,FALSE()),IF($F21="INDEXADO",CONCATENATE(VLOOKUP($E21,'Index DESON.'!$A$9:$S$1305,3,FALSE())," (",VLOOKUP($E21,'Index DESON.'!$A$9:$S$1305,2,FALSE()),")"),IF($F21="CCU",VLOOKUP($E21,'Resumo CCU DESON.'!$A$2:$D$202,2,FALSE()),IF($F21="MERCADO",VLOOKUP($E21,'Planillha de cotações'!$B$7:$L$102,2,FALSE()),IF($F21="PLEO",VLOOKUP($E21,'PLEO DESON.'!$A$4:$D$14999,2,FALSE()),IF($F21="SICRO",VLOOKUP($E21,'SICRO DESON.'!$A$4:$D$50010,2,FALSE()),IF($F21="SINAPI",IFERROR((VLOOKUP($E21,'comp. SINAPI DESON.'!$G$7:$L$50000,2,FALSE())),(VLOOKUP($E21,'ins. SINAPI DESON.'!$A$8:$E$15000,2,FALSE()))),"-"))))))) -> - | H21: =IF(OR($F21="ANP",$F21="DAER",$F21="CONSULTORIA DNIT",$F21="PREGÃO ELETRÔNICO",$F21="DMLU",$F21="DMAE",$F21="EPTC"),VLOOKUP($E21,'Planilha Auxiliar'!$A$4:$L$1000,9,FALSE()),IF($F21="INDEXADO",VLOOKUP($E21,'Index DESON.'!$A$9:$S$1305,4,FALSE()),IF($F21="CCU",VLOOKUP($E21,'Resumo CCU DESON.'!$A$2:$D$202,3,FALSE()),IF($F21="MERCADO",VLOOKUP('Modelo de Proposta'!$E21,'Planillha de cotações'!$B$7:$L$1143,7,FALSE()),IF($F21="PLEO",VLOOKUP($E21,'PLEO DESON.'!$A$4:$D$14999,3,FALSE()),IF($F21="SICRO",VLOOKUP($E21,'SICRO DESON.'!$A$4:$D$50010,3,FALSE()),IF($F21="SINAPI",IFERROR((VLOOKUP($E21,'comp. SINAPI DESON.'!$G$7:$L$50000,3,FALSE())),(VLOOKUP($E21,'ins. SINAPI DESON.'!$A$8:$E$15000,3,FALSE()))),"-"))))))) -> - | I21: ='Orçamento N_DESON.'!I21 -> 0 | M21: 0 | O21: 0 | P21: 0 | Q21: 0 | R21: 0 | S21: 0
D22: ='Orçamento N_DESON.'!D22 -> 1.12 | E22: ='Orçamento N_DESON.'!E22 -> 0 | F22: ='Orçamento N_DESON.'!F22 -> 0 | G22: =IF(OR($F22="ANP",$F22="DAER",$F22="CONSULTORIA DNIT",$F22="PREGÃO ELETRÔNICO",$F22="DMLU",$F22="DMAE",$F22="EPTC"),VLOOKUP($E22,'Planilha Auxiliar'!$A$4:$L$1000,8,FALSE()),IF($F22="INDEXADO",CONCATENATE(VLOOKUP($E22,'Index DESON.'!$A$9:$S$1305,3,FALSE())," (",VLOOKUP($E22,'Index DESON.'!$A$9:$S$1305,2,FALSE()),")"),IF($F22="CCU",VLOOKUP($E22,'Resumo CCU DESON.'!$A$2:$D$202,2,FALSE()),IF($F22="MERCADO",VLOOKUP($E22,'Planillha de cotações'!$B$7:$L$102,2,FALSE()),IF($F22="PLEO",VLOOKUP($E22,'PLEO DESON.'!$A$4:$D$14999,2,FALSE()),IF($F22="SICRO",VLOOKUP($E22,'SICRO DESON.'!$A$4:$D$50010,2,FALSE()),IF($F22="SINAPI",IFERROR((VLOOKUP($E22,'comp. SINAPI DESON.'!$G$7:$L$50000,2,FALSE())),(VLOOKUP($E22,'ins. SINAPI DESON.'!$A$8:$E$15000,2,FALSE()))),"-"))))))) -> - | H22: =IF(OR($F22="ANP",$F22="DAER",$F22="CONSULTORIA DNIT",$F22="PREGÃO ELETRÔNICO",$F22="DMLU",$F22="DMAE",$F22="EPTC"),VLOOKUP($E22,'Planilha Auxiliar'!$A$4:$L$1000,9,FALSE()),IF($F22="INDEXADO",VLOOKUP($E22,'Index DESON.'!$A$9:$S$1305,4,FALSE()),IF($F22="CCU",VLOOKUP($E22,'Resumo CCU DESON.'!$A$2:$D$202,3,FALSE()),IF($F22="MERCADO",VLOOKUP('Modelo de Proposta'!$E22,'Planillha de cotações'!$B$7:$L$1143,7,FALSE()),IF($F22="PLEO",VLOOKUP($E22,'PLEO DESON.'!$A$4:$D$14999,3,FALSE()),IF($F22="SICRO",VLOOKUP($E22,'SICRO DESON.'!$A$4:$D$50010,3,FALSE()),IF($F22="SINAPI",IFERROR((VLOOKUP($E22,'comp. SINAPI DESON.'!$G$7:$L$50000,3,FALSE())),(VLOOKUP($E22,'ins. SINAPI DESON.'!$A$8:$E$15000,3,FALSE()))),"-"))))))) -> - | I22: ='Orçamento N_DESON.'!I22 -> 0 | M22: 0 | O22: 0 | P22: 0 | Q22: 0 | R22: 0 | S22: 0
D23: ='Orçamento N_DESON.'!D23 -> 1.13 | E23: ='Orçamento N_DESON.'!E23 -> 0 | F23: ='Orçamento N_DESON.'!F23 -> 0 | G23: =IF(OR($F23="ANP",$F23="DAER",$F23="CONSULTORIA DNIT",$F23="PREGÃO ELETRÔNICO",$F23="DMLU",$F23="DMAE",$F23="EPTC"),VLOOKUP($E23,'Planilha Auxiliar'!$A$4:$L$1000,8,FALSE()),IF($F23="INDEXADO",CONCATENATE(VLOOKUP($E23,'Index DESON.'!$A$9:$S$1305,3,FALSE())," (",VLOOKUP($E23,'Index DESON.'!$A$9:$S$1305,2,FALSE()),")"),IF($F23="CCU",VLOOKUP($E23,'Resumo CCU DESON.'!$A$2:$D$202,2,FALSE()),IF($F23="MERCADO",VLOOKUP($E23,'Planillha de cotações'!$B$7:$L$102,2,FALSE()),IF($F23="PLEO",VLOOKUP($E23,'PLEO DESON.'!$A$4:$D$14999,2,FALSE()),IF($F23="SICRO",VLOOKUP($E23,'SICRO DESON.'!$A$4:$D$50010,2,FALSE()),IF($F23="SINAPI",IFERROR((VLOOKUP($E23,'comp. SINAPI DESON.'!$G$7:$L$50000,2,FALSE())),(VLOOKUP($E23,'ins. SINAPI DESON.'!$A$8:$E$15000,2,FALSE()))),"-"))))))) -> - | H23: =IF(OR($F23="ANP",$F23="DAER",$F23="CONSULTORIA DNIT",$F23="PREGÃO ELETRÔNICO",$F23="DMLU",$F23="DMAE",$F23="EPTC"),VLOOKUP($E23,'Planilha Auxiliar'!$A$4:$L$1000,9,FALSE()),IF($F23="INDEXADO",VLOOKUP($E23,'Index DESON.'!$A$9:$S$1305,4,FALSE()),IF($F23="CCU",VLOOKUP($E23,'Resumo CCU DESON.'!$A$2:$D$202,3,FALSE()),IF($F23="MERCADO",VLOOKUP('Modelo de Proposta'!$E23,'Planillha de cotações'!$B$7:$L$1143,7,FALSE()),IF($F23="PLEO",VLOOKUP($E23,'PLEO DESON.'!$A$4:$D$14999,3,FALSE()),IF($F23="SICRO",VLOOKUP($E23,'SICRO DESON.'!$A$4:$D$50010,3,FALSE()),IF($F23="SINAPI",IFERROR((VLOOKUP($E23,'comp. SINAPI DESON.'!$G$7:$L$50000,3,FALSE())),(VLOOKUP($E23,'ins. SINAPI DESON.'!$A$8:$E$15000,3,FALSE()))),"-"))))))) -> - | I23: ='Orçamento N_DESON.'!I23 -> 0 | M23: 0 | O23: 0 | P23: 0 | Q23: 0 | R23: 0 | S23: 0
D24: ='Orçamento N_DESON.'!D24 -> 1.14 | E24: ='Orçamento N_DESON.'!E24 -> 0 | F24: ='Orçamento N_DESON.'!F24 -> 0 | G24: =IF(OR($F24="ANP",$F24="DAER",$F24="CONSULTORIA DNIT",$F24="PREGÃO ELETRÔNICO",$F24="DMLU",$F24="DMAE",$F24="EPTC"),VLOOKUP($E24,'Planilha Auxiliar'!$A$4:$L$1000,8,FALSE()),IF($F24="INDEXADO",CONCATENATE(VLOOKUP($E24,'Index DESON.'!$A$9:$S$1305,3,FALSE())," (",VLOOKUP($E24,'Index DESON.'!$A$9:$S$1305,2,FALSE()),")"),IF($F24="CCU",VLOOKUP($E24,'Resumo CCU DESON.'!$A$2:$D$202,2,FALSE()),IF($F24="MERCADO",VLOOKUP($E24,'Planillha de cotações'!$B$7:$L$102,2,FALSE()),IF($F24="PLEO",VLOOKUP($E24,'PLEO DESON.'!$A$4:$D$14999,2,FALSE()),IF($F24="SICRO",VLOOKUP($E24,'SICRO DESON.'!$A$4:$D$50010,2,FALSE()),IF($F24="SINAPI",IFERROR((VLOOKUP($E24,'comp. SINAPI DESON.'!$G$7:$L$50000,2,FALSE())),(VLOOKUP($E24,'ins. SINAPI DESON.'!$A$8:$E$15000,2,FALSE()))),"-"))))))) -> - | H24: =IF(OR($F24="ANP",$F24="DAER",$F24="CONSULTORIA DNIT",$F24="PREGÃO ELETRÔNICO",$F24="DMLU",$F24="DMAE",$F24="EPTC"),VLOOKUP($E24,'Planilha Auxiliar'!$A$4:$L$1000,9,FALSE()),IF($F24="INDEXADO",VLOOKUP($E24,'Index DESON.'!$A$9:$S$1305,4,FALSE()),IF($F24="CCU",VLOOKUP($E24,'Resumo CCU DESON.'!$A$2:$D$202,3,FALSE()),IF($F24="MERCADO",VLOOKUP('Modelo de Proposta'!$E24,'Planillha de cotações'!$B$7:$L$1143,7,FALSE()),IF($F24="PLEO",VLOOKUP($E24,'PLEO DESON.'!$A$4:$D$14999,3,FALSE()),IF($F24="SICRO",VLOOKUP($E24,'SICRO DESON.'!$A$4:$D$50010,3,FALSE()),IF($F24="SINAPI",IFERROR((VLOOKUP($E24,'comp. SINAPI DESON.'!$G$7:$L$50000,3,FALSE())),(VLOOKUP($E24,'ins. SINAPI DESON.'!$A$8:$E$15000,3,FALSE()))),"-"))))))) -> - | I24: ='Orçamento N_DESON.'!I24 -> 0 | M24: 0 | O24: 0 | P24: 0 | Q24: 0 | R24: 0 | S24: 0
D25: ='Orçamento N_DESON.'!D25 -> 1.15 | E25: ='Orçamento N_DESON.'!E25 -> 0 | F25: ='Orçamento N_DESON.'!F25 -> 0 | G25: =IF(OR($F25="ANP",$F25="DAER",$F25="CONSULTORIA DNIT",$F25="PREGÃO ELETRÔNICO",$F25="DMLU",$F25="DMAE",$F25="EPTC"),VLOOKUP($E25,'Planilha Auxiliar'!$A$4:$L$1000,8,FALSE()),IF($F25="INDEXADO",CONCATENATE(VLOOKUP($E25,'Index DESON.'!$A$9:$S$1305,3,FALSE())," (",VLOOKUP($E25,'Index DESON.'!$A$9:$S$1305,2,FALSE()),")"),IF($F25="CCU",VLOOKUP($E25,'Resumo CCU DESON.'!$A$2:$D$202,2,FALSE()),IF($F25="MERCADO",VLOOKUP($E25,'Planillha de cotações'!$B$7:$L$102,2,FALSE()),IF($F25="PLEO",VLOOKUP($E25,'PLEO DESON.'!$A$4:$D$14999,2,FALSE()),IF($F25="SICRO",VLOOKUP($E25,'SICRO DESON.'!$A$4:$D$50010,2,FALSE()),IF($F25="SINAPI",IFERROR((VLOOKUP($E25,'comp. SINAPI DESON.'!$G$7:$L$50000,2,FALSE())),(VLOOKUP($E25,'ins. SINAPI DESON.'!$A$8:$E$15000,2,FALSE()))),"-"))))))) -> - | H25: =IF(OR($F25="ANP",$F25="DAER",$F25="CONSULTORIA DNIT",$F25="PREGÃO ELETRÔNICO",$F25="DMLU",$F25="DMAE",$F25="EPTC"),VLOOKUP($E25,'Planilha Auxiliar'!$A$4:$L$1000,9,FALSE()),IF($F25="INDEXADO",VLOOKUP($E25,'Index DESON.'!$A$9:$S$1305,4,FALSE()),IF($F25="CCU",VLOOKUP($E25,'Resumo CCU DESON.'!$A$2:$D$202,3,FALSE()),IF($F25="MERCADO",VLOOKUP('Modelo de Proposta'!$E25,'Planillha de cotações'!$B$7:$L$1143,7,FALSE()),IF($F25="PLEO",VLOOKUP($E25,'PLEO DESON.'!$A$4:$D$14999,3,FALSE()),IF($F25="SICRO",VLOOKUP($E25,'SICRO DESON.'!$A$4:$D$50010,3,FALSE()),IF($F25="SINAPI",IFERROR((VLOOKUP($E25,'comp. SINAPI DESON.'!$G$7:$L$50000,3,FALSE())),(VLOOKUP($E25,'ins. SINAPI DESON.'!$A$8:$E$15000,3,FALSE()))),"-"))))))) -> - | I25: ='Orçamento N_DESON.'!I25 -> 0 | M25: 0 | O25: 0 | P25: 0 | Q25: 0 | R25: 0 | S25: 0
D26: ='Orçamento N_DESON.'!D26 -> 1.16 | E26: ='Orçamento N_DESON.'!E26 -> 0 | F26: ='Orçamento N_DESON.'!F26 -> 0 | G26: =IF(OR($F26="ANP",$F26="DAER",$F26="CONSULTORIA DNIT",$F26="PREGÃO ELETRÔNICO",$F26="DMLU",$F26="DMAE",$F26="EPTC"),VLOOKUP($E26,'Planilha Auxiliar'!$A$4:$L$1000,8,FALSE()),IF($F26="INDEXADO",CONCATENATE(VLOOKUP($E26,'Index DESON.'!$A$9:$S$1305,3,FALSE())," (",VLOOKUP($E26,'Index DESON.'!$A$9:$S$1305,2,FALSE()),")"),IF($F26="CCU",VLOOKUP($E26,'Resumo CCU DESON.'!$A$2:$D$202,2,FALSE()),IF($F26="MERCADO",VLOOKUP($E26,'Planillha de cotações'!$B$7:$L$102,2,FALSE()),IF($F26="PLEO",VLOOKUP($E26,'PLEO DESON.'!$A$4:$D$14999,2,FALSE()),IF($F26="SICRO",VLOOKUP($E26,'SICRO DESON.'!$A$4:$D$50010,2,FALSE()),IF($F26="SINAPI",IFERROR((VLOOKUP($E26,'comp. SINAPI DESON.'!$G$7:$L$50000,2,FALSE())),(VLOOKUP($E26,'ins. SINAPI DESON.'!$A$8:$E$15000,2,FALSE()))),"-"))))))) -> - | H26: =IF(OR($F26="ANP",$F26="DAER",$F26="CONSULTORIA DNIT",$F26="PREGÃO ELETRÔNICO",$F26="DMLU",$F26="DMAE",$F26="EPTC"),VLOOKUP($E26,'Planilha Auxiliar'!$A$4:$L$1000,9,FALSE()),IF($F26="INDEXADO",VLOOKUP($E26,'Index DESON.'!$A$9:$S$1305,4,FALSE()),IF($F26="CCU",VLOOKUP($E26,'Resumo CCU DESON.'!$A$2:$D$202,3,FALSE()),IF($F26="MERCADO",VLOOKUP('Modelo de Proposta'!$E26,'Planillha de cotações'!$B$7:$L$1143,7,FALSE()),IF($F26="PLEO",VLOOKUP($E26,'PLEO DESON.'!$A$4:$D$14999,3,FALSE()),IF($F26="SICRO",VLOOKUP($E26,'SICRO DESON.'!$A$4:$D$50010,3,FALSE()),IF($F26="SINAPI",IFERROR((VLOOKUP($E26,'comp. SINAPI DESON.'!$G$7:$L$50000,3,FALSE())),(VLOOKUP($E26,'ins. SINAPI DESON.'!$A$8:$E$15000,3,FALSE()))),"-"))))))) -> - | I26: ='Orçamento N_DESON.'!I26 -> 0 | M26: 0 | O26: 0 | P26: 0 | Q26: 0 | R26: 0 | S26: 0
D27: ='Orçamento N_DESON.'!D27 -> 1.17 | E27: ='Orçamento N_DESON.'!E27 -> 0 | F27: ='Orçamento N_DESON.'!F27 -> 0 | G27: =IF(OR($F27="ANP",$F27="DAER",$F27="CONSULTORIA DNIT",$F27="PREGÃO ELETRÔNICO",$F27="DMLU",$F27="DMAE",$F27="EPTC"),VLOOKUP($E27,'Planilha Auxiliar'!$A$4:$L$1000,8,FALSE()),IF($F27="INDEXADO",CONCATENATE(VLOOKUP($E27,'Index DESON.'!$A$9:$S$1305,3,FALSE())," (",VLOOKUP($E27,'Index DESON.'!$A$9:$S$1305,2,FALSE()),")"),IF($F27="CCU",VLOOKUP($E27,'Resumo CCU DESON.'!$A$2:$D$202,2,FALSE()),IF($F27="MERCADO",VLOOKUP($E27,'Planillha de cotações'!$B$7:$L$102,2,FALSE()),IF($F27="PLEO",VLOOKUP($E27,'PLEO DESON.'!$A$4:$D$14999,2,FALSE()),IF($F27="SICRO",VLOOKUP($E27,'SICRO DESON.'!$A$4:$D$50010,2,FALSE()),IF($F27="SINAPI",IFERROR((VLOOKUP($E27,'comp. SINAPI DESON.'!$G$7:$L$50000,2,FALSE())),(VLOOKUP($E27,'ins. SINAPI DESON.'!$A$8:$E$15000,2,FALSE()))),"-"))))))) -> - | H27: =IF(OR($F27="ANP",$F27="DAER",$F27="CONSULTORIA DNIT",$F27="PREGÃO ELETRÔNICO",$F27="DMLU",$F27="DMAE",$F27="EPTC"),VLOOKUP($E27,'Planilha Auxiliar'!$A$4:$L$1000,9,FALSE()),IF($F27="INDEXADO",VLOOKUP($E27,'Index DESON.'!$A$9:$S$1305,4,FALSE()),IF($F27="CCU",VLOOKUP($E27,'Resumo CCU DESON.'!$A$2:$D$202,3,FALSE()),IF($F27="MERCADO",VLOOKUP('Modelo de Proposta'!$E27,'Planillha de cotações'!$B$7:$L$1143,7,FALSE()),IF($F27="PLEO",VLOOKUP($E27,'PLEO DESON.'!$A$4:$D$14999,3,FALSE()),IF($F27="SICRO",VLOOKUP($E27,'SICRO DESON.'!$A$4:$D$50010,3,FALSE()),IF($F27="SINAPI",IFERROR((VLOOKUP($E27,'comp. SINAPI DESON.'!$G$7:$L$50000,3,FALSE())),(VLOOKUP($E27,'ins. SINAPI DESON.'!$A$8:$E$15000,3,FALSE()))),"-"))))))) -> - | I27: ='Orçamento N_DESON.'!I27 -> 0 | M27: 0 | O27: 0 | P27: 0 | Q27: 0 | R27: 0 | S27: 0
D28: ='Orçamento N_DESON.'!D28 -> 1.18 | E28: ='Orçamento N_DESON.'!E28 -> 0 | F28: ='Orçamento N_DESON.'!F28 -> 0 | G28: =IF(OR($F28="ANP",$F28="DAER",$F28="CONSULTORIA DNIT",$F28="PREGÃO ELETRÔNICO",$F28="DMLU",$F28="DMAE",$F28="EPTC"),VLOOKUP($E28,'Planilha Auxiliar'!$A$4:$L$1000,8,FALSE()),IF($F28="INDEXADO",CONCATENATE(VLOOKUP($E28,'Index DESON.'!$A$9:$S$1305,3,FALSE())," (",VLOOKUP($E28,'Index DESON.'!$A$9:$S$1305,2,FALSE()),")"),IF($F28="CCU",VLOOKUP($E28,'Resumo CCU DESON.'!$A$2:$D$202,2,FALSE()),IF($F28="MERCADO",VLOOKUP($E28,'Planillha de cotações'!$B$7:$L$102,2,FALSE()),IF($F28="PLEO",VLOOKUP($E28,'PLEO DESON.'!$A$4:$D$14999,2,FALSE()),IF($F28="SICRO",VLOOKUP($E28,'SICRO DESON.'!$A$4:$D$50010,2,FALSE()),IF($F28="SINAPI",IFERROR((VLOOKUP($E28,'comp. SINAPI DESON.'!$G$7:$L$50000,2,FALSE())),(VLOOKUP($E28,'ins. SINAPI DESON.'!$A$8:$E$15000,2,FALSE()))),"-"))))))) -> - | H28: =IF(OR($F28="ANP",$F28="DAER",$F28="CONSULTORIA DNIT",$F28="PREGÃO ELETRÔNICO",$F28="DMLU",$F28="DMAE",$F28="EPTC"),VLOOKUP($E28,'Planilha Auxiliar'!$A$4:$L$1000,9,FALSE()),IF($F28="INDEXADO",VLOOKUP($E28,'Index DESON.'!$A$9:$S$1305,4,FALSE()),IF($F28="CCU",VLOOKUP($E28,'Resumo CCU DESON.'!$A$2:$D$202,3,FALSE()),IF($F28="MERCADO",VLOOKUP('Modelo de Proposta'!$E28,'Planillha de cotações'!$B$7:$L$1143,7,FALSE()),IF($F28="PLEO",VLOOKUP($E28,'PLEO DESON.'!$A$4:$D$14999,3,FALSE()),IF($F28="SICRO",VLOOKUP($E28,'SICRO DESON.'!$A$4:$D$50010,3,FALSE()),IF($F28="SINAPI",IFERROR((VLOOKUP($E28,'comp. SINAPI DESON.'!$G$7:$L$50000,3,FALSE())),(VLOOKUP($E28,'ins. SINAPI DESON.'!$A$8:$E$15000,3,FALSE()))),"-"))))))) -> - | I28: ='Orçamento N_DESON.'!I28 -> 0 | M28: 0 | O28: 0 | P28: 0 | Q28: 0 | R28: 0 | S28: 0
D29: ='Orçamento N_DESON.'!D29 -> 1.19 | E29: ='Orçamento N_DESON.'!E29 -> 0 | F29: ='Orçamento N_DESON.'!F29 -> 0 | G29: =IF(OR($F29="ANP",$F29="DAER",$F29="CONSULTORIA DNIT",$F29="PREGÃO ELETRÔNICO",$F29="DMLU",$F29="DMAE",$F29="EPTC"),VLOOKUP($E29,'Planilha Auxiliar'!$A$4:$L$1000,8,FALSE()),IF($F29="INDEXADO",CONCATENATE(VLOOKUP($E29,'Index DESON.'!$A$9:$S$1305,3,FALSE())," (",VLOOKUP($E29,'Index DESON.'!$A$9:$S$1305,2,FALSE()),")"),IF($F29="CCU",VLOOKUP($E29,'Resumo CCU DESON.'!$A$2:$D$202,2,FALSE()),IF($F29="MERCADO",VLOOKUP($E29,'Planillha de cotações'!$B$7:$L$102,2,FALSE()),IF($F29="PLEO",VLOOKUP($E29,'PLEO DESON.'!$A$4:$D$14999,2,FALSE()),IF($F29="SICRO",VLOOKUP($E29,'SICRO DESON.'!$A$4:$D$50010,2,FALSE()),IF($F29="SINAPI",IFERROR((VLOOKUP($E29,'comp. SINAPI DESON.'!$G$7:$L$50000,2,FALSE())),(VLOOKUP($E29,'ins. SINAPI DESON.'!$A$8:$E$15000,2,FALSE()))),"-"))))))) -> - | H29: =IF(OR($F29="ANP",$F29="DAER",$F29="CONSULTORIA DNIT",$F29="PREGÃO ELETRÔNICO",$F29="DMLU",$F29="DMAE",$F29="EPTC"),VLOOKUP($E29,'Planilha Auxiliar'!$A$4:$L$1000,9,FALSE()),IF($F29="INDEXADO",VLOOKUP($E29,'Index DESON.'!$A$9:$S$1305,4,FALSE()),IF($F29="CCU",VLOOKUP($E29,'Resumo CCU DESON.'!$A$2:$D$202,3,FALSE()),IF($F29="MERCADO",VLOOKUP('Modelo de Proposta'!$E29,'Planillha de cotações'!$B$7:$L$1143,7,FALSE()),IF($F29="PLEO",VLOOKUP($E29,'PLEO DESON.'!$A$4:$D$14999,3,FALSE()),IF($F29="SICRO",VLOOKUP($E29,'SICRO DESON.'!$A$4:$D$50010,3,FALSE()),IF($F29="SINAPI",IFERROR((VLOOKUP($E29,'comp. SINAPI DESON.'!$G$7:$L$50000,3,FALSE())),(VLOOKUP($E29,'ins. SINAPI DESON.'!$A$8:$E$15000,3,FALSE()))),"-"))))))) -> - | I29: ='Orçamento N_DESON.'!I29 -> 0 | M29: 0 | O29: 0 | P29: 0 | Q29: 0 | R29: 0 | S29: 0
D30: ='Orçamento N_DESON.'!D30 -> 1.20 | E30: ='Orçamento N_DESON.'!E30 -> 0 | F30: ='Orçamento N_DESON.'!F30 -> 0 | G30: =IF(OR($F30="ANP",$F30="DAER",$F30="CONSULTORIA DNIT",$F30="PREGÃO ELETRÔNICO",$F30="DMLU",$F30="DMAE",$F30="EPTC"),VLOOKUP($E30,'Planilha Auxiliar'!$A$4:$L$1000,8,FALSE()),IF($F30="INDEXADO",CONCATENATE(VLOOKUP($E30,'Index DESON.'!$A$9:$S$1305,3,FALSE())," (",VLOOKUP($E30,'Index DESON.'!$A$9:$S$1305,2,FALSE()),")"),IF($F30="CCU",VLOOKUP($E30,'Resumo CCU DESON.'!$A$2:$D$202,2,FALSE()),IF($F30="MERCADO",VLOOKUP($E30,'Planillha de cotações'!$B$7:$L$102,2,FALSE()),IF($F30="PLEO",VLOOKUP($E30,'PLEO DESON.'!$A$4:$D$14999,2,FALSE()),IF($F30="SICRO",VLOOKUP($E30,'SICRO DESON.'!$A$4:$D$50010,2,FALSE()),IF($F30="SINAPI",IFERROR((VLOOKUP($E30,'comp. SINAPI DESON.'!$G$7:$L$50000,2,FALSE())),(VLOOKUP($E30,'ins. SINAPI DESON.'!$A$8:$E$15000,2,FALSE()))),"-"))))))) -> - | H30: =IF(OR($F30="ANP",$F30="DAER",$F30="CONSULTORIA DNIT",$F30="PREGÃO ELETRÔNICO",$F30="DMLU",$F30="DMAE",$F30="EPTC"),VLOOKUP($E30,'Planilha Auxiliar'!$A$4:$L$1000,9,FALSE()),IF($F30="INDEXADO",VLOOKUP($E30,'Index DESON.'!$A$9:$S$1305,4,FALSE()),IF($F30="CCU",VLOOKUP($E30,'Resumo CCU DESON.'!$A$2:$D$202,3,FALSE()),IF($F30="MERCADO",VLOOKUP('Modelo de Proposta'!$E30,'Planillha de cotações'!$B$7:$L$1143,7,FALSE()),IF($F30="PLEO",VLOOKUP($E30,'PLEO DESON.'!$A$4:$D$14999,3,FALSE()),IF($F30="SICRO",VLOOKUP($E30,'SICRO DESON.'!$A$4:$D$50010,3,FALSE()),IF($F30="SINAPI",IFERROR((VLOOKUP($E30,'comp. SINAPI DESON.'!$G$7:$L$50000,3,FALSE())),(VLOOKUP($E30,'ins. SINAPI DESON.'!$A$8:$E$15000,3,FALSE()))),"-"))))))) -> - | I30: ='Orçamento N_DESON.'!I30 -> 0 | M30: 0 | O30: 0 | P30: 0 | Q30: 0 | R30: 0 | S30: 0
D31: ='Orçamento N_DESON.'!D31 -> 1.21 | E31: ='Orçamento N_DESON.'!E31 -> 0 | F31: ='Orçamento N_DESON.'!F31 -> 0 | G31: =IF(OR($F31="ANP",$F31="DAER",$F31="CONSULTORIA DNIT",$F31="PREGÃO ELETRÔNICO",$F31="DMLU",$F31="DMAE",$F31="EPTC"),VLOOKUP($E31,'Planilha Auxiliar'!$A$4:$L$1000,8,FALSE()),IF($F31="INDEXADO",CONCATENATE(VLOOKUP($E31,'Index DESON.'!$A$9:$S$1305,3,FALSE())," (",VLOOKUP($E31,'Index DESON.'!$A$9:$S$1305,2,FALSE()),")"),IF($F31="CCU",VLOOKUP($E31,'Resumo CCU DESON.'!$A$2:$D$202,2,FALSE()),IF($F31="MERCADO",VLOOKUP($E31,'Planillha de cotações'!$B$7:$L$102,2,FALSE()),IF($F31="PLEO",VLOOKUP($E31,'PLEO DESON.'!$A$4:$D$14999,2,FALSE()),IF($F31="SICRO",VLOOKUP($E31,'SICRO DESON.'!$A$4:$D$50010,2,FALSE()),IF($F31="SINAPI",IFERROR((VLOOKUP($E31,'comp. SINAPI DESON.'!$G$7:$L$50000,2,FALSE())),(VLOOKUP($E31,'ins. SINAPI DESON.'!$A$8:$E$15000,2,FALSE()))),"-"))))))) -> - | H31: =IF(OR($F31="ANP",$F31="DAER",$F31="CONSULTORIA DNIT",$F31="PREGÃO ELETRÔNICO",$F31="DMLU",$F31="DMAE",$F31="EPTC"),VLOOKUP($E31,'Planilha Auxiliar'!$A$4:$L$1000,9,FALSE()),IF($F31="INDEXADO",VLOOKUP($E31,'Index DESON.'!$A$9:$S$1305,4,FALSE()),IF($F31="CCU",VLOOKUP($E31,'Resumo CCU DESON.'!$A$2:$D$202,3,FALSE()),IF($F31="MERCADO",VLOOKUP('Modelo de Proposta'!$E31,'Planillha de cotações'!$B$7:$L$1143,7,FALSE()),IF($F31="PLEO",VLOOKUP($E31,'PLEO DESON.'!$A$4:$D$14999,3,FALSE()),IF($F31="SICRO",VLOOKUP($E31,'SICRO DESON.'!$A$4:$D$50010,3,FALSE()),IF($F31="SINAPI",IFERROR((VLOOKUP($E31,'comp. SINAPI DESON.'!$G$7:$L$50000,3,FALSE())),(VLOOKUP($E31,'ins. SINAPI DESON.'!$A$8:$E$15000,3,FALSE()))),"-"))))))) -> - | I31: ='Orçamento N_DESON.'!I31 -> 0 | M31: 0 | O31: 0 | P31: 0 | Q31: 0 | R31: 0 | S31: 0
D32: ='Orçamento N_DESON.'!D32 -> 1.22 | E32: ='Orçamento N_DESON.'!E32 -> 0 | F32: ='Orçamento N_DESON.'!F32 -> 0 | G32: =IF(OR($F32="ANP",$F32="DAER",$F32="CONSULTORIA DNIT",$F32="PREGÃO ELETRÔNICO",$F32="DMLU",$F32="DMAE",$F32="EPTC"),VLOOKUP($E32,'Planilha Auxiliar'!$A$4:$L$1000,8,FALSE()),IF($F32="INDEXADO",CONCATENATE(VLOOKUP($E32,'Index DESON.'!$A$9:$S$1305,3,FALSE())," (",VLOOKUP($E32,'Index DESON.'!$A$9:$S$1305,2,FALSE()),")"),IF($F32="CCU",VLOOKUP($E32,'Resumo CCU DESON.'!$A$2:$D$202,2,FALSE()),IF($F32="MERCADO",VLOOKUP($E32,'Planillha de cotações'!$B$7:$L$102,2,FALSE()),IF($F32="PLEO",VLOOKUP($E32,'PLEO DESON.'!$A$4:$D$14999,2,FALSE()),IF($F32="SICRO",VLOOKUP($E32,'SICRO DESON.'!$A$4:$D$50010,2,FALSE()),IF($F32="SINAPI",IFERROR((VLOOKUP($E32,'comp. SINAPI DESON.'!$G$7:$L$50000,2,FALSE())),(VLOOKUP($E32,'ins. SINAPI DESON.'!$A$8:$E$15000,2,FALSE()))),"-"))))))) -> - | H32: =IF(OR($F32="ANP",$F32="DAER",$F32="CONSULTORIA DNIT",$F32="PREGÃO ELETRÔNICO",$F32="DMLU",$F32="DMAE",$F32="EPTC"),VLOOKUP($E32,'Planilha Auxiliar'!$A$4:$L$1000,9,FALSE()),IF($F32="INDEXADO",VLOOKUP($E32,'Index DESON.'!$A$9:$S$1305,4,FALSE()),IF($F32="CCU",VLOOKUP($E32,'Resumo CCU DESON.'!$A$2:$D$202,3,FALSE()),IF($F32="MERCADO",VLOOKUP('Modelo de Proposta'!$E32,'Planillha de cotações'!$B$7:$L$1143,7,FALSE()),IF($F32="PLEO",VLOOKUP($E32,'PLEO DESON.'!$A$4:$D$14999,3,FALSE()),IF($F32="SICRO",VLOOKUP($E32,'SICRO DESON.'!$A$4:$D$50010,3,FALSE()),IF($F32="SINAPI",IFERROR((VLOOKUP($E32,'comp. SINAPI DESON.'!$G$7:$L$50000,3,FALSE())),(VLOOKUP($E32,'ins. SINAPI DESON.'!$A$8:$E$15000,3,FALSE()))),"-"))))))) -> - | I32: ='Orçamento N_DESON.'!I32 -> 0 | M32: 0 | O32: 0 | P32: 0 | Q32: 0 | R32: 0 | S32: 0
D33: ='Orçamento N_DESON.'!D33 -> 1.23 | E33: ='Orçamento N_DESON.'!E33 -> 0 | F33: ='Orçamento N_DESON.'!F33 -> 0 | G33: =IF(OR($F33="ANP",$F33="DAER",$F33="CONSULTORIA DNIT",$F33="PREGÃO ELETRÔNICO",$F33="DMLU",$F33="DMAE",$F33="EPTC"),VLOOKUP($E33,'Planilha Auxiliar'!$A$4:$L$1000,8,FALSE()),IF($F33="INDEXADO",CONCATENATE(VLOOKUP($E33,'Index DESON.'!$A$9:$S$1305,3,FALSE())," (",VLOOKUP($E33,'Index DESON.'!$A$9:$S$1305,2,FALSE()),")"),IF($F33="CCU",VLOOKUP($E33,'Resumo CCU DESON.'!$A$2:$D$202,2,FALSE()),IF($F33="MERCADO",VLOOKUP($E33,'Planillha de cotações'!$B$7:$L$102,2,FALSE()),IF($F33="PLEO",VLOOKUP($E33,'PLEO DESON.'!$A$4:$D$14999,2,FALSE()),IF($F33="SICRO",VLOOKUP($E33,'SICRO DESON.'!$A$4:$D$50010,2,FALSE()),IF($F33="SINAPI",IFERROR((VLOOKUP($E33,'comp. SINAPI DESON.'!$G$7:$L$50000,2,FALSE())),(VLOOKUP($E33,'ins. SINAPI DESON.'!$A$8:$E$15000,2,FALSE()))),"-"))))))) -> - | H33: =IF(OR($F33="ANP",$F33="DAER",$F33="CONSULTORIA DNIT",$F33="PREGÃO ELETRÔNICO",$F33="DMLU",$F33="DMAE",$F33="EPTC"),VLOOKUP($E33,'Planilha Auxiliar'!$A$4:$L$1000,9,FALSE()),IF($F33="INDEXADO",VLOOKUP($E33,'Index DESON.'!$A$9:$S$1305,4,FALSE()),IF($F33="CCU",VLOOKUP($E33,'Resumo CCU DESON.'!$A$2:$D$202,3,FALSE()),IF($F33="MERCADO",VLOOKUP('Modelo de Proposta'!$E33,'Planillha de cotações'!$B$7:$L$1143,7,FALSE()),IF($F33="PLEO",VLOOKUP($E33,'PLEO DESON.'!$A$4:$D$14999,3,FALSE()),IF($F33="SICRO",VLOOKUP($E33,'SICRO DESON.'!$A$4:$D$50010,3,FALSE()),IF($F33="SINAPI",IFERROR((VLOOKUP($E33,'comp. SINAPI DESON.'!$G$7:$L$50000,3,FALSE())),(VLOOKUP($E33,'ins. SINAPI DESON.'!$A$8:$E$15000,3,FALSE()))),"-"))))))) -> - | I33: ='Orçamento N_DESON.'!I33 -> 0 | M33: 0 | O33: 0 | P33: 0 | Q33: 0 | R33: 0 | S33: 0
D34: ='Orçamento N_DESON.'!D34 -> 1.24 | E34: ='Orçamento N_DESON.'!E34 -> 0 | F34: ='Orçamento N_DESON.'!F34 -> 0 | G34: =IF(OR($F34="ANP",$F34="DAER",$F34="CONSULTORIA DNIT",$F34="PREGÃO ELETRÔNICO",$F34="DMLU",$F34="DMAE",$F34="EPTC"),VLOOKUP($E34,'Planilha Auxiliar'!$A$4:$L$1000,8,FALSE()),IF($F34="INDEXADO",CONCATENATE(VLOOKUP($E34,'Index DESON.'!$A$9:$S$1305,3,FALSE())," (",VLOOKUP($E34,'Index DESON.'!$A$9:$S$1305,2,FALSE()),")"),IF($F34="CCU",VLOOKUP($E34,'Resumo CCU DESON.'!$A$2:$D$202,2,FALSE()),IF($F34="MERCADO",VLOOKUP($E34,'Planillha de cotações'!$B$7:$L$102,2,FALSE()),IF($F34="PLEO",VLOOKUP($E34,'PLEO DESON.'!$A$4:$D$14999,2,FALSE()),IF($F34="SICRO",VLOOKUP($E34,'SICRO DESON.'!$A$4:$D$50010,2,FALSE()),IF($F34="SINAPI",IFERROR((VLOOKUP($E34,'comp. SINAPI DESON.'!$G$7:$L$50000,2,FALSE())),(VLOOKUP($E34,'ins. SINAPI DESON.'!$A$8:$E$15000,2,FALSE()))),"-"))))))) -> - | H34: =IF(OR($F34="ANP",$F34="DAER",$F34="CONSULTORIA DNIT",$F34="PREGÃO ELETRÔNICO",$F34="DMLU",$F34="DMAE",$F34="EPTC"),VLOOKUP($E34,'Planilha Auxiliar'!$A$4:$L$1000,9,FALSE()),IF($F34="INDEXADO",VLOOKUP($E34,'Index DESON.'!$A$9:$S$1305,4,FALSE()),IF($F34="CCU",VLOOKUP($E34,'Resumo CCU DESON.'!$A$2:$D$202,3,FALSE()),IF($F34="MERCADO",VLOOKUP('Modelo de Proposta'!$E34,'Planillha de cotações'!$B$7:$L$1143,7,FALSE()),IF($F34="PLEO",VLOOKUP($E34,'PLEO DESON.'!$A$4:$D$14999,3,FALSE()),IF($F34="SICRO",VLOOKUP($E34,'SICRO DESON.'!$A$4:$D$50010,3,FALSE()),IF($F34="SINAPI",IFERROR((VLOOKUP($E34,'comp. SINAPI DESON.'!$G$7:$L$50000,3,FALSE())),(VLOOKUP($E34,'ins. SINAPI DESON.'!$A$8:$E$15000,3,FALSE()))),"-"))))))) -> - | I34: ='Orçamento N_DESON.'!I34 -> 0 | M34: 0 | O34: 0 | P34: 0 | Q34: 0 | R34: 0 | S34: 0
D35: ='Orçamento N_DESON.'!D35 -> 1.25 | E35: ='Orçamento N_DESON.'!E35 -> 0 | F35: ='Orçamento N_DESON.'!F35 -> 0 | G35: =IF(OR($F35="ANP",$F35="DAER",$F35="CONSULTORIA DNIT",$F35="PREGÃO ELETRÔNICO",$F35="DMLU",$F35="DMAE",$F35="EPTC"),VLOOKUP($E35,'Planilha Auxiliar'!$A$4:$L$1000,8,FALSE()),IF($F35="INDEXADO",CONCATENATE(VLOOKUP($E35,'Index DESON.'!$A$9:$S$1305,3,FALSE())," (",VLOOKUP($E35,'Index DESON.'!$A$9:$S$1305,2,FALSE()),")"),IF($F35="CCU",VLOOKUP($E35,'Resumo CCU DESON.'!$A$2:$D$202,2,FALSE()),IF($F35="MERCADO",VLOOKUP($E35,'Planillha de cotações'!$B$7:$L$102,2,FALSE()),IF($F35="PLEO",VLOOKUP($E35,'PLEO DESON.'!$A$4:$D$14999,2,FALSE()),IF($F35="SICRO",VLOOKUP($E35,'SICRO DESON.'!$A$4:$D$50010,2,FALSE()),IF($F35="SINAPI",IFERROR((VLOOKUP($E35,'comp. SINAPI DESON.'!$G$7:$L$50000,2,FALSE())),(VLOOKUP($E35,'ins. SINAPI DESON.'!$A$8:$E$15000,2,FALSE()))),"-"))))))) -> - | H35: =IF(OR($F35="ANP",$F35="DAER",$F35="CONSULTORIA DNIT",$F35="PREGÃO ELETRÔNICO",$F35="DMLU",$F35="DMAE",$F35="EPTC"),VLOOKUP($E35,'Planilha Auxiliar'!$A$4:$L$1000,9,FALSE()),IF($F35="INDEXADO",VLOOKUP($E35,'Index DESON.'!$A$9:$S$1305,4,FALSE()),IF($F35="CCU",VLOOKUP($E35,'Resumo CCU DESON.'!$A$2:$D$202,3,FALSE()),IF($F35="MERCADO",VLOOKUP('Modelo de Proposta'!$E35,'Planillha de cotações'!$B$7:$L$1143,7,FALSE()),IF($F35="PLEO",VLOOKUP($E35,'PLEO DESON.'!$A$4:$D$14999,3,FALSE()),IF($F35="SICRO",VLOOKUP($E35,'SICRO DESON.'!$A$4:$D$50010,3,FALSE()),IF($F35="SINAPI",IFERROR((VLOOKUP($E35,'comp. SINAPI DESON.'!$G$7:$L$50000,3,FALSE())),(VLOOKUP($E35,'ins. SINAPI DESON.'!$A$8:$E$15000,3,FALSE()))),"-"))))))) -> - | I35: ='Orçamento N_DESON.'!I35 -> 0 | M35: 0 | O35: 0 | P35: 0 | Q35: 0 | R35: 0 | S35: 0
D36: ='Orçamento N_DESON.'!D36 -> 1.26 | E36: ='Orçamento N_DESON.'!E36 -> 0 | F36: ='Orçamento N_DESON.'!F36 -> 0 | G36: =IF(OR($F36="ANP",$F36="DAER",$F36="CONSULTORIA DNIT",$F36="PREGÃO ELETRÔNICO",$F36="DMLU",$F36="DMAE",$F36="EPTC"),VLOOKUP($E36,'Planilha Auxiliar'!$A$4:$L$1000,8,FALSE()),IF($F36="INDEXADO",CONCATENATE(VLOOKUP($E36,'Index DESON.'!$A$9:$S$1305,3,FALSE())," (",VLOOKUP($E36,'Index DESON.'!$A$9:$S$1305,2,FALSE()),")"),IF($F36="CCU",VLOOKUP($E36,'Resumo CCU DESON.'!$A$2:$D$202,2,FALSE()),IF($F36="MERCADO",VLOOKUP($E36,'Planillha de cotações'!$B$7:$L$102,2,FALSE()),IF($F36="PLEO",VLOOKUP($E36,'PLEO DESON.'!$A$4:$D$14999,2,FALSE()),IF($F36="SICRO",VLOOKUP($E36,'SICRO DESON.'!$A$4:$D$50010,2,FALSE()),IF($F36="SINAPI",IFERROR((VLOOKUP($E36,'comp. SINAPI DESON.'!$G$7:$L$50000,2,FALSE())),(VLOOKUP($E36,'ins. SINAPI DESON.'!$A$8:$E$15000,2,FALSE()))),"-"))))))) -> - | H36: =IF(OR($F36="ANP",$F36="DAER",$F36="CONSULTORIA DNIT",$F36="PREGÃO ELETRÔNICO",$F36="DMLU",$F36="DMAE",$F36="EPTC"),VLOOKUP($E36,'Planilha Auxiliar'!$A$4:$L$1000,9,FALSE()),IF($F36="INDEXADO",VLOOKUP($E36,'Index DESON.'!$A$9:$S$1305,4,FALSE()),IF($F36="CCU",VLOOKUP($E36,'Resumo CCU DESON.'!$A$2:$D$202,3,FALSE()),IF($F36="MERCADO",VLOOKUP('Modelo de Proposta'!$E36,'Planillha de cotações'!$B$7:$L$1143,7,FALSE()),IF($F36="PLEO",VLOOKUP($E36,'PLEO DESON.'!$A$4:$D$14999,3,FALSE()),IF($F36="SICRO",VLOOKUP($E36,'SICRO DESON.'!$A$4:$D$50010,3,FALSE()),IF($F36="SINAPI",IFERROR((VLOOKUP($E36,'comp. SINAPI DESON.'!$G$7:$L$50000,3,FALSE())),(VLOOKUP($E36,'ins. SINAPI DESON.'!$A$8:$E$15000,3,FALSE()))),"-"))))))) -> - | I36: ='Orçamento N_DESON.'!I36 -> 0 | M36: 0 | O36: 0 | P36: 0 | Q36: 0 | R36: 0 | S36: 0
D37: ='Orçamento N_DESON.'!D37 -> 1.27 | E37: ='Orçamento N_DESON.'!E37 -> 0 | F37: ='Orçamento N_DESON.'!F37 -> 0 | G37: =IF(OR($F37="ANP",$F37="DAER",$F37="CONSULTORIA DNIT",$F37="PREGÃO ELETRÔNICO",$F37="DMLU",$F37="DMAE",$F37="EPTC"),VLOOKUP($E37,'Planilha Auxiliar'!$A$4:$L$1000,8,FALSE()),IF($F37="INDEXADO",CONCATENATE(VLOOKUP($E37,'Index DESON.'!$A$9:$S$1305,3,FALSE())," (",VLOOKUP($E37,'Index DESON.'!$A$9:$S$1305,2,FALSE()),")"),IF($F37="CCU",VLOOKUP($E37,'Resumo CCU DESON.'!$A$2:$D$202,2,FALSE()),IF($F37="MERCADO",VLOOKUP($E37,'Planillha de cotações'!$B$7:$L$102,2,FALSE()),IF($F37="PLEO",VLOOKUP($E37,'PLEO DESON.'!$A$4:$D$14999,2,FALSE()),IF($F37="SICRO",VLOOKUP($E37,'SICRO DESON.'!$A$4:$D$50010,2,FALSE()),IF($F37="SINAPI",IFERROR((VLOOKUP($E37,'comp. SINAPI DESON.'!$G$7:$L$50000,2,FALSE())),(VLOOKUP($E37,'ins. SINAPI DESON.'!$A$8:$E$15000,2,FALSE()))),"-"))))))) -> - | H37: =IF(OR($F37="ANP",$F37="DAER",$F37="CONSULTORIA DNIT",$F37="PREGÃO ELETRÔNICO",$F37="DMLU",$F37="DMAE",$F37="EPTC"),VLOOKUP($E37,'Planilha Auxiliar'!$A$4:$L$1000,9,FALSE()),IF($F37="INDEXADO",VLOOKUP($E37,'Index DESON.'!$A$9:$S$1305,4,FALSE()),IF($F37="CCU",VLOOKUP($E37,'Resumo CCU DESON.'!$A$2:$D$202,3,FALSE()),IF($F37="MERCADO",VLOOKUP('Modelo de Proposta'!$E37,'Planillha de cotações'!$B$7:$L$1143,7,FALSE()),IF($F37="PLEO",VLOOKUP($E37,'PLEO DESON.'!$A$4:$D$14999,3,FALSE()),IF($F37="SICRO",VLOOKUP($E37,'SICRO DESON.'!$A$4:$D$50010,3,FALSE()),IF($F37="SINAPI",IFERROR((VLOOKUP($E37,'comp. SINAPI DESON.'!$G$7:$L$50000,3,FALSE())),(VLOOKUP($E37,'ins. SINAPI DESON.'!$A$8:$E$15000,3,FALSE()))),"-"))))))) -> - | I37: ='Orçamento N_DESON.'!I37 -> 0 | M37: 0 | O37: 0 | P37: 0 | Q37: 0 | R37: 0 | S37: 0
D38: ='Orçamento N_DESON.'!D38 -> 1.28 | E38: ='Orçamento N_DESON.'!E38 -> 0 | F38: ='Orçamento N_DESON.'!F38 -> 0 | G38: =IF(OR($F38="ANP",$F38="DAER",$F38="CONSULTORIA DNIT",$F38="PREGÃO ELETRÔNICO",$F38="DMLU",$F38="DMAE",$F38="EPTC"),VLOOKUP($E38,'Planilha Auxiliar'!$A$4:$L$1000,8,FALSE()),IF($F38="INDEXADO",CONCATENATE(VLOOKUP($E38,'Index DESON.'!$A$9:$S$1305,3,FALSE())," (",VLOOKUP($E38,'Index DESON.'!$A$9:$S$1305,2,FALSE()),")"),IF($F38="CCU",VLOOKUP($E38,'Resumo CCU DESON.'!$A$2:$D$202,2,FALSE()),IF($F38="MERCADO",VLOOKUP($E38,'Planillha de cotações'!$B$7:$L$102,2,FALSE()),IF($F38="PLEO",VLOOKUP($E38,'PLEO DESON.'!$A$4:$D$14999,2,FALSE()),IF($F38="SICRO",VLOOKUP($E38,'SICRO DESON.'!$A$4:$D$50010,2,FALSE()),IF($F38="SINAPI",IFERROR((VLOOKUP($E38,'comp. SINAPI DESON.'!$G$7:$L$50000,2,FALSE())),(VLOOKUP($E38,'ins. SINAPI DESON.'!$A$8:$E$15000,2,FALSE()))),"-"))))))) -> - | H38: =IF(OR($F38="ANP",$F38="DAER",$F38="CONSULTORIA DNIT",$F38="PREGÃO ELETRÔNICO",$F38="DMLU",$F38="DMAE",$F38="EPTC"),VLOOKUP($E38,'Planilha Auxiliar'!$A$4:$L$1000,9,FALSE()),IF($F38="INDEXADO",VLOOKUP($E38,'Index DESON.'!$A$9:$S$1305,4,FALSE()),IF($F38="CCU",VLOOKUP($E38,'Resumo CCU DESON.'!$A$2:$D$202,3,FALSE()),IF($F38="MERCADO",VLOOKUP('Modelo de Proposta'!$E38,'Planillha de cotações'!$B$7:$L$1143,7,FALSE()),IF($F38="PLEO",VLOOKUP($E38,'PLEO DESON.'!$A$4:$D$14999,3,FALSE()),IF($F38="SICRO",VLOOKUP($E38,'SICRO DESON.'!$A$4:$D$50010,3,FALSE()),IF($F38="SINAPI",IFERROR((VLOOKUP($E38,'comp. SINAPI DESON.'!$G$7:$L$50000,3,FALSE())),(VLOOKUP($E38,'ins. SINAPI DESON.'!$A$8:$E$15000,3,FALSE()))),"-"))))))) -> - | I38: ='Orçamento N_DESON.'!I38 -> 0 | M38: 0 | O38: 0 | P38: 0 | Q38: 0 | R38: 0 | S38: 0
D39: ='Orçamento N_DESON.'!D39 -> 1.29 | E39: ='Orçamento N_DESON.'!E39 -> 0 | F39: ='Orçamento N_DESON.'!F39 -> 0 | G39: =IF(OR($F39="ANP",$F39="DAER",$F39="CONSULTORIA DNIT",$F39="PREGÃO ELETRÔNICO",$F39="DMLU",$F39="DMAE",$F39="EPTC"),VLOOKUP($E39,'Planilha Auxiliar'!$A$4:$L$1000,8,FALSE()),IF($F39="INDEXADO",CONCATENATE(VLOOKUP($E39,'Index DESON.'!$A$9:$S$1305,3,FALSE())," (",VLOOKUP($E39,'Index DESON.'!$A$9:$S$1305,2,FALSE()),")"),IF($F39="CCU",VLOOKUP($E39,'Resumo CCU DESON.'!$A$2:$D$202,2,FALSE()),IF($F39="MERCADO",VLOOKUP($E39,'Planillha de cotações'!$B$7:$L$102,2,FALSE()),IF($F39="PLEO",VLOOKUP($E39,'PLEO DESON.'!$A$4:$D$14999,2,FALSE()),IF($F39="SICRO",VLOOKUP($E39,'SICRO DESON.'!$A$4:$D$50010,2,FALSE()),IF($F39="SINAPI",IFERROR((VLOOKUP($E39,'comp. SINAPI DESON.'!$G$7:$L$50000,2,FALSE())),(VLOOKUP($E39,'ins. SINAPI DESON.'!$A$8:$E$15000,2,FALSE()))),"-"))))))) -> - | H39: =IF(OR($F39="ANP",$F39="DAER",$F39="CONSULTORIA DNIT",$F39="PREGÃO ELETRÔNICO",$F39="DMLU",$F39="DMAE",$F39="EPTC"),VLOOKUP($E39,'Planilha Auxiliar'!$A$4:$L$1000,9,FALSE()),IF($F39="INDEXADO",VLOOKUP($E39,'Index DESON.'!$A$9:$S$1305,4,FALSE()),IF($F39="CCU",VLOOKUP($E39,'Resumo CCU DESON.'!$A$2:$D$202,3,FALSE()),IF($F39="MERCADO",VLOOKUP('Modelo de Proposta'!$E39,'Planillha de cotações'!$B$7:$L$1143,7,FALSE()),IF($F39="PLEO",VLOOKUP($E39,'PLEO DESON.'!$A$4:$D$14999,3,FALSE()),IF($F39="SICRO",VLOOKUP($E39,'SICRO DESON.'!$A$4:$D$50010,3,FALSE()),IF($F39="SINAPI",IFERROR((VLOOKUP($E39,'comp. SINAPI DESON.'!$G$7:$L$50000,3,FALSE())),(VLOOKUP($E39,'ins. SINAPI DESON.'!$A$8:$E$15000,3,FALSE()))),"-"))))))) -> - | I39: ='Orçamento N_DESON.'!I39 -> 0 | M39: 0 | O39: 0 | P39: 0 | Q39: 0 | R39: 0 | S39: 0
D40: ='Orçamento N_DESON.'!D40 -> 1.30 | E40: ='Orçamento N_DESON.'!E40 -> 0 | F40: ='Orçamento N_DESON.'!F40 -> 0 | G40: =IF(OR($F40="ANP",$F40="DAER",$F40="CONSULTORIA DNIT",$F40="PREGÃO ELETRÔNICO",$F40="DMLU",$F40="DMAE",$F40="EPTC"),VLOOKUP($E40,'Planilha Auxiliar'!$A$4:$L$1000,8,FALSE()),IF($F40="INDEXADO",CONCATENATE(VLOOKUP($E40,'Index DESON.'!$A$9:$S$1305,3,FALSE())," (",VLOOKUP($E40,'Index DESON.'!$A$9:$S$1305,2,FALSE()),")"),IF($F40="CCU",VLOOKUP($E40,'Resumo CCU DESON.'!$A$2:$D$202,2,FALSE()),IF($F40="MERCADO",VLOOKUP($E40,'Planillha de cotações'!$B$7:$L$102,2,FALSE()),IF($F40="PLEO",VLOOKUP($E40,'PLEO DESON.'!$A$4:$D$14999,2,FALSE()),IF($F40="SICRO",VLOOKUP($E40,'SICRO DESON.'!$A$4:$D$50010,2,FALSE()),IF($F40="SINAPI",IFERROR((VLOOKUP($E40,'comp. SINAPI DESON.'!$G$7:$L$50000,2,FALSE())),(VLOOKUP($E40,'ins. SINAPI DESON.'!$A$8:$E$15000,2,FALSE()))),"-"))))))) -> - | H40: =IF(OR($F40="ANP",$F40="DAER",$F40="CONSULTORIA DNIT",$F40="PREGÃO ELETRÔNICO",$F40="DMLU",$F40="DMAE",$F40="EPTC"),VLOOKUP($E40,'Planilha Auxiliar'!$A$4:$L$1000,9,FALSE()),IF($F40="INDEXADO",VLOOKUP($E40,'Index DESON.'!$A$9:$S$1305,4,FALSE()),IF($F40="CCU",VLOOKUP($E40,'Resumo CCU DESON.'!$A$2:$D$202,3,FALSE()),IF($F40="MERCADO",VLOOKUP('Modelo de Proposta'!$E40,'Planillha de cotações'!$B$7:$L$1143,7,FALSE()),IF($F40="PLEO",VLOOKUP($E40,'PLEO DESON.'!$A$4:$D$14999,3,FALSE()),IF($F40="SICRO",VLOOKUP($E40,'SICRO DESON.'!$A$4:$D$50010,3,FALSE()),IF($F40="SINAPI",IFERROR((VLOOKUP($E40,'comp. SINAPI DESON.'!$G$7:$L$50000,3,FALSE())),(VLOOKUP($E40,'ins. SINAPI DESON.'!$A$8:$E$15000,3,FALSE()))),"-"))))))) -> - | I40: ='Orçamento N_DESON.'!I40 -> 0 | M40: 0 | O40: 0 | P40: 0 | Q40: 0 | R40: 0 | S40: 0
D41: ='Orçamento N_DESON.'!D41 -> 1.31 | E41: ='Orçamento N_DESON.'!E41 -> 0 | F41: ='Orçamento N_DESON.'!F41 -> 0 | G41: =IF(OR($F41="ANP",$F41="DAER",$F41="CONSULTORIA DNIT",$F41="PREGÃO ELETRÔNICO",$F41="DMLU",$F41="DMAE",$F41="EPTC"),VLOOKUP($E41,'Planilha Auxiliar'!$A$4:$L$1000,8,FALSE()),IF($F41="INDEXADO",CONCATENATE(VLOOKUP($E41,'Index DESON.'!$A$9:$S$1305,3,FALSE())," (",VLOOKUP($E41,'Index DESON.'!$A$9:$S$1305,2,FALSE()),")"),IF($F41="CCU",VLOOKUP($E41,'Resumo CCU DESON.'!$A$2:$D$202,2,FALSE()),IF($F41="MERCADO",VLOOKUP($E41,'Planillha de cotações'!$B$7:$L$102,2,FALSE()),IF($F41="PLEO",VLOOKUP($E41,'PLEO DESON.'!$A$4:$D$14999,2,FALSE()),IF($F41="SICRO",VLOOKUP($E41,'SICRO DESON.'!$A$4:$D$50010,2,FALSE()),IF($F41="SINAPI",IFERROR((VLOOKUP($E41,'comp. SINAPI DESON.'!$G$7:$L$50000,2,FALSE())),(VLOOKUP($E41,'ins. SINAPI DESON.'!$A$8:$E$15000,2,FALSE()))),"-"))))))) -> - | H41: =IF(OR($F41="ANP",$F41="DAER",$F41="CONSULTORIA DNIT",$F41="PREGÃO ELETRÔNICO",$F41="DMLU",$F41="DMAE",$F41="EPTC"),VLOOKUP($E41,'Planilha Auxiliar'!$A$4:$L$1000,9,FALSE()),IF($F41="INDEXADO",VLOOKUP($E41,'Index DESON.'!$A$9:$S$1305,4,FALSE()),IF($F41="CCU",VLOOKUP($E41,'Resumo CCU DESON.'!$A$2:$D$202,3,FALSE()),IF($F41="MERCADO",VLOOKUP('Modelo de Proposta'!$E41,'Planillha de cotações'!$B$7:$L$1143,7,FALSE()),IF($F41="PLEO",VLOOKUP($E41,'PLEO DESON.'!$A$4:$D$14999,3,FALSE()),IF($F41="SICRO",VLOOKUP($E41,'SICRO DESON.'!$A$4:$D$50010,3,FALSE()),IF($F41="SINAPI",IFERROR((VLOOKUP($E41,'comp. SINAPI DESON.'!$G$7:$L$50000,3,FALSE())),(VLOOKUP($E41,'ins. SINAPI DESON.'!$A$8:$E$15000,3,FALSE()))),"-"))))))) -> - | I41: ='Orçamento N_DESON.'!I41 -> 0 | M41: 0 | O41: 0 | P41: 0 | Q41: 0 | R41: 0 | S41: 0
D42: ='Orçamento N_DESON.'!D42 -> 1.32 | E42: ='Orçamento N_DESON.'!E42 -> 0 | F42: ='Orçamento N_DESON.'!F42 -> 0 | G42: =IF(OR($F42="ANP",$F42="DAER",$F42="CONSULTORIA DNIT",$F42="PREGÃO ELETRÔNICO",$F42="DMLU",$F42="DMAE",$F42="EPTC"),VLOOKUP($E42,'Planilha Auxiliar'!$A$4:$L$1000,8,FALSE()),IF($F42="INDEXADO",CONCATENATE(VLOOKUP($E42,'Index DESON.'!$A$9:$S$1305,3,FALSE())," (",VLOOKUP($E42,'Index DESON.'!$A$9:$S$1305,2,FALSE()),")"),IF($F42="CCU",VLOOKUP($E42,'Resumo CCU DESON.'!$A$2:$D$202,2,FALSE()),IF($F42="MERCADO",VLOOKUP($E42,'Planillha de cotações'!$B$7:$L$102,2,FALSE()),IF($F42="PLEO",VLOOKUP($E42,'PLEO DESON.'!$A$4:$D$14999,2,FALSE()),IF($F42="SICRO",VLOOKUP($E42,'SICRO DESON.'!$A$4:$D$50010,2,FALSE()),IF($F42="SINAPI",IFERROR((VLOOKUP($E42,'comp. SINAPI DESON.'!$G$7:$L$50000,2,FALSE())),(VLOOKUP($E42,'ins. SINAPI DESON.'!$A$8:$E$15000,2,FALSE()))),"-"))))))) -> - | H42: =IF(OR($F42="ANP",$F42="DAER",$F42="CONSULTORIA DNIT",$F42="PREGÃO ELETRÔNICO",$F42="DMLU",$F42="DMAE",$F42="EPTC"),VLOOKUP($E42,'Planilha Auxiliar'!$A$4:$L$1000,9,FALSE()),IF($F42="INDEXADO",VLOOKUP($E42,'Index DESON.'!$A$9:$S$1305,4,FALSE()),IF($F42="CCU",VLOOKUP($E42,'Resumo CCU DESON.'!$A$2:$D$202,3,FALSE()),IF($F42="MERCADO",VLOOKUP('Modelo de Proposta'!$E42,'Planillha de cotações'!$B$7:$L$1143,7,FALSE()),IF($F42="PLEO",VLOOKUP($E42,'PLEO DESON.'!$A$4:$D$14999,3,FALSE()),IF($F42="SICRO",VLOOKUP($E42,'SICRO DESON.'!$A$4:$D$50010,3,FALSE()),IF($F42="SINAPI",IFERROR((VLOOKUP($E42,'comp. SINAPI DESON.'!$G$7:$L$50000,3,FALSE())),(VLOOKUP($E42,'ins. SINAPI DESON.'!$A$8:$E$15000,3,FALSE()))),"-"))))))) -> - | I42: ='Orçamento N_DESON.'!I42 -> 0 | M42: 0 | O42: 0 | P42: 0 | Q42: 0 | R42: 0 | S42: 0
B43: =S43/$S$1150 ->  | D43: ='Orçamento N_DESON.'!D43 -> 1.33 | E43: ='Orçamento N_DESON.'!E43 -> 0 | F43: ='Orçamento N_DESON.'!F43 -> 0 | G43: =IF(OR($F43="ANP",$F43="DAER",$F43="CONSULTORIA DNIT",$F43="PREGÃO ELETRÔNICO",$F43="DMLU",$F43="DMAE",$F43="EPTC"),VLOOKUP($E43,'Planilha Auxiliar'!$A$4:$L$1000,8,FALSE()),IF($F43="INDEXADO",CONCATENATE(VLOOKUP($E43,'Index DESON.'!$A$9:$S$1305,3,FALSE())," (",VLOOKUP($E43,'Index DESON.'!$A$9:$S$1305,2,FALSE()),")"),IF($F43="CCU",VLOOKUP($E43,'Resumo CCU DESON.'!$A$2:$D$202,2,FALSE()),IF($F43="MERCADO",VLOOKUP($E43,'Planillha de cotações'!$B$7:$L$102,2,FALSE()),IF($F43="PLEO",VLOOKUP($E43,'PLEO DESON.'!$A$4:$D$14999,2,FALSE()),IF($F43="SICRO",VLOOKUP($E43,'SICRO DESON.'!$A$4:$D$50010,2,FALSE()),IF($F43="SINAPI",IFERROR((VLOOKUP($E43,'comp. SINAPI DESON.'!$G$7:$L$50000,2,FALSE())),(VLOOKUP($E43,'ins. SINAPI DESON.'!$A$8:$E$15000,2,FALSE()))),"-"))))))) -> - | H43: =IF(OR($F43="ANP",$F43="DAER",$F43="CONSULTORIA DNIT",$F43="PREGÃO ELETRÔNICO",$F43="DMLU",$F43="DMAE",$F43="EPTC"),VLOOKUP($E43,'Planilha Auxiliar'!$A$4:$L$1000,9,FALSE()),IF($F43="INDEXADO",VLOOKUP($E43,'Index DESON.'!$A$9:$S$1305,4,FALSE()),IF($F43="CCU",VLOOKUP($E43,'Resumo CCU DESON.'!$A$2:$D$202,3,FALSE()),IF($F43="MERCADO",VLOOKUP('Modelo de Proposta'!$E43,'Planillha de cotações'!$B$7:$L$1143,7,FALSE()),IF($F43="PLEO",VLOOKUP($E43,'PLEO DESON.'!$A$4:$D$14999,3,FALSE()),IF($F43="SICRO",VLOOKUP($E43,'SICRO DESON.'!$A$4:$D$50010,3,FALSE()),IF($F43="SINAPI",IFERROR((VLOOKUP($E43,'comp. SINAPI DESON.'!$G$7:$L$50000,3,FALSE())),(VLOOKUP($E43,'ins. SINAPI DESON.'!$A$8:$E$15000,3,FALSE()))),"-"))))))) -> - | I43: ='Orçamento N_DESON.'!I43 -> 0 | M43: =SUM(J43:L43) -> 0 | O43: =IF(N43="-",M43,TRUNC(M43*(1+N43),2)) -> 0 | P43: =IFERROR(TRUNC(TRUNC((J43*(1+$N43)),2)*$I43,2),0) -> 0 | Q43: =IFERROR(TRUNC(TRUNC((K43*(1+$N43)),2)*$I43,2),0) -> 0 | R43: =S43-Q43-P43 -> 0 | S43: =IFERROR(TRUNC(O43*I43,2),0) -> 0
D44: ='Orçamento N_DESON.'!D44 -> 1.34 | E44: ='Orçamento N_DESON.'!E44 -> 0 | F44: ='Orçamento N_DESON.'!F44 -> 0 | G44: =IF(OR($F44="ANP",$F44="DAER",$F44="CONSULTORIA DNIT",$F44="PREGÃO ELETRÔNICO",$F44="DMLU",$F44="DMAE",$F44="EPTC"),VLOOKUP($E44,'Planilha Auxiliar'!$A$4:$L$1000,8,FALSE()),IF($F44="INDEXADO",CONCATENATE(VLOOKUP($E44,'Index DESON.'!$A$9:$S$1305,3,FALSE())," (",VLOOKUP($E44,'Index DESON.'!$A$9:$S$1305,2,FALSE()),")"),IF($F44="CCU",VLOOKUP($E44,'Resumo CCU DESON.'!$A$2:$D$202,2,FALSE()),IF($F44="MERCADO",VLOOKUP($E44,'Planillha de cotações'!$B$7:$L$102,2,FALSE()),IF($F44="PLEO",VLOOKUP($E44,'PLEO DESON.'!$A$4:$D$14999,2,FALSE()),IF($F44="SICRO",VLOOKUP($E44,'SICRO DESON.'!$A$4:$D$50010,2,FALSE()),IF($F44="SINAPI",IFERROR((VLOOKUP($E44,'comp. SINAPI DESON.'!$G$7:$L$50000,2,FALSE())),(VLOOKUP($E44,'ins. SINAPI DESON.'!$A$8:$E$15000,2,FALSE()))),"-"))))))) -> - | H44: =IF(OR($F44="ANP",$F44="DAER",$F44="CONSULTORIA DNIT",$F44="PREGÃO ELETRÔNICO",$F44="DMLU",$F44="DMAE",$F44="EPTC"),VLOOKUP($E44,'Planilha Auxiliar'!$A$4:$L$1000,9,FALSE()),IF($F44="INDEXADO",VLOOKUP($E44,'Index DESON.'!$A$9:$S$1305,4,FALSE()),IF($F44="CCU",VLOOKUP($E44,'Resumo CCU DESON.'!$A$2:$D$202,3,FALSE()),IF($F44="MERCADO",VLOOKUP('Modelo de Proposta'!$E44,'Planillha de cotações'!$B$7:$L$1143,7,FALSE()),IF($F44="PLEO",VLOOKUP($E44,'PLEO DESON.'!$A$4:$D$14999,3,FALSE()),IF($F44="SICRO",VLOOKUP($E44,'SICRO DESON.'!$A$4:$D$50010,3,FALSE()),IF($F44="SINAPI",IFERROR((VLOOKUP($E44,'comp. SINAPI DESON.'!$G$7:$L$50000,3,FALSE())),(VLOOKUP($E44,'ins. SINAPI DESON.'!$A$8:$E$15000,3,FALSE()))),"-"))))))) -> - | I44: ='Orçamento N_DESON.'!I44 -> 0 | M44: 0 | O44: 0 | P44: 0 | Q44: 0 | R44: 0 | S44: 0
D45: ='Orçamento N_DESON.'!D45 -> 1.35 | E45: ='Orçamento N_DESON.'!E45 -> 0 | F45: ='Orçamento N_DESON.'!F45 -> 0 | G45: =IF(OR($F45="ANP",$F45="DAER",$F45="CONSULTORIA DNIT",$F45="PREGÃO ELETRÔNICO",$F45="DMLU",$F45="DMAE",$F45="EPTC"),VLOOKUP($E45,'Planilha Auxiliar'!$A$4:$L$1000,8,FALSE()),IF($F45="INDEXADO",CONCATENATE(VLOOKUP($E45,'Index DESON.'!$A$9:$S$1305,3,FALSE())," (",VLOOKUP($E45,'Index DESON.'!$A$9:$S$1305,2,FALSE()),")"),IF($F45="CCU",VLOOKUP($E45,'Resumo CCU DESON.'!$A$2:$D$202,2,FALSE()),IF($F45="MERCADO",VLOOKUP($E45,'Planillha de cotações'!$B$7:$L$102,2,FALSE()),IF($F45="PLEO",VLOOKUP($E45,'PLEO DESON.'!$A$4:$D$14999,2,FALSE()),IF($F45="SICRO",VLOOKUP($E45,'SICRO DESON.'!$A$4:$D$50010,2,FALSE()),IF($F45="SINAPI",IFERROR((VLOOKUP($E45,'comp. SINAPI DESON.'!$G$7:$L$50000,2,FALSE())),(VLOOKUP($E45,'ins. SINAPI DESON.'!$A$8:$E$15000,2,FALSE()))),"-"))))))) -> - | H45: =IF(OR($F45="ANP",$F45="DAER",$F45="CONSULTORIA DNIT",$F45="PREGÃO ELETRÔNICO",$F45="DMLU",$F45="DMAE",$F45="EPTC"),VLOOKUP($E45,'Planilha Auxiliar'!$A$4:$L$1000,9,FALSE()),IF($F45="INDEXADO",VLOOKUP($E45,'Index DESON.'!$A$9:$S$1305,4,FALSE()),IF($F45="CCU",VLOOKUP($E45,'Resumo CCU DESON.'!$A$2:$D$202,3,FALSE()),IF($F45="MERCADO",VLOOKUP('Modelo de Proposta'!$E45,'Planillha de cotações'!$B$7:$L$1143,7,FALSE()),IF($F45="PLEO",VLOOKUP($E45,'PLEO DESON.'!$A$4:$D$14999,3,FALSE()),IF($F45="SICRO",VLOOKUP($E45,'SICRO DESON.'!$A$4:$D$50010,3,FALSE()),IF($F45="SINAPI",IFERROR((VLOOKUP($E45,'comp. SINAPI DESON.'!$G$7:$L$50000,3,FALSE())),(VLOOKUP($E45,'ins. SINAPI DESON.'!$A$8:$E$15000,3,FALSE()))),"-"))))))) -> - | I45: ='Orçamento N_DESON.'!I45 -> 0 | M45: 0 | O45: 0 | P45: 0 | Q45: 0 | R45: 0 | S45: 0
D46: ='Orçamento N_DESON.'!D46 -> 1.36 | E46: ='Orçamento N_DESON.'!E46 -> 0 | F46: ='Orçamento N_DESON.'!F46 -> 0 | G46: =IF(OR($F46="ANP",$F46="DAER",$F46="CONSULTORIA DNIT",$F46="PREGÃO ELETRÔNICO",$F46="DMLU",$F46="DMAE",$F46="EPTC"),VLOOKUP($E46,'Planilha Auxiliar'!$A$4:$L$1000,8,FALSE()),IF($F46="INDEXADO",CONCATENATE(VLOOKUP($E46,'Index DESON.'!$A$9:$S$1305,3,FALSE())," (",VLOOKUP($E46,'Index DESON.'!$A$9:$S$1305,2,FALSE()),")"),IF($F46="CCU",VLOOKUP($E46,'Resumo CCU DESON.'!$A$2:$D$202,2,FALSE()),IF($F46="MERCADO",VLOOKUP($E46,'Planillha de cotações'!$B$7:$L$102,2,FALSE()),IF($F46="PLEO",VLOOKUP($E46,'PLEO DESON.'!$A$4:$D$14999,2,FALSE()),IF($F46="SICRO",VLOOKUP($E46,'SICRO DESON.'!$A$4:$D$50010,2,FALSE()),IF($F46="SINAPI",IFERROR((VLOOKUP($E46,'comp. SINAPI DESON.'!$G$7:$L$50000,2,FALSE())),(VLOOKUP($E46,'ins. SINAPI DESON.'!$A$8:$E$15000,2,FALSE()))),"-"))))))) -> - | H46: =IF(OR($F46="ANP",$F46="DAER",$F46="CONSULTORIA DNIT",$F46="PREGÃO ELETRÔNICO",$F46="DMLU",$F46="DMAE",$F46="EPTC"),VLOOKUP($E46,'Planilha Auxiliar'!$A$4:$L$1000,9,FALSE()),IF($F46="INDEXADO",VLOOKUP($E46,'Index DESON.'!$A$9:$S$1305,4,FALSE()),IF($F46="CCU",VLOOKUP($E46,'Resumo CCU DESON.'!$A$2:$D$202,3,FALSE()),IF($F46="MERCADO",VLOOKUP('Modelo de Proposta'!$E46,'Planillha de cotações'!$B$7:$L$1143,7,FALSE()),IF($F46="PLEO",VLOOKUP($E46,'PLEO DESON.'!$A$4:$D$14999,3,FALSE()),IF($F46="SICRO",VLOOKUP($E46,'SICRO DESON.'!$A$4:$D$50010,3,FALSE()),IF($F46="SINAPI",IFERROR((VLOOKUP($E46,'comp. SINAPI DESON.'!$G$7:$L$50000,3,FALSE())),(VLOOKUP($E46,'ins. SINAPI DESON.'!$A$8:$E$15000,3,FALSE()))),"-"))))))) -> - | I46: ='Orçamento N_DESON.'!I46 -> 0 | M46: 0 | O46: 0 | P46: 0 | Q46: 0 | R46: 0 | S46: 0
D47: ='Orçamento N_DESON.'!D47 -> 1.37 | E47: ='Orçamento N_DESON.'!E47 -> 0 | F47: ='Orçamento N_DESON.'!F47 -> 0 | G47: =IF(OR($F47="ANP",$F47="DAER",$F47="CONSULTORIA DNIT",$F47="PREGÃO ELETRÔNICO",$F47="DMLU",$F47="DMAE",$F47="EPTC"),VLOOKUP($E47,'Planilha Auxiliar'!$A$4:$L$1000,8,FALSE()),IF($F47="INDEXADO",CONCATENATE(VLOOKUP($E47,'Index DESON.'!$A$9:$S$1305,3,FALSE())," (",VLOOKUP($E47,'Index DESON.'!$A$9:$S$1305,2,FALSE()),")"),IF($F47="CCU",VLOOKUP($E47,'Resumo CCU DESON.'!$A$2:$D$202,2,FALSE()),IF($F47="MERCADO",VLOOKUP($E47,'Planillha de cotações'!$B$7:$L$102,2,FALSE()),IF($F47="PLEO",VLOOKUP($E47,'PLEO DESON.'!$A$4:$D$14999,2,FALSE()),IF($F47="SICRO",VLOOKUP($E47,'SICRO DESON.'!$A$4:$D$50010,2,FALSE()),IF($F47="SINAPI",IFERROR((VLOOKUP($E47,'comp. SINAPI DESON.'!$G$7:$L$50000,2,FALSE())),(VLOOKUP($E47,'ins. SINAPI DESON.'!$A$8:$E$15000,2,FALSE()))),"-"))))))) -> - | H47: =IF(OR($F47="ANP",$F47="DAER",$F47="CONSULTORIA DNIT",$F47="PREGÃO ELETRÔNICO",$F47="DMLU",$F47="DMAE",$F47="EPTC"),VLOOKUP($E47,'Planilha Auxiliar'!$A$4:$L$1000,9,FALSE()),IF($F47="INDEXADO",VLOOKUP($E47,'Index DESON.'!$A$9:$S$1305,4,FALSE()),IF($F47="CCU",VLOOKUP($E47,'Resumo CCU DESON.'!$A$2:$D$202,3,FALSE()),IF($F47="MERCADO",VLOOKUP('Modelo de Proposta'!$E47,'Planillha de cotações'!$B$7:$L$1143,7,FALSE()),IF($F47="PLEO",VLOOKUP($E47,'PLEO DESON.'!$A$4:$D$14999,3,FALSE()),IF($F47="SICRO",VLOOKUP($E47,'SICRO DESON.'!$A$4:$D$50010,3,FALSE()),IF($F47="SINAPI",IFERROR((VLOOKUP($E47,'comp. SINAPI DESON.'!$G$7:$L$50000,3,FALSE())),(VLOOKUP($E47,'ins. SINAPI DESON.'!$A$8:$E$15000,3,FALSE()))),"-"))))))) -> - | I47: ='Orçamento N_DESON.'!I47 -> 0 | M47: 0 | O47: 0 | P47: 0 | Q47: 0 | R47: 0 | S47: 0
D48: ='Orçamento N_DESON.'!D48 -> 1.38 | E48: ='Orçamento N_DESON.'!E48 -> 0 | F48: ='Orçamento N_DESON.'!F48 -> 0 | G48: =IF(OR($F48="ANP",$F48="DAER",$F48="CONSULTORIA DNIT",$F48="PREGÃO ELETRÔNICO",$F48="DMLU",$F48="DMAE",$F48="EPTC"),VLOOKUP($E48,'Planilha Auxiliar'!$A$4:$L$1000,8,FALSE()),IF($F48="INDEXADO",CONCATENATE(VLOOKUP($E48,'Index DESON.'!$A$9:$S$1305,3,FALSE())," (",VLOOKUP($E48,'Index DESON.'!$A$9:$S$1305,2,FALSE()),")"),IF($F48="CCU",VLOOKUP($E48,'Resumo CCU DESON.'!$A$2:$D$202,2,FALSE()),IF($F48="MERCADO",VLOOKUP($E48,'Planillha de cotações'!$B$7:$L$102,2,FALSE()),IF($F48="PLEO",VLOOKUP($E48,'PLEO DESON.'!$A$4:$D$14999,2,FALSE()),IF($F48="SICRO",VLOOKUP($E48,'SICRO DESON.'!$A$4:$D$50010,2,FALSE()),IF($F48="SINAPI",IFERROR((VLOOKUP($E48,'comp. SINAPI DESON.'!$G$7:$L$50000,2,FALSE())),(VLOOKUP($E48,'ins. SINAPI DESON.'!$A$8:$E$15000,2,FALSE()))),"-"))))))) -> - | H48: =IF(OR($F48="ANP",$F48="DAER",$F48="CONSULTORIA DNIT",$F48="PREGÃO ELETRÔNICO",$F48="DMLU",$F48="DMAE",$F48="EPTC"),VLOOKUP($E48,'Planilha Auxiliar'!$A$4:$L$1000,9,FALSE()),IF($F48="INDEXADO",VLOOKUP($E48,'Index DESON.'!$A$9:$S$1305,4,FALSE()),IF($F48="CCU",VLOOKUP($E48,'Resumo CCU DESON.'!$A$2:$D$202,3,FALSE()),IF($F48="MERCADO",VLOOKUP('Modelo de Proposta'!$E48,'Planillha de cotações'!$B$7:$L$1143,7,FALSE()),IF($F48="PLEO",VLOOKUP($E48,'PLEO DESON.'!$A$4:$D$14999,3,FALSE()),IF($F48="SICRO",VLOOKUP($E48,'SICRO DESON.'!$A$4:$D$50010,3,FALSE()),IF($F48="SINAPI",IFERROR((VLOOKUP($E48,'comp. SINAPI DESON.'!$G$7:$L$50000,3,FALSE())),(VLOOKUP($E48,'ins. SINAPI DESON.'!$A$8:$E$15000,3,FALSE()))),"-"))))))) -> - | I48: ='Orçamento N_DESON.'!I48 -> 0 | M48: 0 | O48: 0 | P48: 0 | Q48: 0 | R48: 0 | S48: 0
D49: ='Orçamento N_DESON.'!D49 -> 1.39 | E49: ='Orçamento N_DESON.'!E49 -> 0 | F49: ='Orçamento N_DESON.'!F49 -> 0 | G49: =IF(OR($F49="ANP",$F49="DAER",$F49="CONSULTORIA DNIT",$F49="PREGÃO ELETRÔNICO",$F49="DMLU",$F49="DMAE",$F49="EPTC"),VLOOKUP($E49,'Planilha Auxiliar'!$A$4:$L$1000,8,FALSE()),IF($F49="INDEXADO",CONCATENATE(VLOOKUP($E49,'Index DESON.'!$A$9:$S$1305,3,FALSE())," (",VLOOKUP($E49,'Index DESON.'!$A$9:$S$1305,2,FALSE()),")"),IF($F49="CCU",VLOOKUP($E49,'Resumo CCU DESON.'!$A$2:$D$202,2,FALSE()),IF($F49="MERCADO",VLOOKUP($E49,'Planillha de cotações'!$B$7:$L$102,2,FALSE()),IF($F49="PLEO",VLOOKUP($E49,'PLEO DESON.'!$A$4:$D$14999,2,FALSE()),IF($F49="SICRO",VLOOKUP($E49,'SICRO DESON.'!$A$4:$D$50010,2,FALSE()),IF($F49="SINAPI",IFERROR((VLOOKUP($E49,'comp. SINAPI DESON.'!$G$7:$L$50000,2,FALSE())),(VLOOKUP($E49,'ins. SINAPI DESON.'!$A$8:$E$15000,2,FALSE()))),"-"))))))) -> - | H49: =IF(OR($F49="ANP",$F49="DAER",$F49="CONSULTORIA DNIT",$F49="PREGÃO ELETRÔNICO",$F49="DMLU",$F49="DMAE",$F49="EPTC"),VLOOKUP($E49,'Planilha Auxiliar'!$A$4:$L$1000,9,FALSE()),IF($F49="INDEXADO",VLOOKUP($E49,'Index DESON.'!$A$9:$S$1305,4,FALSE()),IF($F49="CCU",VLOOKUP($E49,'Resumo CCU DESON.'!$A$2:$D$202,3,FALSE()),IF($F49="MERCADO",VLOOKUP('Modelo de Proposta'!$E49,'Planillha de cotações'!$B$7:$L$1143,7,FALSE()),IF($F49="PLEO",VLOOKUP($E49,'PLEO DESON.'!$A$4:$D$14999,3,FALSE()),IF($F49="SICRO",VLOOKUP($E49,'SICRO DESON.'!$A$4:$D$50010,3,FALSE()),IF($F49="SINAPI",IFERROR((VLOOKUP($E49,'comp. SINAPI DESON.'!$G$7:$L$50000,3,FALSE())),(VLOOKUP($E49,'ins. SINAPI DESON.'!$A$8:$E$15000,3,FALSE()))),"-"))))))) -> - | I49: ='Orçamento N_DESON.'!I49 -> 0 | M49: 0 | O49: 0 | P49: 0 | Q49: 0 | R49: 0 | S49: 0
D50: ='Orçamento N_DESON.'!D50 -> 1.40 | E50: ='Orçamento N_DESON.'!E50 -> 0 | F50: ='Orçamento N_DESON.'!F50 -> 0 | G50: =IF(OR($F50="ANP",$F50="DAER",$F50="CONSULTORIA DNIT",$F50="PREGÃO ELETRÔNICO",$F50="DMLU",$F50="DMAE",$F50="EPTC"),VLOOKUP($E50,'Planilha Auxiliar'!$A$4:$L$1000,8,FALSE()),IF($F50="INDEXADO",CONCATENATE(VLOOKUP($E50,'Index DESON.'!$A$9:$S$1305,3,FALSE())," (",VLOOKUP($E50,'Index DESON.'!$A$9:$S$1305,2,FALSE()),")"),IF($F50="CCU",VLOOKUP($E50,'Resumo CCU DESON.'!$A$2:$D$202,2,FALSE()),IF($F50="MERCADO",VLOOKUP($E50,'Planillha de cotações'!$B$7:$L$102,2,FALSE()),IF($F50="PLEO",VLOOKUP($E50,'PLEO DESON.'!$A$4:$D$14999,2,FALSE()),IF($F50="SICRO",VLOOKUP($E50,'SICRO DESON.'!$A$4:$D$50010,2,FALSE()),IF($F50="SINAPI",IFERROR((VLOOKUP($E50,'comp. SINAPI DESON.'!$G$7:$L$50000,2,FALSE())),(VLOOKUP($E50,'ins. SINAPI DESON.'!$A$8:$E$15000,2,FALSE()))),"-"))))))) -> - | H50: =IF(OR($F50="ANP",$F50="DAER",$F50="CONSULTORIA DNIT",$F50="PREGÃO ELETRÔNICO",$F50="DMLU",$F50="DMAE",$F50="EPTC"),VLOOKUP($E50,'Planilha Auxiliar'!$A$4:$L$1000,9,FALSE()),IF($F50="INDEXADO",VLOOKUP($E50,'Index DESON.'!$A$9:$S$1305,4,FALSE()),IF($F50="CCU",VLOOKUP($E50,'Resumo CCU DESON.'!$A$2:$D$202,3,FALSE()),IF($F50="MERCADO",VLOOKUP('Modelo de Proposta'!$E50,'Planillha de cotações'!$B$7:$L$1143,7,FALSE()),IF($F50="PLEO",VLOOKUP($E50,'PLEO DESON.'!$A$4:$D$14999,3,FALSE()),IF($F50="SICRO",VLOOKUP($E50,'SICRO DESON.'!$A$4:$D$50010,3,FALSE()),IF($F50="SINAPI",IFERROR((VLOOKUP($E50,'comp. SINAPI DESON.'!$G$7:$L$50000,3,FALSE())),(VLOOKUP($E50,'ins. SINAPI DESON.'!$A$8:$E$15000,3,FALSE()))),"-"))))))) -> - | I50: ='Orçamento N_DESON.'!I50 -> 0 | M50: 0 | O50: 0 | P50: 0 | Q50: 0 | R50: 0 | S50: 0
D51: ='Orçamento N_DESON.'!D51 -> 1.41 | E51: ='Orçamento N_DESON.'!E51 -> 0 | F51: ='Orçamento N_DESON.'!F51 -> 0 | G51: =IF(OR($F51="ANP",$F51="DAER",$F51="CONSULTORIA DNIT",$F51="PREGÃO ELETRÔNICO",$F51="DMLU",$F51="DMAE",$F51="EPTC"),VLOOKUP($E51,'Planilha Auxiliar'!$A$4:$L$1000,8,FALSE()),IF($F51="INDEXADO",CONCATENATE(VLOOKUP($E51,'Index DESON.'!$A$9:$S$1305,3,FALSE())," (",VLOOKUP($E51,'Index DESON.'!$A$9:$S$1305,2,FALSE()),")"),IF($F51="CCU",VLOOKUP($E51,'Resumo CCU DESON.'!$A$2:$D$202,2,FALSE()),IF($F51="MERCADO",VLOOKUP($E51,'Planillha de cotações'!$B$7:$L$102,2,FALSE()),IF($F51="PLEO",VLOOKUP($E51,'PLEO DESON.'!$A$4:$D$14999,2,FALSE()),IF($F51="SICRO",VLOOKUP($E51,'SICRO DESON.'!$A$4:$D$50010,2,FALSE()),IF($F51="SINAPI",IFERROR((VLOOKUP($E51,'comp. SINAPI DESON.'!$G$7:$L$50000,2,FALSE())),(VLOOKUP($E51,'ins. SINAPI DESON.'!$A$8:$E$15000,2,FALSE()))),"-"))))))) -> - | H51: =IF(OR($F51="ANP",$F51="DAER",$F51="CONSULTORIA DNIT",$F51="PREGÃO ELETRÔNICO",$F51="DMLU",$F51="DMAE",$F51="EPTC"),VLOOKUP($E51,'Planilha Auxiliar'!$A$4:$L$1000,9,FALSE()),IF($F51="INDEXADO",VLOOKUP($E51,'Index DESON.'!$A$9:$S$1305,4,FALSE()),IF($F51="CCU",VLOOKUP($E51,'Resumo CCU DESON.'!$A$2:$D$202,3,FALSE()),IF($F51="MERCADO",VLOOKUP('Modelo de Proposta'!$E51,'Planillha de cotações'!$B$7:$L$1143,7,FALSE()),IF($F51="PLEO",VLOOKUP($E51,'PLEO DESON.'!$A$4:$D$14999,3,FALSE()),IF($F51="SICRO",VLOOKUP($E51,'SICRO DESON.'!$A$4:$D$50010,3,FALSE()),IF($F51="SINAPI",IFERROR((VLOOKUP($E51,'comp. SINAPI DESON.'!$G$7:$L$50000,3,FALSE())),(VLOOKUP($E51,'ins. SINAPI DESON.'!$A$8:$E$15000,3,FALSE()))),"-"))))))) -> - | I51: ='Orçamento N_DESON.'!I51 -> 0 | M51: 0 | O51: 0 | P51: 0 | Q51: 0 | R51: 0 | S51: 0
D52: ='Orçamento N_DESON.'!D52 -> 1.42 | E52: ='Orçamento N_DESON.'!E52 -> 0 | F52: ='Orçamento N_DESON.'!F52 -> 0 | G52: =IF(OR($F52="ANP",$F52="DAER",$F52="CONSULTORIA DNIT",$F52="PREGÃO ELETRÔNICO",$F52="DMLU",$F52="DMAE",$F52="EPTC"),VLOOKUP($E52,'Planilha Auxiliar'!$A$4:$L$1000,8,FALSE()),IF($F52="INDEXADO",CONCATENATE(VLOOKUP($E52,'Index DESON.'!$A$9:$S$1305,3,FALSE())," (",VLOOKUP($E52,'Index DESON.'!$A$9:$S$1305,2,FALSE()),")"),IF($F52="CCU",VLOOKUP($E52,'Resumo CCU DESON.'!$A$2:$D$202,2,FALSE()),IF($F52="MERCADO",VLOOKUP($E52,'Planillha de cotações'!$B$7:$L$102,2,FALSE()),IF($F52="PLEO",VLOOKUP($E52,'PLEO DESON.'!$A$4:$D$14999,2,FALSE()),IF($F52="SICRO",VLOOKUP($E52,'SICRO DESON.'!$A$4:$D$50010,2,FALSE()),IF($F52="SINAPI",IFERROR((VLOOKUP($E52,'comp. SINAPI DESON.'!$G$7:$L$50000,2,FALSE())),(VLOOKUP($E52,'ins. SINAPI DESON.'!$A$8:$E$15000,2,FALSE()))),"-"))))))) -> - | H52: =IF(OR($F52="ANP",$F52="DAER",$F52="CONSULTORIA DNIT",$F52="PREGÃO ELETRÔNICO",$F52="DMLU",$F52="DMAE",$F52="EPTC"),VLOOKUP($E52,'Planilha Auxiliar'!$A$4:$L$1000,9,FALSE()),IF($F52="INDEXADO",VLOOKUP($E52,'Index DESON.'!$A$9:$S$1305,4,FALSE()),IF($F52="CCU",VLOOKUP($E52,'Resumo CCU DESON.'!$A$2:$D$202,3,FALSE()),IF($F52="MERCADO",VLOOKUP('Modelo de Proposta'!$E52,'Planillha de cotações'!$B$7:$L$1143,7,FALSE()),IF($F52="PLEO",VLOOKUP($E52,'PLEO DESON.'!$A$4:$D$14999,3,FALSE()),IF($F52="SICRO",VLOOKUP($E52,'SICRO DESON.'!$A$4:$D$50010,3,FALSE()),IF($F52="SINAPI",IFERROR((VLOOKUP($E52,'comp. SINAPI DESON.'!$G$7:$L$50000,3,FALSE())),(VLOOKUP($E52,'ins. SINAPI DESON.'!$A$8:$E$15000,3,FALSE()))),"-"))))))) -> - | I52: ='Orçamento N_DESON.'!I52 -> 0 | M52: 0 | O52: 0 | P52: 0 | Q52: 0 | R52: 0 | S52: 0
D53: ='Orçamento N_DESON.'!D53 -> 1.43 | E53: ='Orçamento N_DESON.'!E53 -> 0 | F53: ='Orçamento N_DESON.'!F53 -> 0 | G53: =IF(OR($F53="ANP",$F53="DAER",$F53="CONSULTORIA DNIT",$F53="PREGÃO ELETRÔNICO",$F53="DMLU",$F53="DMAE",$F53="EPTC"),VLOOKUP($E53,'Planilha Auxiliar'!$A$4:$L$1000,8,FALSE()),IF($F53="INDEXADO",CONCATENATE(VLOOKUP($E53,'Index DESON.'!$A$9:$S$1305,3,FALSE())," (",VLOOKUP($E53,'Index DESON.'!$A$9:$S$1305,2,FALSE()),")"),IF($F53="CCU",VLOOKUP($E53,'Resumo CCU DESON.'!$A$2:$D$202,2,FALSE()),IF($F53="MERCADO",VLOOKUP($E53,'Planillha de cotações'!$B$7:$L$102,2,FALSE()),IF($F53="PLEO",VLOOKUP($E53,'PLEO DESON.'!$A$4:$D$14999,2,FALSE()),IF($F53="SICRO",VLOOKUP($E53,'SICRO DESON.'!$A$4:$D$50010,2,FALSE()),IF($F53="SINAPI",IFERROR((VLOOKUP($E53,'comp. SINAPI DESON.'!$G$7:$L$50000,2,FALSE())),(VLOOKUP($E53,'ins. SINAPI DESON.'!$A$8:$E$15000,2,FALSE()))),"-"))))))) -> - | H53: =IF(OR($F53="ANP",$F53="DAER",$F53="CONSULTORIA DNIT",$F53="PREGÃO ELETRÔNICO",$F53="DMLU",$F53="DMAE",$F53="EPTC"),VLOOKUP($E53,'Planilha Auxiliar'!$A$4:$L$1000,9,FALSE()),IF($F53="INDEXADO",VLOOKUP($E53,'Index DESON.'!$A$9:$S$1305,4,FALSE()),IF($F53="CCU",VLOOKUP($E53,'Resumo CCU DESON.'!$A$2:$D$202,3,FALSE()),IF($F53="MERCADO",VLOOKUP('Modelo de Proposta'!$E53,'Planillha de cotações'!$B$7:$L$1143,7,FALSE()),IF($F53="PLEO",VLOOKUP($E53,'PLEO DESON.'!$A$4:$D$14999,3,FALSE()),IF($F53="SICRO",VLOOKUP($E53,'SICRO DESON.'!$A$4:$D$50010,3,FALSE()),IF($F53="SINAPI",IFERROR((VLOOKUP($E53,'comp. SINAPI DESON.'!$G$7:$L$50000,3,FALSE())),(VLOOKUP($E53,'ins. SINAPI DESON.'!$A$8:$E$15000,3,FALSE()))),"-"))))))) -> - | I53: ='Orçamento N_DESON.'!I53 -> 0 | M53: 0 | O53: 0 | P53: 0 | Q53: 0 | R53: 0 | S53: 0
D54: ='Orçamento N_DESON.'!D54 -> 1.44 | E54: ='Orçamento N_DESON.'!E54 -> 0 | F54: ='Orçamento N_DESON.'!F54 -> 0 | G54: =IF(OR($F54="ANP",$F54="DAER",$F54="CONSULTORIA DNIT",$F54="PREGÃO ELETRÔNICO",$F54="DMLU",$F54="DMAE",$F54="EPTC"),VLOOKUP($E54,'Planilha Auxiliar'!$A$4:$L$1000,8,FALSE()),IF($F54="INDEXADO",CONCATENATE(VLOOKUP($E54,'Index DESON.'!$A$9:$S$1305,3,FALSE())," (",VLOOKUP($E54,'Index DESON.'!$A$9:$S$1305,2,FALSE()),")"),IF($F54="CCU",VLOOKUP($E54,'Resumo CCU DESON.'!$A$2:$D$202,2,FALSE()),IF($F54="MERCADO",VLOOKUP($E54,'Planillha de cotações'!$B$7:$L$102,2,FALSE()),IF($F54="PLEO",VLOOKUP($E54,'PLEO DESON.'!$A$4:$D$14999,2,FALSE()),IF($F54="SICRO",VLOOKUP($E54,'SICRO DESON.'!$A$4:$D$50010,2,FALSE()),IF($F54="SINAPI",IFERROR((VLOOKUP($E54,'comp. SINAPI DESON.'!$G$7:$L$50000,2,FALSE())),(VLOOKUP($E54,'ins. SINAPI DESON.'!$A$8:$E$15000,2,FALSE()))),"-"))))))) -> - | H54: =IF(OR($F54="ANP",$F54="DAER",$F54="CONSULTORIA DNIT",$F54="PREGÃO ELETRÔNICO",$F54="DMLU",$F54="DMAE",$F54="EPTC"),VLOOKUP($E54,'Planilha Auxiliar'!$A$4:$L$1000,9,FALSE()),IF($F54="INDEXADO",VLOOKUP($E54,'Index DESON.'!$A$9:$S$1305,4,FALSE()),IF($F54="CCU",VLOOKUP($E54,'Resumo CCU DESON.'!$A$2:$D$202,3,FALSE()),IF($F54="MERCADO",VLOOKUP('Modelo de Proposta'!$E54,'Planillha de cotações'!$B$7:$L$1143,7,FALSE()),IF($F54="PLEO",VLOOKUP($E54,'PLEO DESON.'!$A$4:$D$14999,3,FALSE()),IF($F54="SICRO",VLOOKUP($E54,'SICRO DESON.'!$A$4:$D$50010,3,FALSE()),IF($F54="SINAPI",IFERROR((VLOOKUP($E54,'comp. SINAPI DESON.'!$G$7:$L$50000,3,FALSE())),(VLOOKUP($E54,'ins. SINAPI DESON.'!$A$8:$E$15000,3,FALSE()))),"-"))))))) -> - | I54: ='Orçamento N_DESON.'!I54 -> 0 | M54: 0 | O54: 0 | P54: 0 | Q54: 0 | R54: 0 | S54: 0
D55: ='Orçamento N_DESON.'!D55 -> 1.45 | E55: ='Orçamento N_DESON.'!E55 -> 0 | F55: ='Orçamento N_DESON.'!F55 -> 0 | G55: =IF(OR($F55="ANP",$F55="DAER",$F55="CONSULTORIA DNIT",$F55="PREGÃO ELETRÔNICO",$F55="DMLU",$F55="DMAE",$F55="EPTC"),VLOOKUP($E55,'Planilha Auxiliar'!$A$4:$L$1000,8,FALSE()),IF($F55="INDEXADO",CONCATENATE(VLOOKUP($E55,'Index DESON.'!$A$9:$S$1305,3,FALSE())," (",VLOOKUP($E55,'Index DESON.'!$A$9:$S$1305,2,FALSE()),")"),IF($F55="CCU",VLOOKUP($E55,'Resumo CCU DESON.'!$A$2:$D$202,2,FALSE()),IF($F55="MERCADO",VLOOKUP($E55,'Planillha de cotações'!$B$7:$L$102,2,FALSE()),IF($F55="PLEO",VLOOKUP($E55,'PLEO DESON.'!$A$4:$D$14999,2,FALSE()),IF($F55="SICRO",VLOOKUP($E55,'SICRO DESON.'!$A$4:$D$50010,2,FALSE()),IF($F55="SINAPI",IFERROR((VLOOKUP($E55,'comp. SINAPI DESON.'!$G$7:$L$50000,2,FALSE())),(VLOOKUP($E55,'ins. SINAPI DESON.'!$A$8:$E$15000,2,FALSE()))),"-"))))))) -> - | H55: =IF(OR($F55="ANP",$F55="DAER",$F55="CONSULTORIA DNIT",$F55="PREGÃO ELETRÔNICO",$F55="DMLU",$F55="DMAE",$F55="EPTC"),VLOOKUP($E55,'Planilha Auxiliar'!$A$4:$L$1000,9,FALSE()),IF($F55="INDEXADO",VLOOKUP($E55,'Index DESON.'!$A$9:$S$1305,4,FALSE()),IF($F55="CCU",VLOOKUP($E55,'Resumo CCU DESON.'!$A$2:$D$202,3,FALSE()),IF($F55="MERCADO",VLOOKUP('Modelo de Proposta'!$E55,'Planillha de cotações'!$B$7:$L$1143,7,FALSE()),IF($F55="PLEO",VLOOKUP($E55,'PLEO DESON.'!$A$4:$D$14999,3,FALSE()),IF($F55="SICRO",VLOOKUP($E55,'SICRO DESON.'!$A$4:$D$50010,3,FALSE()),IF($F55="SINAPI",IFERROR((VLOOKUP($E55,'comp. SINAPI DESON.'!$G$7:$L$50000,3,FALSE())),(VLOOKUP($E55,'ins. SINAPI DESON.'!$A$8:$E$15000,3,FALSE()))),"-"))))))) -> - | I55: ='Orçamento N_DESON.'!I55 -> 0 | M55: 0 | O55: 0 | P55: 0 | Q55: 0 | R55: 0 | S55: 0
D56: ='Orçamento N_DESON.'!D56 -> 1.46 | E56: ='Orçamento N_DESON.'!E56 -> 0 | F56: ='Orçamento N_DESON.'!F56 -> 0 | G56: =IF(OR($F56="ANP",$F56="DAER",$F56="CONSULTORIA DNIT",$F56="PREGÃO ELETRÔNICO",$F56="DMLU",$F56="DMAE",$F56="EPTC"),VLOOKUP($E56,'Planilha Auxiliar'!$A$4:$L$1000,8,FALSE()),IF($F56="INDEXADO",CONCATENATE(VLOOKUP($E56,'Index DESON.'!$A$9:$S$1305,3,FALSE())," (",VLOOKUP($E56,'Index DESON.'!$A$9:$S$1305,2,FALSE()),")"),IF($F56="CCU",VLOOKUP($E56,'Resumo CCU DESON.'!$A$2:$D$202,2,FALSE()),IF($F56="MERCADO",VLOOKUP($E56,'Planillha de cotações'!$B$7:$L$102,2,FALSE()),IF($F56="PLEO",VLOOKUP($E56,'PLEO DESON.'!$A$4:$D$14999,2,FALSE()),IF($F56="SICRO",VLOOKUP($E56,'SICRO DESON.'!$A$4:$D$50010,2,FALSE()),IF($F56="SINAPI",IFERROR((VLOOKUP($E56,'comp. SINAPI DESON.'!$G$7:$L$50000,2,FALSE())),(VLOOKUP($E56,'ins. SINAPI DESON.'!$A$8:$E$15000,2,FALSE()))),"-"))))))) -> - | H56: =IF(OR($F56="ANP",$F56="DAER",$F56="CONSULTORIA DNIT",$F56="PREGÃO ELETRÔNICO",$F56="DMLU",$F56="DMAE",$F56="EPTC"),VLOOKUP($E56,'Planilha Auxiliar'!$A$4:$L$1000,9,FALSE()),IF($F56="INDEXADO",VLOOKUP($E56,'Index DESON.'!$A$9:$S$1305,4,FALSE()),IF($F56="CCU",VLOOKUP($E56,'Resumo CCU DESON.'!$A$2:$D$202,3,FALSE()),IF($F56="MERCADO",VLOOKUP('Modelo de Proposta'!$E56,'Planillha de cotações'!$B$7:$L$1143,7,FALSE()),IF($F56="PLEO",VLOOKUP($E56,'PLEO DESON.'!$A$4:$D$14999,3,FALSE()),IF($F56="SICRO",VLOOKUP($E56,'SICRO DESON.'!$A$4:$D$50010,3,FALSE()),IF($F56="SINAPI",IFERROR((VLOOKUP($E56,'comp. SINAPI DESON.'!$G$7:$L$50000,3,FALSE())),(VLOOKUP($E56,'ins. SINAPI DESON.'!$A$8:$E$15000,3,FALSE()))),"-"))))))) -> - | I56: ='Orçamento N_DESON.'!I56 -> 0 | M56: 0 | O56: 0 | P56: 0 | Q56: 0 | R56: 0 | S56: 0
D57: ='Orçamento N_DESON.'!D57 -> 1.47 | E57: ='Orçamento N_DESON.'!E57 -> 0 | F57: ='Orçamento N_DESON.'!F57 -> 0 | G57: =IF(OR($F57="ANP",$F57="DAER",$F57="CONSULTORIA DNIT",$F57="PREGÃO ELETRÔNICO",$F57="DMLU",$F57="DMAE",$F57="EPTC"),VLOOKUP($E57,'Planilha Auxiliar'!$A$4:$L$1000,8,FALSE()),IF($F57="INDEXADO",CONCATENATE(VLOOKUP($E57,'Index DESON.'!$A$9:$S$1305,3,FALSE())," (",VLOOKUP($E57,'Index DESON.'!$A$9:$S$1305,2,FALSE()),")"),IF($F57="CCU",VLOOKUP($E57,'Resumo CCU DESON.'!$A$2:$D$202,2,FALSE()),IF($F57="MERCADO",VLOOKUP($E57,'Planillha de cotações'!$B$7:$L$102,2,FALSE()),IF($F57="PLEO",VLOOKUP($E57,'PLEO DESON.'!$A$4:$D$14999,2,FALSE()),IF($F57="SICRO",VLOOKUP($E57,'SICRO DESON.'!$A$4:$D$50010,2,FALSE()),IF($F57="SINAPI",IFERROR((VLOOKUP($E57,'comp. SINAPI DESON.'!$G$7:$L$50000,2,FALSE())),(VLOOKUP($E57,'ins. SINAPI DESON.'!$A$8:$E$15000,2,FALSE()))),"-"))))))) -> - | H57: =IF(OR($F57="ANP",$F57="DAER",$F57="CONSULTORIA DNIT",$F57="PREGÃO ELETRÔNICO",$F57="DMLU",$F57="DMAE",$F57="EPTC"),VLOOKUP($E57,'Planilha Auxiliar'!$A$4:$L$1000,9,FALSE()),IF($F57="INDEXADO",VLOOKUP($E57,'Index DESON.'!$A$9:$S$1305,4,FALSE()),IF($F57="CCU",VLOOKUP($E57,'Resumo CCU DESON.'!$A$2:$D$202,3,FALSE()),IF($F57="MERCADO",VLOOKUP('Modelo de Proposta'!$E57,'Planillha de cotações'!$B$7:$L$1143,7,FALSE()),IF($F57="PLEO",VLOOKUP($E57,'PLEO DESON.'!$A$4:$D$14999,3,FALSE()),IF($F57="SICRO",VLOOKUP($E57,'SICRO DESON.'!$A$4:$D$50010,3,FALSE()),IF($F57="SINAPI",IFERROR((VLOOKUP($E57,'comp. SINAPI DESON.'!$G$7:$L$50000,3,FALSE())),(VLOOKUP($E57,'ins. SINAPI DESON.'!$A$8:$E$15000,3,FALSE()))),"-"))))))) -> - | I57: ='Orçamento N_DESON.'!I57 -> 0 | M57: 0 | O57: 0 | P57: 0 | Q57: 0 | R57: 0 | S57: 0
D58: ='Orçamento N_DESON.'!D58 -> 1.48 | E58: ='Orçamento N_DESON.'!E58 -> 0 | F58: ='Orçamento N_DESON.'!F58 -> 0 | G58: =IF(OR($F58="ANP",$F58="DAER",$F58="CONSULTORIA DNIT",$F58="PREGÃO ELETRÔNICO",$F58="DMLU",$F58="DMAE",$F58="EPTC"),VLOOKUP($E58,'Planilha Auxiliar'!$A$4:$L$1000,8,FALSE()),IF($F58="INDEXADO",CONCATENATE(VLOOKUP($E58,'Index DESON.'!$A$9:$S$1305,3,FALSE())," (",VLOOKUP($E58,'Index DESON.'!$A$9:$S$1305,2,FALSE()),")"),IF($F58="CCU",VLOOKUP($E58,'Resumo CCU DESON.'!$A$2:$D$202,2,FALSE()),IF($F58="MERCADO",VLOOKUP($E58,'Planillha de cotações'!$B$7:$L$102,2,FALSE()),IF($F58="PLEO",VLOOKUP($E58,'PLEO DESON.'!$A$4:$D$14999,2,FALSE()),IF($F58="SICRO",VLOOKUP($E58,'SICRO DESON.'!$A$4:$D$50010,2,FALSE()),IF($F58="SINAPI",IFERROR((VLOOKUP($E58,'comp. SINAPI DESON.'!$G$7:$L$50000,2,FALSE())),(VLOOKUP($E58,'ins. SINAPI DESON.'!$A$8:$E$15000,2,FALSE()))),"-"))))))) -> - | H58: =IF(OR($F58="ANP",$F58="DAER",$F58="CONSULTORIA DNIT",$F58="PREGÃO ELETRÔNICO",$F58="DMLU",$F58="DMAE",$F58="EPTC"),VLOOKUP($E58,'Planilha Auxiliar'!$A$4:$L$1000,9,FALSE()),IF($F58="INDEXADO",VLOOKUP($E58,'Index DESON.'!$A$9:$S$1305,4,FALSE()),IF($F58="CCU",VLOOKUP($E58,'Resumo CCU DESON.'!$A$2:$D$202,3,FALSE()),IF($F58="MERCADO",VLOOKUP('Modelo de Proposta'!$E58,'Planillha de cotações'!$B$7:$L$1143,7,FALSE()),IF($F58="PLEO",VLOOKUP($E58,'PLEO DESON.'!$A$4:$D$14999,3,FALSE()),IF($F58="SICRO",VLOOKUP($E58,'SICRO DESON.'!$A$4:$D$50010,3,FALSE()),IF($F58="SINAPI",IFERROR((VLOOKUP($E58,'comp. SINAPI DESON.'!$G$7:$L$50000,3,FALSE())),(VLOOKUP($E58,'ins. SINAPI DESON.'!$A$8:$E$15000,3,FALSE()))),"-"))))))) -> - | I58: ='Orçamento N_DESON.'!I58 -> 0 | M58: 0 | O58: 0 | P58: 0 | Q58: 0 | R58: 0 | S58: 0
D59: ='Orçamento N_DESON.'!D59 -> 1.49 | E59: ='Orçamento N_DESON.'!E59 -> 0 | F59: ='Orçamento N_DESON.'!F59 -> 0 | G59: =IF(OR($F59="ANP",$F59="DAER",$F59="CONSULTORIA DNIT",$F59="PREGÃO ELETRÔNICO",$F59="DMLU",$F59="DMAE",$F59="EPTC"),VLOOKUP($E59,'Planilha Auxiliar'!$A$4:$L$1000,8,FALSE()),IF($F59="INDEXADO",CONCATENATE(VLOOKUP($E59,'Index DESON.'!$A$9:$S$1305,3,FALSE())," (",VLOOKUP($E59,'Index DESON.'!$A$9:$S$1305,2,FALSE()),")"),IF($F59="CCU",VLOOKUP($E59,'Resumo CCU DESON.'!$A$2:$D$202,2,FALSE()),IF($F59="MERCADO",VLOOKUP($E59,'Planillha de cotações'!$B$7:$L$102,2,FALSE()),IF($F59="PLEO",VLOOKUP($E59,'PLEO DESON.'!$A$4:$D$14999,2,FALSE()),IF($F59="SICRO",VLOOKUP($E59,'SICRO DESON.'!$A$4:$D$50010,2,FALSE()),IF($F59="SINAPI",IFERROR((VLOOKUP($E59,'comp. SINAPI DESON.'!$G$7:$L$50000,2,FALSE())),(VLOOKUP($E59,'ins. SINAPI DESON.'!$A$8:$E$15000,2,FALSE()))),"-"))))))) -> - | H59: =IF(OR($F59="ANP",$F59="DAER",$F59="CONSULTORIA DNIT",$F59="PREGÃO ELETRÔNICO",$F59="DMLU",$F59="DMAE",$F59="EPTC"),VLOOKUP($E59,'Planilha Auxiliar'!$A$4:$L$1000,9,FALSE()),IF($F59="INDEXADO",VLOOKUP($E59,'Index DESON.'!$A$9:$S$1305,4,FALSE()),IF($F59="CCU",VLOOKUP($E59,'Resumo CCU DESON.'!$A$2:$D$202,3,FALSE()),IF($F59="MERCADO",VLOOKUP('Modelo de Proposta'!$E59,'Planillha de cotações'!$B$7:$L$1143,7,FALSE()),IF($F59="PLEO",VLOOKUP($E59,'PLEO DESON.'!$A$4:$D$14999,3,FALSE()),IF($F59="SICRO",VLOOKUP($E59,'SICRO DESON.'!$A$4:$D$50010,3,FALSE()),IF($F59="SINAPI",IFERROR((VLOOKUP($E59,'comp. SINAPI DESON.'!$G$7:$L$50000,3,FALSE())),(VLOOKUP($E59,'ins. SINAPI DESON.'!$A$8:$E$15000,3,FALSE()))),"-"))))))) -> - | I59: ='Orçamento N_DESON.'!I59 -> 0 | M59: 0 | O59: 0 | P59: 0 | Q59: 0 | R59: 0 | S59: 0
D60: ='Orçamento N_DESON.'!D60 -> 1.50 | E60: ='Orçamento N_DESON.'!E60 -> 0 | F60: ='Orçamento N_DESON.'!F60 -> 0 | G60: =IF(OR($F60="ANP",$F60="DAER",$F60="CONSULTORIA DNIT",$F60="PREGÃO ELETRÔNICO",$F60="DMLU",$F60="DMAE",$F60="EPTC"),VLOOKUP($E60,'Planilha Auxiliar'!$A$4:$L$1000,8,FALSE()),IF($F60="INDEXADO",CONCATENATE(VLOOKUP($E60,'Index DESON.'!$A$9:$S$1305,3,FALSE())," (",VLOOKUP($E60,'Index DESON.'!$A$9:$S$1305,2,FALSE()),")"),IF($F60="CCU",VLOOKUP($E60,'Resumo CCU DESON.'!$A$2:$D$202,2,FALSE()),IF($F60="MERCADO",VLOOKUP($E60,'Planillha de cotações'!$B$7:$L$102,2,FALSE()),IF($F60="PLEO",VLOOKUP($E60,'PLEO DESON.'!$A$4:$D$14999,2,FALSE()),IF($F60="SICRO",VLOOKUP($E60,'SICRO DESON.'!$A$4:$D$50010,2,FALSE()),IF($F60="SINAPI",IFERROR((VLOOKUP($E60,'comp. SINAPI DESON.'!$G$7:$L$50000,2,FALSE())),(VLOOKUP($E60,'ins. SINAPI DESON.'!$A$8:$E$15000,2,FALSE()))),"-"))))))) -> - | H60: =IF(OR($F60="ANP",$F60="DAER",$F60="CONSULTORIA DNIT",$F60="PREGÃO ELETRÔNICO",$F60="DMLU",$F60="DMAE",$F60="EPTC"),VLOOKUP($E60,'Planilha Auxiliar'!$A$4:$L$1000,9,FALSE()),IF($F60="INDEXADO",VLOOKUP($E60,'Index DESON.'!$A$9:$S$1305,4,FALSE()),IF($F60="CCU",VLOOKUP($E60,'Resumo CCU DESON.'!$A$2:$D$202,3,FALSE()),IF($F60="MERCADO",VLOOKUP('Modelo de Proposta'!$E60,'Planillha de cotações'!$B$7:$L$1143,7,FALSE()),IF($F60="PLEO",VLOOKUP($E60,'PLEO DESON.'!$A$4:$D$14999,3,FALSE()),IF($F60="SICRO",VLOOKUP($E60,'SICRO DESON.'!$A$4:$D$50010,3,FALSE()),IF($F60="SINAPI",IFERROR((VLOOKUP($E60,'comp. SINAPI DESON.'!$G$7:$L$50000,3,FALSE())),(VLOOKUP($E60,'ins. SINAPI DESON.'!$A$8:$E$15000,3,FALSE()))),"-"))))))) -> - | I60: ='Orçamento N_DESON.'!I60 -> 0 | M60: 0 | O60: 0 | P60: 0 | Q60: 0 | R60: 0 | S60: 0
O62: =CONCATENATE("Subtotal ",G10) -> Subtotal ETAPA I - Reconhecimento da área de intervenção e reunião com lideranças locais | P62: =SUM(P11:P61) -> 0 | Q62: =SUM(Q11:Q61) -> 0 | R62: =SUM(R11:R61) -> 0 | S62: =SUM(S11:S61) -> 0 | U62: 1
D64: ='Orçamento N_DESON.'!D64 -> 2 | G64: ='Orçamento N_DESON.'!G64 -> ETAPA II - Acompanhamento do levantamento topográfico de campo | S64: =S116 -> 0
B65: =S65/$S$1150 ->  | D65: ='Orçamento N_DESON.'!D65 -> 2.1 | E65: ='Orçamento N_DESON.'!E65 -> CCU-05 | F65: ='Orçamento N_DESON.'!F65 -> CCU | G65: ='Orçamento N_DESON.'!G65 -> ETAPA II ACOMPANHAMENTO DO LEVANTAMENTO TOPOGRÁFICO DE CAMPO | H65: ='Orçamento N_DESON.'!H65 -> HORAS | I65: ='Orçamento N_DESON.'!I65 -> 80 | M65: =SUM(J65:L65) -> 0 | O65: =IF(N65="-",M65,TRUNC(M65*(1+N65),2)) -> 0 | P65: =IFERROR(TRUNC(TRUNC((J65*(1+$N65)),2)*$I65,2),0) -> 0 | Q65: =IFERROR(TRUNC(TRUNC((K65*(1+$N65)),2)*$I65,2),0) -> 0 | R65: =S65-Q65-P65 -> 0 | S65: =IFERROR(TRUNC(O65*I65,2),0) -> 0
D66: ='Orçamento N_DESON.'!D66 -> 2.2 | E66: ='Orçamento N_DESON.'!E66 -> CCU-17 | F66: ='Orçamento N_DESON.'!F66 -> CCU | G66: ='Orçamento N_DESON.'!G66 -> VEÍCULO COM MOTORISTA | H66: ='Orçamento N_DESON.'!H66 -> HORA | I66: ='Orçamento N_DESON.'!I66 -> 80 | M66: 0 | O66: 0 | P66: 0 | Q66: 0 | R66: 0 | S66: 0
D67: ='Orçamento N_DESON.'!D67 -> 2.3 | E67: ='Orçamento N_DESON.'!E67 -> CCU-06 | F67: ='Orçamento N_DESON.'!F67 -> CCU | G67: ='Orçamento N_DESON.'!G67 -> ETAPA II RELATÓRIO | H67: ='Orçamento N_DESON.'!H67 -> HORAS | I67: ='Orçamento N_DESON.'!I67 -> 8 | M67: 0 | O67: 0 | P67: 0 | Q67: 0 | R67: 0 | S67: 0
D68: ='Orçamento N_DESON.'!D68 -> 2.4 | E68: ='Orçamento N_DESON.'!E68 -> CCU-16 | F68: ='Orçamento N_DESON.'!F68 -> CCU | G68: ='Orçamento N_DESON.'!G68 -> KIT RELATÓRIO | H68: ='Orçamento N_DESON.'!H68 -> UNIDADE | I68: ='Orçamento N_DESON.'!I68 -> 1 | M68: 0 | O68: 0 | P68: 0 | Q68: 0 | R68: 0 | S68: 0
D69: ='Orçamento N_DESON.'!D69 -> 2.5 | E69: ='Orçamento N_DESON.'!E69 -> 0 | F69: ='Orçamento N_DESON.'!F69 -> 0 | G69: ='Orçamento N_DESON.'!G69 -> - | H69: ='Orçamento N_DESON.'!H69 -> - | I69: ='Orçamento N_DESON.'!I69 -> 0 | M69: 0 | O69: 0 | P69: 0 | Q69: 0 | R69: 0 | S69: 0
D70: ='Orçamento N_DESON.'!D70 -> 2.6 | E70: ='Orçamento N_DESON.'!E70 -> 0 | F70: ='Orçamento N_DESON.'!F70 -> 0 | G70: ='Orçamento N_DESON.'!G70 -> - | H70: ='Orçamento N_DESON.'!H70 -> - | I70: ='Orçamento N_DESON.'!I70 -> 0 | M70: 0 | O70: 0 | P70: 0 | Q70: 0 | R70: 0 | S70: 0
D71: ='Orçamento N_DESON.'!D71 -> 2.7 | E71: ='Orçamento N_DESON.'!E71 -> 0 | F71: ='Orçamento N_DESON.'!F71 -> 0 | G71: ='Orçamento N_DESON.'!G71 -> - | H71: ='Orçamento N_DESON.'!H71 -> - | I71: ='Orçamento N_DESON.'!I71 -> 0 | M71: 0 | O71: 0 | P71: 0 | Q71: 0 | R71: 0 | S71: 0
D72: ='Orçamento N_DESON.'!D72 -> 2.8 | E72: ='Orçamento N_DESON.'!E72 -> 0 | F72: ='Orçamento N_DESON.'!F72 -> 0 | G72: ='Orçamento N_DESON.'!G72 -> - | H72: ='Orçamento N_DESON.'!H72 -> - | I72: ='Orçamento N_DESON.'!I72 -> 0 | M72: 0 | O72: 0 | P72: 0 | Q72: 0 | R72: 0 | S72: 0
D73: ='Orçamento N_DESON.'!D73 -> 2.9 | E73: ='Orçamento N_DESON.'!E73 -> 0 | F73: ='Orçamento N_DESON.'!F73 -> 0 | G73: ='Orçamento N_DESON.'!G73 -> - | H73: ='Orçamento N_DESON.'!H73 -> - | I73: ='Orçamento N_DESON.'!I73 -> 0 | M73: 0 | O73: 0 | P73: 0 | Q73: 0 | R73: 0 | S73: 0
D74: ='Orçamento N_DESON.'!D74 -> 2.10 | E74: ='Orçamento N_DESON.'!E74 -> 0 | F74: ='Orçamento N_DESON.'!F74 -> 0 | G74: ='Orçamento N_DESON.'!G74 -> - | H74: ='Orçamento N_DESON.'!H74 -> - | I74: ='Orçamento N_DESON.'!I74 -> 0 | M74: 0 | O74: 0 | P74: 0 | Q74: 0 | R74: 0 | S74: 0
D75: ='Orçamento N_DESON.'!D75 -> 2.11 | E75: ='Orçamento N_DESON.'!E75 -> 0 | F75: ='Orçamento N_DESON.'!F75 -> 0 | G75: ='Orçamento N_DESON.'!G75 -> - | H75: ='Orçamento N_DESON.'!H75 -> - | I75: ='Orçamento N_DESON.'!I75 -> 0 | M75: 0 | O75: 0 | P75: 0 | Q75: 0 | R75: 0 | S75: 0
D76: ='Orçamento N_DESON.'!D76 -> 2.12 | E76: ='Orçamento N_DESON.'!E76 -> 0 | F76: ='Orçamento N_DESON.'!F76 -> 0 | G76: ='Orçamento N_DESON.'!G76 -> - | H76: ='Orçamento N_DESON.'!H76 -> - | I76: ='Orçamento N_DESON.'!I76 -> 0 | M76: 0 | O76: 0 | P76: 0 | Q76: 0 | R76: 0 | S76: 0
D77: ='Orçamento N_DESON.'!D77 -> 2.13 | E77: ='Orçamento N_DESON.'!E77 -> 0 | F77: ='Orçamento N_DESON.'!F77 -> 0 | G77: ='Orçamento N_DESON.'!G77 -> - | H77: ='Orçamento N_DESON.'!H77 -> - | I77: ='Orçamento N_DESON.'!I77 -> 0 | M77: 0 | O77: 0 | P77: 0 | Q77: 0 | R77: 0 | S77: 0
D78: ='Orçamento N_DESON.'!D78 -> 2.14 | E78: ='Orçamento N_DESON.'!E78 -> 0 | F78: ='Orçamento N_DESON.'!F78 -> 0 | G78: ='Orçamento N_DESON.'!G78 -> - | H78: ='Orçamento N_DESON.'!H78 -> - | I78: ='Orçamento N_DESON.'!I78 -> 0 | M78: 0 | O78: 0 | P78: 0 | Q78: 0 | R78: 0 | S78: 0
D79: ='Orçamento N_DESON.'!D79 -> 2.15 | E79: ='Orçamento N_DESON.'!E79 -> 0 | F79: ='Orçamento N_DESON.'!F79 -> 0 | G79: ='Orçamento N_DESON.'!G79 -> - | H79: ='Orçamento N_DESON.'!H79 -> - | I79: ='Orçamento N_DESON.'!I79 -> 0 | M79: 0 | O79: 0 | P79: 0 | Q79: 0 | R79: 0 | S79: 0
D80: ='Orçamento N_DESON.'!D80 -> 2.16 | E80: ='Orçamento N_DESON.'!E80 -> 0 | F80: ='Orçamento N_DESON.'!F80 -> 0 | G80: ='Orçamento N_DESON.'!G80 -> - | H80: ='Orçamento N_DESON.'!H80 -> - | I80: ='Orçamento N_DESON.'!I80 -> 0 | M80: 0 | O80: 0 | P80: 0 | Q80: 0 | R80: 0 | S80: 0
D81: ='Orçamento N_DESON.'!D81 -> 2.17 | E81: ='Orçamento N_DESON.'!E81 -> 0 | F81: ='Orçamento N_DESON.'!F81 -> 0 | G81: ='Orçamento N_DESON.'!G81 -> - | H81: ='Orçamento N_DESON.'!H81 -> - | I81: ='Orçamento N_DESON.'!I81 -> 0 | M81: 0 | O81: 0 | P81: 0 | Q81: 0 | R81: 0 | S81: 0
D82: ='Orçamento N_DESON.'!D82 -> 2.18 | E82: ='Orçamento N_DESON.'!E82 -> 0 | F82: ='Orçamento N_DESON.'!F82 -> 0 | G82: ='Orçamento N_DESON.'!G82 -> - | H82: ='Orçamento N_DESON.'!H82 -> - | I82: ='Orçamento N_DESON.'!I82 -> 0 | M82: 0 | O82: 0 | P82: 0 | Q82: 0 | R82: 0 | S82: 0
D83: ='Orçamento N_DESON.'!D83 -> 2.19 | E83: ='Orçamento N_DESON.'!E83 -> 0 | F83: ='Orçamento N_DESON.'!F83 -> 0 | G83: ='Orçamento N_DESON.'!G83 -> - | H83: ='Orçamento N_DESON.'!H83 -> - | I83: ='Orçamento N_DESON.'!I83 -> 0 | M83: 0 | O83: 0 | P83: 0 | Q83: 0 | R83: 0 | S83: 0
D84: ='Orçamento N_DESON.'!D84 -> 2.20 | E84: ='Orçamento N_DESON.'!E84 -> 0 | F84: ='Orçamento N_DESON.'!F84 -> 0 | G84: ='Orçamento N_DESON.'!G84 -> - | H84: ='Orçamento N_DESON.'!H84 -> - | I84: ='Orçamento N_DESON.'!I84 -> 0 | M84: 0 | O84: 0 | P84: 0 | Q84: 0 | R84: 0 | S84: 0
D85: ='Orçamento N_DESON.'!D85 -> 2.21 | E85: ='Orçamento N_DESON.'!E85 -> 0 | F85: ='Orçamento N_DESON.'!F85 -> 0 | G85: ='Orçamento N_DESON.'!G85 -> - | H85: ='Orçamento N_DESON.'!H85 -> - | I85: ='Orçamento N_DESON.'!I85 -> 0 | M85: 0 | O85: 0 | P85: 0 | Q85: 0 | R85: 0 | S85: 0
D86: ='Orçamento N_DESON.'!D86 -> 2.22 | E86: ='Orçamento N_DESON.'!E86 -> 0 | F86: ='Orçamento N_DESON.'!F86 -> 0 | G86: ='Orçamento N_DESON.'!G86 -> - | H86: ='Orçamento N_DESON.'!H86 -> - | I86: ='Orçamento N_DESON.'!I86 -> 0 | M86: 0 | O86: 0 | P86: 0 | Q86: 0 | R86: 0 | S86: 0
D87: ='Orçamento N_DESON.'!D87 -> 2.23 | E87: ='Orçamento N_DESON.'!E87 -> 0 | F87: ='Orçamento N_DESON.'!F87 -> 0 | G87: ='Orçamento N_DESON.'!G87 -> - | H87: ='Orçamento N_DESON.'!H87 -> - | I87: ='Orçamento N_DESON.'!I87 -> 0 | M87: 0 | O87: 0 | P87: 0 | Q87: 0 | R87: 0 | S87: 0
D88: ='Orçamento N_DESON.'!D88 -> 2.24 | E88: ='Orçamento N_DESON.'!E88 -> 0 | F88: ='Orçamento N_DESON.'!F88 -> 0 | G88: ='Orçamento N_DESON.'!G88 -> - | H88: ='Orçamento N_DESON.'!H88 -> - | I88: ='Orçamento N_DESON.'!I88 -> 0 | M88: 0 | O88: 0 | P88: 0 | Q88: 0 | R88: 0 | S88: 0
D89: ='Orçamento N_DESON.'!D89 -> 2.25 | E89: ='Orçamento N_DESON.'!E89 -> 0 | F89: ='Orçamento N_DESON.'!F89 -> 0 | G89: ='Orçamento N_DESON.'!G89 -> - | H89: ='Orçamento N_DESON.'!H89 -> - | I89: ='Orçamento N_DESON.'!I89 -> 0 | M89: 0 | O89: 0 | P89: 0 | Q89: 0 | R89: 0 | S89: 0
D90: ='Orçamento N_DESON.'!D90 -> 2.26 | E90: ='Orçamento N_DESON.'!E90 -> 0 | F90: ='Orçamento N_DESON.'!F90 -> 0 | G90: ='Orçamento N_DESON.'!G90 -> - | H90: ='Orçamento N_DESON.'!H90 -> - | I90: ='Orçamento N_DESON.'!I90 -> 0 | M90: 0 | O90: 0 | P90: 0 | Q90: 0 | R90: 0 | S90: 0
D91: ='Orçamento N_DESON.'!D91 -> 2.27 | E91: ='Orçamento N_DESON.'!E91 -> 0 | F91: ='Orçamento N_DESON.'!F91 -> 0 | G91: ='Orçamento N_DESON.'!G91 -> - | H91: ='Orçamento N_DESON.'!H91 -> - | I91: ='Orçamento N_DESON.'!I91 -> 0 | M91: 0 | O91: 0 | P91: 0 | Q91: 0 | R91: 0 | S91: 0
D92: ='Orçamento N_DESON.'!D92 -> 2.28 | E92: ='Orçamento N_DESON.'!E92 -> 0 | F92: ='Orçamento N_DESON.'!F92 -> 0 | G92: ='Orçamento N_DESON.'!G92 -> - | H92: ='Orçamento N_DESON.'!H92 -> - | I92: ='Orçamento N_DESON.'!I92 -> 0 | M92: 0 | O92: 0 | P92: 0 | Q92: 0 | R92: 0 | S92: 0
D93: ='Orçamento N_DESON.'!D93 -> 2.29 | E93: ='Orçamento N_DESON.'!E93 -> 0 | F93: ='Orçamento N_DESON.'!F93 -> 0 | G93: ='Orçamento N_DESON.'!G93 -> - | H93: ='Orçamento N_DESON.'!H93 -> - | I93: ='Orçamento N_DESON.'!I93 -> 0 | M93: 0 | O93: 0 | P93: 0 | Q93: 0 | R93: 0 | S93: 0
D94: ='Orçamento N_DESON.'!D94 -> 2.30 | E94: ='Orçamento N_DESON.'!E94 -> 0 | F94: ='Orçamento N_DESON.'!F94 -> 0 | G94: ='Orçamento N_DESON.'!G94 -> - | H94: ='Orçamento N_DESON.'!H94 -> - | I94: ='Orçamento N_DESON.'!I94 -> 0 | M94: 0 | O94: 0 | P94: 0 | Q94: 0 | R94: 0 | S94: 0
D95: ='Orçamento N_DESON.'!D95 -> 2.31 | E95: ='Orçamento N_DESON.'!E95 -> 0 | F95: ='Orçamento N_DESON.'!F95 -> 0 | G95: ='Orçamento N_DESON.'!G95 -> - | H95: ='Orçamento N_DESON.'!H95 -> - | I95: ='Orçamento N_DESON.'!I95 -> 0 | M95: 0 | O95: 0 | P95: 0 | Q95: 0 | R95: 0 | S95: 0
D96: ='Orçamento N_DESON.'!D96 -> 2.32 | E96: ='Orçamento N_DESON.'!E96 -> 0 | F96: ='Orçamento N_DESON.'!F96 -> 0 | G96: ='Orçamento N_DESON.'!G96 -> - | H96: ='Orçamento N_DESON.'!H96 -> - | I96: ='Orçamento N_DESON.'!I96 -> 0 | M96: 0 | O96: 0 | P96: 0 | Q96: 0 | R96: 0 | S96: 0
B97: =S97/$S$1150 ->  | D97: ='Orçamento N_DESON.'!D97 -> 2.33 | E97: ='Orçamento N_DESON.'!E97 -> 0 | F97: ='Orçamento N_DESON.'!F97 -> 0 | G97: ='Orçamento N_DESON.'!G97 -> - | H97: ='Orçamento N_DESON.'!H97 -> - | I97: ='Orçamento N_DESON.'!I97 -> 0 | M97: =SUM(J97:L97) -> 0 | O97: =IF(N97="-",M97,TRUNC(M97*(1+N97),2)) -> 0 | P97: =IFERROR(TRUNC(TRUNC((J97*(1+$N97)),2)*$I97,2),0) -> 0 | Q97: =IFERROR(TRUNC(TRUNC((K97*(1+$N97)),2)*$I97,2),0) -> 0 | R97: =S97-Q97-P97 -> 0 | S97: =IFERROR(TRUNC(O97*I97,2),0) -> 0
D98: ='Orçamento N_DESON.'!D98 -> 2.34 | E98: ='Orçamento N_DESON.'!E98 -> 0 | F98: ='Orçamento N_DESON.'!F98 -> 0 | G98: ='Orçamento N_DESON.'!G98 -> - | H98: ='Orçamento N_DESON.'!H98 -> - | I98: ='Orçamento N_DESON.'!I98 -> 0 | M98: 0 | O98: 0 | P98: 0 | Q98: 0 | R98: 0 | S98: 0
D99: ='Orçamento N_DESON.'!D99 -> 2.35 | E99: ='Orçamento N_DESON.'!E99 -> 0 | F99: ='Orçamento N_DESON.'!F99 -> 0 | G99: ='Orçamento N_DESON.'!G99 -> - | H99: ='Orçamento N_DESON.'!H99 -> - | I99: ='Orçamento N_DESON.'!I99 -> 0 | M99: 0 | O99: 0 | P99: 0 | Q99: 0 | R99: 0 | S99: 0
D100: ='Orçamento N_DESON.'!D100 -> 2.36 | E100: ='Orçamento N_DESON.'!E100 -> 0 | F100: ='Orçamento N_DESON.'!F100 -> 0 | G100: ='Orçamento N_DESON.'!G100 -> - | H100: ='Orçamento N_DESON.'!H100 -> - | I100: ='Orçamento N_DESON.'!I100 -> 0 | M100: 0 | O100: 0 | P100: 0 | Q100: 0 | R100: 0 | S100: 0
D101: ='Orçamento N_DESON.'!D101 -> 2.37 | E101: ='Orçamento N_DESON.'!E101 -> 0 | F101: ='Orçamento N_DESON.'!F101 -> 0 | G101: ='Orçamento N_DESON.'!G101 -> - | H101: ='Orçamento N_DESON.'!H101 -> - | I101: ='Orçamento N_DESON.'!I101 -> 0 | M101: 0 | O101: 0 | P101: 0 | Q101: 0 | R101: 0 | S101: 0
D102: ='Orçamento N_DESON.'!D102 -> 2.38 | E102: ='Orçamento N_DESON.'!E102 -> 0 | F102: ='Orçamento N_DESON.'!F102 -> 0 | G102: ='Orçamento N_DESON.'!G102 -> - | H102: ='Orçamento N_DESON.'!H102 -> - | I102: ='Orçamento N_DESON.'!I102 -> 0 | M102: 0 | O102: 0 | P102: 0 | Q102: 0 | R102: 0 | S102: 0
D103: ='Orçamento N_DESON.'!D103 -> 2.39 | E103: ='Orçamento N_DESON.'!E103 -> 0 | F103: ='Orçamento N_DESON.'!F103 -> 0 | G103: ='Orçamento N_DESON.'!G103 -> - | H103: ='Orçamento N_DESON.'!H103 -> - | I103: ='Orçamento N_DESON.'!I103 -> 0 | M103: 0 | O103: 0 | P103: 0 | Q103: 0 | R103: 0 | S103: 0
D104: ='Orçamento N_DESON.'!D104 -> 2.40 | E104: ='Orçamento N_DESON.'!E104 -> 0 | F104: ='Orçamento N_DESON.'!F104 -> 0 | G104: ='Orçamento N_DESON.'!G104 -> - | H104: ='Orçamento N_DESON.'!H104 -> - | I104: ='Orçamento N_DESON.'!I104 -> 0 | M104: 0 | O104: 0 | P104: 0 | Q104: 0 | R104: 0 | S104: 0
D105: ='Orçamento N_DESON.'!D105 -> 2.41 | E105: ='Orçamento N_DESON.'!E105 -> 0 | F105: ='Orçamento N_DESON.'!F105 -> 0 | G105: ='Orçamento N_DESON.'!G105 -> - | H105: ='Orçamento N_DESON.'!H105 -> - | I105: ='Orçamento N_DESON.'!I105 -> 0 | M105: 0 | O105: 0 | P105: 0 | Q105: 0 | R105: 0 | S105: 0
D106: ='Orçamento N_DESON.'!D106 -> 2.42 | E106: ='Orçamento N_DESON.'!E106 -> 0 | F106: ='Orçamento N_DESON.'!F106 -> 0 | G106: ='Orçamento N_DESON.'!G106 -> - | H106: ='Orçamento N_DESON.'!H106 -> - | I106: ='Orçamento N_DESON.'!I106 -> 0 | M106: 0 | O106: 0 | P106: 0 | Q106: 0 | R106: 0 | S106: 0
D107: ='Orçamento N_DESON.'!D107 -> 2.43 | E107: ='Orçamento N_DESON.'!E107 -> 0 | F107: ='Orçamento N_DESON.'!F107 -> 0 | G107: ='Orçamento N_DESON.'!G107 -> - | H107: ='Orçamento N_DESON.'!H107 -> - | I107: ='Orçamento N_DESON.'!I107 -> 0 | M107: 0 | O107: 0 | P107: 0 | Q107: 0 | R107: 0 | S107: 0
D108: ='Orçamento N_DESON.'!D108 -> 2.44 | E108: ='Orçamento N_DESON.'!E108 -> 0 | F108: ='Orçamento N_DESON.'!F108 -> 0 | G108: ='Orçamento N_DESON.'!G108 -> - | H108: ='Orçamento N_DESON.'!H108 -> - | I108: ='Orçamento N_DESON.'!I108 -> 0 | M108: 0 | O108: 0 | P108: 0 | Q108: 0 | R108: 0 | S108: 0
D109: ='Orçamento N_DESON.'!D109 -> 2.45 | E109: ='Orçamento N_DESON.'!E109 -> 0 | F109: ='Orçamento N_DESON.'!F109 -> 0 | G109: ='Orçamento N_DESON.'!G109 -> - | H109: ='Orçamento N_DESON.'!H109 -> - | I109: ='Orçamento N_DESON.'!I109 -> 0 | M109: 0 | O109: 0 | P109: 0 | Q109: 0 | R109: 0 | S109: 0
D110: ='Orçamento N_DESON.'!D110 -> 2.46 | E110: ='Orçamento N_DESON.'!E110 -> 0 | F110: ='Orçamento N_DESON.'!F110 -> 0 | G110: ='Orçamento N_DESON.'!G110 -> - | H110: ='Orçamento N_DESON.'!H110 -> - | I110: ='Orçamento N_DESON.'!I110 -> 0 | M110: 0 | O110: 0 | P110: 0 | Q110: 0 | R110: 0 | S110: 0
D111: ='Orçamento N_DESON.'!D111 -> 2.47 | E111: ='Orçamento N_DESON.'!E111 -> 0 | F111: ='Orçamento N_DESON.'!F111 -> 0 | G111: ='Orçamento N_DESON.'!G111 -> - | H111: ='Orçamento N_DESON.'!H111 -> - | I111: ='Orçamento N_DESON.'!I111 -> 0 | M111: 0 | O111: 0 | P111: 0 | Q111: 0 | R111: 0 | S111: 0
D112: ='Orçamento N_DESON.'!D112 -> 2.48 | E112: ='Orçamento N_DESON.'!E112 -> 0 | F112: ='Orçamento N_DESON.'!F112 -> 0 | G112: ='Orçamento N_DESON.'!G112 -> - | H112: ='Orçamento N_DESON.'!H112 -> - | I112: ='Orçamento N_DESON.'!I112 -> 0 | M112: 0 | O112: 0 | P112: 0 | Q112: 0 | R112: 0 | S112: 0
D113: ='Orçamento N_DESON.'!D113 -> 2.49 | E113: ='Orçamento N_DESON.'!E113 -> 0 | F113: ='Orçamento N_DESON.'!F113 -> 0 | G113: ='Orçamento N_DESON.'!G113 -> - | H113: ='Orçamento N_DESON.'!H113 -> - | I113: ='Orçamento N_DESON.'!I113 -> 0 | M113: 0 | O113: 0 | P113: 0 | Q113: 0 | R113: 0 | S113: 0
D114: ='Orçamento N_DESON.'!D114 -> 2.50 | E114: ='Orçamento N_DESON.'!E114 -> 0 | F114: ='Orçamento N_DESON.'!F114 -> 0 | G114: ='Orçamento N_DESON.'!G114 -> - | H114: ='Orçamento N_DESON.'!H114 -> - | I114: ='Orçamento N_DESON.'!I114 -> 0 | M114: 0 | O114: 0 | P114: 0 | Q114: 0 | R114: 0 | S114: 0
O116: =CONCATENATE("Subtotal ",G64) -> Subtotal ETAPA II - Acompanhamento do levantamento topográfico de campo | P116: =SUM(P65:P115) -> 0 | Q116: =SUM(Q65:Q115) -> 0 | R116: =SUM(R65:R115) -> 0 | S116: =SUM(S65:S115) -> 0 | U116: 1
D118: ='Orçamento N_DESON.'!D118 -> 3 | G118: ='Orçamento N_DESON.'!G118 -> ETAPA II - Levantamento topográfico de campo | S118: =S190 -> 0
B119: =S119/$S$1150 ->  | D119: ='Orçamento N_DESON.'!D119 -> 3.1 | E119: ='Orçamento N_DESON.'!E119 -> CCU-18 | F119: ='Orçamento N_DESON.'!F119 -> CCU | G119: ='Orçamento N_DESON.'!G119 -> LEVANTAMENTO TOPOGRÁFICO PLANIALTIMÉTRICO CADASTRAL EM ÁREAS OCUPADAS | H119: ='Orçamento N_DESON.'!H119 -> LOTES | I119: ='Orçamento N_DESON.'!I119 -> 113 | M119: =SUM(J119:L119) -> 0 | O119: =IF(N119="-",M119,TRUNC(M119*(1+N119),2)) -> 0 | P119: =IFERROR(TRUNC(TRUNC((J119*(1+$N119)),2)*$I119,2),0) -> 0 | Q119: =IFERROR(TRUNC(TRUNC((K119*(1+$N119)),2)*$I119,2),0) -> 0 | R119: =S119-Q119-P119 -> 0 | S119: =IFERROR(TRUNC(O119*I119,2),0) -> 0
D120: ='Orçamento N_DESON.'!D120 -> 3.2 | E120: ='Orçamento N_DESON.'!E120 -> 0 | F120: ='Orçamento N_DESON.'!F120 -> 0 | G120: ='Orçamento N_DESON.'!G120 -> - | H120: ='Orçamento N_DESON.'!H120 -> - | I120: ='Orçamento N_DESON.'!I120 -> 0 | M120: 0 | O120: 0 | P120: 0 | Q120: 0 | R120: 0 | S120: 0
D121: ='Orçamento N_DESON.'!D121 -> 3.3 | E121: ='Orçamento N_DESON.'!E121 -> 0 | F121: ='Orçamento N_DESON.'!F121 -> 0 | G121: ='Orçamento N_DESON.'!G121 -> - | H121: ='Orçamento N_DESON.'!H121 -> - | I121: ='Orçamento N_DESON.'!I121 -> 0 | M121: 0 | O121: 0 | P121: 0 | Q121: 0 | R121: 0 | S121: 0
D122: ='Orçamento N_DESON.'!D122 -> 3.4 | E122: ='Orçamento N_DESON.'!E122 -> 0 | F122: ='Orçamento N_DESON.'!F122 -> 0 | G122: ='Orçamento N_DESON.'!G122 -> - | H122: ='Orçamento N_DESON.'!H122 -> - | I122: ='Orçamento N_DESON.'!I122 -> 0 | M122: 0 | O122: 0 | P122: 0 | Q122: 0 | R122: 0 | S122: 0
D123: ='Orçamento N_DESON.'!D123 -> 3.5 | E123: ='Orçamento N_DESON.'!E123 -> 0 | F123: ='Orçamento N_DESON.'!F123 -> 0 | G123: ='Orçamento N_DESON.'!G123 -> - | H123: ='Orçamento N_DESON.'!H123 -> - | I123: ='Orçamento N_DESON.'!I123 -> 0 | M123: 0 | O123: 0 | P123: 0 | Q123: 0 | R123: 0 | S123: 0
D124: ='Orçamento N_DESON.'!D124 -> 3.6 | E124: ='Orçamento N_DESON.'!E124 -> 0 | F124: ='Orçamento N_DESON.'!F124 -> 0 | G124: ='Orçamento N_DESON.'!G124 -> - | H124: ='Orçamento N_DESON.'!H124 -> - | I124: ='Orçamento N_DESON.'!I124 -> 0 | M124: 0 | O124: 0 | P124: 0 | Q124: 0 | R124: 0 | S124: 0
D125: ='Orçamento N_DESON.'!D125 -> 3.7 | E125: ='Orçamento N_DESON.'!E125 -> 0 | F125: ='Orçamento N_DESON.'!F125 -> 0 | G125: ='Orçamento N_DESON.'!G125 -> - | H125: ='Orçamento N_DESON.'!H125 -> - | I125: ='Orçamento N_DESON.'!I125 -> 0 | M125: 0 | O125: 0 | P125: 0 | Q125: 0 | R125: 0 | S125: 0
D126: ='Orçamento N_DESON.'!D126 -> 3.8 | E126: ='Orçamento N_DESON.'!E126 -> 0 | F126: ='Orçamento N_DESON.'!F126 -> 0 | G126: ='Orçamento N_DESON.'!G126 -> - | H126: ='Orçamento N_DESON.'!H126 -> - | I126: ='Orçamento N_DESON.'!I126 -> 0 | M126: 0 | O126: 0 | P126: 0 | Q126: 0 | R126: 0 | S126: 0
D127: ='Orçamento N_DESON.'!D127 -> 3.9 | E127: ='Orçamento N_DESON.'!E127 -> 0 | F127: ='Orçamento N_DESON.'!F127 -> 0 | G127: ='Orçamento N_DESON.'!G127 -> - | H127: ='Orçamento N_DESON.'!H127 -> - | I127: ='Orçamento N_DESON.'!I127 -> 0 | M127: 0 | O127: 0 | P127: 0 | Q127: 0 | R127: 0 | S127: 0
D128: ='Orçamento N_DESON.'!D128 -> 3.10 | E128: ='Orçamento N_DESON.'!E128 -> 0 | F128: ='Orçamento N_DESON.'!F128 -> 0 | G128: ='Orçamento N_DESON.'!G128 -> - | H128: ='Orçamento N_DESON.'!H128 -> - | I128: ='Orçamento N_DESON.'!I128 -> 0 | M128: 0 | O128: 0 | P128: 0 | Q128: 0 | R128: 0 | S128: 0
D129: ='Orçamento N_DESON.'!D129 -> 3.11 | E129: ='Orçamento N_DESON.'!E129 -> 0 | F129: ='Orçamento N_DESON.'!F129 -> 0 | G129: ='Orçamento N_DESON.'!G129 -> - | H129: ='Orçamento N_DESON.'!H129 -> - | I129: ='Orçamento N_DESON.'!I129 -> 0 | M129: 0 | O129: 0 | P129: 0 | Q129: 0 | R129: 0 | S129: 0
D130: ='Orçamento N_DESON.'!D130 -> 3.12 | E130: ='Orçamento N_DESON.'!E130 -> 0 | F130: ='Orçamento N_DESON.'!F130 -> 0 | G130: ='Orçamento N_DESON.'!G130 -> - | H130: ='Orçamento N_DESON.'!H130 -> - | I130: ='Orçamento N_DESON.'!I130 -> 0 | M130: 0 | O130: 0 | P130: 0 | Q130: 0 | R130: 0 | S130: 0
D131: ='Orçamento N_DESON.'!D131 -> 3.13 | E131: ='Orçamento N_DESON.'!E131 -> 0 | F131: ='Orçamento N_DESON.'!F131 -> 0 | G131: ='Orçamento N_DESON.'!G131 -> - | H131: ='Orçamento N_DESON.'!H131 -> - | I131: ='Orçamento N_DESON.'!I131 -> 0 | M131: 0 | O131: 0 | P131: 0 | Q131: 0 | R131: 0 | S131: 0
D132: ='Orçamento N_DESON.'!D132 -> 3.14 | E132: ='Orçamento N_DESON.'!E132 -> 0 | F132: ='Orçamento N_DESON.'!F132 -> 0 | G132: ='Orçamento N_DESON.'!G132 -> - | H132: ='Orçamento N_DESON.'!H132 -> - | I132: ='Orçamento N_DESON.'!I132 -> 0 | M132: 0 | O132: 0 | P132: 0 | Q132: 0 | R132: 0 | S132: 0
D133: ='Orçamento N_DESON.'!D133 -> 3.15 | E133: ='Orçamento N_DESON.'!E133 -> 0 | F133: ='Orçamento N_DESON.'!F133 -> 0 | G133: ='Orçamento N_DESON.'!G133 -> - | H133: ='Orçamento N_DESON.'!H133 -> - | I133: ='Orçamento N_DESON.'!I133 -> 0 | M133: 0 | O133: 0 | P133: 0 | Q133: 0 | R133: 0 | S133: 0
D134: ='Orçamento N_DESON.'!D134 -> 3.16 | E134: ='Orçamento N_DESON.'!E134 -> 0 | F134: ='Orçamento N_DESON.'!F134 -> 0 | G134: ='Orçamento N_DESON.'!G134 -> - | H134: ='Orçamento N_DESON.'!H134 -> - | I134: ='Orçamento N_DESON.'!I134 -> 0 | M134: 0 | O134: 0 | P134: 0 | Q134: 0 | R134: 0 | S134: 0
D135: ='Orçamento N_DESON.'!D135 -> 3.17 | E135: ='Orçamento N_DESON.'!E135 -> 0 | F135: ='Orçamento N_DESON.'!F135 -> 0 | G135: ='Orçamento N_DESON.'!G135 -> - | H135: ='Orçamento N_DESON.'!H135 -> - | I135: ='Orçamento N_DESON.'!I135 -> 0 | M135: 0 | O135: 0 | P135: 0 | Q135: 0 | R135: 0 | S135: 0
D136: ='Orçamento N_DESON.'!D136 -> 3.18 | E136: ='Orçamento N_DESON.'!E136 -> 0 | F136: ='Orçamento N_DESON.'!F136 -> 0 | G136: ='Orçamento N_DESON.'!G136 -> - | H136: ='Orçamento N_DESON.'!H136 -> - | I136: ='Orçamento N_DESON.'!I136 -> 0 | M136: 0 | O136: 0 | P136: 0 | Q136: 0 | R136: 0 | S136: 0
D137: ='Orçamento N_DESON.'!D137 -> 3.19 | E137: ='Orçamento N_DESON.'!E137 -> 0 | F137: ='Orçamento N_DESON.'!F137 -> 0 | G137: ='Orçamento N_DESON.'!G137 -> - | H137: ='Orçamento N_DESON.'!H137 -> - | I137: ='Orçamento N_DESON.'!I137 -> 0 | M137: 0 | O137: 0 | P137: 0 | Q137: 0 | R137: 0 | S137: 0
D138: ='Orçamento N_DESON.'!D138 -> 3.20 | E138: ='Orçamento N_DESON.'!E138 -> 0 | F138: ='Orçamento N_DESON.'!F138 -> 0 | G138: ='Orçamento N_DESON.'!G138 -> - | H138: ='Orçamento N_DESON.'!H138 -> - | I138: ='Orçamento N_DESON.'!I138 -> 0 | M138: 0 | O138: 0 | P138: 0 | Q138: 0 | R138: 0 | S138: 0
D139: ='Orçamento N_DESON.'!D139 -> 3.21 | E139: ='Orçamento N_DESON.'!E139 -> 0 | F139: ='Orçamento N_DESON.'!F139 -> 0 | G139: ='Orçamento N_DESON.'!G139 -> - | H139: ='Orçamento N_DESON.'!H139 -> - | I139: ='Orçamento N_DESON.'!I139 -> 0 | M139: 0 | O139: 0 | P139: 0 | Q139: 0 | R139: 0 | S139: 0
D140: ='Orçamento N_DESON.'!D140 -> 3.22 | E140: ='Orçamento N_DESON.'!E140 -> 0 | F140: ='Orçamento N_DESON.'!F140 -> 0 | G140: ='Orçamento N_DESON.'!G140 -> - | H140: ='Orçamento N_DESON.'!H140 -> - | I140: ='Orçamento N_DESON.'!I140 -> 0 | M140: 0 | O140: 0 | P140: 0 | Q140: 0 | R140: 0 | S140: 0
D141: ='Orçamento N_DESON.'!D141 -> 3.23 | E141: ='Orçamento N_DESON.'!E141 -> 0 | F141: ='Orçamento N_DESON.'!F141 -> 0 | G141: ='Orçamento N_DESON.'!G141 -> - | H141: ='Orçamento N_DESON.'!H141 -> - | I141: ='Orçamento N_DESON.'!I141 -> 0 | M141: 0 | O141: 0 | P141: 0 | Q141: 0 | R141: 0 | S141: 0
D142: ='Orçamento N_DESON.'!D142 -> 3.24 | E142: ='Orçamento N_DESON.'!E142 -> 0 | F142: ='Orçamento N_DESON.'!F142 -> 0 | G142: ='Orçamento N_DESON.'!G142 -> - | H142: ='Orçamento N_DESON.'!H142 -> - | I142: ='Orçamento N_DESON.'!I142 -> 0 | M142: 0 | O142: 0 | P142: 0 | Q142: 0 | R142: 0 | S142: 0
D143: ='Orçamento N_DESON.'!D143 -> 3.25 | E143: ='Orçamento N_DESON.'!E143 -> 0 | F143: ='Orçamento N_DESON.'!F143 -> 0 | G143: ='Orçamento N_DESON.'!G143 -> - | H143: ='Orçamento N_DESON.'!H143 -> - | I143: ='Orçamento N_DESON.'!I143 -> 0 | M143: 0 | O143: 0 | P143: 0 | Q143: 0 | R143: 0 | S143: 0
D144: ='Orçamento N_DESON.'!D144 -> 3.26 | E144: ='Orçamento N_DESON.'!E144 -> 0 | F144: ='Orçamento N_DESON.'!F144 -> 0 | G144: ='Orçamento N_DESON.'!G144 -> - | H144: ='Orçamento N_DESON.'!H144 -> - | I144: ='Orçamento N_DESON.'!I144 -> 0 | M144: 0 | O144: 0 | P144: 0 | Q144: 0 | R144: 0 | S144: 0
D145: ='Orçamento N_DESON.'!D145 -> 3.27 | E145: ='Orçamento N_DESON.'!E145 -> 0 | F145: ='Orçamento N_DESON.'!F145 -> 0 | G145: ='Orçamento N_DESON.'!G145 -> - | H145: ='Orçamento N_DESON.'!H145 -> - | I145: ='Orçamento N_DESON.'!I145 -> 0 | M145: 0 | O145: 0 | P145: 0 | Q145: 0 | R145: 0 | S145: 0
D146: ='Orçamento N_DESON.'!D146 -> 3.28 | E146: ='Orçamento N_DESON.'!E146 -> 0 | F146: ='Orçamento N_DESON.'!F146 -> 0 | G146: ='Orçamento N_DESON.'!G146 -> - | H146: ='Orçamento N_DESON.'!H146 -> - | I146: ='Orçamento N_DESON.'!I146 -> 0 | M146: 0 | O146: 0 | P146: 0 | Q146: 0 | R146: 0 | S146: 0
D147: ='Orçamento N_DESON.'!D147 -> 3.29 | E147: ='Orçamento N_DESON.'!E147 -> 0 | F147: ='Orçamento N_DESON.'!F147 -> 0 | G147: ='Orçamento N_DESON.'!G147 -> - | H147: ='Orçamento N_DESON.'!H147 -> - | I147: ='Orçamento N_DESON.'!I147 -> 0 | M147: 0 | O147: 0 | P147: 0 | Q147: 0 | R147: 0 | S147: 0
D148: ='Orçamento N_DESON.'!D148 -> 3.30 | E148: ='Orçamento N_DESON.'!E148 -> 0 | F148: ='Orçamento N_DESON.'!F148 -> 0 | G148: ='Orçamento N_DESON.'!G148 -> - | H148: ='Orçamento N_DESON.'!H148 -> - | I148: ='Orçamento N_DESON.'!I148 -> 0 | M148: 0 | O148: 0 | P148: 0 | Q148: 0 | R148: 0 | S148: 0
D149: ='Orçamento N_DESON.'!D149 -> 3.31 | E149: ='Orçamento N_DESON.'!E149 -> 0 | F149: ='Orçamento N_DESON.'!F149 -> 0 | G149: ='Orçamento N_DESON.'!G149 -> - | H149: ='Orçamento N_DESON.'!H149 -> - | I149: ='Orçamento N_DESON.'!I149 -> 0 | M149: 0 | O149: 0 | P149: 0 | Q149: 0 | R149: 0 | S149: 0
D150: ='Orçamento N_DESON.'!D150 -> 3.32 | E150: ='Orçamento N_DESON.'!E150 -> 0 | F150: ='Orçamento N_DESON.'!F150 -> 0 | G150: ='Orçamento N_DESON.'!G150 -> - | H150: ='Orçamento N_DESON.'!H150 -> - | I150: ='Orçamento N_DESON.'!I150 -> 0 | M150: 0 | O150: 0 | P150: 0 | Q150: 0 | R150: 0 | S150: 0
B151: =S151/$S$1150 ->  | D151: ='Orçamento N_DESON.'!D151 -> 3.33 | E151: ='Orçamento N_DESON.'!E151 -> 0 | F151: ='Orçamento N_DESON.'!F151 -> 0 | G151: ='Orçamento N_DESON.'!G151 -> - | H151: ='Orçamento N_DESON.'!H151 -> - | I151: ='Orçamento N_DESON.'!I151 -> 0 | M151: =SUM(J151:L151) -> 0 | O151: =IF(N151="-",M151,TRUNC(M151*(1+N151),2)) -> 0 | P151: =IFERROR(TRUNC(TRUNC((J151*(1+$N151)),2)*$I151,2),0) -> 0 | Q151: =IFERROR(TRUNC(TRUNC((K151*(1+$N151)),2)*$I151,2),0) -> 0 | R151: =S151-Q151-P151 -> 0 | S151: =IFERROR(TRUNC(O151*I151,2),0) -> 0
D152: ='Orçamento N_DESON.'!D152 -> 3.34 | E152: ='Orçamento N_DESON.'!E152 -> 0 | F152: ='Orçamento N_DESON.'!F152 -> 0 | G152: ='Orçamento N_DESON.'!G152 -> - | H152: ='Orçamento N_DESON.'!H152 -> - | I152: ='Orçamento N_DESON.'!I152 -> 0 | M152: 0 | O152: 0 | P152: 0 | Q152: 0 | R152: 0 | S152: 0
D153: ='Orçamento N_DESON.'!D153 -> 3.35 | E153: ='Orçamento N_DESON.'!E153 -> 0 | F153: ='Orçamento N_DESON.'!F153 -> 0 | G153: ='Orçamento N_DESON.'!G153 -> - | H153: ='Orçamento N_DESON.'!H153 -> - | I153: ='Orçamento N_DESON.'!I153 -> 0 | M153: 0 | O153: 0 | P153: 0 | Q153: 0 | R153: 0 | S153: 0
D154: ='Orçamento N_DESON.'!D154 -> 3.36 | E154: ='Orçamento N_DESON.'!E154 -> 0 | F154: ='Orçamento N_DESON.'!F154 -> 0 | G154: ='Orçamento N_DESON.'!G154 -> - | H154: ='Orçamento N_DESON.'!H154 -> - | I154: ='Orçamento N_DESON.'!I154 -> 0 | M154: 0 | O154: 0 | P154: 0 | Q154: 0 | R154: 0 | S154: 0
D155: ='Orçamento N_DESON.'!D155 -> 3.37 | E155: ='Orçamento N_DESON.'!E155 -> 0 | F155: ='Orçamento N_DESON.'!F155 -> 0 | G155: ='Orçamento N_DESON.'!G155 -> - | H155: ='Orçamento N_DESON.'!H155 -> - | I155: ='Orçamento N_DESON.'!I155 -> 0 | M155: 0 | O155: 0 | P155: 0 | Q155: 0 | R155: 0 | S155: 0
D156: ='Orçamento N_DESON.'!D156 -> 3.38 | E156: ='Orçamento N_DESON.'!E156 -> 0 | F156: ='Orçamento N_DESON.'!F156 -> 0 | G156: ='Orçamento N_DESON.'!G156 -> - | H156: ='Orçamento N_DESON.'!H156 -> - | I156: ='Orçamento N_DESON.'!I156 -> 0 | M156: 0 | O156: 0 | P156: 0 | Q156: 0 | R156: 0 | S156: 0
D157: ='Orçamento N_DESON.'!D157 -> 3.39 | E157: ='Orçamento N_DESON.'!E157 -> 0 | F157: ='Orçamento N_DESON.'!F157 -> 0 | G157: ='Orçamento N_DESON.'!G157 -> - | H157: ='Orçamento N_DESON.'!H157 -> - | I157: ='Orçamento N_DESON.'!I157 -> 0 | M157: 0 | O157: 0 | P157: 0 | Q157: 0 | R157: 0 | S157: 0
D158: ='Orçamento N_DESON.'!D158 -> 3.40 | E158: ='Orçamento N_DESON.'!E158 -> 0 | F158: ='Orçamento N_DESON.'!F158 -> 0 | G158: ='Orçamento N_DESON.'!G158 -> - | H158: ='Orçamento N_DESON.'!H158 -> - | I158: ='Orçamento N_DESON.'!I158 -> 0 | M158: 0 | O158: 0 | P158: 0 | Q158: 0 | R158: 0 | S158: 0
D159: ='Orçamento N_DESON.'!D159 -> 3.41 | E159: ='Orçamento N_DESON.'!E159 -> 0 | F159: ='Orçamento N_DESON.'!F159 -> 0 | G159: ='Orçamento N_DESON.'!G159 -> - | H159: ='Orçamento N_DESON.'!H159 -> - | I159: ='Orçamento N_DESON.'!I159 -> 0 | M159: 0 | O159: 0 | P159: 0 | Q159: 0 | R159: 0 | S159: 0
D160: ='Orçamento N_DESON.'!D160 -> 3.42 | E160: ='Orçamento N_DESON.'!E160 -> 0 | F160: ='Orçamento N_DESON.'!F160 -> 0 | G160: ='Orçamento N_DESON.'!G160 -> - | H160: ='Orçamento N_DESON.'!H160 -> - | I160: ='Orçamento N_DESON.'!I160 -> 0 | M160: 0 | O160: 0 | P160: 0 | Q160: 0 | R160: 0 | S160: 0
D161: ='Orçamento N_DESON.'!D161 -> 3.43 | E161: ='Orçamento N_DESON.'!E161 -> 0 | F161: ='Orçamento N_DESON.'!F161 -> 0 | G161: ='Orçamento N_DESON.'!G161 -> - | H161: ='Orçamento N_DESON.'!H161 -> - | I161: ='Orçamento N_DESON.'!I161 -> 0 | M161: 0 | O161: 0 | P161: 0 | Q161: 0 | R161: 0 | S161: 0
D162: ='Orçamento N_DESON.'!D162 -> 3.44 | E162: ='Orçamento N_DESON.'!E162 -> 0 | F162: ='Orçamento N_DESON.'!F162 -> 0 | G162: ='Orçamento N_DESON.'!G162 -> - | H162: ='Orçamento N_DESON.'!H162 -> - | I162: ='Orçamento N_DESON.'!I162 -> 0 | M162: 0 | O162: 0 | P162: 0 | Q162: 0 | R162: 0 | S162: 0
D163: ='Orçamento N_DESON.'!D163 -> 3.45 | E163: ='Orçamento N_DESON.'!E163 -> 0 | F163: ='Orçamento N_DESON.'!F163 -> 0 | G163: ='Orçamento N_DESON.'!G163 -> - | H163: ='Orçamento N_DESON.'!H163 -> - | I163: ='Orçamento N_DESON.'!I163 -> 0 | M163: 0 | O163: 0 | P163: 0 | Q163: 0 | R163: 0 | S163: 0
D164: ='Orçamento N_DESON.'!D164 -> 3.46 | E164: ='Orçamento N_DESON.'!E164 -> 0 | F164: ='Orçamento N_DESON.'!F164 -> 0 | G164: ='Orçamento N_DESON.'!G164 -> - | H164: ='Orçamento N_DESON.'!H164 -> - | I164: ='Orçamento N_DESON.'!I164 -> 0 | M164: 0 | O164: 0 | P164: 0 | Q164: 0 | R164: 0 | S164: 0
D165: ='Orçamento N_DESON.'!D165 -> 3.47 | E165: ='Orçamento N_DESON.'!E165 -> 0 | F165: ='Orçamento N_DESON.'!F165 -> 0 | G165: ='Orçamento N_DESON.'!G165 -> - | H165: ='Orçamento N_DESON.'!H165 -> - | I165: ='Orçamento N_DESON.'!I165 -> 0 | M165: 0 | O165: 0 | P165: 0 | Q165: 0 | R165: 0 | S165: 0
D166: ='Orçamento N_DESON.'!D166 -> 3.48 | E166: ='Orçamento N_DESON.'!E166 -> 0 | F166: ='Orçamento N_DESON.'!F166 -> 0 | G166: ='Orçamento N_DESON.'!G166 -> - | H166: ='Orçamento N_DESON.'!H166 -> - | I166: ='Orçamento N_DESON.'!I166 -> 0 | M166: 0 | O166: 0 | P166: 0 | Q166: 0 | R166: 0 | S166: 0
D167: ='Orçamento N_DESON.'!D167 -> 3.49 | E167: ='Orçamento N_DESON.'!E167 -> 0 | F167: ='Orçamento N_DESON.'!F167 -> 0 | G167: ='Orçamento N_DESON.'!G167 -> - | H167: ='Orçamento N_DESON.'!H167 -> - | I167: ='Orçamento N_DESON.'!I167 -> 0 | M167: 0 | O167: 0 | P167: 0 | Q167: 0 | R167: 0 | S167: 0
D168: ='Orçamento N_DESON.'!D168 -> 3.50 | E168: ='Orçamento N_DESON.'!E168 -> 0 | F168: ='Orçamento N_DESON.'!F168 -> 0 | G168: ='Orçamento N_DESON.'!G168 -> - | H168: ='Orçamento N_DESON.'!H168 -> - | I168: ='Orçamento N_DESON.'!I168 -> 0 | M168: 0 | O168: 0 | P168: 0 | Q168: 0 | R168: 0 | S168: 0
D169: ='Orçamento N_DESON.'!D169 -> 3.51 | E169: ='Orçamento N_DESON.'!E169 -> 0 | F169: ='Orçamento N_DESON.'!F169 -> 0 | G169: ='Orçamento N_DESON.'!G169 -> - | H169: ='Orçamento N_DESON.'!H169 -> - | I169: ='Orçamento N_DESON.'!I169 -> 0 | M169: 0 | O169: 0 | P169: 0 | Q169: 0 | R169: 0 | S169: 0
D170: ='Orçamento N_DESON.'!D170 -> 3.52 | E170: ='Orçamento N_DESON.'!E170 -> 0 | F170: ='Orçamento N_DESON.'!F170 -> 0 | G170: ='Orçamento N_DESON.'!G170 -> - | H170: ='Orçamento N_DESON.'!H170 -> - | I170: ='Orçamento N_DESON.'!I170 -> 0 | M170: 0 | O170: 0 | P170: 0 | Q170: 0 | R170: 0 | S170: 0
D171: ='Orçamento N_DESON.'!D171 -> 3.53 | E171: ='Orçamento N_DESON.'!E171 -> 0 | F171: ='Orçamento N_DESON.'!F171 -> 0 | G171: ='Orçamento N_DESON.'!G171 -> - | H171: ='Orçamento N_DESON.'!H171 -> - | I171: ='Orçamento N_DESON.'!I171 -> 0 | M171: 0 | O171: 0 | P171: 0 | Q171: 0 | R171: 0 | S171: 0
D172: ='Orçamento N_DESON.'!D172 -> 3.54 | E172: ='Orçamento N_DESON.'!E172 -> 0 | F172: ='Orçamento N_DESON.'!F172 -> 0 | G172: ='Orçamento N_DESON.'!G172 -> - | H172: ='Orçamento N_DESON.'!H172 -> - | I172: ='Orçamento N_DESON.'!I172 -> 0 | M172: 0 | O172: 0 | P172: 0 | Q172: 0 | R172: 0 | S172: 0
D173: ='Orçamento N_DESON.'!D173 -> 3.55 | E173: ='Orçamento N_DESON.'!E173 -> 0 | F173: ='Orçamento N_DESON.'!F173 -> 0 | G173: ='Orçamento N_DESON.'!G173 -> - | H173: ='Orçamento N_DESON.'!H173 -> - | I173: ='Orçamento N_DESON.'!I173 -> 0 | M173: 0 | O173: 0 | P173: 0 | Q173: 0 | R173: 0 | S173: 0
D174: ='Orçamento N_DESON.'!D174 -> 3.56 | E174: ='Orçamento N_DESON.'!E174 -> 0 | F174: ='Orçamento N_DESON.'!F174 -> 0 | G174: ='Orçamento N_DESON.'!G174 -> - | H174: ='Orçamento N_DESON.'!H174 -> - | I174: ='Orçamento N_DESON.'!I174 -> 0 | M174: 0 | O174: 0 | P174: 0 | Q174: 0 | R174: 0 | S174: 0
D175: ='Orçamento N_DESON.'!D175 -> 3.57 | E175: ='Orçamento N_DESON.'!E175 -> 0 | F175: ='Orçamento N_DESON.'!F175 -> 0 | G175: ='Orçamento N_DESON.'!G175 -> - | H175: ='Orçamento N_DESON.'!H175 -> - | I175: ='Orçamento N_DESON.'!I175 -> 0 | M175: 0 | O175: 0 | P175: 0 | Q175: 0 | R175: 0 | S175: 0
D176: ='Orçamento N_DESON.'!D176 -> 3.58 | E176: ='Orçamento N_DESON.'!E176 -> 0 | F176: ='Orçamento N_DESON.'!F176 -> 0 | G176: ='Orçamento N_DESON.'!G176 -> - | H176: ='Orçamento N_DESON.'!H176 -> - | I176: ='Orçamento N_DESON.'!I176 -> 0 | M176: 0 | O176: 0 | P176: 0 | Q176: 0 | R176: 0 | S176: 0
D177: ='Orçamento N_DESON.'!D177 -> 3.59 | E177: ='Orçamento N_DESON.'!E177 -> 0 | F177: ='Orçamento N_DESON.'!F177 -> 0 | G177: ='Orçamento N_DESON.'!G177 -> - | H177: ='Orçamento N_DESON.'!H177 -> - | I177: ='Orçamento N_DESON.'!I177 -> 0 | M177: 0 | O177: 0 | P177: 0 | Q177: 0 | R177: 0 | S177: 0
D178: ='Orçamento N_DESON.'!D178 -> 3.60 | E178: ='Orçamento N_DESON.'!E178 -> 0 | F178: ='Orçamento N_DESON.'!F178 -> 0 | G178: ='Orçamento N_DESON.'!G178 -> - | H178: ='Orçamento N_DESON.'!H178 -> - | I178: ='Orçamento N_DESON.'!I178 -> 0 | M178: 0 | O178: 0 | P178: 0 | Q178: 0 | R178: 0 | S178: 0
D179: ='Orçamento N_DESON.'!D179 -> 3.61 | E179: ='Orçamento N_DESON.'!E179 -> 0 | F179: ='Orçamento N_DESON.'!F179 -> 0 | G179: ='Orçamento N_DESON.'!G179 -> - | H179: ='Orçamento N_DESON.'!H179 -> - | I179: ='Orçamento N_DESON.'!I179 -> 0 | M179: 0 | O179: 0 | P179: 0 | Q179: 0 | R179: 0 | S179: 0
D180: ='Orçamento N_DESON.'!D180 -> 3.62 | E180: ='Orçamento N_DESON.'!E180 -> 0 | F180: ='Orçamento N_DESON.'!F180 -> 0 | G180: ='Orçamento N_DESON.'!G180 -> - | H180: ='Orçamento N_DESON.'!H180 -> - | I180: ='Orçamento N_DESON.'!I180 -> 0 | M180: 0 | O180: 0 | P180: 0 | Q180: 0 | R180: 0 | S180: 0
D181: ='Orçamento N_DESON.'!D181 -> 3.63 | E181: ='Orçamento N_DESON.'!E181 -> 0 | F181: ='Orçamento N_DESON.'!F181 -> 0 | G181: ='Orçamento N_DESON.'!G181 -> - | H181: ='Orçamento N_DESON.'!H181 -> - | I181: ='Orçamento N_DESON.'!I181 -> 0 | M181: 0 | O181: 0 | P181: 0 | Q181: 0 | R181: 0 | S181: 0
D182: ='Orçamento N_DESON.'!D182 -> 3.64 | E182: ='Orçamento N_DESON.'!E182 -> 0 | F182: ='Orçamento N_DESON.'!F182 -> 0 | G182: ='Orçamento N_DESON.'!G182 -> - | H182: ='Orçamento N_DESON.'!H182 -> - | I182: ='Orçamento N_DESON.'!I182 -> 0 | M182: 0 | O182: 0 | P182: 0 | Q182: 0 | R182: 0 | S182: 0
B183: =S183/$S$1150 ->  | D183: ='Orçamento N_DESON.'!D183 -> 3.65 | E183: ='Orçamento N_DESON.'!E183 -> 0 | F183: ='Orçamento N_DESON.'!F183 -> 0 | G183: ='Orçamento N_DESON.'!G183 -> - | H183: ='Orçamento N_DESON.'!H183 -> - | I183: ='Orçamento N_DESON.'!I183 -> 0 | M183: =SUM(J183:L183) -> 0 | O183: =IF(N183="-",M183,TRUNC(M183*(1+N183),2)) -> 0 | P183: =IFERROR(TRUNC(TRUNC((J183*(1+$N183)),2)*$I183,2),0) -> 0 | Q183: =IFERROR(TRUNC(TRUNC((K183*(1+$N183)),2)*$I183,2),0) -> 0 | R183: =S183-Q183-P183 -> 0 | S183: =IFERROR(TRUNC(O183*I183,2),0) -> 0
D184: ='Orçamento N_DESON.'!D184 -> 3.66 | E184: ='Orçamento N_DESON.'!E184 -> 0 | F184: ='Orçamento N_DESON.'!F184 -> 0 | G184: ='Orçamento N_DESON.'!G184 -> - | H184: ='Orçamento N_DESON.'!H184 -> - | I184: ='Orçamento N_DESON.'!I184 -> 0 | M184: 0 | O184: 0 | P184: 0 | Q184: 0 | R184: 0 | S184: 0
D185: ='Orçamento N_DESON.'!D185 -> 3.67 | E185: ='Orçamento N_DESON.'!E185 -> 0 | F185: ='Orçamento N_DESON.'!F185 -> 0 | G185: ='Orçamento N_DESON.'!G185 -> - | H185: ='Orçamento N_DESON.'!H185 -> - | I185: ='Orçamento N_DESON.'!I185 -> 0 | M185: 0 | O185: 0 | P185: 0 | Q185: 0 | R185: 0 | S185: 0
D186: ='Orçamento N_DESON.'!D186 -> 3.68 | E186: ='Orçamento N_DESON.'!E186 -> 0 | F186: ='Orçamento N_DESON.'!F186 -> 0 | G186: ='Orçamento N_DESON.'!G186 -> - | H186: ='Orçamento N_DESON.'!H186 -> - | I186: ='Orçamento N_DESON.'!I186 -> 0 | M186: 0 | O186: 0 | P186: 0 | Q186: 0 | R186: 0 | S186: 0
D187: ='Orçamento N_DESON.'!D187 -> 3.69 | E187: ='Orçamento N_DESON.'!E187 -> 0 | F187: ='Orçamento N_DESON.'!F187 -> 0 | G187: ='Orçamento N_DESON.'!G187 -> - | H187: ='Orçamento N_DESON.'!H187 -> - | I187: ='Orçamento N_DESON.'!I187 -> 0 | M187: 0 | O187: 0 | P187: 0 | Q187: 0 | R187: 0 | S187: 0
D188: ='Orçamento N_DESON.'!D188 -> 3.70 | E188: ='Orçamento N_DESON.'!E188 -> 0 | F188: ='Orçamento N_DESON.'!F188 -> 0 | G188: ='Orçamento N_DESON.'!G188 -> - | H188: ='Orçamento N_DESON.'!H188 -> - | I188: ='Orçamento N_DESON.'!I188 -> 0 | M188: 0 | O188: 0 | P188: 0 | Q188: 0 | R188: 0 | S188: 0
O190: =CONCATENATE("Subtotal ",G118) -> Subtotal ETAPA II - Levantamento topográfico de campo | P190: =SUM(P119:P189) -> 0 | Q190: =SUM(Q119:Q189) -> 0 | R190: =SUM(R119:R189) -> 0 | S190: =SUM(S119:S189) -> 0 | U190: 1
D192: ='Orçamento N_DESON.'!D192 -> 4 | G192: ='Orçamento N_DESON.'!G192 -> ETAPA III - Apresentação e discussão do Projeto urbanístico | S192: =S264 -> 0
B193: =S193/$S$1150 ->  | D193: ='Orçamento N_DESON.'!D193 -> 4.1 | E193: ='Orçamento N_DESON.'!E193 -> CCU-07 | F193: ='Orçamento N_DESON.'!F193 -> CCU | G193: ='Orçamento N_DESON.'!G193 -> ETAPA III REUNIÃO DIRETORIA | H193: ='Orçamento N_DESON.'!H193 -> HORAS | I193: ='Orçamento N_DESON.'!I193 -> 6 | M193: =SUM(J193:L193) -> 0 | O193: =IF(N193="-",M193,TRUNC(M193*(1+N193),2)) -> 0 | P193: =IFERROR(TRUNC(TRUNC((J193*(1+$N193)),2)*$I193,2),0) -> 0 | Q193: =IFERROR(TRUNC(TRUNC((K193*(1+$N193)),2)*$I193,2),0) -> 0 | R193: =S193-Q193-P193 -> 0 | S193: =IFERROR(TRUNC(O193*I193,2),0) -> 0
D194: ='Orçamento N_DESON.'!D194 -> 4.2 | E194: ='Orçamento N_DESON.'!E194 -> CCU-17 | F194: ='Orçamento N_DESON.'!F194 -> CCU | G194: ='Orçamento N_DESON.'!G194 -> VEÍCULO COM MOTORISTA | H194: ='Orçamento N_DESON.'!H194 -> HORA | I194: ='Orçamento N_DESON.'!I194 -> 4 | M194: 0 | O194: 0 | P194: 0 | Q194: 0 | R194: 0 | S194: 0
D195: ='Orçamento N_DESON.'!D195 -> 4.3 | E195: ='Orçamento N_DESON.'!E195 -> CCU-15 | F195: ='Orçamento N_DESON.'!F195 -> CCU | G195: ='Orçamento N_DESON.'!G195 -> KIT REUNIÃO | H195: ='Orçamento N_DESON.'!H195 -> UNIDADE | I195: ='Orçamento N_DESON.'!I195 -> 1 | M195: 0 | O195: 0 | P195: 0 | Q195: 0 | R195: 0 | S195: 0
D196: ='Orçamento N_DESON.'!D196 -> 4.4 | E196: ='Orçamento N_DESON.'!E196 -> CCU-08 | F196: ='Orçamento N_DESON.'!F196 -> CCU | G196: ='Orçamento N_DESON.'!G196 -> ETAPA III REUNIÃO COM GRUPO DE MORADORES | H196: ='Orçamento N_DESON.'!H196 -> HORAS | I196: ='Orçamento N_DESON.'!I196 -> 40 | M196: 0 | O196: 0 | P196: 0 | Q196: 0 | R196: 0 | S196: 0
D197: ='Orçamento N_DESON.'!D197 -> 4.5 | E197: ='Orçamento N_DESON.'!E197 -> CCU-17 | F197: ='Orçamento N_DESON.'!F197 -> CCU | G197: ='Orçamento N_DESON.'!G197 -> VEÍCULO COM MOTORISTA | H197: ='Orçamento N_DESON.'!H197 -> HORA | I197: ='Orçamento N_DESON.'!I197 -> 20 | M197: 0 | O197: 0 | P197: 0 | Q197: 0 | R197: 0 | S197: 0
D198: ='Orçamento N_DESON.'!D198 -> 4.6 | E198: ='Orçamento N_DESON.'!E198 -> CCU-15 | F198: ='Orçamento N_DESON.'!F198 -> CCU | G198: ='Orçamento N_DESON.'!G198 -> KIT REUNIÃO | H198: ='Orçamento N_DESON.'!H198 -> UNIDADE | I198: ='Orçamento N_DESON.'!I198 -> 2 | M198: 0 | O198: 0 | P198: 0 | Q198: 0 | R198: 0 | S198: 0
D199: ='Orçamento N_DESON.'!D199 -> 4.7 | E199: ='Orçamento N_DESON.'!E199 -> CCU-09 | F199: ='Orçamento N_DESON.'!F199 -> CCU | G199: ='Orçamento N_DESON.'!G199 -> ETAPA III VISITAS PROJETO URBANÍSTICO | H199: ='Orçamento N_DESON.'!H199 -> HORAS | I199: ='Orçamento N_DESON.'!I199 -> 30 | M199: 0 | O199: 0 | P199: 0 | Q199: 0 | R199: 0 | S199: 0
D200: ='Orçamento N_DESON.'!D200 -> 4.8 | E200: ='Orçamento N_DESON.'!E200 -> CCU-17 | F200: ='Orçamento N_DESON.'!F200 -> CCU | G200: ='Orçamento N_DESON.'!G200 -> VEÍCULO COM MOTORISTA | H200: ='Orçamento N_DESON.'!H200 -> HORA | I200: ='Orçamento N_DESON.'!I200 -> 30 | M200: 0 | O200: 0 | P200: 0 | Q200: 0 | R200: 0 | S200: 0
D201: ='Orçamento N_DESON.'!D201 -> 4.9 | E201: ='Orçamento N_DESON.'!E201 -> CCU-10 | F201: ='Orçamento N_DESON.'!F201 -> CCU | G201: ='Orçamento N_DESON.'!G201 -> ETAPA III RELATÓRIO | H201: ='Orçamento N_DESON.'!H201 -> HORAS | I201: ='Orçamento N_DESON.'!I201 -> 8 | M201: 0 | O201: 0 | P201: 0 | Q201: 0 | R201: 0 | S201: 0
D202: ='Orçamento N_DESON.'!D202 -> 4.10 | E202: ='Orçamento N_DESON.'!E202 -> CCU-16 | F202: ='Orçamento N_DESON.'!F202 -> CCU | G202: ='Orçamento N_DESON.'!G202 -> KIT RELATÓRIO | H202: ='Orçamento N_DESON.'!H202 -> UNIDADE | I202: ='Orçamento N_DESON.'!I202 -> 1 | M202: 0 | O202: 0 | P202: 0 | Q202: 0 | R202: 0 | S202: 0
D203: ='Orçamento N_DESON.'!D203 -> 4.11 | E203: ='Orçamento N_DESON.'!E203 -> 0 | F203: ='Orçamento N_DESON.'!F203 -> 0 | G203: ='Orçamento N_DESON.'!G203 -> - | H203: ='Orçamento N_DESON.'!H203 -> - | I203: ='Orçamento N_DESON.'!I203 -> 0 | M203: 0 | O203: 0 | P203: 0 | Q203: 0 | R203: 0 | S203: 0
D204: ='Orçamento N_DESON.'!D204 -> 4.12 | E204: ='Orçamento N_DESON.'!E204 -> 0 | F204: ='Orçamento N_DESON.'!F204 -> 0 | G204: ='Orçamento N_DESON.'!G204 -> - | H204: ='Orçamento N_DESON.'!H204 -> - | I204: ='Orçamento N_DESON.'!I204 -> 0 | M204: 0 | O204: 0 | P204: 0 | Q204: 0 | R204: 0 | S204: 0
D205: ='Orçamento N_DESON.'!D205 -> 4.13 | E205: ='Orçamento N_DESON.'!E205 -> 0 | F205: ='Orçamento N_DESON.'!F205 -> 0 | G205: ='Orçamento N_DESON.'!G205 -> - | H205: ='Orçamento N_DESON.'!H205 -> - | I205: ='Orçamento N_DESON.'!I205 -> 0 | M205: 0 | O205: 0 | P205: 0 | Q205: 0 | R205: 0 | S205: 0
D206: ='Orçamento N_DESON.'!D206 -> 4.14 | E206: ='Orçamento N_DESON.'!E206 -> 0 | F206: ='Orçamento N_DESON.'!F206 -> 0 | G206: ='Orçamento N_DESON.'!G206 -> - | H206: ='Orçamento N_DESON.'!H206 -> - | I206: ='Orçamento N_DESON.'!I206 -> 0 | M206: 0 | O206: 0 | P206: 0 | Q206: 0 | R206: 0 | S206: 0
D207: ='Orçamento N_DESON.'!D207 -> 4.15 | E207: ='Orçamento N_DESON.'!E207 -> 0 | F207: ='Orçamento N_DESON.'!F207 -> 0 | G207: ='Orçamento N_DESON.'!G207 -> - | H207: ='Orçamento N_DESON.'!H207 -> - | I207: ='Orçamento N_DESON.'!I207 -> 0 | M207: 0 | O207: 0 | P207: 0 | Q207: 0 | R207: 0 | S207: 0
... 346 more rows

Sheet Comparativo
A2: Tipo de Orçamento | B2: Valor
A3: orçamento não desonerado | B3: ='Orçamento N_DESON.'!$S$1150 -> 98960.11 | C3: =A3 -> orçamento não desonerado | E3: Tabela Não Desonerada
A4: orçamento desonerado | B4: ='Orçamento DESON.'!$S$1150 -> 91733.67 | C4: =A4 -> orçamento desonerado | E4: Tabela Desonerada
A6: =CONCATENATE("Valor adotado: ",VLOOKUP(B6,B3:C4,2,FALSE())) -> Valor adotado: orçamento desonerado | B6: =SMALL(B3:B4,1) -> 91733.67 | E6: =VLOOKUP(B6,B3:E4,4,FALSE()) -> Tabela Desonerada

Sheet BDI 2 (hidden)
B2: =HYPERLINK("https://leismunicipais.com.br/a1/rs/p/porto-alegre/decreto/2006/1542/15416/decreto-n-15416-2006-regulamenta-a-lei-complementar-n-7-de-07-de-dezembro-de-1973-no-que-diz-respeito-ao-issqn-e-da-outras-providencias-2013-07-12-versao-consolidada","Link decreto nº 15.416/2006") -> Link decreto nº 15.416/2006
B4: =HYPERLINK("http://www2.portoalegre.rs.gov.br/netahtml/sirel/atos/Decreto%2019224","Link decreto BDI") -> Link decreto BDI
B6: TIPO DE OBRA | C6: BDI para contratação de obras e serviços | E6: BDI Diferenciado para fornecimento de materiais e equipamentos | H6: TIPO DE OBRA | I6: BDI para Projetos e Serviços Técnicos de Engenharia relativos às atividades 7.03, 7.19 e 7.20 (Decreto 16.869/2010) | J6: BDI para Consultorias e Serviços de Apoio Técnico relativos às atividades 7.01, 17.01, 17.03, 17.09 e 17.16 (Decreto 15.416/2006)
C7: EDIFICAÇÕES residenciais, comerciais e mistas e seus respectivos serviços de conservação e manutenção | D7: INFRAESTRUTURA, incluindo pavimentação, iluminação pública, praças, saneamento, sistemas de água, esgoto cloacal e pluvial e seus respectivos serviços de conservação e manutenção | E7: EDIFICAÇÕES residenciais, comerciais e mistas e seus respectivos serviços de conservação e manutenção | F7: INFRAESTRUTURA, incluindo pavimentação, iluminação pública, praças, saneamento, sistemas de água, esgoto cloacal e pluvial e seus respectivos serviços de conservação e manutenção
B8: Parcelas | H8: Parcelas
B9: (AC) - Administraçã o Central | C9: 0.0403 | D9: 0.0403 | E9: 0.01 | F9: 0.01 | H9: (AC) - Administraçã o Central | I9: 0.01 | J9: 0.01
B10: (S) + (G) - Seguro e Garantia | C10: 0.0065 | D10: 0.0065 | E10: 0 | F10: 0 | H10: (S) + (G) - Seguro e Garantia | I10: 0.0028 | J10: 0.0028
B11: (R) - Risco | C11: 0.0133 | D11: 0.0133 | E11: 0.005 | F11: 0.005 | H11: (R) - Risco | I11: 0 | J11: 0
B12: (DF) - Despesas Financeiras | C12: 0.0152 | D12: 0.0152 | E12: 0.0152 | F12: 0.0152 | H12: (DF) - Despesas Financeiras | I12: 0.0125 | J12: 0.0125
B13: (L) - Lucro | C13: 0.08 | D13: 0.08 | E13: 0.05 | F13: 0.05 | H13: (L) - Lucro | I13: 0.0616 | J13: 0.0616
B14: Impostos (I= I1+I2+I3+I4): | H14: Impostos (I= I1+I2+I3):
B15: (I1) - PIS | C15: 0.0065 | D15: 0.0065 | E15: 0.0065 | F15: 0.0065 | H15: (I1) - PIS | I15: 0.0065 | J15: 0.0065
B16: (I2 ) - COFINS | C16: 0.03 | D16: 0.03 | E16: 0.03 | F16: 0.03 | H16: (I2 ) - COFINS | I16: 0.03 | J16: 0.03
B17: (I3 ) - ISSQN | C17: 0.016 | D17: 0.012 | E17: 0.016 | F17: 0.012 | H17: (I3 ) - ISSQN | I17: 0.02 | J17: 0.05
B18: (I4 ) - Contribuição Previdenciária (CPRB) | C18: 0.045 | D18: 0.045 | E18: 0.045 | F18: 0.045 | H18: BDI | I18: 0.1538 | J18: 0.1917
B19: BDI com Desoneração (incluindo I4) | C19: 0.2878 | D19: 0.2821 | E19: 0.1988 | F19: 0.1935
B20: BDI sem Desoneração (desconsiderando I4) | C20: 0.2267 | D20: 0.2215 | E20: 0.1418 | F20: 0.137
C24: Desonerado | D24: Não desonerado
C25: =C19 -> 0.2878 | D25: =C20 -> 0.2267
C26: =D19 -> 0.2821 | D26: =D20 -> 0.2215
C27: =E19 -> 0.1988 | D27: =E20 -> 0.1418
C28: =F19 -> 0.1935 | D28: =F20 -> 0.137
C29: =I18 -> 0.1538 | D29: =C29 -> 0.1538
C30: =J18 -> 0.1917 | D30: =C30 -> 0.1917
C31: - | D31: =C31 -> -

Sheet Decreto BDI
B2: =HYPERLINK("https://leismunicipais.com.br/a1/rs/p/porto-alegre/decreto/2006/1542/15416/decreto-n-15416-2006-regulamenta-a-lei-complementar-n-7-de-07-de-dezembro-de-1973-no-que-diz-respeito-ao-issqn-e-da-outras-providencias-2013-07-12-versao-consolidada","Link decreto nº 15.416/2006") -> Link decreto nº 15.416/2006
B3: =HYPERLINK("http://www2.portoalegre.rs.gov.br/cgi-bin/nph-brs?s1=000031389.DOCN.&l=20&u=/netahtml/sirel/simples.html&p=1&r=1&f=G&d=atos&SECT1=TEXT","Link decreto nº 16.869/2010") -> Link decreto nº 16.869/2010
B4: =HYPERLINK("http://leismunicipa.is/qdnju","Link decreto BDI nº 19.224/2015") -> Link decreto BDI nº 19.224/2015
B6: TIPO DE OBRA | C6: BDI para contratação de obras e serviços | E6: BDI Diferenciado para fornecimento de materiais e equipamentos | H6: TIPO DE OBRA | I6: BDI para Projetos e Serviços Técnicos de Engenharia relativos às atividades 7.03, 7.19 e 7.20 (Decreto 16.869/2010) | J6: BDI para Consultorias e Serviços de Apoio Técnico relativos às atividades 7.01, 17.01, 17.03, 17.09 e 17.16 (Decreto 15.416/2006)
C7: EDIFICAÇÕES residenciais, comerciais e mistas e seus respectivos serviços de conservação e manutenção | D7: INFRAESTRUTURA, incluindo pavimentação, iluminação pública, praças, saneamento, sistemas de água, esgoto cloacal e pluvial e seus respectivos serviços de conservação e manutenção | E7: EDIFICAÇÕES residenciais, comerciais e mistas e seus respectivos serviços de conservação e manutenção | F7: INFRAESTRUTURA, incluindo pavimentação, iluminação pública, praças, saneamento, sistemas de água, esgoto cloacal e pluvial e seus respectivos serviços de conservação e manutenção
B8: Parcelas | H8: Parcelas
B9: (AC) - Administração Central | C9: 0.0403 | D9: 0.0403 | E9: 0.01 | F9: 0.01 | H9: (AC) - Administração Central | I9: 0.01 | J9: 0.01
B10: (S) + (G) - Seguro e Garantia | C10: 0.0065 | D10: 0.0065 | E10: 0 | F10: 0 | H10: (S) + (G) - Seguro e Garantia | I10: 0.0028 | J10: 0.0028
B11: (R) - Risco | C11: 0.0133 | D11: 0.0133 | E11: 0.005 | F11: 0.005 | H11: (R) - Risco | I11: 0 | J11: 0
B12: (DF) - Despesas Financeiras | C12: 0.0152 | D12: 0.0152 | E12: 0.0152 | F12: 0.0152 | H12: (DF) - Despesas Financeiras | I12: 0.0125 | J12: 0.0125
B13: (L) - Lucro | C13: 0.08 | D13: 0.08 | E13: 0.05 | F13: 0.05 | H13: (L) - Lucro | I13: 0.0616 | J13: 0.0616
B14: Impostos (I= I1+I2+I3+I4): | H14: Impostos (I= I1+I2+I3):
B15: (I1) - PIS | C15: 0.0065 | D15: 0.0065 | E15: 0.0065 | F15: 0.0065 | H15: (I1) - PIS | I15: 0.0065 | J15: 0.0065
B16: (I2 ) - COFINS | C16: 0.03 | D16: 0.03 | E16: 0.03 | F16: 0.03 | H16: (I2 ) - COFINS | I16: 0.03 | J16: 0.03
B17: (I3 ) - ISSQN | C17: 0.016 | D17: 0.012 | E17: 0.016 | F17: 0.012 | H17: (I3 ) - ISSQN | I17: 0.02 | J17: 0.05
B18: (I4 ) - Contribuição Previdenciária (CPRB) | C18: 0.045 | D18: 0.045 | E18: 0.045 | F18: 0.045 | H18: BDI | I18: 0.1538 | J18: 0.1917
B19: BDI com Desoneração (incluindo I4) | C19: 0.2878 | D19: 0.2821 | E19: 0.1988 | F19: 0.1935
B20: BDI sem Desoneração (desconsiderando I4) | C20: 0.2267 | D20: 0.2215 | E20: 0.1418 | F20: 0.137 | I20: BDI Projetos e Serviços Técnicos de Engenharia relativo às atividades: 7.03 - Elaboração de planos diretores, estudos de viabilidade, estudos organizacionais e outros, relacionados com obras e serviços de engenharia; elaboração de anteprojetos, projetos básicos e projetos executivos para trabalhos de engenharia. 7.19 - Acompanhamento e fiscalização da execução de obras de engenharia, arquitetura e urbanismo. 7.20 - Aerofotogrametria (inclusive interpretação), cartografia, mapeamento, levantamentos topográficos, batimétricos, geográficos, geodésicos, geológicos, geofísicos e congêneres. | J20: BDI para Consultorias e Serviços de Apoio Técnico relativo às atividades: 7.01 - Engenharia, agronomia, agrimensura, arquitetura, geologia, urbanismo, paisagismo e congêneres. 17.01 - Assessoria ou consultoria de qualquer natureza, não contida em outros itens desta lista; análise, exame, pesquisa, coleta, compilação e fornecimento de dados e informações de qualquer natureza, inclusive cadastro e similares. 17.03 - Planejamento, coordenação, programação ou organização técnica, financeira ou administrativa. 17.09 - Perícias, laudos, exames técnicos e análises técnicas. 17.16 - Auditoria.

Sheet Dados
B2: DADOS DO PROCESSO
B3: Secretaria: | C3: Departamento Municipal de Habitação - DEMHAB
B4: Processo SEI: | C4: 21.14.000006000-3
B5: Objeto: | C5: Nucleo Urbano Informal Cooperativa João Goulart - COOHAJOGO - Levantamento Planialtimétrico, Projeto Urbanístico de Regularização Fundiária e Trabalho Social
B6: Local: | C6: Rua Manoel Marques, 23 - Porto Alegre/RS
B7: Data-base: | C7: =C32 -> 2021-07-01
B9: Responsável Técnico: | C9: André Ortiz Berner
B10: Título: | C10: Engenheiro Civil
B11: Matrícula: | C11: 549487-2
B12: CREA/RS | C12: RS171860
B13: =IF(B12="CREA/RS",Aux.!B20,Aux.!B21) -> nº ART: | C13: 11499609
B16: BANCO DE DADOS
B17: TABELA | C17: DATA-BASE
B18: SINAPI | C18: 2021-07-01
B19: SICRO | C19: 2020-10-01
B20: PLEO | C20: 2020-06-01
B21: ANP | C21: -
B22: DAER | C22: -
B23: CONSULTORIA DNIT | C23: -
B24: DMLU | C24: -
B25: DMAE | C25: -
B26: CEEE | C26: -
B27: EPTC | C27: -
B28: ORSE | C28: -
B29: SEINFRA | C29: -
B30: CREA | C30: -
B31: CAU | C31: -
B32: REAJUSTAMENTO | C32: 2021-07-01

Sheet BDI
B2: PREFEITURA MUNICIPAL DE PORTO ALEGRE
B3: =Dados!C3 -> Departamento Municipal de Habitação - DEMHAB
B5: Objeto: | C5: =Dados!C5 -> Nucleo Urbano Informal Cooperativa João Goulart - COOHAJOGO - Levantamento Planialtimétrico, Projeto Urbanístico de Regularização Fundiária e Trabalho Social
B6: Local: | C6: =Dados!C6 -> Rua Manoel Marques, 23 - Porto Alegre/RS
B7: COMPOSIÇÃO DO BDI
B8: TIPO DE OBRA | C8: BDI para contratação de obras e serviços | E8: BDI Diferenciado para fornecimento de materiais e equipamentos
C9: EDIFICAÇÕES residenciais, comerciais e mistas e seus respectivos serviços de conservação e manutenção | D9: INFRAESTRUTURA, incluindo pavimentação, iluminação pública, praças, saneamento, sistemas de água, esgoto cloacal e pluvial e seus respectivos serviços de conservação e manutenção | E9: EDIFICAÇÕES residenciais, comerciais e mistas e seus respectivos serviços de conservação e manutenção | F9: INFRAESTRUTURA, incluindo pavimentação, iluminação pública, praças, saneamento, sistemas de água, esgoto cloacal e pluvial e seus respectivos serviços de conservação e manutenção
B10: Parcelas
B11: (AC) - Administração Central | C11: 0.0403 | D11: 0.0403 | E11: 0.01 | F11: 0.01
B12: (S) + (G) - Seguro e Garantia | C12: 0.0065 | D12: 0.0065 | E12: 0 | F12: 0
B13: (R) - Risco | C13: 0.0133 | D13: 0.0133 | E13: 0.005 | F13: 0.005
B14: (DF) - Despesas Financeiras | C14: 0.0152 | D14: 0.0152 | E14: 0.0152 | F14: 0.0152
B15: (L) - Lucro | C15: 0.08 | D15: 0.08 | E15: 0.05 | F15: 0.05
B16: Impostos (I= I1+I2+I3+I4):
B17: (I1) - PIS | C17: 0.0065 | D17: 0.0065 | E17: 0.0065 | F17: 0.0065
B18: (I2 ) - COFINS | C18: 0.03 | D18: 0.03 | E18: 0.03 | F18: 0.03
B19: (I3 ) - ISSQN | C19: 0.016 | D19: 0.012 | E19: 0.016 | F19: 0.012
B20: (I4 ) - Contribuição Previdenciária (CPRB) | C20: 0.045 | D20: 0.045 | E20: 0.045 | F20: 0.045
B21: BDI com Desoneração (incluindo I4) | C21: 0.2878 | D21: 0.2821 | E21: 0.1988 | F21: 0.1935
B22: BDI sem Desoneração (desconsiderando I4) | C22: 0.2267 | D22: 0.2215 | E22: 0.1418 | F22: 0.137
B23: Observação: composição de acordo com o Decreto Municipal nº 19.224/2015.
B25: PREFEITURA MUNICIPAL DE PORTO ALEGRE
B26: =Dados!C3 -> Departamento Municipal de Habitação - DEMHAB
B28: Objeto: | C28: =C5 -> Nucleo Urbano Informal Cooperativa João Goulart - COOHAJOGO - Levantamento Planialtimétrico, Projeto Urbanístico de Regularização Fundiária e Trabalho Social
B29: Local: | C29: =C6 -> Rua Manoel Marques, 23 - Porto Alegre/RS
B30: COMPOSIÇÃO DO BDI
B31: TIPO DE OBRA | C31: BDI para Projetos e Serviços Técnicos de Engenharia relativos às atividades 7.03, 7.19 e 7.20 (Decreto 16.869/2010) | E31: BDI para Consultorias e Serviços de Apoio Técnico relativos às atividades 7.01, 17.01, 17.03, 17.09 e 17.16 (Decreto 15.416/2006)
B33: Parcelas
B34: (AC) - Administração Central | C34: 0.01 | E34: 0.01
B35: (S) + (G) - Seguro e Garantia | C35: 0.0028 | E35: 0.0028
B36: (R) - Risco | C36: 0 | E36: 0
B37: (DF) - Despesas Financeiras | C37: 0.0125 | E37: 0.0125
B38: (L) - Lucro | C38: 0.0616 | E38: 0.0616
B39: Impostos (I= I1+I2+I3):
B40: (I1) - PIS | C40: 0.0065 | E40: 0.0065
B41: (I2 ) - COFINS | C41: 0.03 | E41: 0.03
B42: (I3 ) - ISSQN | C42: 0.02 | E42: 0.05
B43: BDI | C43: 0.1538 | E43: 0.1917
B44: Observação: composição de acordo com o Decreto Municipal nº 19.224/2015.

Sheet Encargos
B2: PREFEITURA MUNICIPAL DE PORTO ALEGRE
B3: =Dados!C3 -> Departamento Municipal de Habitação - DEMHAB
B5: Objeto: | C5: =Dados!C5 -> Nucleo Urbano Informal Cooperativa João Goulart - COOHAJOGO - Levantamento Planialtimétrico, Projeto Urbanístico de Regularização Fundiária e Trabalho Social
B6: Local: | C6: =Dados!C6 -> Rua Manoel Marques, 23 - Porto Alegre/RS
B7: COMPOSIÇÃO DOS ENCARGOS SOCIAIS SOBRE A MÃO DE OBRA
B8: CÓDIGO | C8: DESCRIÇÃO | D8: COM DESONERAÇÃO | F8: SEM DESONERAÇÃO
D9: HORISTA % | E9: MENSALISTA % | F9: HORISTA % | G9: MENSALISTA %
B10: GRUPO A
B11: A1 | C11: INSS | D11: 0 | E11: 0 | F11: 0.2 | G11: 0.2
B12: A2 | C12: SESI | D12: 0.015 | E12: 0.015 | F12: 0.015 | G12: 0.015
B13: A3 | C13: SENAI | D13: 0.01 | E13: 0.01 | F13: 0.01 | G13: 0.01
B14: A4 | C14: INCRA | D14: 0.002 | E14: 0.002 | F14: 0.002 | G14: 0.002
B15: A5 | C15: SEBRAE | D15: 0.006 | E15: 0.006 | F15: 0.006 | G15: 0.006
B16: A6 | C16: Salário Educação | D16: 0.025 | E16: 0.025 | F16: 0.025 | G16: 0.025
B17: A7 | C17: Seguro Contra Acidentes de Trabalho | D17: 0.03 | E17: 0.03 | F17: 0.03 | G17: 0.03
B18: A8 | C18: FGTS | D18: 0.08 | E18: 0.08 | F18: 0.08 | G18: 0.08
B19: A9 | C19: SECONCI | D19: 0 | E19: 0 | F19: 0 | G19: 0
B20: A | C20: Total | D20: =SUM(D11:D19) -> 0.168 | E20: =SUM(E11:E19) -> 0.168 | F20: =SUM(F11:F19) -> 0.368 | G20: =SUM(G11:G19) -> 0.368
B21: GRUPO B
B22: B1 | C22: Repouso Semanal Remunerado | D22: 0.1793 | E22: 0 | F22: 0.1793 | G22: 0
B23: B2 | C23: Feriados | D23: 0.0424 | E23: 0 | F23: 0.0424 | G23: 0
B24: B3 | C24: Auxílio - Enfermidade | D24: 0.0125 | E24: 0.0091 | F24: 0.0125 | G24: 0.0091
B25: B4 | C25: 13º Salário | D25: 0.1077 | E25: 0.0833 | F25: 0.1077 | G25: 0.0833
B26: B5 | C26: Licença Paternidade | D26: 0.0007 | E26: 0.0006 | F26: 0.0007 | G26: 0.0006
B27: B6 | C27: Faltas Justificadas | D27: 0.0072 | E27: 0.0056 | F27: 0.0072 | G27: 0.0056
B28: B7 | C28: Dias de Chuvas | D28: 0.0153 | E28: 0 | F28: 0.0153 | G28: 0
B29: B8 | C29: Auxílio Acidente de Trabalho | D29: 0.0011 | E29: 0.0009 | F29: 0.0011 | G29: 0.0009
B30: B9 | C30: Férias Gozadas | D30: 0.074 | E30: 0.0572 | F30: 0.074 | G30: 0.0572
B31: B10 | C31: Salário Maternidade | D31: 0.0003 | E31: 0.0003 | F31: 0.0003 | G31: 0.0003
B32: B | C32: Total | D32: =SUM(D22:D31) -> 0.4405 | E32: =SUM(E22:E31) -> 0.157 | F32: =SUM(F22:F31) -> 0.4405 | G32: =SUM(G22:G31) -> 0.157
B33: GRUPO C
B34: C1 | C34: Aviso Prévio Indenizado | D34: 0.0428 | E34: 0.0332 | F34: 0.0428 | G34: 0.0332
B35: C2 | C35: Aviso Prévio Trabalhado | D35: 0.001 | E35: 0.0008 | F35: 0.001 | G35: 0.0008
B36: C3 | C36: Férias Indenizadas | D36: 0.0529 | E36: 0.0409 | F36: 0.0529 | G36: 0.0409
B37: C4 | C37: Depósito Rescisão Sem Justa Causa | D37: 0.0363 | E37: 0.0281 | F37: 0.0363 | G37: 0.0281
B38: C5 | C38: Indenização Adicional | D38: 0.0036 | E38: 0.0028 | F38: 0.0036 | G38: 0.0028
B39: C | C39: Total | D39: =SUM(D34:D38) -> 0.1366 | E39: =SUM(E34:E38) -> 0.1058 | F39: =SUM(F34:F38) -> 0.1366 | G39: =SUM(G34:G38) -> 0.1058
B40: GRUPO D
B41: D1 | C41: Reincidência de Grupo A sobre Grupo B | D41: =ROUND(D20*D32,4) -> 0.074 | E41: =ROUND(E20*E32,4) -> 0.0264 | F41: =ROUND(F20*F32,4) -> 0.1621 | G41: =ROUND(G20*G32,4) -> 0.0578
B42: D2 | C42: Reincidência de Grupo A sobre Aviso Prévio Trabalhado e Reincidência do FGTS sobre Aviso Prévio Indenizado | D42: =ROUND((D20*D35)+(D18*D34),4) -> 0.0036 | E42: =ROUND((E20*E35)+(E18*E34),4) -> 0.0028 | F42: =ROUND((F20*F35)+(F18*F34),4) -> 0.0038 | G42: =ROUND((G20*G35)+(G18*G34),4) -> 0.003
B43: D | C43: Total | D43: =SUM(D41:D42) -> 0.0776 | E43: =SUM(E41:E42) -> 0.0292 | F43: =SUM(F41:F42) -> 0.1659 | G43: =SUM(G41:G42) -> 0.0608
B44: TOTAL ( A+B+C+D) | D44: =SUM(D43,D39,D32,D20)+0.01% -> 0.8228 | E44: =SUM(E43,E39,E32,E20) -> 0.46 | F44: =SUM(F43,F39,F32,F20) -> 1.111 | G44: =SUM(G43,G39,G32,G20) -> 0.6916
B45: Observação: composição baseada na Metodologia SINAPI, de acordo com o Decreto Municipal nº 19.224/2015.

Sheet Orçamento N_DESON.
B1: FÓRMULAS P/ CURVA ABC | D1: PREFEITURA MUNICIPAL DE PORTO ALEGRE
D2: =Dados!C3 -> Departamento Municipal de Habitação - DEMHAB
D3: PLANILHA ORÇAMENTÁRIA
E4: Processo SEI: | F4: =Dados!C4 -> 21.14.000006000-3 | R4: Tabela Não Desonerada
D5: Objeto: | F5: =Dados!C5 -> Nucleo Urbano Informal Cooperativa João Goulart - COOHAJOGO - Levantamento Planialtimétrico, Projeto Urbanístico de Regularização Fundiária e Trabalho Social | R5: Encargos sociais SINAPI (hora): | S5: =Encargos!F44 -> 1.111
D6: Local: | F6: =Dados!C6 -> Rua Manoel Marques, 23 - Porto Alegre/RS | R6: Encargos sociais SINAPI (mês): | S6: =Encargos!G44 -> 0.6916
D7: Item | E7: Código | F7: Fonte | G7: Descrição | H7: Unid. | I7: Quant. | J7: Custo Unitário (R$) | N7: BDI | O7: Preço Unitário (R$) | P7: Preço Total (R$)
J8: Equip. | K8: Mão de Obra | L8: Material | M8: Total | P8: Equip. | Q8: Mão de Obra | R8: Material | S8: Total
D10: 1 | G10: ETAPA I - Reconhecimento da área de intervenção e reunião com lideranças locais | S10: =S62 -> 5033.26
B11: =S11/$S$1150 -> 0.007700880688 | D11: 1.1 | E11: CCU-01 | F11: CCU | G11: =IF(OR($F11="ANP",$F11="DAER",$F11="CONSULTORIA DNIT",$F11="PREGÃO ELETRÔNICO",$F11="DMLU",$F11="DMAE",$F11="CEEE",$F11="EPTC",$F11="ORSE",$F11="SEINFRA",$F11="CREA",$F11="CAU",$F11="CEHOP",$F11="SIURB",$F11="DER-PR",$F11="SUDECAP",$F11=Aux.!$G$24,$F11=Aux.!$G$25),VLOOKUP($E11,'Planilha Auxiliar'!$A$4:$L$1000,3,FALSE()),IF($F11="INDEXADO",CONCATENATE(VLOOKUP($E11,'Index N_DESON.'!$A$9:$S$1305,3,FALSE())," (",VLOOKUP($E11,'Index N_DESON.'!$A$9:$S$1305,2,FALSE()),")"),IF($F11="CCU",VLOOKUP($E11,'Resumo CCU N_DESON.'!$A$2:$D$202,2,FALSE()),IF($F11="MERCADO",VLOOKUP($E11,'Planillha de cotações'!$B$7:$L$102,2,FALSE()),IF($F11="PLEO",VLOOKUP($E11,'PLEO N_DESON.'!$A$4:$D$14999,2,FALSE()),IF($F11="SICRO",VLOOKUP($E11,'SICRO N_DESON.'!$A$4:$D$50010,2,FALSE()),IF($F11="SINAPI",IFERROR((VLOOKUP($E11,'comp. SINAPI N_DESON.'!$G$7:$L$50000,2,FALSE())),(VLOOKUP($E11,'ins. SINAPI N_DESON.'!$A$8:$E$15000,2,FALSE()))),"-"))))))) -> ETAPA I REUNIÃO INTERNA | H11: =IF(OR($F11="ANP",$F11="DAER",$F11="CONSULTORIA DNIT",$F11="PREGÃO ELETRÔNICO",$F11="DMLU",$F11="DMAE",$F11="CEEE",$F11="EPTC",$F11="ORSE",$F11="SEINFRA",$F11="CREA",$F11="CAU",$F11="CEHOP",$F11="SIURB",$F11="DER-PR",$F11="SUDECAP",$F11=Aux.!$G$24,$F11=Aux.!$G$25),VLOOKUP($E11,'Planilha Auxiliar'!$A$4:$L$1000,4,FALSE()),IF($F11="INDEXADO",VLOOKUP($E11,'Index N_DESON.'!$A$9:$S$1305,4,FALSE()),IF($F11="CCU",VLOOKUP($E11,'Resumo CCU N_DESON.'!$A$2:$D$202,3,FALSE()),IF($F11="MERCADO",VLOOKUP('Orçamento N_DESON.'!$E11,'Planillha de cotações'!$B$7:$L$1143,10,FALSE()),IF($F11="PLEO",VLOOKUP($E11,'PLEO N_DESON.'!$A$4:$D$14999,3,FALSE()),IF($F11="SICRO",VLOOKUP($E11,'SICRO N_DESON.'!$A$4:$D$50010,3,FALSE()),IF($F11="SINAPI",IFERROR((VLOOKUP($E11,'comp. SINAPI N_DESON.'!$G$7:$L$50000,3,FALSE())),(VLOOKUP($E11,'ins. SINAPI N_DESON.'!$A$8:$E$15000,3,FALSE()))),"-"))))))) -> HORA | I11: 4 | J11: =IF(OR($F11="ANP",$F11="DAER",$F11="CONSULTORIA DNIT",$F11="PREGÃO ELETRÔNICO",$F11="DMLU",$F11="DMAE",$F11="CEEE",$F11="EPTC",$F11="ORSE",$F11="SEINFRA",$F11="CREA",$F11="CAU",$F11="CEHOP",$F11="SIURB",$F11="DER-PR",$F11="SUDECAP",$F11=Aux.!$G$24,$F11=Aux.!$G$25),VLOOKUP($E11,'Planilha Auxiliar'!$A$4:$H$1000,6,FALSE()),IF($F11="INDEXADO",VLOOKUP($E11,'Index N_DESON.'!$A$9:$U$1305,16,FALSE()),IF($F11="CCU",VLOOKUP($E11,'Resumo CCU N_DESON.'!$A$2:$G$202,5,FALSE()),IF($F11="MERCADO",VLOOKUP('Orçamento N_DESON.'!$E11,'Planillha de cotações'!$B$7:$L$1143,7,FALSE()),IF($F11="PLEO",VLOOKUP($E11,'PLEO N_DESON.'!$A$4:$D$14999,4,FALSE()),IF($F11="SICRO",VLOOKUP($E11,'SICRO N_DESON.'!$A$4:$G$50010,5,FALSE()),IF($F11="SINAPI",IFERROR((VLOOKUP($E11,'comp. SINAPI N_DESON.'!$G$7:$X$50000,18,FALSE())),"-"),"-"))))))) -> 0 | K11: =IF(OR($F11="ANP",$F11="DAER",$F11="CONSULTORIA DNIT",$F11="PREGÃO ELETRÔNICO",$F11="DMLU",$F11="DMAE",$F11="CEEE",$F11="EPTC",$F11="ORSE",$F11="SEINFRA",$F11="CREA",$F11="CAU",$F11="CEHOP",$F11="SIURB",$F11="DER-PR",$F11="SUDECAP",$F11=Aux.!$G$24,$F11=Aux.!$G$25),VLOOKUP($E11,'Planilha Auxiliar'!$A$4:$H$1000,7,FALSE()),IF($F11="INDEXADO",VLOOKUP($E11,'Index N_DESON.'!$A$9:$U$1305,17,FALSE()),IF($F11="CCU",VLOOKUP($E11,'Resumo CCU N_DESON.'!$A$2:$G$202,6,FALSE()),IF($F11="MERCADO",VLOOKUP('Orçamento N_DESON.'!$E11,'Planillha de cotações'!$B$7:$L$1143,8,FALSE()),IF($F11="PLEO",VLOOKUP($E11,'PLEO N_DESON.'!$A$4:$D$14999,4,FALSE()),IF($F11="SICRO",VLOOKUP($E11,'SICRO N_DESON.'!$A$4:$G$50010,6,FALSE()),IF($F11="SINAPI",SUM(IFERROR((VLOOKUP($E11,'comp. SINAPI N_DESON.'!$G$7:$X$50000,14,FALSE())),"-"),VLOOKUP($E11,'comp. SINAPI N_DESON.'!$G$7:$AB$50000,20,FALSE()),VLOOKUP($E11,'comp. SINAPI N_DESON.'!$G$7:$AB$50000,22,FALSE())),"-"))))))) -> 159.88 | L11: =IF(OR($F11="ANP",$F11="DAER",$F11="CONSULTORIA DNIT",$F11="PREGÃO ELETRÔNICO",$F11="DMLU",$F11="DMAE",$F11="CEEE",$F11="EPTC",$F11="ORSE",$F11="SEINFRA",$F11="CREA",$F11="CAU",$F11="CEHOP",$F11="SIURB",$F11="DER-PR",$F11="SUDECAP",$F11=Aux.!$G$24,$F11=Aux.!$G$25),VLOOKUP($E11,'Planilha Auxiliar'!$A$4:$H$1000,8,FALSE()),IF($F11="INDEXADO",VLOOKUP($E11,'Index N_DESON.'!$A$9:$U$1305,18,FALSE()),IF($F11="CCU",VLOOKUP($E11,'Resumo CCU N_DESON.'!$A$2:$G$202,7,FALSE()),IF($F11="MERCADO",VLOOKUP('Orçamento N_DESON.'!$E11,'Planillha de cotações'!$B$7:$L$1143,9,FALSE()),IF($F11="PLEO",VLOOKUP($E11,'PLEO N_DESON.'!$A$4:$D$14999,4,FALSE()),IF($F11="SICRO",VLOOKUP($E11,'SICRO N_DESON.'!$A$4:$G$50010,7,FALSE()),IF($F11="SINAPI",IFERROR((VLOOKUP($E11,'comp. SINAPI N_DESON.'!$G$7:$X$50000,16,FALSE())),(VLOOKUP($E11,'ins. SINAPI N_DESON.'!$A$8:$E$15000,5,FALSE()))),"-"))))))) -> 0 | M11: =IF(OR($F11="ANP",$F11="DAER",$F11="CONSULTORIA DNIT",$F11="PREGÃO ELETRÔNICO",$F11="DMLU",$F11="DMAE",$F11="CEEE",$F11="EPTC",$F11="ORSE",$F11="SEINFRA",$F11="CREA",$F11="CAU",$F11="CEHOP",$F11="SIURB",$F11="DER-PR",$F11="SUDECAP",$F11=Aux.!$G$24,$F11=Aux.!$G$25),VLOOKUP($E11,'Planilha Auxiliar'!$A$4:$L$1000,5,FALSE()),IF($F11="INDEXADO",VLOOKUP($E11,'Index N_DESON.'!$A$9:$U$1305,19,FALSE()),IF($F11="CCU",VLOOKUP($E11,'Resumo CCU N_DESON.'!$A$2:$D$202,4,FALSE()),IF($F11="MERCADO",VLOOKUP('Orçamento N_DESON.'!$E11,'Planillha de cotações'!$B$7:$L$1143,6,FALSE()),IF($F11="PLEO",VLOOKUP($E11,'PLEO N_DESON.'!$A$4:$D$14999,4,FALSE()),IF($F11="SICRO",VLOOKUP($E11,'SICRO N_DESON.'!$A$4:$D$50010,4,FALSE()),IF($F11="SINAPI",IFERROR((VLOOKUP($E11,'comp. SINAPI N_DESON.'!$G$7:$L$50000,5,FALSE())),(VLOOKUP($E11,'ins. SINAPI N_DESON.'!$A$8:$E$15000,5,FALSE()))),"-"))))))) -> 159.88 | N11: 0.1917 | O11: =IF(N11="-",M11,(TRUNC(M11*(1+N11),2))) -> 190.52 | P11: =IFERROR(TRUNC(TRUNC((J11*(1+$N11)),2)*$I11,2),0) -> 0 | Q11: =IFERROR(TRUNC(TRUNC((K11*(1+$N11)),2)*$I11,2),0) -> 762.08 | R11: =S11-Q11-P11 -> 0 | S11: =IFERROR(TRUNC(O11*I11,2),0) -> 762.08 | V11: =D11 -> 1.1
B12: 0.01155132103 | D12: 1.2 | E12: CCU-02 | F12: CCU | G12: =IF(OR($F12="ANP",$F12="DAER",$F12="CONSULTORIA DNIT",$F12="PREGÃO ELETRÔNICO",$F12="DMLU",$F12="DMAE",$F12="CEEE",$F12="EPTC",$F12="ORSE",$F12="SEINFRA",$F12="CREA",$F12="CAU",$F12="CEHOP",$F12="SIURB",$F12="DER-PR",$F12="SUDECAP",$F12=Aux.!$G$24,$F12=Aux.!$G$25),VLOOKUP($E12,'Planilha Auxiliar'!$A$4:$L$1000,3,FALSE()),IF($F12="INDEXADO",CONCATENATE(VLOOKUP($E12,'Index N_DESON.'!$A$9:$S$1305,3,FALSE())," (",VLOOKUP($E12,'Index N_DESON.'!$A$9:$S$1305,2,FALSE()),")"),IF($F12="CCU",VLOOKUP($E12,'Resumo CCU N_DESON.'!$A$2:$D$202,2,FALSE()),IF($F12="MERCADO",VLOOKUP($E12,'Planillha de cotações'!$B$7:$L$102,2,FALSE()),IF($F12="PLEO",VLOOKUP($E12,'PLEO N_DESON.'!$A$4:$D$14999,2,FALSE()),IF($F12="SICRO",VLOOKUP($E12,'SICRO N_DESON.'!$A$4:$D$50010,2,FALSE()),IF($F12="SINAPI",IFERROR((VLOOKUP($E12,'comp. SINAPI N_DESON.'!$G$7:$L$50000,2,FALSE())),(VLOOKUP($E12,'ins. SINAPI N_DESON.'!$A$8:$E$15000,2,FALSE()))),"-"))))))) -> ETAPA I RECONHECIMENTO DA AREA DE INTERVENÇÃO | H12: =IF(OR($F12="ANP",$F12="DAER",$F12="CONSULTORIA DNIT",$F12="PREGÃO ELETRÔNICO",$F12="DMLU",$F12="DMAE",$F12="CEEE",$F12="EPTC",$F12="ORSE",$F12="SEINFRA",$F12="CREA",$F12="CAU",$F12="CEHOP",$F12="SIURB",$F12="DER-PR",$F12="SUDECAP",$F12=Aux.!$G$24,$F12=Aux.!$G$25),VLOOKUP($E12,'Planilha Auxiliar'!$A$4:$L$1000,4,FALSE()),IF($F12="INDEXADO",VLOOKUP($E12,'Index N_DESON.'!$A$9:$S$1305,4,FALSE()),IF($F12="CCU",VLOOKUP($E12,'Resumo CCU N_DESON.'!$A$2:$D$202,3,FALSE()),IF($F12="MERCADO",VLOOKUP('Orçamento N_DESON.'!$E12,'Planillha de cotações'!$B$7:$L$1143,10,FALSE()),IF($F12="PLEO",VLOOKUP($E12,'PLEO N_DESON.'!$A$4:$D$14999,3,FALSE()),IF($F12="SICRO",VLOOKUP($E12,'SICRO N_DESON.'!$A$4:$D$50010,3,FALSE()),IF($F12="SINAPI",IFERROR((VLOOKUP($E12,'comp. SINAPI N_DESON.'!$G$7:$L$50000,3,FALSE())),(VLOOKUP($E12,'ins. SINAPI N_DESON.'!$A$8:$E$15000,3,FALSE()))),"-"))))))) -> HORAS | I12: 6 | J12: =IF(OR($F12="ANP",$F12="DAER",$F12="CONSULTORIA DNIT",$F12="PREGÃO ELETRÔNICO",$F12="DMLU",$F12="DMAE",$F12="CEEE",$F12="EPTC",$F12="ORSE",$F12="SEINFRA",$F12="CREA",$F12="CAU",$F12="CEHOP",$F12="SIURB",$F12="DER-PR",$F12="SUDECAP",$F12=Aux.!$G$24,$F12=Aux.!$G$25),VLOOKUP($E12,'Planilha Auxiliar'!$A$4:$H$1000,6,FALSE()),IF($F12="INDEXADO",VLOOKUP($E12,'Index N_DESON.'!$A$9:$U$1305,16,FALSE()),IF($F12="CCU",VLOOKUP($E12,'Resumo CCU N_DESON.'!$A$2:$G$202,5,FALSE()),IF($F12="MERCADO",VLOOKUP('Orçamento N_DESON.'!$E12,'Planillha de cotações'!$B$7:$L$1143,7,FALSE()),IF($F12="PLEO",VLOOKUP($E12,'PLEO N_DESON.'!$A$4:$D$14999,4,FALSE()),IF($F12="SICRO",VLOOKUP($E12,'SICRO N_DESON.'!$A$4:$G$50010,5,FALSE()),IF($F12="SINAPI",IFERROR((VLOOKUP($E12,'comp. SINAPI N_DESON.'!$G$7:$X$50000,18,FALSE())),"-"),"-"))))))) -> 0 | K12: =IF(OR($F12="ANP",$F12="DAER",$F12="CONSULTORIA DNIT",$F12="PREGÃO ELETRÔNICO",$F12="DMLU",$F12="DMAE",$F12="CEEE",$F12="EPTC",$F12="ORSE",$F12="SEINFRA",$F12="CREA",$F12="CAU",$F12="CEHOP",$F12="SIURB",$F12="DER-PR",$F12="SUDECAP",$F12=Aux.!$G$24,$F12=Aux.!$G$25),VLOOKUP($E12,'Planilha Auxiliar'!$A$4:$H$1000,7,FALSE()),IF($F12="INDEXADO",VLOOKUP($E12,'Index N_DESON.'!$A$9:$U$1305,17,FALSE()),IF($F12="CCU",VLOOKUP($E12,'Resumo CCU N_DESON.'!$A$2:$G$202,6,FALSE()),IF($F12="MERCADO",VLOOKUP('Orçamento N_DESON.'!$E12,'Planillha de cotações'!$B$7:$L$1143,8,FALSE()),IF($F12="PLEO",VLOOKUP($E12,'PLEO N_DESON.'!$A$4:$D$14999,4,FALSE()),IF($F12="SICRO",VLOOKUP($E12,'SICRO N_DESON.'!$A$4:$G$50010,6,FALSE()),IF($F12="SINAPI",SUM(IFERROR((VLOOKUP($E12,'comp. SINAPI N_DESON.'!$G$7:$X$50000,14,FALSE())),"-"),VLOOKUP($E12,'comp. SINAPI N_DESON.'!$G$7:$AB$50000,20,FALSE()),VLOOKUP($E12,'comp. SINAPI N_DESON.'!$G$7:$AB$50000,22,FALSE())),"-"))))))) -> 159.88 | L12: =IF(OR($F12="ANP",$F12="DAER",$F12="CONSULTORIA DNIT",$F12="PREGÃO ELETRÔNICO",$F12="DMLU",$F12="DMAE",$F12="CEEE",$F12="EPTC",$F12="ORSE",$F12="SEINFRA",$F12="CREA",$F12="CAU",$F12="CEHOP",$F12="SIURB",$F12="DER-PR",$F12="SUDECAP",$F12=Aux.!$G$24,$F12=Aux.!$G$25),VLOOKUP($E12,'Planilha Auxiliar'!$A$4:$H$1000,8,FALSE()),IF($F12="INDEXADO",VLOOKUP($E12,'Index N_DESON.'!$A$9:$U$1305,18,FALSE()),IF($F12="CCU",VLOOKUP($E12,'Resumo CCU N_DESON.'!$A$2:$G$202,7,FALSE()),IF($F12="MERCADO",VLOOKUP('Orçamento N_DESON.'!$E12,'Planillha de cotações'!$B$7:$L$1143,9,FALSE()),IF($F12="PLEO",VLOOKUP($E12,'PLEO N_DESON.'!$A$4:$D$14999,4,FALSE()),IF($F12="SICRO",VLOOKUP($E12,'SICRO N_DESON.'!$A$4:$G$50010,7,FALSE()),IF($F12="SINAPI",IFERROR((VLOOKUP($E12,'comp. SINAPI N_DESON.'!$G$7:$X$50000,16,FALSE())),(VLOOKUP($E12,'ins. SINAPI N_DESON.'!$A$8:$E$15000,5,FALSE()))),"-"))))))) -> 0 | M12: =IF(OR($F12="ANP",$F12="DAER",$F12="CONSULTORIA DNIT",$F12="PREGÃO ELETRÔNICO",$F12="DMLU",$F12="DMAE",$F12="CEEE",$F12="EPTC",$F12="ORSE",$F12="SEINFRA",$F12="CREA",$F12="CAU",$F12="CEHOP",$F12="SIURB",$F12="DER-PR",$F12="SUDECAP",$F12=Aux.!$G$24,$F12=Aux.!$G$25),VLOOKUP($E12,'Planilha Auxiliar'!$A$4:$L$1000,5,FALSE()),IF($F12="INDEXADO",VLOOKUP($E12,'Index N_DESON.'!$A$9:$U$1305,19,FALSE()),IF($F12="CCU",VLOOKUP($E12,'Resumo CCU N_DESON.'!$A$2:$D$202,4,FALSE()),IF($F12="MERCADO",VLOOKUP('Orçamento N_DESON.'!$E12,'Planillha de cotações'!$B$7:$L$1143,6,FALSE()),IF($F12="PLEO",VLOOKUP($E12,'PLEO N_DESON.'!$A$4:$D$14999,4,FALSE()),IF($F12="SICRO",VLOOKUP($E12,'SICRO N_DESON.'!$A$4:$D$50010,4,FALSE()),IF($F12="SINAPI",IFERROR((VLOOKUP($E12,'comp. SINAPI N_DESON.'!$G$7:$L$50000,5,FALSE())),(VLOOKUP($E12,'ins. SINAPI N_DESON.'!$A$8:$E$15000,5,FALSE()))),"-"))))))) -> 159.88 | N12: 0.1917 | O12: 190.52 | P12: 0 | Q12: 1143.12 | R12: 0 | S12: 1143.12 | V12: 1.2
B13: 0.001590944068 | D13: 1.3 | E13: CCU-17 | F13: CCU | G13: =IF(OR($F13="ANP",$F13="DAER",$F13="CONSULTORIA DNIT",$F13="PREGÃO ELETRÔNICO",$F13="DMLU",$F13="DMAE",$F13="CEEE",$F13="EPTC",$F13="ORSE",$F13="SEINFRA",$F13="CREA",$F13="CAU",$F13="CEHOP",$F13="SIURB",$F13="DER-PR",$F13="SUDECAP",$F13=Aux.!$G$24,$F13=Aux.!$G$25),VLOOKUP($E13,'Planilha Auxiliar'!$A$4:$L$1000,3,FALSE()),IF($F13="INDEXADO",CONCATENATE(VLOOKUP($E13,'Index N_DESON.'!$A$9:$S$1305,3,FALSE())," (",VLOOKUP($E13,'Index N_DESON.'!$A$9:$S$1305,2,FALSE()),")"),IF($F13="CCU",VLOOKUP($E13,'Resumo CCU N_DESON.'!$A$2:$D$202,2,FALSE()),IF($F13="MERCADO",VLOOKUP($E13,'Planillha de cotações'!$B$7:$L$102,2,FALSE()),IF($F13="PLEO",VLOOKUP($E13,'PLEO N_DESON.'!$A$4:$D$14999,2,FALSE()),IF($F13="SICRO",VLOOKUP($E13,'SICRO N_DESON.'!$A$4:$D$50010,2,FALSE()),IF($F13="SINAPI",IFERROR((VLOOKUP($E13,'comp. SINAPI N_DESON.'!$G$7:$L$50000,2,FALSE())),(VLOOKUP($E13,'ins. SINAPI N_DESON.'!$A$8:$E$15000,2,FALSE()))),"-"))))))) -> VEÍCULO COM MOTORISTA | H13: =IF(OR($F13="ANP",$F13="DAER",$F13="CONSULTORIA DNIT",$F13="PREGÃO ELETRÔNICO",$F13="DMLU",$F13="DMAE",$F13="CEEE",$F13="EPTC",$F13="ORSE",$F13="SEINFRA",$F13="CREA",$F13="CAU",$F13="CEHOP",$F13="SIURB",$F13="DER-PR",$F13="SUDECAP",$F13=Aux.!$G$24,$F13=Aux.!$G$25),VLOOKUP($E13,'Planilha Auxiliar'!$A$4:$L$1000,4,FALSE()),IF($F13="INDEXADO",VLOOKUP($E13,'Index N_DESON.'!$A$9:$S$1305,4,FALSE()),IF($F13="CCU",VLOOKUP($E13,'Resumo CCU N_DESON.'!$A$2:$D$202,3,FALSE()),IF($F13="MERCADO",VLOOKUP('Orçamento N_DESON.'!$E13,'Planillha de cotações'!$B$7:$L$1143,10,FALSE()),IF($F13="PLEO",VLOOKUP($E13,'PLEO N_DESON.'!$A$4:$D$14999,3,FALSE()),IF($F13="SICRO",VLOOKUP($E13,'SICRO N_DESON.'!$A$4:$D$50010,3,FALSE()),IF($F13="SINAPI",IFERROR((VLOOKUP($E13,'comp. SINAPI N_DESON.'!$G$7:$L$50000,3,FALSE())),(VLOOKUP($E13,'ins. SINAPI N_DESON.'!$A$8:$E$15000,3,FALSE()))),"-"))))))) -> HORA | I13: 4 | J13: =IF(OR($F13="ANP",$F13="DAER",$F13="CONSULTORIA DNIT",$F13="PREGÃO ELETRÔNICO",$F13="DMLU",$F13="DMAE",$F13="CEEE",$F13="EPTC",$F13="ORSE",$F13="SEINFRA",$F13="CREA",$F13="CAU",$F13="CEHOP",$F13="SIURB",$F13="DER-PR",$F13="SUDECAP",$F13=Aux.!$G$24,$F13=Aux.!$G$25),VLOOKUP($E13,'Planilha Auxiliar'!$A$4:$H$1000,6,FALSE()),IF($F13="INDEXADO",VLOOKUP($E13,'Index N_DESON.'!$A$9:$U$1305,16,FALSE()),IF($F13="CCU",VLOOKUP($E13,'Resumo CCU N_DESON.'!$A$2:$G$202,5,FALSE()),IF($F13="MERCADO",VLOOKUP('Orçamento N_DESON.'!$E13,'Planillha de cotações'!$B$7:$L$1143,7,FALSE()),IF($F13="PLEO",VLOOKUP($E13,'PLEO N_DESON.'!$A$4:$D$14999,4,FALSE()),IF($F13="SICRO",VLOOKUP($E13,'SICRO N_DESON.'!$A$4:$G$50010,5,FALSE()),IF($F13="SINAPI",IFERROR((VLOOKUP($E13,'comp. SINAPI N_DESON.'!$G$7:$X$50000,18,FALSE())),"-"),"-"))))))) -> 14.86 | K13: =IF(OR($F13="ANP",$F13="DAER",$F13="CONSULTORIA DNIT",$F13="PREGÃO ELETRÔNICO",$F13="DMLU",$F13="DMAE",$F13="CEEE",$F13="EPTC",$F13="ORSE",$F13="SEINFRA",$F13="CREA",$F13="CAU",$F13="CEHOP",$F13="SIURB",$F13="DER-PR",$F13="SUDECAP",$F13=Aux.!$G$24,$F13=Aux.!$G$25),VLOOKUP($E13,'Planilha Auxiliar'!$A$4:$H$1000,7,FALSE()),IF($F13="INDEXADO",VLOOKUP($E13,'Index N_DESON.'!$A$9:$U$1305,17,FALSE()),IF($F13="CCU",VLOOKUP($E13,'Resumo CCU N_DESON.'!$A$2:$G$202,6,FALSE()),IF($F13="MERCADO",VLOOKUP('Orçamento N_DESON.'!$E13,'Planillha de cotações'!$B$7:$L$1143,8,FALSE()),IF($F13="PLEO",VLOOKUP($E13,'PLEO N_DESON.'!$A$4:$D$14999,4,FALSE()),IF($F13="SICRO",VLOOKUP($E13,'SICRO N_DESON.'!$A$4:$G$50010,6,FALSE()),IF($F13="SINAPI",SUM(IFERROR((VLOOKUP($E13,'comp. SINAPI N_DESON.'!$G$7:$X$50000,14,FALSE())),"-"),VLOOKUP($E13,'comp. SINAPI N_DESON.'!$G$7:$AB$50000,20,FALSE()),VLOOKUP($E13,'comp. SINAPI N_DESON.'!$G$7:$AB$50000,22,FALSE())),"-"))))))) -> 18.17 | L13: =IF(OR($F13="ANP",$F13="DAER",$F13="CONSULTORIA DNIT",$F13="PREGÃO ELETRÔNICO",$F13="DMLU",$F13="DMAE",$F13="CEEE",$F13="EPTC",$F13="ORSE",$F13="SEINFRA",$F13="CREA",$F13="CAU",$F13="CEHOP",$F13="SIURB",$F13="DER-PR",$F13="SUDECAP",$F13=Aux.!$G$24,$F13=Aux.!$G$25),VLOOKUP($E13,'Planilha Auxiliar'!$A$4:$H$1000,8,FALSE()),IF($F13="INDEXADO",VLOOKUP($E13,'Index N_DESON.'!$A$9:$U$1305,18,FALSE()),IF($F13="CCU",VLOOKUP($E13,'Resumo CCU N_DESON.'!$A$2:$G$202,7,FALSE()),IF($F13="MERCADO",VLOOKUP('Orçamento N_DESON.'!$E13,'Planillha de cotações'!$B$7:$L$1143,9,FALSE()),IF($F13="PLEO",VLOOKUP($E13,'PLEO N_DESON.'!$A$4:$D$14999,4,FALSE()),IF($F13="SICRO",VLOOKUP($E13,'SICRO N_DESON.'!$A$4:$G$50010,7,FALSE()),IF($F13="SINAPI",IFERROR((VLOOKUP($E13,'comp. SINAPI N_DESON.'!$G$7:$X$50000,16,FALSE())),(VLOOKUP($E13,'ins. SINAPI N_DESON.'!$A$8:$E$15000,5,FALSE()))),"-"))))))) -> 0 | M13: =IF(OR($F13="ANP",$F13="DAER",$F13="CONSULTORIA DNIT",$F13="PREGÃO ELETRÔNICO",$F13="DMLU",$F13="DMAE",$F13="CEEE",$F13="EPTC",$F13="ORSE",$F13="SEINFRA",$F13="CREA",$F13="CAU",$F13="CEHOP",$F13="SIURB",$F13="DER-PR",$F13="SUDECAP",$F13=Aux.!$G$24,$F13=Aux.!$G$25),VLOOKUP($E13,'Planilha Auxiliar'!$A$4:$L$1000,5,FALSE()),IF($F13="INDEXADO",VLOOKUP($E13,'Index N_DESON.'!$A$9:$U$1305,19,FALSE()),IF($F13="CCU",VLOOKUP($E13,'Resumo CCU N_DESON.'!$A$2:$D$202,4,FALSE()),IF($F13="MERCADO",VLOOKUP('Orçamento N_DESON.'!$E13,'Planillha de cotações'!$B$7:$L$1143,6,FALSE()),IF($F13="PLEO",VLOOKUP($E13,'PLEO N_DESON.'!$A$4:$D$14999,4,FALSE()),IF($F13="SICRO",VLOOKUP($E13,'SICRO N_DESON.'!$A$4:$D$50010,4,FALSE()),IF($F13="SINAPI",IFERROR((VLOOKUP($E13,'comp. SINAPI N_DESON.'!$G$7:$L$50000,5,FALSE())),(VLOOKUP($E13,'ins. SINAPI N_DESON.'!$A$8:$E$15000,5,FALSE()))),"-"))))))) -> 33.03 | N13: 0.1917 | O13: 39.36 | P13: 70.8 | Q13: 86.6 | R13: 0.04 | S13: 157.44 | V13: 1.3
B14: 0.01540176138 | D14: 1.4 | E14: CCU-03 | F14: CCU | G14: =IF(OR($F14="ANP",$F14="DAER",$F14="CONSULTORIA DNIT",$F14="PREGÃO ELETRÔNICO",$F14="DMLU",$F14="DMAE",$F14="CEEE",$F14="EPTC",$F14="ORSE",$F14="SEINFRA",$F14="CREA",$F14="CAU",$F14="CEHOP",$F14="SIURB",$F14="DER-PR",$F14="SUDECAP",$F14=Aux.!$G$24,$F14=Aux.!$G$25),VLOOKUP($E14,'Planilha Auxiliar'!$A$4:$L$1000,3,FALSE()),IF($F14="INDEXADO",CONCATENATE(VLOOKUP($E14,'Index N_DESON.'!$A$9:$S$1305,3,FALSE())," (",VLOOKUP($E14,'Index N_DESON.'!$A$9:$S$1305,2,FALSE()),")"),IF($F14="CCU",VLOOKUP($E14,'Resumo CCU N_DESON.'!$A$2:$D$202,2,FALSE()),IF($F14="MERCADO",VLOOKUP($E14,'Planillha de cotações'!$B$7:$L$102,2,FALSE()),IF($F14="PLEO",VLOOKUP($E14,'PLEO N_DESON.'!$A$4:$D$14999,2,FALSE()),IF($F14="SICRO",VLOOKUP($E14,'SICRO N_DESON.'!$A$4:$D$50010,2,FALSE()),IF($F14="SINAPI",IFERROR((VLOOKUP($E14,'comp. SINAPI N_DESON.'!$G$7:$L$50000,2,FALSE())),(VLOOKUP($E14,'ins. SINAPI N_DESON.'!$A$8:$E$15000,2,FALSE()))),"-"))))))) -> ETAPA I REUNIÃO COM LIDERANÇAS | H14: =IF(OR($F14="ANP",$F14="DAER",$F14="CONSULTORIA DNIT",$F14="PREGÃO ELETRÔNICO",$F14="DMLU",$F14="DMAE",$F14="CEEE",$F14="EPTC",$F14="ORSE",$F14="SEINFRA",$F14="CREA",$F14="CAU",$F14="CEHOP",$F14="SIURB",$F14="DER-PR",$F14="SUDECAP",$F14=Aux.!$G$24,$F14=Aux.!$G$25),VLOOKUP($E14,'Planilha Auxiliar'!$A$4:$L$1000,4,FALSE()),IF($F14="INDEXADO",VLOOKUP($E14,'Index N_DESON.'!$A$9:$S$1305,4,FALSE()),IF($F14="CCU",VLOOKUP($E14,'Resumo CCU N_DESON.'!$A$2:$D$202,3,FALSE()),IF($F14="MERCADO",VLOOKUP('Orçamento N_DESON.'!$E14,'Planillha de cotações'!$B$7:$L$1143,10,FALSE()),IF($F14="PLEO",VLOOKUP($E14,'PLEO N_DESON.'!$A$4:$D$14999,3,FALSE()),IF($F14="SICRO",VLOOKUP($E14,'SICRO N_DESON.'!$A$4:$D$50010,3,FALSE()),IF($F14="SINAPI",IFERROR((VLOOKUP($E14,'comp. SINAPI N_DESON.'!$G$7:$L$50000,3,FALSE())),(VLOOKUP($E14,'ins. SINAPI N_DESON.'!$A$8:$E$15000,3,FALSE()))),"-"))))))) -> HORAS | I14: 8 | J14: =IF(OR($F14="ANP",$F14="DAER",$F14="CONSULTORIA DNIT",$F14="PREGÃO ELETRÔNICO",$F14="DMLU",$F14="DMAE",$F14="CEEE",$F14="EPTC",$F14="ORSE",$F14="SEINFRA",$F14="CREA",$F14="CAU",$F14="CEHOP",$F14="SIURB",$F14="DER-PR",$F14="SUDECAP",$F14=Aux.!$G$24,$F14=Aux.!$G$25),VLOOKUP($E14,'Planilha Auxiliar'!$A$4:$H$1000,6,FALSE()),IF($F14="INDEXADO",VLOOKUP($E14,'Index N_DESON.'!$A$9:$U$1305,16,FALSE()),IF($F14="CCU",VLOOKUP($E14,'Resumo CCU N_DESON.'!$A$2:$G$202,5,FALSE()),IF($F14="MERCADO",VLOOKUP('Orçamento N_DESON.'!$E14,'Planillha de cotações'!$B$7:$L$1143,7,FALSE()),IF($F14="PLEO",VLOOKUP($E14,'PLEO N_DESON.'!$A$4:$D$14999,4,FALSE()),IF($F14="SICRO",VLOOKUP($E14,'SICRO N_DESON.'!$A$4:$G$50010,5,FALSE()),IF($F14="SINAPI",IFERROR((VLOOKUP($E14,'comp. SINAPI N_DESON.'!$G$7:$X$50000,18,FALSE())),"-"),"-"))))))) -> 0 | K14: =IF(OR($F14="ANP",$F14="DAER",$F14="CONSULTORIA DNIT",$F14="PREGÃO ELETRÔNICO",$F14="DMLU",$F14="DMAE",$F14="CEEE",$F14="EPTC",$F14="ORSE",$F14="SEINFRA",$F14="CREA",$F14="CAU",$F14="CEHOP",$F14="SIURB",$F14="DER-PR",$F14="SUDECAP",$F14=Aux.!$G$24,$F14=Aux.!$G$25),VLOOKUP($E14,'Planilha Auxiliar'!$A$4:$H$1000,7,FALSE()),IF($F14="INDEXADO",VLOOKUP($E14,'Index N_DESON.'!$A$9:$U$1305,17,FALSE()),IF($F14="CCU",VLOOKUP($E14,'Resumo CCU N_DESON.'!$A$2:$G$202,6,FALSE()),IF($F14="MERCADO",VLOOKUP('Orçamento N_DESON.'!$E14,'Planillha de cotações'!$B$7:$L$1143,8,FALSE()),IF($F14="PLEO",VLOOKUP($E14,'PLEO N_DESON.'!$A$4:$D$14999,4,FALSE()),IF($F14="SICRO",VLOOKUP($E14,'SICRO N_DESON.'!$A$4:$G$50010,6,FALSE()),IF($F14="SINAPI",SUM(IFERROR((VLOOKUP($E14,'comp. SINAPI N_DESON.'!$G$7:$X$50000,14,FALSE())),"-"),VLOOKUP($E14,'comp. SINAPI N_DESON.'!$G$7:$AB$50000,20,FALSE()),VLOOKUP($E14,'comp. SINAPI N_DESON.'!$G$7:$AB$50000,22,FALSE())),"-"))))))) -> 159.88 | L14: =IF(OR($F14="ANP",$F14="DAER",$F14="CONSULTORIA DNIT",$F14="PREGÃO ELETRÔNICO",$F14="DMLU",$F14="DMAE",$F14="CEEE",$F14="EPTC",$F14="ORSE",$F14="SEINFRA",$F14="CREA",$F14="CAU",$F14="CEHOP",$F14="SIURB",$F14="DER-PR",$F14="SUDECAP",$F14=Aux.!$G$24,$F14=Aux.!$G$25),VLOOKUP($E14,'Planilha Auxiliar'!$A$4:$H$1000,8,FALSE()),IF($F14="INDEXADO",VLOOKUP($E14,'Index N_DESON.'!$A$9:$U$1305,18,FALSE()),IF($F14="CCU",VLOOKUP($E14,'Resumo CCU N_DESON.'!$A$2:$G$202,7,FALSE()),IF($F14="MERCADO",VLOOKUP('Orçamento N_DESON.'!$E14,'Planillha de cotações'!$B$7:$L$1143,9,FALSE()),IF($F14="PLEO",VLOOKUP($E14,'PLEO N_DESON.'!$A$4:$D$14999,4,FALSE()),IF($F14="SICRO",VLOOKUP($E14,'SICRO N_DESON.'!$A$4:$G$50010,7,FALSE()),IF($F14="SINAPI",IFERROR((VLOOKUP($E14,'comp. SINAPI N_DESON.'!$G$7:$X$50000,16,FALSE())),(VLOOKUP($E14,'ins. SINAPI N_DESON.'!$A$8:$E$15000,5,FALSE()))),"-"))))))) -> 0 | M14: =IF(OR($F14="ANP",$F14="DAER",$F14="CONSULTORIA DNIT",$F14="PREGÃO ELETRÔNICO",$F14="DMLU",$F14="DMAE",$F14="CEEE",$F14="EPTC",$F14="ORSE",$F14="SEINFRA",$F14="CREA",$F14="CAU",$F14="CEHOP",$F14="SIURB",$F14="DER-PR",$F14="SUDECAP",$F14=Aux.!$G$24,$F14=Aux.!$G$25),VLOOKUP($E14,'Planilha Auxiliar'!$A$4:$L$1000,5,FALSE()),IF($F14="INDEXADO",VLOOKUP($E14,'Index N_DESON.'!$A$9:$U$1305,19,FALSE()),IF($F14="CCU",VLOOKUP($E14,'Resumo CCU N_DESON.'!$A$2:$D$202,4,FALSE()),IF($F14="MERCADO",VLOOKUP('Orçamento N_DESON.'!$E14,'Planillha de cotações'!$B$7:$L$1143,6,FALSE()),IF($F14="PLEO",VLOOKUP($E14,'PLEO N_DESON.'!$A$4:$D$14999,4,FALSE()),IF($F14="SICRO",VLOOKUP($E14,'SICRO N_DESON.'!$A$4:$D$50010,4,FALSE()),IF($F14="SINAPI",IFERROR((VLOOKUP($E14,'comp. SINAPI N_DESON.'!$G$7:$L$50000,5,FALSE())),(VLOOKUP($E14,'ins. SINAPI N_DESON.'!$A$8:$E$15000,5,FALSE()))),"-"))))))) -> 159.88 | N14: 0.1917 | O14: 190.52 | P14: 0 | Q14: 1524.16 | R14: 0 | S14: 1524.16 | V14: 1.4
B15: 0.001590944068 | D15: 1.5 | E15: CCU-17 | F15: CCU | G15: =IF(OR($F15="ANP",$F15="DAER",$F15="CONSULTORIA DNIT",$F15="PREGÃO ELETRÔNICO",$F15="DMLU",$F15="DMAE",$F15="CEEE",$F15="EPTC",$F15="ORSE",$F15="SEINFRA",$F15="CREA",$F15="CAU",$F15="CEHOP",$F15="SIURB",$F15="DER-PR",$F15="SUDECAP",$F15=Aux.!$G$24,$F15=Aux.!$G$25),VLOOKUP($E15,'Planilha Auxiliar'!$A$4:$L$1000,3,FALSE()),IF($F15="INDEXADO",CONCATENATE(VLOOKUP($E15,'Index N_DESON.'!$A$9:$S$1305,3,FALSE())," (",VLOOKUP($E15,'Index N_DESON.'!$A$9:$S$1305,2,FALSE()),")"),IF($F15="CCU",VLOOKUP($E15,'Resumo CCU N_DESON.'!$A$2:$D$202,2,FALSE()),IF($F15="MERCADO",VLOOKUP($E15,'Planillha de cotações'!$B$7:$L$102,2,FALSE()),IF($F15="PLEO",VLOOKUP($E15,'PLEO N_DESON.'!$A$4:$D$14999,2,FALSE()),IF($F15="SICRO",VLOOKUP($E15,'SICRO N_DESON.'!$A$4:$D$50010,2,FALSE()),IF($F15="SINAPI",IFERROR((VLOOKUP($E15,'comp. SINAPI N_DESON.'!$G$7:$L$50000,2,FALSE())),(VLOOKUP($E15,'ins. SINAPI N_DESON.'!$A$8:$E$15000,2,FALSE()))),"-"))))))) -> VEÍCULO COM MOTORISTA | H15: =IF(OR($F15="ANP",$F15="DAER",$F15="CONSULTORIA DNIT",$F15="PREGÃO ELETRÔNICO",$F15="DMLU",$F15="DMAE",$F15="CEEE",$F15="EPTC",$F15="ORSE",$F15="SEINFRA",$F15="CREA",$F15="CAU",$F15="CEHOP",$F15="SIURB",$F15="DER-PR",$F15="SUDECAP",$F15=Aux.!$G$24,$F15=Aux.!$G$25),VLOOKUP($E15,'Planilha Auxiliar'!$A$4:$L$1000,4,FALSE()),IF($F15="INDEXADO",VLOOKUP($E15,'Index N_DESON.'!$A$9:$S$1305,4,FALSE()),IF($F15="CCU",VLOOKUP($E15,'Resumo CCU N_DESON.'!$A$2:$D$202,3,FALSE()),IF($F15="MERCADO",VLOOKUP('Orçamento N_DESON.'!$E15,'Planillha de cotações'!$B$7:$L$1143,10,FALSE()),IF($F15="PLEO",VLOOKUP($E15,'PLEO N_DESON.'!$A$4:$D$14999,3,FALSE()),IF($F15="SICRO",VLOOKUP($E15,'SICRO N_DESON.'!$A$4:$D$50010,3,FALSE()),IF($F15="SINAPI",IFERROR((VLOOKUP($E15,'comp. SINAPI N_DESON.'!$G$7:$L$50000,3,FALSE())),(VLOOKUP($E15,'ins. SINAPI N_DESON.'!$A$8:$E$15000,3,FALSE()))),"-"))))))) -> HORA | I15: 4 | J15: =IF(OR($F15="ANP",$F15="DAER",$F15="CONSULTORIA DNIT",$F15="PREGÃO ELETRÔNICO",$F15="DMLU",$F15="DMAE",$F15="CEEE",$F15="EPTC",$F15="ORSE",$F15="SEINFRA",$F15="CREA",$F15="CAU",$F15="CEHOP",$F15="SIURB",$F15="DER-PR",$F15="SUDECAP",$F15=Aux.!$G$24,$F15=Aux.!$G$25),VLOOKUP($E15,'Planilha Auxiliar'!$A$4:$H$1000,6,FALSE()),IF($F15="INDEXADO",VLOOKUP($E15,'Index N_DESON.'!$A$9:$U$1305,16,FALSE()),IF($F15="CCU",VLOOKUP($E15,'Resumo CCU N_DESON.'!$A$2:$G$202,5,FALSE()),IF($F15="MERCADO",VLOOKUP('Orçamento N_DESON.'!$E15,'Planillha de cotações'!$B$7:$L$1143,7,FALSE()),IF($F15="PLEO",VLOOKUP($E15,'PLEO N_DESON.'!$A$4:$D$14999,4,FALSE()),IF($F15="SICRO",VLOOKUP($E15,'SICRO N_DESON.'!$A$4:$G$50010,5,FALSE()),IF($F15="SINAPI",IFERROR((VLOOKUP($E15,'comp. SINAPI N_DESON.'!$G$7:$X$50000,18,FALSE())),"-"),"-"))))))) -> 14.86 | K15: =IF(OR($F15="ANP",$F15="DAER",$F15="CONSULTORIA DNIT",$F15="PREGÃO ELETRÔNICO",$F15="DMLU",$F15="DMAE",$F15="CEEE",$F15="EPTC",$F15="ORSE",$F15="SEINFRA",$F15="CREA",$F15="CAU",$F15="CEHOP",$F15="SIURB",$F15="DER-PR",$F15="SUDECAP",$F15=Aux.!$G$24,$F15=Aux.!$G$25),VLOOKUP($E15,'Planilha Auxiliar'!$A$4:$H$1000,7,FALSE()),IF($F15="INDEXADO",VLOOKUP($E15,'Index N_DESON.'!$A$9:$U$1305,17,FALSE()),IF($F15="CCU",VLOOKUP($E15,'Resumo CCU N_DESON.'!$A$2:$G$202,6,FALSE()),IF($F15="MERCADO",VLOOKUP('Orçamento N_DESON.'!$E15,'Planillha de cotações'!$B$7:$L$1143,8,FALSE()),IF($F15="PLEO",VLOOKUP($E15,'PLEO N_DESON.'!$A$4:$D$14999,4,FALSE()),IF($F15="SICRO",VLOOKUP($E15,'SICRO N_DESON.'!$A$4:$G$50010,6,FALSE()),IF($F15="SINAPI",SUM(IFERROR((VLOOKUP($E15,'comp. SINAPI N_DESON.'!$G$7:$X$50000,14,FALSE())),"-"),VLOOKUP($E15,'comp. SINAPI N_DESON.'!$G$7:$AB$50000,20,FALSE()),VLOOKUP($E15,'comp. SINAPI N_DESON.'!$G$7:$AB$50000,22,FALSE())),"-"))))))) -> 18.17 | L15: =IF(OR($F15="ANP",$F15="DAER",$F15="CONSULTORIA DNIT",$F15="PREGÃO ELETRÔNICO",$F15="DMLU",$F15="DMAE",$F15="CEEE",$F15="EPTC",$F15="ORSE",$F15="SEINFRA",$F15="CREA",$F15="CAU",$F15="CEHOP",$F15="SIURB",$F15="DER-PR",$F15="SUDECAP",$F15=Aux.!$G$24,$F15=Aux.!$G$25),VLOOKUP($E15,'Planilha Auxiliar'!$A$4:$H$1000,8,FALSE()),IF($F15="INDEXADO",VLOOKUP($E15,'Index N_DESON.'!$A$9:$U$1305,18,FALSE()),IF($F15="CCU",VLOOKUP($E15,'Resumo CCU N_DESON.'!$A$2:$G$202,7,FALSE()),IF($F15="MERCADO",VLOOKUP('Orçamento N_DESON.'!$E15,'Planillha de cotações'!$B$7:$L$1143,9,FALSE()),IF($F15="PLEO",VLOOKUP($E15,'PLEO N_DESON.'!$A$4:$D$14999,4,FALSE()),IF($F15="SICRO",VLOOKUP($E15,'SICRO N_DESON.'!$A$4:$G$50010,7,FALSE()),IF($F15="SINAPI",IFERROR((VLOOKUP($E15,'comp. SINAPI N_DESON.'!$G$7:$X$50000,16,FALSE())),(VLOOKUP($E15,'ins. SINAPI N_DESON.'!$A$8:$E$15000,5,FALSE()))),"-"))))))) -> 0 | M15: =IF(OR($F15="ANP",$F15="DAER",$F15="CONSULTORIA DNIT",$F15="PREGÃO ELETRÔNICO",$F15="DMLU",$F15="DMAE",$F15="CEEE",$F15="EPTC",$F15="ORSE",$F15="SEINFRA",$F15="CREA",$F15="CAU",$F15="CEHOP",$F15="SIURB",$F15="DER-PR",$F15="SUDECAP",$F15=Aux.!$G$24,$F15=Aux.!$G$25),VLOOKUP($E15,'Planilha Auxiliar'!$A$4:$L$1000,5,FALSE()),IF($F15="INDEXADO",VLOOKUP($E15,'Index N_DESON.'!$A$9:$U$1305,19,FALSE()),IF($F15="CCU",VLOOKUP($E15,'Resumo CCU N_DESON.'!$A$2:$D$202,4,FALSE()),IF($F15="MERCADO",VLOOKUP('Orçamento N_DESON.'!$E15,'Planillha de cotações'!$B$7:$L$1143,6,FALSE()),IF($F15="PLEO",VLOOKUP($E15,'PLEO N_DESON.'!$A$4:$D$14999,4,FALSE()),IF($F15="SICRO",VLOOKUP($E15,'SICRO N_DESON.'!$A$4:$D$50010,4,FALSE()),IF($F15="SINAPI",IFERROR((VLOOKUP($E15,'comp. SINAPI N_DESON.'!$G$7:$L$50000,5,FALSE())),(VLOOKUP($E15,'ins. SINAPI N_DESON.'!$A$8:$E$15000,5,FALSE()))),"-"))))))) -> 33.03 | N15: 0.1917 | O15: 39.36 | P15: 70.8 | Q15: 86.6 | R15: 0.04 | S15: 157.44 | V15: 1.5
B16: 0.00247139984 | D16: 1.6 | E16: CCU-15 | F16: CCU | G16: =IF(OR($F16="ANP",$F16="DAER",$F16="CONSULTORIA DNIT",$F16="PREGÃO ELETRÔNICO",$F16="DMLU",$F16="DMAE",$F16="CEEE",$F16="EPTC",$F16="ORSE",$F16="SEINFRA",$F16="CREA",$F16="CAU",$F16="CEHOP",$F16="SIURB",$F16="DER-PR",$F16="SUDECAP",$F16=Aux.!$G$24,$F16=Aux.!$G$25),VLOOKUP($E16,'Planilha Auxiliar'!$A$4:$L$1000,3,FALSE()),IF($F16="INDEXADO",CONCATENATE(VLOOKUP($E16,'Index N_DESON.'!$A$9:$S$1305,3,FALSE())," (",VLOOKUP($E16,'Index N_DESON.'!$A$9:$S$1305,2,FALSE()),")"),IF($F16="CCU",VLOOKUP($E16,'Resumo CCU N_DESON.'!$A$2:$D$202,2,FALSE()),IF($F16="MERCADO",VLOOKUP($E16,'Planillha de cotações'!$B$7:$L$102,2,FALSE()),IF($F16="PLEO",VLOOKUP($E16,'PLEO N_DESON.'!$A$4:$D$14999,2,FALSE()),IF($F16="SICRO",VLOOKUP($E16,'SICRO N_DESON.'!$A$4:$D$50010,2,FALSE()),IF($F16="SINAPI",IFERROR((VLOOKUP($E16,'comp. SINAPI N_DESON.'!$G$7:$L$50000,2,FALSE())),(VLOOKUP($E16,'ins. SINAPI N_DESON.'!$A$8:$E$15000,2,FALSE()))),"-"))))))) -> KIT REUNIÃO | H16: =IF(OR($F16="ANP",$F16="DAER",$F16="CONSULTORIA DNIT",$F16="PREGÃO ELETRÔNICO",$F16="DMLU",$F16="DMAE",$F16="CEEE",$F16="EPTC",$F16="ORSE",$F16="SEINFRA",$F16="CREA",$F16="CAU",$F16="CEHOP",$F16="SIURB",$F16="DER-PR",$F16="SUDECAP",$F16=Aux.!$G$24,$F16=Aux.!$G$25),VLOOKUP($E16,'Planilha Auxiliar'!$A$4:$L$1000,4,FALSE()),IF($F16="INDEXADO",VLOOKUP($E16,'Index N_DESON.'!$A$9:$S$1305,4,FALSE()),IF($F16="CCU",VLOOKUP($E16,'Resumo CCU N_DESON.'!$A$2:$D$202,3,FALSE()),IF($F16="MERCADO",VLOOKUP('Orçamento N_DESON.'!$E16,'Planillha de cotações'!$B$7:$L$1143,10,FALSE()),IF($F16="PLEO",VLOOKUP($E16,'PLEO N_DESON.'!$A$4:$D$14999,3,FALSE()),IF($F16="SICRO",VLOOKUP($E16,'SICRO N_DESON.'!$A$4:$D$50010,3,FALSE()),IF($F16="SINAPI",IFERROR((VLOOKUP($E16,'comp. SINAPI N_DESON.'!$G$7:$L$50000,3,FALSE())),(VLOOKUP($E16,'ins. SINAPI N_DESON.'!$A$8:$E$15000,3,FALSE()))),"-"))))))) -> UNIDADE | I16: 1 | J16: =IF(OR($F16="ANP",$F16="DAER",$F16="CONSULTORIA DNIT",$F16="PREGÃO ELETRÔNICO",$F16="DMLU",$F16="DMAE",$F16="CEEE",$F16="EPTC",$F16="ORSE",$F16="SEINFRA",$F16="CREA",$F16="CAU",$F16="CEHOP",$F16="SIURB",$F16="DER-PR",$F16="SUDECAP",$F16=Aux.!$G$24,$F16=Aux.!$G$25),VLOOKUP($E16,'Planilha Auxiliar'!$A$4:$H$1000,6,FALSE()),IF($F16="INDEXADO",VLOOKUP($E16,'Index N_DESON.'!$A$9:$U$1305,16,FALSE()),IF($F16="CCU",VLOOKUP($E16,'Resumo CCU N_DESON.'!$A$2:$G$202,5,FALSE()),IF($F16="MERCADO",VLOOKUP('Orçamento N_DESON.'!$E16,'Planillha de cotações'!$B$7:$L$1143,7,FALSE()),IF($F16="PLEO",VLOOKUP($E16,'PLEO N_DESON.'!$A$4:$D$14999,4,FALSE()),IF($F16="SICRO",VLOOKUP($E16,'SICRO N_DESON.'!$A$4:$G$50010,5,FALSE()),IF($F16="SINAPI",IFERROR((VLOOKUP($E16,'comp. SINAPI N_DESON.'!$G$7:$X$50000,18,FALSE())),"-"),"-"))))))) -> 0 | K16: =IF(OR($F16="ANP",$F16="DAER",$F16="CONSULTORIA DNIT",$F16="PREGÃO ELETRÔNICO",$F16="DMLU",$F16="DMAE",$F16="CEEE",$F16="EPTC",$F16="ORSE",$F16="SEINFRA",$F16="CREA",$F16="CAU",$F16="CEHOP",$F16="SIURB",$F16="DER-PR",$F16="SUDECAP",$F16=Aux.!$G$24,$F16=Aux.!$G$25),VLOOKUP($E16,'Planilha Auxiliar'!$A$4:$H$1000,7,FALSE()),IF($F16="INDEXADO",VLOOKUP($E16,'Index N_DESON.'!$A$9:$U$1305,17,FALSE()),IF($F16="CCU",VLOOKUP($E16,'Resumo CCU N_DESON.'!$A$2:$G$202,6,FALSE()),IF($F16="MERCADO",VLOOKUP('Orçamento N_DESON.'!$E16,'Planillha de cotações'!$B$7:$L$1143,8,FALSE()),IF($F16="PLEO",VLOOKUP($E16,'PLEO N_DESON.'!$A$4:$D$14999,4,FALSE()),IF($F16="SICRO",VLOOKUP($E16,'SICRO N_DESON.'!$A$4:$G$50010,6,FALSE()),IF($F16="SINAPI",SUM(IFERROR((VLOOKUP($E16,'comp. SINAPI N_DESON.'!$G$7:$X$50000,14,FALSE())),"-"),VLOOKUP($E16,'comp. SINAPI N_DESON.'!$G$7:$AB$50000,20,FALSE()),VLOOKUP($E16,'comp. SINAPI N_DESON.'!$G$7:$AB$50000,22,FALSE())),"-"))))))) -> 0 | L16: =IF(OR($F16="ANP",$F16="DAER",$F16="CONSULTORIA DNIT",$F16="PREGÃO ELETRÔNICO",$F16="DMLU",$F16="DMAE",$F16="CEEE",$F16="EPTC",$F16="ORSE",$F16="SEINFRA",$F16="CREA",$F16="CAU",$F16="CEHOP",$F16="SIURB",$F16="DER-PR",$F16="SUDECAP",$F16=Aux.!$G$24,$F16=Aux.!$G$25),VLOOKUP($E16,'Planilha Auxiliar'!$A$4:$H$1000,8,FALSE()),IF($F16="INDEXADO",VLOOKUP($E16,'Index N_DESON.'!$A$9:$U$1305,18,FALSE()),IF($F16="CCU",VLOOKUP($E16,'Resumo CCU N_DESON.'!$A$2:$G$202,7,FALSE()),IF($F16="MERCADO",VLOOKUP('Orçamento N_DESON.'!$E16,'Planillha de cotações'!$B$7:$L$1143,9,FALSE()),IF($F16="PLEO",VLOOKUP($E16,'PLEO N_DESON.'!$A$4:$D$14999,4,FALSE()),IF($F16="SICRO",VLOOKUP($E16,'SICRO N_DESON.'!$A$4:$G$50010,7,FALSE()),IF($F16="SINAPI",IFERROR((VLOOKUP($E16,'comp. SINAPI N_DESON.'!$G$7:$X$50000,16,FALSE())),(VLOOKUP($E16,'ins. SINAPI N_DESON.'!$A$8:$E$15000,5,FALSE()))),"-"))))))) -> 205.23 | M16: =IF(OR($F16="ANP",$F16="DAER",$F16="CONSULTORIA DNIT",$F16="PREGÃO ELETRÔNICO",$F16="DMLU",$F16="DMAE",$F16="CEEE",$F16="EPTC",$F16="ORSE",$F16="SEINFRA",$F16="CREA",$F16="CAU",$F16="CEHOP",$F16="SIURB",$F16="DER-PR",$F16="SUDECAP",$F16=Aux.!$G$24,$F16=Aux.!$G$25),VLOOKUP($E16,'Planilha Auxiliar'!$A$4:$L$1000,5,FALSE()),IF($F16="INDEXADO",VLOOKUP($E16,'Index N_DESON.'!$A$9:$U$1305,19,FALSE()),IF($F16="CCU",VLOOKUP($E16,'Resumo CCU N_DESON.'!$A$2:$D$202,4,FALSE()),IF($F16="MERCADO",VLOOKUP('Orçamento N_DESON.'!$E16,'Planillha de cotações'!$B$7:$L$1143,6,FALSE()),IF($F16="PLEO",VLOOKUP($E16,'PLEO N_DESON.'!$A$4:$D$14999,4,FALSE()),IF($F16="SICRO",VLOOKUP($E16,'SICRO N_DESON.'!$A$4:$D$50010,4,FALSE()),IF($F16="SINAPI",IFERROR((VLOOKUP($E16,'comp. SINAPI N_DESON.'!$G$7:$L$50000,5,FALSE())),(VLOOKUP($E16,'ins. SINAPI N_DESON.'!$A$8:$E$15000,5,FALSE()))),"-"))))))) -> 205.23 | N16: 0.1917 | O16: 244.57 | P16: 0 | Q16: 0 | R16: 244.57 | S16: 244.57 | V16: 1.6
B17: 0.007700880688 | D17: 1.7 | E17: CCU-04 | F17: CCU | G17: =IF(OR($F17="ANP",$F17="DAER",$F17="CONSULTORIA DNIT",$F17="PREGÃO ELETRÔNICO",$F17="DMLU",$F17="DMAE",$F17="CEEE",$F17="EPTC",$F17="ORSE",$F17="SEINFRA",$F17="CREA",$F17="CAU",$F17="CEHOP",$F17="SIURB",$F17="DER-PR",$F17="SUDECAP",$F17=Aux.!$G$24,$F17=Aux.!$G$25),VLOOKUP($E17,'Planilha Auxiliar'!$A$4:$L$1000,3,FALSE()),IF($F17="INDEXADO",CONCATENATE(VLOOKUP($E17,'Index N_DESON.'!$A$9:$S$1305,3,FALSE())," (",VLOOKUP($E17,'Index N_DESON.'!$A$9:$S$1305,2,FALSE()),")"),IF($F17="CCU",VLOOKUP($E17,'Resumo CCU N_DESON.'!$A$2:$D$202,2,FALSE()),IF($F17="MERCADO",VLOOKUP($E17,'Planillha de cotações'!$B$7:$L$102,2,FALSE()),IF($F17="PLEO",VLOOKUP($E17,'PLEO N_DESON.'!$A$4:$D$14999,2,FALSE()),IF($F17="SICRO",VLOOKUP($E17,'SICRO N_DESON.'!$A$4:$D$50010,2,FALSE()),IF($F17="SINAPI",IFERROR((VLOOKUP($E17,'comp. SINAPI N_DESON.'!$G$7:$L$50000,2,FALSE())),(VLOOKUP($E17,'ins. SINAPI N_DESON.'!$A$8:$E$15000,2,FALSE()))),"-"))))))) -> ETAPA I RELATÓRIO | H17: =IF(OR($F17="ANP",$F17="DAER",$F17="CONSULTORIA DNIT",$F17="PREGÃO ELETRÔNICO",$F17="DMLU",$F17="DMAE",$F17="CEEE",$F17="EPTC",$F17="ORSE",$F17="SEINFRA",$F17="CREA",$F17="CAU",$F17="CEHOP",$F17="SIURB",$F17="DER-PR",$F17="SUDECAP",$F17=Aux.!$G$24,$F17=Aux.!$G$25),VLOOKUP($E17,'Planilha Auxiliar'!$A$4:$L$1000,4,FALSE()),IF($F17="INDEXADO",VLOOKUP($E17,'Index N_DESON.'!$A$9:$S$1305,4,FALSE()),IF($F17="CCU",VLOOKUP($E17,'Resumo CCU N_DESON.'!$A$2:$D$202,3,FALSE()),IF($F17="MERCADO",VLOOKUP('Orçamento N_DESON.'!$E17,'Planillha de cotações'!$B$7:$L$1143,10,FALSE()),IF($F17="PLEO",VLOOKUP($E17,'PLEO N_DESON.'!$A$4:$D$14999,3,FALSE()),IF($F17="SICRO",VLOOKUP($E17,'SICRO N_DESON.'!$A$4:$D$50010,3,FALSE()),IF($F17="SINAPI",IFERROR((VLOOKUP($E17,'comp. SINAPI N_DESON.'!$G$7:$L$50000,3,FALSE())),(VLOOKUP($E17,'ins. SINAPI N_DESON.'!$A$8:$E$15000,3,FALSE()))),"-"))))))) -> HORAS | I17: 8 | J17: =IF(OR($F17="ANP",$F17="DAER",$F17="CONSULTORIA DNIT",$F17="PREGÃO ELETRÔNICO",$F17="DMLU",$F17="DMAE",$F17="CEEE",$F17="EPTC",$F17="ORSE",$F17="SEINFRA",$F17="CREA",$F17="CAU",$F17="CEHOP",$F17="SIURB",$F17="DER-PR",$F17="SUDECAP",$F17=Aux.!$G$24,$F17=Aux.!$G$25),VLOOKUP($E17,'Planilha Auxiliar'!$A$4:$H$1000,6,FALSE()),IF($F17="INDEXADO",VLOOKUP($E17,'Index N_DESON.'!$A$9:$U$1305,16,FALSE()),IF($F17="CCU",VLOOKUP($E17,'Resumo CCU N_DESON.'!$A$2:$G$202,5,FALSE()),IF($F17="MERCADO",VLOOKUP('Orçamento N_DESON.'!$E17,'Planillha de cotações'!$B$7:$L$1143,7,FALSE()),IF($F17="PLEO",VLOOKUP($E17,'PLEO N_DESON.'!$A$4:$D$14999,4,FALSE()),IF($F17="SICRO",VLOOKUP($E17,'SICRO N_DESON.'!$A$4:$G$50010,5,FALSE()),IF($F17="SINAPI",IFERROR((VLOOKUP($E17,'comp. SINAPI N_DESON.'!$G$7:$X$50000,18,FALSE())),"-"),"-"))))))) -> 0 | K17: =IF(OR($F17="ANP",$F17="DAER",$F17="CONSULTORIA DNIT",$F17="PREGÃO ELETRÔNICO",$F17="DMLU",$F17="DMAE",$F17="CEEE",$F17="EPTC",$F17="ORSE",$F17="SEINFRA",$F17="CREA",$F17="CAU",$F17="CEHOP",$F17="SIURB",$F17="DER-PR",$F17="SUDECAP",$F17=Aux.!$G$24,$F17=Aux.!$G$25),VLOOKUP($E17,'Planilha Auxiliar'!$A$4:$H$1000,7,FALSE()),IF($F17="INDEXADO",VLOOKUP($E17,'Index N_DESON.'!$A$9:$U$1305,17,FALSE()),IF($F17="CCU",VLOOKUP($E17,'Resumo CCU N_DESON.'!$A$2:$G$202,6,FALSE()),IF($F17="MERCADO",VLOOKUP('Orçamento N_DESON.'!$E17,'Planillha de cotações'!$B$7:$L$1143,8,FALSE()),IF($F17="PLEO",VLOOKUP($E17,'PLEO N_DESON.'!$A$4:$D$14999,4,FALSE()),IF($F17="SICRO",VLOOKUP($E17,'SICRO N_DESON.'!$A$4:$G$50010,6,FALSE()),IF($F17="SINAPI",SUM(IFERROR((VLOOKUP($E17,'comp. SINAPI N_DESON.'!$G$7:$X$50000,14,FALSE())),"-"),VLOOKUP($E17,'comp. SINAPI N_DESON.'!$G$7:$AB$50000,20,FALSE()),VLOOKUP($E17,'comp. SINAPI N_DESON.'!$G$7:$AB$50000,22,FALSE())),"-"))))))) -> 79.94 | L17: =IF(OR($F17="ANP",$F17="DAER",$F17="CONSULTORIA DNIT",$F17="PREGÃO ELETRÔNICO",$F17="DMLU",$F17="DMAE",$F17="CEEE",$F17="EPTC",$F17="ORSE",$F17="SEINFRA",$F17="CREA",$F17="CAU",$F17="CEHOP",$F17="SIURB",$F17="DER-PR",$F17="SUDECAP",$F17=Aux.!$G$24,$F17=Aux.!$G$25),VLOOKUP($E17,'Planilha Auxiliar'!$A$4:$H$1000,8,FALSE()),IF($F17="INDEXADO",VLOOKUP($E17,'Index N_DESON.'!$A$9:$U$1305,18,FALSE()),IF($F17="CCU",VLOOKUP($E17,'Resumo CCU N_DESON.'!$A$2:$G$202,7,FALSE()),IF($F17="MERCADO",VLOOKUP('Orçamento N_DESON.'!$E17,'Planillha de cotações'!$B$7:$L$1143,9,FALSE()),IF($F17="PLEO",VLOOKUP($E17,'PLEO N_DESON.'!$A$4:$D$14999,4,FALSE()),IF($F17="SICRO",VLOOKUP($E17,'SICRO N_DESON.'!$A$4:$G$50010,7,FALSE()),IF($F17="SINAPI",IFERROR((VLOOKUP($E17,'comp. SINAPI N_DESON.'!$G$7:$X$50000,16,FALSE())),(VLOOKUP($E17,'ins. SINAPI N_DESON.'!$A$8:$E$15000,5,FALSE()))),"-"))))))) -> 0 | M17: =IF(OR($F17="ANP",$F17="DAER",$F17="CONSULTORIA DNIT",$F17="PREGÃO ELETRÔNICO",$F17="DMLU",$F17="DMAE",$F17="CEEE",$F17="EPTC",$F17="ORSE",$F17="SEINFRA",$F17="CREA",$F17="CAU",$F17="CEHOP",$F17="SIURB",$F17="DER-PR",$F17="SUDECAP",$F17=Aux.!$G$24,$F17=Aux.!$G$25),VLOOKUP($E17,'Planilha Auxiliar'!$A$4:$L$1000,5,FALSE()),IF($F17="INDEXADO",VLOOKUP($E17,'Index N_DESON.'!$A$9:$U$1305,19,FALSE()),IF($F17="CCU",VLOOKUP($E17,'Resumo CCU N_DESON.'!$A$2:$D$202,4,FALSE()),IF($F17="MERCADO",VLOOKUP('Orçamento N_DESON.'!$E17,'Planillha de cotações'!$B$7:$L$1143,6,FALSE()),IF($F17="PLEO",VLOOKUP($E17,'PLEO N_DESON.'!$A$4:$D$14999,4,FALSE()),IF($F17="SICRO",VLOOKUP($E17,'SICRO N_DESON.'!$A$4:$D$50010,4,FALSE()),IF($F17="SINAPI",IFERROR((VLOOKUP($E17,'comp. SINAPI N_DESON.'!$G$7:$L$50000,5,FALSE())),(VLOOKUP($E17,'ins. SINAPI N_DESON.'!$A$8:$E$15000,5,FALSE()))),"-"))))))) -> 79.94 | N17: 0.1917 | O17: 95.26 | P17: 0 | Q17: 762.08 | R17: 0 | S17: 762.08 | V17: 1.7
B18: 0.002853371929 | D18: 1.8 | E18: CCU-16 | F18: CCU | G18: =IF(OR($F18="ANP",$F18="DAER",$F18="CONSULTORIA DNIT",$F18="PREGÃO ELETRÔNICO",$F18="DMLU",$F18="DMAE",$F18="CEEE",$F18="EPTC",$F18="ORSE",$F18="SEINFRA",$F18="CREA",$F18="CAU",$F18="CEHOP",$F18="SIURB",$F18="DER-PR",$F18="SUDECAP",$F18=Aux.!$G$24,$F18=Aux.!$G$25),VLOOKUP($E18,'Planilha Auxiliar'!$A$4:$L$1000,3,FALSE()),IF($F18="INDEXADO",CONCATENATE(VLOOKUP($E18,'Index N_DESON.'!$A$9:$S$1305,3,FALSE())," (",VLOOKUP($E18,'Index N_DESON.'!$A$9:$S$1305,2,FALSE()),")"),IF($F18="CCU",VLOOKUP($E18,'Resumo CCU N_DESON.'!$A$2:$D$202,2,FALSE()),IF($F18="MERCADO",VLOOKUP($E18,'Planillha de cotações'!$B$7:$L$102,2,FALSE()),IF($F18="PLEO",VLOOKUP($E18,'PLEO N_DESON.'!$A$4:$D$14999,2,FALSE()),IF($F18="SICRO",VLOOKUP($E18,'SICRO N_DESON.'!$A$4:$D$50010,2,FALSE()),IF($F18="SINAPI",IFERROR((VLOOKUP($E18,'comp. SINAPI N_DESON.'!$G$7:$L$50000,2,FALSE())),(VLOOKUP($E18,'ins. SINAPI N_DESON.'!$A$8:$E$15000,2,FALSE()))),"-"))))))) -> KIT RELATÓRIO | H18: =IF(OR($F18="ANP",$F18="DAER",$F18="CONSULTORIA DNIT",$F18="PREGÃO ELETRÔNICO",$F18="DMLU",$F18="DMAE",$F18="CEEE",$F18="EPTC",$F18="ORSE",$F18="SEINFRA",$F18="CREA",$F18="CAU",$F18="CEHOP",$F18="SIURB",$F18="DER-PR",$F18="SUDECAP",$F18=Aux.!$G$24,$F18=Aux.!$G$25),VLOOKUP($E18,'Planilha Auxiliar'!$A$4:$L$1000,4,FALSE()),IF($F18="INDEXADO",VLOOKUP($E18,'Index N_DESON.'!$A$9:$S$1305,4,FALSE()),IF($F18="CCU",VLOOKUP($E18,'Resumo CCU N_DESON.'!$A$2:$D$202,3,FALSE()),IF($F18="MERCADO",VLOOKUP('Orçamento N_DESON.'!$E18,'Planillha de cotações'!$B$7:$L$1143,10,FALSE()),IF($F18="PLEO",VLOOKUP($E18,'PLEO N_DESON.'!$A$4:$D$14999,3,FALSE()),IF($F18="SICRO",VLOOKUP($E18,'SICRO N_DESON.'!$A$4:$D$50010,3,FALSE()),IF($F18="SINAPI",IFERROR((VLOOKUP($E18,'comp. SINAPI N_DESON.'!$G$7:$L$50000,3,FALSE())),(VLOOKUP($E18,'ins. SINAPI N_DESON.'!$A$8:$E$15000,3,FALSE()))),"-"))))))) -> UNIDADE | I18: 1 | J18: =IF(OR($F18="ANP",$F18="DAER",$F18="CONSULTORIA DNIT",$F18="PREGÃO ELETRÔNICO",$F18="DMLU",$F18="DMAE",$F18="CEEE",$F18="EPTC",$F18="ORSE",$F18="SEINFRA",$F18="CREA",$F18="CAU",$F18="CEHOP",$F18="SIURB",$F18="DER-PR",$F18="SUDECAP",$F18=Aux.!$G$24,$F18=Aux.!$G$25),VLOOKUP($E18,'Planilha Auxiliar'!$A$4:$H$1000,6,FALSE()),IF($F18="INDEXADO",VLOOKUP($E18,'Index N_DESON.'!$A$9:$U$1305,16,FALSE()),IF($F18="CCU",VLOOKUP($E18,'Resumo CCU N_DESON.'!$A$2:$G$202,5,FALSE()),IF($F18="MERCADO",VLOOKUP('Orçamento N_DESON.'!$E18,'Planillha de cotações'!$B$7:$L$1143,7,FALSE()),IF($F18="PLEO",VLOOKUP($E18,'PLEO N_DESON.'!$A$4:$D$14999,4,FALSE()),IF($F18="SICRO",VLOOKUP($E18,'SICRO N_DESON.'!$A$4:$G$50010,5,FALSE()),IF($F18="SINAPI",IFERROR((VLOOKUP($E18,'comp. SINAPI N_DESON.'!$G$7:$X$50000,18,FALSE())),"-"),"-"))))))) -> 0 | K18: =IF(OR($F18="ANP",$F18="DAER",$F18="CONSULTORIA DNIT",$F18="PREGÃO ELETRÔNICO",$F18="DMLU",$F18="DMAE",$F18="CEEE",$F18="EPTC",$F18="ORSE",$F18="SEINFRA",$F18="CREA",$F18="CAU",$F18="CEHOP",$F18="SIURB",$F18="DER-PR",$F18="SUDECAP",$F18=Aux.!$G$24,$F18=Aux.!$G$25),VLOOKUP($E18,'Planilha Auxiliar'!$A$4:$H$1000,7,FALSE()),IF($F18="INDEXADO",VLOOKUP($E18,'Index N_DESON.'!$A$9:$U$1305,17,FALSE()),IF($F18="CCU",VLOOKUP($E18,'Resumo CCU N_DESON.'!$A$2:$G$202,6,FALSE()),IF($F18="MERCADO",VLOOKUP('Orçamento N_DESON.'!$E18,'Planillha de cotações'!$B$7:$L$1143,8,FALSE()),IF($F18="PLEO",VLOOKUP($E18,'PLEO N_DESON.'!$A$4:$D$14999,4,FALSE()),IF($F18="SICRO",VLOOKUP($E18,'SICRO N_DESON.'!$A$4:$G$50010,6,FALSE()),IF($F18="SINAPI",SUM(IFERROR((VLOOKUP($E18,'comp. SINAPI N_DESON.'!$G$7:$X$50000,14,FALSE())),"-"),VLOOKUP($E18,'comp. SINAPI N_DESON.'!$G$7:$AB$50000,20,FALSE()),VLOOKUP($E18,'comp. SINAPI N_DESON.'!$G$7:$AB$50000,22,FALSE())),"-"))))))) -> 0 | L18: =IF(OR($F18="ANP",$F18="DAER",$F18="CONSULTORIA DNIT",$F18="PREGÃO ELETRÔNICO",$F18="DMLU",$F18="DMAE",$F18="CEEE",$F18="EPTC",$F18="ORSE",$F18="SEINFRA",$F18="CREA",$F18="CAU",$F18="CEHOP",$F18="SIURB",$F18="DER-PR",$F18="SUDECAP",$F18=Aux.!$G$24,$F18=Aux.!$G$25),VLOOKUP($E18,'Planilha Auxiliar'!$A$4:$H$1000,8,FALSE()),IF($F18="INDEXADO",VLOOKUP($E18,'Index N_DESON.'!$A$9:$U$1305,18,FALSE()),IF($F18="CCU",VLOOKUP($E18,'Resumo CCU N_DESON.'!$A$2:$G$202,7,FALSE()),IF($F18="MERCADO",VLOOKUP('Orçamento N_DESON.'!$E18,'Planillha de cotações'!$B$7:$L$1143,9,FALSE()),IF($F18="PLEO",VLOOKUP($E18,'PLEO N_DESON.'!$A$4:$D$14999,4,FALSE()),IF($F18="SICRO",VLOOKUP($E18,'SICRO N_DESON.'!$A$4:$G$50010,7,FALSE()),IF($F18="SINAPI",IFERROR((VLOOKUP($E18,'comp. SINAPI N_DESON.'!$G$7:$X$50000,16,FALSE())),(VLOOKUP($E18,'ins. SINAPI N_DESON.'!$A$8:$E$15000,5,FALSE()))),"-"))))))) -> 236.95 | M18: =IF(OR($F18="ANP",$F18="DAER",$F18="CONSULTORIA DNIT",$F18="PREGÃO ELETRÔNICO",$F18="DMLU",$F18="DMAE",$F18="CEEE",$F18="EPTC",$F18="ORSE",$F18="SEINFRA",$F18="CREA",$F18="CAU",$F18="CEHOP",$F18="SIURB",$F18="DER-PR",$F18="SUDECAP",$F18=Aux.!$G$24,$F18=Aux.!$G$25),VLOOKUP($E18,'Planilha Auxiliar'!$A$4:$L$1000,5,FALSE()),IF($F18="INDEXADO",VLOOKUP($E18,'Index N_DESON.'!$A$9:$U$1305,19,FALSE()),IF($F18="CCU",VLOOKUP($E18,'Resumo CCU N_DESON.'!$A$2:$D$202,4,FALSE()),IF($F18="MERCADO",VLOOKUP('Orçamento N_DESON.'!$E18,'Planillha de cotações'!$B$7:$L$1143,6,FALSE()),IF($F18="PLEO",VLOOKUP($E18,'PLEO N_DESON.'!$A$4:$D$14999,4,FALSE()),IF($F18="SICRO",VLOOKUP($E18,'SICRO N_DESON.'!$A$4:$D$50010,4,FALSE()),IF($F18="SINAPI",IFERROR((VLOOKUP($E18,'comp. SINAPI N_DESON.'!$G$7:$L$50000,5,FALSE())),(VLOOKUP($E18,'ins. SINAPI N_DESON.'!$A$8:$E$15000,5,FALSE()))),"-"))))))) -> 236.95 | N18: 0.1917 | O18: 282.37 | P18: 0 | Q18: 0 | R18: 282.37 | S18: 282.37 | V18: 1.8
B19: 0 | D19: 1.9 | G19: =IF(OR($F19="ANP",$F19="DAER",$F19="CONSULTORIA DNIT",$F19="PREGÃO ELETRÔNICO",$F19="DMLU",$F19="DMAE",$F19="CEEE",$F19="EPTC",$F19="ORSE",$F19="SEINFRA",$F19="CREA",$F19="CAU",$F19="CEHOP",$F19="SIURB",$F19="DER-PR",$F19="SUDECAP",$F19=Aux.!$G$24,$F19=Aux.!$G$25),VLOOKUP($E19,'Planilha Auxiliar'!$A$4:$L$1000,3,FALSE()),IF($F19="INDEXADO",CONCATENATE(VLOOKUP($E19,'Index N_DESON.'!$A$9:$S$1305,3,FALSE())," (",VLOOKUP($E19,'Index N_DESON.'!$A$9:$S$1305,2,FALSE()),")"),IF($F19="CCU",VLOOKUP($E19,'Resumo CCU N_DESON.'!$A$2:$D$202,2,FALSE()),IF($F19="MERCADO",VLOOKUP($E19,'Planillha de cotações'!$B$7:$L$102,2,FALSE()),IF($F19="PLEO",VLOOKUP($E19,'PLEO N_DESON.'!$A$4:$D$14999,2,FALSE()),IF($F19="SICRO",VLOOKUP($E19,'SICRO N_DESON.'!$A$4:$D$50010,2,FALSE()),IF($F19="SINAPI",IFERROR((VLOOKUP($E19,'comp. SINAPI N_DESON.'!$G$7:$L$50000,2,FALSE())),(VLOOKUP($E19,'ins. SINAPI N_DESON.'!$A$8:$E$15000,2,FALSE()))),"-"))))))) -> - | H19: =IF(OR($F19="ANP",$F19="DAER",$F19="CONSULTORIA DNIT",$F19="PREGÃO ELETRÔNICO",$F19="DMLU",$F19="DMAE",$F19="CEEE",$F19="EPTC",$F19="ORSE",$F19="SEINFRA",$F19="CREA",$F19="CAU",$F19="CEHOP",$F19="SIURB",$F19="DER-PR",$F19="SUDECAP",$F19=Aux.!$G$24,$F19=Aux.!$G$25),VLOOKUP($E19,'Planilha Auxiliar'!$A$4:$L$1000,4,FALSE()),IF($F19="INDEXADO",VLOOKUP($E19,'Index N_DESON.'!$A$9:$S$1305,4,FALSE()),IF($F19="CCU",VLOOKUP($E19,'Resumo CCU N_DESON.'!$A$2:$D$202,3,FALSE()),IF($F19="MERCADO",VLOOKUP('Orçamento N_DESON.'!$E19,'Planillha de cotações'!$B$7:$L$1143,10,FALSE()),IF($F19="PLEO",VLOOKUP($E19,'PLEO N_DESON.'!$A$4:$D$14999,3,FALSE()),IF($F19="SICRO",VLOOKUP($E19,'SICRO N_DESON.'!$A$4:$D$50010,3,FALSE()),IF($F19="SINAPI",IFERROR((VLOOKUP($E19,'comp. SINAPI N_DESON.'!$G$7:$L$50000,3,FALSE())),(VLOOKUP($E19,'ins. SINAPI N_DESON.'!$A$8:$E$15000,3,FALSE()))),"-"))))))) -> - | J19: =IF(OR($F19="ANP",$F19="DAER",$F19="CONSULTORIA DNIT",$F19="PREGÃO ELETRÔNICO",$F19="DMLU",$F19="DMAE",$F19="CEEE",$F19="EPTC",$F19="ORSE",$F19="SEINFRA",$F19="CREA",$F19="CAU",$F19="CEHOP",$F19="SIURB",$F19="DER-PR",$F19="SUDECAP",$F19=Aux.!$G$24,$F19=Aux.!$G$25),VLOOKUP($E19,'Planilha Auxiliar'!$A$4:$H$1000,6,FALSE()),IF($F19="INDEXADO",VLOOKUP($E19,'Index N_DESON.'!$A$9:$U$1305,16,FALSE()),IF($F19="CCU",VLOOKUP($E19,'Resumo CCU N_DESON.'!$A$2:$G$202,5,FALSE()),IF($F19="MERCADO",VLOOKUP('Orçamento N_DESON.'!$E19,'Planillha de cotações'!$B$7:$L$1143,7,FALSE()),IF($F19="PLEO",VLOOKUP($E19,'PLEO N_DESON.'!$A$4:$D$14999,4,FALSE()),IF($F19="SICRO",VLOOKUP($E19,'SICRO N_DESON.'!$A$4:$G$50010,5,FALSE()),IF($F19="SINAPI",IFERROR((VLOOKUP($E19,'comp. SINAPI N_DESON.'!$G$7:$X$50000,18,FALSE())),"-"),"-"))))))) -> - | K19: =IF(OR($F19="ANP",$F19="DAER",$F19="CONSULTORIA DNIT",$F19="PREGÃO ELETRÔNICO",$F19="DMLU",$F19="DMAE",$F19="CEEE",$F19="EPTC",$F19="ORSE",$F19="SEINFRA",$F19="CREA",$F19="CAU",$F19="CEHOP",$F19="SIURB",$F19="DER-PR",$F19="SUDECAP",$F19=Aux.!$G$24,$F19=Aux.!$G$25),VLOOKUP($E19,'Planilha Auxiliar'!$A$4:$H$1000,7,FALSE()),IF($F19="INDEXADO",VLOOKUP($E19,'Index N_DESON.'!$A$9:$U$1305,17,FALSE()),IF($F19="CCU",VLOOKUP($E19,'Resumo CCU N_DESON.'!$A$2:$G$202,6,FALSE()),IF($F19="MERCADO",VLOOKUP('Orçamento N_DESON.'!$E19,'Planillha de cotações'!$B$7:$L$1143,8,FALSE()),IF($F19="PLEO",VLOOKUP($E19,'PLEO N_DESON.'!$A$4:$D$14999,4,FALSE()),IF($F19="SICRO",VLOOKUP($E19,'SICRO N_DESON.'!$A$4:$G$50010,6,FALSE()),IF($F19="SINAPI",SUM(IFERROR((VLOOKUP($E19,'comp. SINAPI N_DESON.'!$G$7:$X$50000,14,FALSE())),"-"),VLOOKUP($E19,'comp. SINAPI N_DESON.'!$G$7:$AB$50000,20,FALSE()),VLOOKUP($E19,'comp. SINAPI N_DESON.'!$G$7:$AB$50000,22,FALSE())),"-"))))))) -> - | L19: =IF(OR($F19="ANP",$F19="DAER",$F19="CONSULTORIA DNIT",$F19="PREGÃO ELETRÔNICO",$F19="DMLU",$F19="DMAE",$F19="CEEE",$F19="EPTC",$F19="ORSE",$F19="SEINFRA",$F19="CREA",$F19="CAU",$F19="CEHOP",$F19="SIURB",$F19="DER-PR",$F19="SUDECAP",$F19=Aux.!$G$24,$F19=Aux.!$G$25),VLOOKUP($E19,'Planilha Auxiliar'!$A$4:$H$1000,8,FALSE()),IF($F19="INDEXADO",VLOOKUP($E19,'Index N_DESON.'!$A$9:$U$1305,18,FALSE()),IF($F19="CCU",VLOOKUP($E19,'Resumo CCU N_DESON.'!$A$2:$G$202,7,FALSE()),IF($F19="MERCADO",VLOOKUP('Orçamento N_DESON.'!$E19,'Planillha de cotações'!$B$7:$L$1143,9,FALSE()),IF($F19="PLEO",VLOOKUP($E19,'PLEO N_DESON.'!$A$4:$D$14999,4,FALSE()),IF($F19="SICRO",VLOOKUP($E19,'SICRO N_DESON.'!$A$4:$G$50010,7,FALSE()),IF($F19="SINAPI",IFERROR((VLOOKUP($E19,'comp. SINAPI N_DESON.'!$G$7:$X$50000,16,FALSE())),(VLOOKUP($E19,'ins. SINAPI N_DESON.'!$A$8:$E$15000,5,FALSE()))),"-"))))))) -> - | M19: =IF(OR($F19="ANP",$F19="DAER",$F19="CONSULTORIA DNIT",$F19="PREGÃO ELETRÔNICO",$F19="DMLU",$F19="DMAE",$F19="CEEE",$F19="EPTC",$F19="ORSE",$F19="SEINFRA",$F19="CREA",$F19="CAU",$F19="CEHOP",$F19="SIURB",$F19="DER-PR",$F19="SUDECAP",$F19=Aux.!$G$24,$F19=Aux.!$G$25),VLOOKUP($E19,'Planilha Auxiliar'!$A$4:$L$1000,5,FALSE()),IF($F19="INDEXADO",VLOOKUP($E19,'Index N_DESON.'!$A$9:$U$1305,19,FALSE()),IF($F19="CCU",VLOOKUP($E19,'Resumo CCU N_DESON.'!$A$2:$D$202,4,FALSE()),IF($F19="MERCADO",VLOOKUP('Orçamento N_DESON.'!$E19,'Planillha de cotações'!$B$7:$L$1143,6,FALSE()),IF($F19="PLEO",VLOOKUP($E19,'PLEO N_DESON.'!$A$4:$D$14999,4,FALSE()),IF($F19="SICRO",VLOOKUP($E19,'SICRO N_DESON.'!$A$4:$D$50010,4,FALSE()),IF($F19="SINAPI",IFERROR((VLOOKUP($E19,'comp. SINAPI N_DESON.'!$G$7:$L$50000,5,FALSE())),(VLOOKUP($E19,'ins. SINAPI N_DESON.'!$A$8:$E$15000,5,FALSE()))),"-"))))))) -> - | N19: - | O19: - | P19: 0 | Q19: 0 | R19: 0 | S19: 0 | V19: 1.9
B20: 0 | D20: 1.10 | G20: =IF(OR($F20="ANP",$F20="DAER",$F20="CONSULTORIA DNIT",$F20="PREGÃO ELETRÔNICO",$F20="DMLU",$F20="DMAE",$F20="CEEE",$F20="EPTC",$F20="ORSE",$F20="SEINFRA",$F20="CREA",$F20="CAU",$F20="CEHOP",$F20="SIURB",$F20="DER-PR",$F20="SUDECAP",$F20=Aux.!$G$24,$F20=Aux.!$G$25),VLOOKUP($E20,'Planilha Auxiliar'!$A$4:$L$1000,3,FALSE()),IF($F20="INDEXADO",CONCATENATE(VLOOKUP($E20,'Index N_DESON.'!$A$9:$S$1305,3,FALSE())," (",VLOOKUP($E20,'Index N_DESON.'!$A$9:$S$1305,2,FALSE()),")"),IF($F20="CCU",VLOOKUP($E20,'Resumo CCU N_DESON.'!$A$2:$D$202,2,FALSE()),IF($F20="MERCADO",VLOOKUP($E20,'Planillha de cotações'!$B$7:$L$102,2,FALSE()),IF($F20="PLEO",VLOOKUP($E20,'PLEO N_DESON.'!$A$4:$D$14999,2,FALSE()),IF($F20="SICRO",VLOOKUP($E20,'SICRO N_DESON.'!$A$4:$D$50010,2,FALSE()),IF($F20="SINAPI",IFERROR((VLOOKUP($E20,'comp. SINAPI N_DESON.'!$G$7:$L$50000,2,FALSE())),(VLOOKUP($E20,'ins. SINAPI N_DESON.'!$A$8:$E$15000,2,FALSE()))),"-"))))))) -> - | H20: =IF(OR($F20="ANP",$F20="DAER",$F20="CONSULTORIA DNIT",$F20="PREGÃO ELETRÔNICO",$F20="DMLU",$F20="DMAE",$F20="CEEE",$F20="EPTC",$F20="ORSE",$F20="SEINFRA",$F20="CREA",$F20="CAU",$F20="CEHOP",$F20="SIURB",$F20="DER-PR",$F20="SUDECAP",$F20=Aux.!$G$24,$F20=Aux.!$G$25),VLOOKUP($E20,'Planilha Auxiliar'!$A$4:$L$1000,4,FALSE()),IF($F20="INDEXADO",VLOOKUP($E20,'Index N_DESON.'!$A$9:$S$1305,4,FALSE()),IF($F20="CCU",VLOOKUP($E20,'Resumo CCU N_DESON.'!$A$2:$D$202,3,FALSE()),IF($F20="MERCADO",VLOOKUP('Orçamento N_DESON.'!$E20,'Planillha de cotações'!$B$7:$L$1143,10,FALSE()),IF($F20="PLEO",VLOOKUP($E20,'PLEO N_DESON.'!$A$4:$D$14999,3,FALSE()),IF($F20="SICRO",VLOOKUP($E20,'SICRO N_DESON.'!$A$4:$D$50010,3,FALSE()),IF($F20="SINAPI",IFERROR((VLOOKUP($E20,'comp. SINAPI N_DESON.'!$G$7:$L$50000,3,FALSE())),(VLOOKUP($E20,'ins. SINAPI N_DESON.'!$A$8:$E$15000,3,FALSE()))),"-"))))))) -> - | J20: =IF(OR($F20="ANP",$F20="DAER",$F20="CONSULTORIA DNIT",$F20="PREGÃO ELETRÔNICO",$F20="DMLU",$F20="DMAE",$F20="CEEE",$F20="EPTC",$F20="ORSE",$F20="SEINFRA",$F20="CREA",$F20="CAU",$F20="CEHOP",$F20="SIURB",$F20="DER-PR",$F20="SUDECAP",$F20=Aux.!$G$24,$F20=Aux.!$G$25),VLOOKUP($E20,'Planilha Auxiliar'!$A$4:$H$1000,6,FALSE()),IF($F20="INDEXADO",VLOOKUP($E20,'Index N_DESON.'!$A$9:$U$1305,16,FALSE()),IF($F20="CCU",VLOOKUP($E20,'Resumo CCU N_DESON.'!$A$2:$G$202,5,FALSE()),IF($F20="MERCADO",VLOOKUP('Orçamento N_DESON.'!$E20,'Planillha de cotações'!$B$7:$L$1143,7,FALSE()),IF($F20="PLEO",VLOOKUP($E20,'PLEO N_DESON.'!$A$4:$D$14999,4,FALSE()),IF($F20="SICRO",VLOOKUP($E20,'SICRO N_DESON.'!$A$4:$G$50010,5,FALSE()),IF($F20="SINAPI",IFERROR((VLOOKUP($E20,'comp. SINAPI N_DESON.'!$G$7:$X$50000,18,FALSE())),"-"),"-"))))))) -> - | K20: =IF(OR($F20="ANP",$F20="DAER",$F20="CONSULTORIA DNIT",$F20="PREGÃO ELETRÔNICO",$F20="DMLU",$F20="DMAE",$F20="CEEE",$F20="EPTC",$F20="ORSE",$F20="SEINFRA",$F20="CREA",$F20="CAU",$F20="CEHOP",$F20="SIURB",$F20="DER-PR",$F20="SUDECAP",$F20=Aux.!$G$24,$F20=Aux.!$G$25),VLOOKUP($E20,'Planilha Auxiliar'!$A$4:$H$1000,7,FALSE()),IF($F20="INDEXADO",VLOOKUP($E20,'Index N_DESON.'!$A$9:$U$1305,17,FALSE()),IF($F20="CCU",VLOOKUP($E20,'Resumo CCU N_DESON.'!$A$2:$G$202,6,FALSE()),IF($F20="MERCADO",VLOOKUP('Orçamento N_DESON.'!$E20,'Planillha de cotações'!$B$7:$L$1143,8,FALSE()),IF($F20="PLEO",VLOOKUP($E20,'PLEO N_DESON.'!$A$4:$D$14999,4,FALSE()),IF($F20="SICRO",VLOOKUP($E20,'SICRO N_DESON.'!$A$4:$G$50010,6,FALSE()),IF($F20="SINAPI",SUM(IFERROR((VLOOKUP($E20,'comp. SINAPI N_DESON.'!$G$7:$X$50000,14,FALSE())),"-"),VLOOKUP($E20,'comp. SINAPI N_DESON.'!$G$7:$AB$50000,20,FALSE()),VLOOKUP($E20,'comp. SINAPI N_DESON.'!$G$7:$AB$50000,22,FALSE())),"-"))))))) -> - | L20: =IF(OR($F20="ANP",$F20="DAER",$F20="CONSULTORIA DNIT",$F20="PREGÃO ELETRÔNICO",$F20="DMLU",$F20="DMAE",$F20="CEEE",$F20="EPTC",$F20="ORSE",$F20="SEINFRA",$F20="CREA",$F20="CAU",$F20="CEHOP",$F20="SIURB",$F20="DER-PR",$F20="SUDECAP",$F20=Aux.!$G$24,$F20=Aux.!$G$25),VLOOKUP($E20,'Planilha Auxiliar'!$A$4:$H$1000,8,FALSE()),IF($F20="INDEXADO",VLOOKUP($E20,'Index N_DESON.'!$A$9:$U$1305,18,FALSE()),IF($F20="CCU",VLOOKUP($E20,'Resumo CCU N_DESON.'!$A$2:$G$202,7,FALSE()),IF($F20="MERCADO",VLOOKUP('Orçamento N_DESON.'!$E20,'Planillha de cotações'!$B$7:$L$1143,9,FALSE()),IF($F20="PLEO",VLOOKUP($E20,'PLEO N_DESON.'!$A$4:$D$14999,4,FALSE()),IF($F20="SICRO",VLOOKUP($E20,'SICRO N_DESON.'!$A$4:$G$50010,7,FALSE()),IF($F20="SINAPI",IFERROR((VLOOKUP($E20,'comp. SINAPI N_DESON.'!$G$7:$X$50000,16,FALSE())),(VLOOKUP($E20,'ins. SINAPI N_DESON.'!$A$8:$E$15000,5,FALSE()))),"-"))))))) -> - | M20: =IF(OR($F20="ANP",$F20="DAER",$F20="CONSULTORIA DNIT",$F20="PREGÃO ELETRÔNICO",$F20="DMLU",$F20="DMAE",$F20="CEEE",$F20="EPTC",$F20="ORSE",$F20="SEINFRA",$F20="CREA",$F20="CAU",$F20="CEHOP",$F20="SIURB",$F20="DER-PR",$F20="SUDECAP",$F20=Aux.!$G$24,$F20=Aux.!$G$25),VLOOKUP($E20,'Planilha Auxiliar'!$A$4:$L$1000,5,FALSE()),IF($F20="INDEXADO",VLOOKUP($E20,'Index N_DESON.'!$A$9:$U$1305,19,FALSE()),IF($F20="CCU",VLOOKUP($E20,'Resumo CCU N_DESON.'!$A$2:$D$202,4,FALSE()),IF($F20="MERCADO",VLOOKUP('Orçamento N_DESON.'!$E20,'Planillha de cotações'!$B$7:$L$1143,6,FALSE()),IF($F20="PLEO",VLOOKUP($E20,'PLEO N_DESON.'!$A$4:$D$14999,4,FALSE()),IF($F20="SICRO",VLOOKUP($E20,'SICRO N_DESON.'!$A$4:$D$50010,4,FALSE()),IF($F20="SINAPI",IFERROR((VLOOKUP($E20,'comp. SINAPI N_DESON.'!$G$7:$L$50000,5,FALSE())),(VLOOKUP($E20,'ins. SINAPI N_DESON.'!$A$8:$E$15000,5,FALSE()))),"-"))))))) -> - | N20: - | O20: - | P20: 0 | Q20: 0 | R20: 0 | S20: 0 | V20: 1.10
B21: 0 | D21: 1.11 | G21: =IF(OR($F21="ANP",$F21="DAER",$F21="CONSULTORIA DNIT",$F21="PREGÃO ELETRÔNICO",$F21="DMLU",$F21="DMAE",$F21="CEEE",$F21="EPTC",$F21="ORSE",$F21="SEINFRA",$F21="CREA",$F21="CAU",$F21="CEHOP",$F21="SIURB",$F21="DER-PR",$F21="SUDECAP",$F21=Aux.!$G$24,$F21=Aux.!$G$25),VLOOKUP($E21,'Planilha Auxiliar'!$A$4:$L$1000,3,FALSE()),IF($F21="INDEXADO",CONCATENATE(VLOOKUP($E21,'Index N_DESON.'!$A$9:$S$1305,3,FALSE())," (",VLOOKUP($E21,'Index N_DESON.'!$A$9:$S$1305,2,FALSE()),")"),IF($F21="CCU",VLOOKUP($E21,'Resumo CCU N_DESON.'!$A$2:$D$202,2,FALSE()),IF($F21="MERCADO",VLOOKUP($E21,'Planillha de cotações'!$B$7:$L$102,2,FALSE()),IF($F21="PLEO",VLOOKUP($E21,'PLEO N_DESON.'!$A$4:$D$14999,2,FALSE()),IF($F21="SICRO",VLOOKUP($E21,'SICRO N_DESON.'!$A$4:$D$50010,2,FALSE()),IF($F21="SINAPI",IFERROR((VLOOKUP($E21,'comp. SINAPI N_DESON.'!$G$7:$L$50000,2,FALSE())),(VLOOKUP($E21,'ins. SINAPI N_DESON.'!$A$8:$E$15000,2,FALSE()))),"-"))))))) -> - | H21: =IF(OR($F21="ANP",$F21="DAER",$F21="CONSULTORIA DNIT",$F21="PREGÃO ELETRÔNICO",$F21="DMLU",$F21="DMAE",$F21="CEEE",$F21="EPTC",$F21="ORSE",$F21="SEINFRA",$F21="CREA",$F21="CAU",$F21="CEHOP",$F21="SIURB",$F21="DER-PR",$F21="SUDECAP",$F21=Aux.!$G$24,$F21=Aux.!$G$25),VLOOKUP($E21,'Planilha Auxiliar'!$A$4:$L$1000,4,FALSE()),IF($F21="INDEXADO",VLOOKUP($E21,'Index N_DESON.'!$A$9:$S$1305,4,FALSE()),IF($F21="CCU",VLOOKUP($E21,'Resumo CCU N_DESON.'!$A$2:$D$202,3,FALSE()),IF($F21="MERCADO",VLOOKUP('Orçamento N_DESON.'!$E21,'Planillha de cotações'!$B$7:$L$1143,10,FALSE()),IF($F21="PLEO",VLOOKUP($E21,'PLEO N_DESON.'!$A$4:$D$14999,3,FALSE()),IF($F21="SICRO",VLOOKUP($E21,'SICRO N_DESON.'!$A$4:$D$50010,3,FALSE()),IF($F21="SINAPI",IFERROR((VLOOKUP($E21,'comp. SINAPI N_DESON.'!$G$7:$L$50000,3,FALSE())),(VLOOKUP($E21,'ins. SINAPI N_DESON.'!$A$8:$E$15000,3,FALSE()))),"-"))))))) -> - | J21: =IF(OR($F21="ANP",$F21="DAER",$F21="CONSULTORIA DNIT",$F21="PREGÃO ELETRÔNICO",$F21="DMLU",$F21="DMAE",$F21="CEEE",$F21="EPTC",$F21="ORSE",$F21="SEINFRA",$F21="CREA",$F21="CAU",$F21="CEHOP",$F21="SIURB",$F21="DER-PR",$F21="SUDECAP",$F21=Aux.!$G$24,$F21=Aux.!$G$25),VLOOKUP($E21,'Planilha Auxiliar'!$A$4:$H$1000,6,FALSE()),IF($F21="INDEXADO",VLOOKUP($E21,'Index N_DESON.'!$A$9:$U$1305,16,FALSE()),IF($F21="CCU",VLOOKUP($E21,'Resumo CCU N_DESON.'!$A$2:$G$202,5,FALSE()),IF($F21="MERCADO",VLOOKUP('Orçamento N_DESON.'!$E21,'Planillha de cotações'!$B$7:$L$1143,7,FALSE()),IF($F21="PLEO",VLOOKUP($E21,'PLEO N_DESON.'!$A$4:$D$14999,4,FALSE()),IF($F21="SICRO",VLOOKUP($E21,'SICRO N_DESON.'!$A$4:$G$50010,5,FALSE()),IF($F21="SINAPI",IFERROR((VLOOKUP($E21,'comp. SINAPI N_DESON.'!$G$7:$X$50000,18,FALSE())),"-"),"-"))))))) -> - | K21: =IF(OR($F21="ANP",$F21="DAER",$F21="CONSULTORIA DNIT",$F21="PREGÃO ELETRÔNICO",$F21="DMLU",$F21="DMAE",$F21="CEEE",$F21="EPTC",$F21="ORSE",$F21="SEINFRA",$F21="CREA",$F21="CAU",$F21="CEHOP",$F21="SIURB",$F21="DER-PR",$F21="SUDECAP",$F21=Aux.!$G$24,$F21=Aux.!$G$25),VLOOKUP($E21,'Planilha Auxiliar'!$A$4:$H$1000,7,FALSE()),IF($F21="INDEXADO",VLOOKUP($E21,'Index N_DESON.'!$A$9:$U$1305,17,FALSE()),IF($F21="CCU",VLOOKUP($E21,'Resumo CCU N_DESON.'!$A$2:$G$202,6,FALSE()),IF($F21="MERCADO",VLOOKUP('Orçamento N_DESON.'!$E21,'Planillha de cotações'!$B$7:$L$1143,8,FALSE()),IF($F21="PLEO",VLOOKUP($E21,'PLEO N_DESON.'!$A$4:$D$14999,4,FALSE()),IF($F21="SICRO",VLOOKUP($E21,'SICRO N_DESON.'!$A$4:$G$50010,6,FALSE()),IF($F21="SINAPI",SUM(IFERROR((VLOOKUP($E21,'comp. SINAPI N_DESON.'!$G$7:$X$50000,14,FALSE())),"-"),VLOOKUP($E21,'comp. SINAPI N_DESON.'!$G$7:$AB$50000,20,FALSE()),VLOOKUP($E21,'comp. SINAPI N_DESON.'!$G$7:$AB$50000,22,FALSE())),"-"))))))) -> - | L21: =IF(OR($F21="ANP",$F21="DAER",$F21="CONSULTORIA DNIT",$F21="PREGÃO ELETRÔNICO",$F21="DMLU",$F21="DMAE",$F21="CEEE",$F21="EPTC",$F21="ORSE",$F21="SEINFRA",$F21="CREA",$F21="CAU",$F21="CEHOP",$F21="SIURB",$F21="DER-PR",$F21="SUDECAP",$F21=Aux.!$G$24,$F21=Aux.!$G$25),VLOOKUP($E21,'Planilha Auxiliar'!$A$4:$H$1000,8,FALSE()),IF($F21="INDEXADO",VLOOKUP($E21,'Index N_DESON.'!$A$9:$U$1305,18,FALSE()),IF($F21="CCU",VLOOKUP($E21,'Resumo CCU N_DESON.'!$A$2:$G$202,7,FALSE()),IF($F21="MERCADO",VLOOKUP('Orçamento N_DESON.'!$E21,'Planillha de cotações'!$B$7:$L$1143,9,FALSE()),IF($F21="PLEO",VLOOKUP($E21,'PLEO N_DESON.'!$A$4:$D$14999,4,FALSE()),IF($F21="SICRO",VLOOKUP($E21,'SICRO N_DESON.'!$A$4:$G$50010,7,FALSE()),IF($F21="SINAPI",IFERROR((VLOOKUP($E21,'comp. SINAPI N_DESON.'!$G$7:$X$50000,16,FALSE())),(VLOOKUP($E21,'ins. SINAPI N_DESON.'!$A$8:$E$15000,5,FALSE()))),"-"))))))) -> - | M21: =IF(OR($F21="ANP",$F21="DAER",$F21="CONSULTORIA DNIT",$F21="PREGÃO ELETRÔNICO",$F21="DMLU",$F21="DMAE",$F21="CEEE",$F21="EPTC",$F21="ORSE",$F21="SEINFRA",$F21="CREA",$F21="CAU",$F21="CEHOP",$F21="SIURB",$F21="DER-PR",$F21="SUDECAP",$F21=Aux.!$G$24,$F21=Aux.!$G$25),VLOOKUP($E21,'Planilha Auxiliar'!$A$4:$L$1000,5,FALSE()),IF($F21="INDEXADO",VLOOKUP($E21,'Index N_DESON.'!$A$9:$U$1305,19,FALSE()),IF($F21="CCU",VLOOKUP($E21,'Resumo CCU N_DESON.'!$A$2:$D$202,4,FALSE()),IF($F21="MERCADO",VLOOKUP('Orçamento N_DESON.'!$E21,'Planillha de cotações'!$B$7:$L$1143,6,FALSE()),IF($F21="PLEO",VLOOKUP($E21,'PLEO N_DESON.'!$A$4:$D$14999,4,FALSE()),IF($F21="SICRO",VLOOKUP($E21,'SICRO N_DESON.'!$A$4:$D$50010,4,FALSE()),IF($F21="SINAPI",IFERROR((VLOOKUP($E21,'comp. SINAPI N_DESON.'!$G$7:$L$50000,5,FALSE())),(VLOOKUP($E21,'ins. SINAPI N_DESON.'!$A$8:$E$15000,5,FALSE()))),"-"))))))) -> - | N21: - | O21: - | P21: 0 | Q21: 0 | R21: 0 | S21: 0 | V21: 1.11
B22: 0 | D22: 1.12 | G22: =IF(OR($F22="ANP",$F22="DAER",$F22="CONSULTORIA DNIT",$F22="PREGÃO ELETRÔNICO",$F22="DMLU",$F22="DMAE",$F22="CEEE",$F22="EPTC",$F22="ORSE",$F22="SEINFRA",$F22="CREA",$F22="CAU",$F22="CEHOP",$F22="SIURB",$F22="DER-PR",$F22="SUDECAP",$F22=Aux.!$G$24,$F22=Aux.!$G$25),VLOOKUP($E22,'Planilha Auxiliar'!$A$4:$L$1000,3,FALSE()),IF($F22="INDEXADO",CONCATENATE(VLOOKUP($E22,'Index N_DESON.'!$A$9:$S$1305,3,FALSE())," (",VLOOKUP($E22,'Index N_DESON.'!$A$9:$S$1305,2,FALSE()),")"),IF($F22="CCU",VLOOKUP($E22,'Resumo CCU N_DESON.'!$A$2:$D$202,2,FALSE()),IF($F22="MERCADO",VLOOKUP($E22,'Planillha de cotações'!$B$7:$L$102,2,FALSE()),IF($F22="PLEO",VLOOKUP($E22,'PLEO N_DESON.'!$A$4:$D$14999,2,FALSE()),IF($F22="SICRO",VLOOKUP($E22,'SICRO N_DESON.'!$A$4:$D$50010,2,FALSE()),IF($F22="SINAPI",IFERROR((VLOOKUP($E22,'comp. SINAPI N_DESON.'!$G$7:$L$50000,2,FALSE())),(VLOOKUP($E22,'ins. SINAPI N_DESON.'!$A$8:$E$15000,2,FALSE()))),"-"))))))) -> - | H22: =IF(OR($F22="ANP",$F22="DAER",$F22="CONSULTORIA DNIT",$F22="PREGÃO ELETRÔNICO",$F22="DMLU",$F22="DMAE",$F22="CEEE",$F22="EPTC",$F22="ORSE",$F22="SEINFRA",$F22="CREA",$F22="CAU",$F22="CEHOP",$F22="SIURB",$F22="DER-PR",$F22="SUDECAP",$F22=Aux.!$G$24,$F22=Aux.!$G$25),VLOOKUP($E22,'Planilha Auxiliar'!$A$4:$L$1000,4,FALSE()),IF($F22="INDEXADO",VLOOKUP($E22,'Index N_DESON.'!$A$9:$S$1305,4,FALSE()),IF($F22="CCU",VLOOKUP($E22,'Resumo CCU N_DESON.'!$A$2:$D$202,3,FALSE()),IF($F22="MERCADO",VLOOKUP('Orçamento N_DESON.'!$E22,'Planillha de cotações'!$B$7:$L$1143,10,FALSE()),IF($F22="PLEO",VLOOKUP($E22,'PLEO N_DESON.'!$A$4:$D$14999,3,FALSE()),IF($F22="SICRO",VLOOKUP($E22,'SICRO N_DESON.'!$A$4:$D$50010,3,FALSE()),IF($F22="SINAPI",IFERROR((VLOOKUP($E22,'comp. SINAPI N_DESON.'!$G$7:$L$50000,3,FALSE())),(VLOOKUP($E22,'ins. SINAPI N_DESON.'!$A$8:$E$15000,3,FALSE()))),"-"))))))) -> - | J22: =IF(OR($F22="ANP",$F22="DAER",$F22="CONSULTORIA DNIT",$F22="PREGÃO ELETRÔNICO",$F22="DMLU",$F22="DMAE",$F22="CEEE",$F22="EPTC",$F22="ORSE",$F22="SEINFRA",$F22="CREA",$F22="CAU",$F22="CEHOP",$F22="SIURB",$F22="DER-PR",$F22="SUDECAP",$F22=Aux.!$G$24,$F22=Aux.!$G$25),VLOOKUP($E22,'Planilha Auxiliar'!$A$4:$H$1000,6,FALSE()),IF($F22="INDEXADO",VLOOKUP($E22,'Index N_DESON.'!$A$9:$U$1305,16,FALSE()),IF($F22="CCU",VLOOKUP($E22,'Resumo CCU N_DESON.'!$A$2:$G$202,5,FALSE()),IF($F22="MERCADO",VLOOKUP('Orçamento N_DESON.'!$E22,'Planillha de cotações'!$B$7:$L$1143,7,FALSE()),IF($F22="PLEO",VLOOKUP($E22,'PLEO N_DESON.'!$A$4:$D$14999,4,FALSE()),IF($F22="SICRO",VLOOKUP($E22,'SICRO N_DESON.'!$A$4:$G$50010,5,FALSE()),IF($F22="SINAPI",IFERROR((VLOOKUP($E22,'comp. SINAPI N_DESON.'!$G$7:$X$50000,18,FALSE())),"-"),"-"))))))) -> - | K22: =IF(OR($F22="ANP",$F22="DAER",$F22="CONSULTORIA DNIT",$F22="PREGÃO ELETRÔNICO",$F22="DMLU",$F22="DMAE",$F22="CEEE",$F22="EPTC",$F22="ORSE",$F22="SEINFRA",$F22="CREA",$F22="CAU",$F22="CEHOP",$F22="SIURB",$F22="DER-PR",$F22="SUDECAP",$F22=Aux.!$G$24,$F22=Aux.!$G$25),VLOOKUP($E22,'Planilha Auxiliar'!$A$4:$H$1000,7,FALSE()),IF($F22="INDEXADO",VLOOKUP($E22,'Index N_DESON.'!$A$9:$U$1305,17,FALSE()),IF($F22="CCU",VLOOKUP($E22,'Resumo CCU N_DESON.'!$A$2:$G$202,6,FALSE()),IF($F22="MERCADO",VLOOKUP('Orçamento N_DESON.'!$E22,'Planillha de cotações'!$B$7:$L$1143,8,FALSE()),IF($F22="PLEO",VLOOKUP($E22,'PLEO N_DESON.'!$A$4:$D$14999,4,FALSE()),IF($F22="SICRO",VLOOKUP($E22,'SICRO N_DESON.'!$A$4:$G$50010,6,FALSE()),IF($F22="SINAPI",SUM(IFERROR((VLOOKUP($E22,'comp. SINAPI N_DESON.'!$G$7:$X$50000,14,FALSE())),"-"),VLOOKUP($E22,'comp. SINAPI N_DESON.'!$G$7:$AB$50000,20,FALSE()),VLOOKUP($E22,'comp. SINAPI N_DESON.'!$G$7:$AB$50000,22,FALSE())),"-"))))))) -> - | L22: =IF(OR($F22="ANP",$F22="DAER",$F22="CONSULTORIA DNIT",$F22="PREGÃO ELETRÔNICO",$F22="DMLU",$F22="DMAE",$F22="CEEE",$F22="EPTC",$F22="ORSE",$F22="SEINFRA",$F22="CREA",$F22="CAU",$F22="CEHOP",$F22="SIURB",$F22="DER-PR",$F22="SUDECAP",$F22=Aux.!$G$24,$F22=Aux.!$G$25),VLOOKUP($E22,'Planilha Auxiliar'!$A$4:$H$1000,8,FALSE()),IF($F22="INDEXADO",VLOOKUP($E22,'Index N_DESON.'!$A$9:$U$1305,18,FALSE()),IF($F22="CCU",VLOOKUP($E22,'Resumo CCU N_DESON.'!$A$2:$G$202,7,FALSE()),IF($F22="MERCADO",VLOOKUP('Orçamento N_DESON.'!$E22,'Planillha de cotações'!$B$7:$L$1143,9,FALSE()),IF($F22="PLEO",VLOOKUP($E22,'PLEO N_DESON.'!$A$4:$D$14999,4,FALSE()),IF($F22="SICRO",VLOOKUP($E22,'SICRO N_DESON.'!$A$4:$G$50010,7,FALSE()),IF($F22="SINAPI",IFERROR((VLOOKUP($E22,'comp. SINAPI N_DESON.'!$G$7:$X$50000,16,FALSE())),(VLOOKUP($E22,'ins. SINAPI N_DESON.'!$A$8:$E$15000,5,FALSE()))),"-"))))))) -> - | M22: =IF(OR($F22="ANP",$F22="DAER",$F22="CONSULTORIA DNIT",$F22="PREGÃO ELETRÔNICO",$F22="DMLU",$F22="DMAE",$F22="CEEE",$F22="EPTC",$F22="ORSE",$F22="SEINFRA",$F22="CREA",$F22="CAU",$F22="CEHOP",$F22="SIURB",$F22="DER-PR",$F22="SUDECAP",$F22=Aux.!$G$24,$F22=Aux.!$G$25),VLOOKUP($E22,'Planilha Auxiliar'!$A$4:$L$1000,5,FALSE()),IF($F22="INDEXADO",VLOOKUP($E22,'Index N_DESON.'!$A$9:$U$1305,19,FALSE()),IF($F22="CCU",VLOOKUP($E22,'Resumo CCU N_DESON.'!$A$2:$D$202,4,FALSE()),IF($F22="MERCADO",VLOOKUP('Orçamento N_DESON.'!$E22,'Planillha de cotações'!$B$7:$L$1143,6,FALSE()),IF($F22="PLEO",VLOOKUP($E22,'PLEO N_DESON.'!$A$4:$D$14999,4,FALSE()),IF($F22="SICRO",VLOOKUP($E22,'SICRO N_DESON.'!$A$4:$D$50010,4,FALSE()),IF($F22="SINAPI",IFERROR((VLOOKUP($E22,'comp. SINAPI N_DESON.'!$G$7:$L$50000,5,FALSE())),(VLOOKUP($E22,'ins. SINAPI N_DESON.'!$A$8:$E$15000,5,FALSE()))),"-"))))))) -> - | N22: - | O22: - | P22: 0 | Q22: 0 | R22: 0 | S22: 0 | V22: 1.12
B23: 0 | D23: 1.13 | G23: =IF(OR($F23="ANP",$F23="DAER",$F23="CONSULTORIA DNIT",$F23="PREGÃO ELETRÔNICO",$F23="DMLU",$F23="DMAE",$F23="CEEE",$F23="EPTC",$F23="ORSE",$F23="SEINFRA",$F23="CREA",$F23="CAU",$F23="CEHOP",$F23="SIURB",$F23="DER-PR",$F23="SUDECAP",$F23=Aux.!$G$24,$F23=Aux.!$G$25),VLOOKUP($E23,'Planilha Auxiliar'!$A$4:$L$1000,3,FALSE()),IF($F23="INDEXADO",CONCATENATE(VLOOKUP($E23,'Index N_DESON.'!$A$9:$S$1305,3,FALSE())," (",VLOOKUP($E23,'Index N_DESON.'!$A$9:$S$1305,2,FALSE()),")"),IF($F23="CCU",VLOOKUP($E23,'Resumo CCU N_DESON.'!$A$2:$D$202,2,FALSE()),IF($F23="MERCADO",VLOOKUP($E23,'Planillha de cotações'!$B$7:$L$102,2,FALSE()),IF($F23="PLEO",VLOOKUP($E23,'PLEO N_DESON.'!$A$4:$D$14999,2,FALSE()),IF($F23="SICRO",VLOOKUP($E23,'SICRO N_DESON.'!$A$4:$D$50010,2,FALSE()),IF($F23="SINAPI",IFERROR((VLOOKUP($E23,'comp. SINAPI N_DESON.'!$G$7:$L$50000,2,FALSE())),(VLOOKUP($E23,'ins. SINAPI N_DESON.'!$A$8:$E$15000,2,FALSE()))),"-"))))))) -> - | H23: =IF(OR($F23="ANP",$F23="DAER",$F23="CONSULTORIA DNIT",$F23="PREGÃO ELETRÔNICO",$F23="DMLU",$F23="DMAE",$F23="CEEE",$F23="EPTC",$F23="ORSE",$F23="SEINFRA",$F23="CREA",$F23="CAU",$F23="CEHOP",$F23="SIURB",$F23="DER-PR",$F23="SUDECAP",$F23=Aux.!$G$24,$F23=Aux.!$G$25),VLOOKUP($E23,'Planilha Auxiliar'!$A$4:$L$1000,4,FALSE()),IF($F23="INDEXADO",VLOOKUP($E23,'Index N_DESON.'!$A$9:$S$1305,4,FALSE()),IF($F23="CCU",VLOOKUP($E23,'Resumo CCU N_DESON.'!$A$2:$D$202,3,FALSE()),IF($F23="MERCADO",VLOOKUP('Orçamento N_DESON.'!$E23,'Planillha de cotações'!$B$7:$L$1143,10,FALSE()),IF($F23="PLEO",VLOOKUP($E23,'PLEO N_DESON.'!$A$4:$D$14999,3,FALSE()),IF($F23="SICRO",VLOOKUP($E23,'SICRO N_DESON.'!$A$4:$D$50010,3,FALSE()),IF($F23="SINAPI",IFERROR((VLOOKUP($E23,'comp. SINAPI N_DESON.'!$G$7:$L$50000,3,FALSE())),(VLOOKUP($E23,'ins. SINAPI N_DESON.'!$A$8:$E$15000,3,FALSE()))),"-"))))))) -> - | J23: =IF(OR($F23="ANP",$F23="DAER",$F23="CONSULTORIA DNIT",$F23="PREGÃO ELETRÔNICO",$F23="DMLU",$F23="DMAE",$F23="CEEE",$F23="EPTC",$F23="ORSE",$F23="SEINFRA",$F23="CREA",$F23="CAU",$F23="CEHOP",$F23="SIURB",$F23="DER-PR",$F23="SUDECAP",$F23=Aux.!$G$24,$F23=Aux.!$G$25),VLOOKUP($E23,'Planilha Auxiliar'!$A$4:$H$1000,6,FALSE()),IF($F23="INDEXADO",VLOOKUP($E23,'Index N_DESON.'!$A$9:$U$1305,16,FALSE()),IF($F23="CCU",VLOOKUP($E23,'Resumo CCU N_DESON.'!$A$2:$G$202,5,FALSE()),IF($F23="MERCADO",VLOOKUP('Orçamento N_DESON.'!$E23,'Planillha de cotações'!$B$7:$L$1143,7,FALSE()),IF($F23="PLEO",VLOOKUP($E23,'PLEO N_DESON.'!$A$4:$D$14999,4,FALSE()),IF($F23="SICRO",VLOOKUP($E23,'SICRO N_DESON.'!$A$4:$G$50010,5,FALSE()),IF($F23="SINAPI",IFERROR((VLOOKUP($E23,'comp. SINAPI N_DESON.'!$G$7:$X$50000,18,FALSE())),"-"),"-"))))))) -> - | K23: =IF(OR($F23="ANP",$F23="DAER",$F23="CONSULTORIA DNIT",$F23="PREGÃO ELETRÔNICO",$F23="DMLU",$F23="DMAE",$F23="CEEE",$F23="EPTC",$F23="ORSE",$F23="SEINFRA",$F23="CREA",$F23="CAU",$F23="CEHOP",$F23="SIURB",$F23="DER-PR",$F23="SUDECAP",$F23=Aux.!$G$24,$F23=Aux.!$G$25),VLOOKUP($E23,'Planilha Auxiliar'!$A$4:$H$1000,7,FALSE()),IF($F23="INDEXADO",VLOOKUP($E23,'Index N_DESON.'!$A$9:$U$1305,17,FALSE()),IF($F23="CCU",VLOOKUP($E23,'Resumo CCU N_DESON.'!$A$2:$G$202,6,FALSE()),IF($F23="MERCADO",VLOOKUP('Orçamento N_DESON.'!$E23,'Planillha de cotações'!$B$7:$L$1143,8,FALSE()),IF($F23="PLEO",VLOOKUP($E23,'PLEO N_DESON.'!$A$4:$D$14999,4,FALSE()),IF($F23="SICRO",VLOOKUP($E23,'SICRO N_DESON.'!$A$4:$G$50010,6,FALSE()),IF($F23="SINAPI",SUM(IFERROR((VLOOKUP($E23,'comp. SINAPI N_DESON.'!$G$7:$X$50000,14,FALSE())),"-"),VLOOKUP($E23,'comp. SINAPI N_DESON.'!$G$7:$AB$50000,20,FALSE()),VLOOKUP($E23,'comp. SINAPI N_DESON.'!$G$7:$AB$50000,22,FALSE())),"-"))))))) -> - | L23: =IF(OR($F23="ANP",$F23="DAER",$F23="CONSULTORIA DNIT",$F23="PREGÃO ELETRÔNICO",$F23="DMLU",$F23="DMAE",$F23="CEEE",$F23="EPTC",$F23="ORSE",$F23="SEINFRA",$F23="CREA",$F23="CAU",$F23="CEHOP",$F23="SIURB",$F23="DER-PR",$F23="SUDECAP",$F23=Aux.!$G$24,$F23=Aux.!$G$25),VLOOKUP($E23,'Planilha Auxiliar'!$A$4:$H$1000,8,FALSE()),IF($F23="INDEXADO",VLOOKUP($E23,'Index N_DESON.'!$A$9:$U$1305,18,FALSE()),IF($F23="CCU",VLOOKUP($E23,'Resumo CCU N_DESON.'!$A$2:$G$202,7,FALSE()),IF($F23="MERCADO",VLOOKUP('Orçamento N_DESON.'!$E23,'Planillha de cotações'!$B$7:$L$1143,9,FALSE()),IF($F23="PLEO",VLOOKUP($E23,'PLEO N_DESON.'!$A$4:$D$14999,4,FALSE()),IF($F23="SICRO",VLOOKUP($E23,'SICRO N_DESON.'!$A$4:$G$50010,7,FALSE()),IF($F23="SINAPI",IFERROR((VLOOKUP($E23,'comp. SINAPI N_DESON.'!$G$7:$X$50000,16,FALSE())),(VLOOKUP($E23,'ins. SINAPI N_DESON.'!$A$8:$E$15000,5,FALSE()))),"-"))))))) -> - | M23: =IF(OR($F23="ANP",$F23="DAER",$F23="CONSULTORIA DNIT",$F23="PREGÃO ELETRÔNICO",$F23="DMLU",$F23="DMAE",$F23="CEEE",$F23="EPTC",$F23="ORSE",$F23="SEINFRA",$F23="CREA",$F23="CAU",$F23="CEHOP",$F23="SIURB",$F23="DER-PR",$F23="SUDECAP",$F23=Aux.!$G$24,$F23=Aux.!$G$25),VLOOKUP($E23,'Planilha Auxiliar'!$A$4:$L$1000,5,FALSE()),IF($F23="INDEXADO",VLOOKUP($E23,'Index N_DESON.'!$A$9:$U$1305,19,FALSE()),IF($F23="CCU",VLOOKUP($E23,'Resumo CCU N_DESON.'!$A$2:$D$202,4,FALSE()),IF($F23="MERCADO",VLOOKUP('Orçamento N_DESON.'!$E23,'Planillha de cotações'!$B$7:$L$1143,6,FALSE()),IF($F23="PLEO",VLOOKUP($E23,'PLEO N_DESON.'!$A$4:$D$14999,4,FALSE()),IF($F23="SICRO",VLOOKUP($E23,'SICRO N_DESON.'!$A$4:$D$50010,4,FALSE()),IF($F23="SINAPI",IFERROR((VLOOKUP($E23,'comp. SINAPI N_DESON.'!$G$7:$L$50000,5,FALSE())),(VLOOKUP($E23,'ins. SINAPI N_DESON.'!$A$8:$E$15000,5,FALSE()))),"-"))))))) -> - | N23: - | O23: - | P23: 0 | Q23: 0 | R23: 0 | S23: 0 | V23: 1.13
B24: 0 | D24: 1.14 | G24: =IF(OR($F24="ANP",$F24="DAER",$F24="CONSULTORIA DNIT",$F24="PREGÃO ELETRÔNICO",$F24="DMLU",$F24="DMAE",$F24="CEEE",$F24="EPTC",$F24="ORSE",$F24="SEINFRA",$F24="CREA",$F24="CAU",$F24="CEHOP",$F24="SIURB",$F24="DER-PR",$F24="SUDECAP",$F24=Aux.!$G$24,$F24=Aux.!$G$25),VLOOKUP($E24,'Planilha Auxiliar'!$A$4:$L$1000,3,FALSE()),IF($F24="INDEXADO",CONCATENATE(VLOOKUP($E24,'Index N_DESON.'!$A$9:$S$1305,3,FALSE())," (",VLOOKUP($E24,'Index N_DESON.'!$A$9:$S$1305,2,FALSE()),")"),IF($F24="CCU",VLOOKUP($E24,'Resumo CCU N_DESON.'!$A$2:$D$202,2,FALSE()),IF($F24="MERCADO",VLOOKUP($E24,'Planillha de cotações'!$B$7:$L$102,2,FALSE()),IF($F24="PLEO",VLOOKUP($E24,'PLEO N_DESON.'!$A$4:$D$14999,2,FALSE()),IF($F24="SICRO",VLOOKUP($E24,'SICRO N_DESON.'!$A$4:$D$50010,2,FALSE()),IF($F24="SINAPI",IFERROR((VLOOKUP($E24,'comp. SINAPI N_DESON.'!$G$7:$L$50000,2,FALSE())),(VLOOKUP($E24,'ins. SINAPI N_DESON.'!$A$8:$E$15000,2,FALSE()))),"-"))))))) -> - | H24: =IF(OR($F24="ANP",$F24="DAER",$F24="CONSULTORIA DNIT",$F24="PREGÃO ELETRÔNICO",$F24="DMLU",$F24="DMAE",$F24="CEEE",$F24="EPTC",$F24="ORSE",$F24="SEINFRA",$F24="CREA",$F24="CAU",$F24="CEHOP",$F24="SIURB",$F24="DER-PR",$F24="SUDECAP",$F24=Aux.!$G$24,$F24=Aux.!$G$25),VLOOKUP($E24,'Planilha Auxiliar'!$A$4:$L$1000,4,FALSE()),IF($F24="INDEXADO",VLOOKUP($E24,'Index N_DESON.'!$A$9:$S$1305,4,FALSE()),IF($F24="CCU",VLOOKUP($E24,'Resumo CCU N_DESON.'!$A$2:$D$202,3,FALSE()),IF($F24="MERCADO",VLOOKUP('Orçamento N_DESON.'!$E24,'Planillha de cotações'!$B$7:$L$1143,10,FALSE()),IF($F24="PLEO",VLOOKUP($E24,'PLEO N_DESON.'!$A$4:$D$14999,3,FALSE()),IF($F24="SICRO",VLOOKUP($E24,'SICRO N_DESON.'!$A$4:$D$50010,3,FALSE()),IF($F24="SINAPI",IFERROR((VLOOKUP($E24,'comp. SINAPI N_DESON.'!$G$7:$L$50000,3,FALSE())),(VLOOKUP($E24,'ins. SINAPI N_DESON.'!$A$8:$E$15000,3,FALSE()))),"-"))))))) -> - | J24: =IF(OR($F24="ANP",$F24="DAER",$F24="CONSULTORIA DNIT",$F24="PREGÃO ELETRÔNICO",$F24="DMLU",$F24="DMAE",$F24="CEEE",$F24="EPTC",$F24="ORSE",$F24="SEINFRA",$F24="CREA",$F24="CAU",$F24="CEHOP",$F24="SIURB",$F24="DER-PR",$F24="SUDECAP",$F24=Aux.!$G$24,$F24=Aux.!$G$25),VLOOKUP($E24,'Planilha Auxiliar'!$A$4:$H$1000,6,FALSE()),IF($F24="INDEXADO",VLOOKUP($E24,'Index N_DESON.'!$A$9:$U$1305,16,FALSE()),IF($F24="CCU",VLOOKUP($E24,'Resumo CCU N_DESON.'!$A$2:$G$202,5,FALSE()),IF($F24="MERCADO",VLOOKUP('Orçamento N_DESON.'!$E24,'Planillha de cotações'!$B$7:$L$1143,7,FALSE()),IF($F24="PLEO",VLOOKUP($E24,'PLEO N_DESON.'!$A$4:$D$14999,4,FALSE()),IF($F24="SICRO",VLOOKUP($E24,'SICRO N_DESON.'!$A$4:$G$50010,5,FALSE()),IF($F24="SINAPI",IFERROR((VLOOKUP($E24,'comp. SINAPI N_DESON.'!$G$7:$X$50000,18,FALSE())),"-"),"-"))))))) -> - | K24: =IF(OR($F24="ANP",$F24="DAER",$F24="CONSULTORIA DNIT",$F24="PREGÃO ELETRÔNICO",$F24="DMLU",$F24="DMAE",$F24="CEEE",$F24="EPTC",$F24="ORSE",$F24="SEINFRA",$F24="CREA",$F24="CAU",$F24="CEHOP",$F24="SIURB",$F24="DER-PR",$F24="SUDECAP",$F24=Aux.!$G$24,$F24=Aux.!$G$25),VLOOKUP($E24,'Planilha Auxiliar'!$A$4:$H$1000,7,FALSE()),IF($F24="INDEXADO",VLOOKUP($E24,'Index N_DESON.'!$A$9:$U$1305,17,FALSE()),IF($F24="CCU",VLOOKUP($E24,'Resumo CCU N_DESON.'!$A$2:$G$202,6,FALSE()),IF($F24="MERCADO",VLOOKUP('Orçamento N_DESON.'!$E24,'Planillha de cotações'!$B$7:$L$1143,8,FALSE()),IF($F24="PLEO",VLOOKUP($E24,'PLEO N_DESON.'!$A$4:$D$14999,4,FALSE()),IF($F24="SICRO",VLOOKUP($E24,'SICRO N_DESON.'!$A$4:$G$50010,6,FALSE()),IF($F24="SINAPI",SUM(IFERROR((VLOOKUP($E24,'comp. SINAPI N_DESON.'!$G$7:$X$50000,14,FALSE())),"-"),VLOOKUP($E24,'comp. SINAPI N_DESON.'!$G$7:$AB$50000,20,FALSE()),VLOOKUP($E24,'comp. SINAPI N_DESON.'!$G$7:$AB$50000,22,FALSE())),"-"))))))) -> - | L24: =IF(OR($F24="ANP",$F24="DAER",$F24="CONSULTORIA DNIT",$F24="PREGÃO ELETRÔNICO",$F24="DMLU",$F24="DMAE",$F24="CEEE",$F24="EPTC",$F24="ORSE",$F24="SEINFRA",$F24="CREA",$F24="CAU",$F24="CEHOP",$F24="SIURB",$F24="DER-PR",$F24="SUDECAP",$F24=Aux.!$G$24,$F24=Aux.!$G$25),VLOOKUP($E24,'Planilha Auxiliar'!$A$4:$H$1000,8,FALSE()),IF($F24="INDEXADO",VLOOKUP($E24,'Index N_DESON.'!$A$9:$U$1305,18,FALSE()),IF($F24="CCU",VLOOKUP($E24,'Resumo CCU N_DESON.'!$A$2:$G$202,7,FALSE()),IF($F24="MERCADO",VLOOKUP('Orçamento N_DESON.'!$E24,'Planillha de cotações'!$B$7:$L$1143,9,FALSE()),IF($F24="PLEO",VLOOKUP($E24,'PLEO N_DESON.'!$A$4:$D$14999,4,FALSE()),IF($F24="SICRO",VLOOKUP($E24,'SICRO N_DESON.'!$A$4:$G$50010,7,FALSE()),IF($F24="SINAPI",IFERROR((VLOOKUP($E24,'comp. SINAPI N_DESON.'!$G$7:$X$50000,16,FALSE())),(VLOOKUP($E24,'ins. SINAPI N_DESON.'!$A$8:$E$15000,5,FALSE()))),"-"))))))) -> - | M24: =IF(OR($F24="ANP",$F24="DAER",$F24="CONSULTORIA DNIT",$F24="PREGÃO ELETRÔNICO",$F24="DMLU",$F24="DMAE",$F24="CEEE",$F24="EPTC",$F24="ORSE",$F24="SEINFRA",$F24="CREA",$F24="CAU",$F24="CEHOP",$F24="SIURB",$F24="DER-PR",$F24="SUDECAP",$F24=Aux.!$G$24,$F24=Aux.!$G$25),VLOOKUP($E24,'Planilha Auxiliar'!$A$4:$L$1000,5,FALSE()),IF($F24="INDEXADO",VLOOKUP($E24,'Index N_DESON.'!$A$9:$U$1305,19,FALSE()),IF($F24="CCU",VLOOKUP($E24,'Resumo CCU N_DESON.'!$A$2:$D$202,4,FALSE()),IF($F24="MERCADO",VLOOKUP('Orçamento N_DESON.'!$E24,'Planillha de cotações'!$B$7:$L$1143,6,FALSE()),IF($F24="PLEO",VLOOKUP($E24,'PLEO N_DESON.'!$A$4:$D$14999,4,FALSE()),IF($F24="SICRO",VLOOKUP($E24,'SICRO N_DESON.'!$A$4:$D$50010,4,FALSE()),IF($F24="SINAPI",IFERROR((VLOOKUP($E24,'comp. SINAPI N_DESON.'!$G$7:$L$50000,5,FALSE())),(VLOOKUP($E24,'ins. SINAPI N_DESON.'!$A$8:$E$15000,5,FALSE()))),"-"))))))) -> - | N24: - | O24: - | P24: 0 | Q24: 0 | R24: 0 | S24: 0 | V24: 1.14
B25: 0 | D25: 1.15 | G25: =IF(OR($F25="ANP",$F25="DAER",$F25="CONSULTORIA DNIT",$F25="PREGÃO ELETRÔNICO",$F25="DMLU",$F25="DMAE",$F25="CEEE",$F25="EPTC",$F25="ORSE",$F25="SEINFRA",$F25="CREA",$F25="CAU",$F25="CEHOP",$F25="SIURB",$F25="DER-PR",$F25="SUDECAP",$F25=Aux.!$G$24,$F25=Aux.!$G$25),VLOOKUP($E25,'Planilha Auxiliar'!$A$4:$L$1000,3,FALSE()),IF($F25="INDEXADO",CONCATENATE(VLOOKUP($E25,'Index N_DESON.'!$A$9:$S$1305,3,FALSE())," (",VLOOKUP($E25,'Index N_DESON.'!$A$9:$S$1305,2,FALSE()),")"),IF($F25="CCU",VLOOKUP($E25,'Resumo CCU N_DESON.'!$A$2:$D$202,2,FALSE()),IF($F25="MERCADO",VLOOKUP($E25,'Planillha de cotações'!$B$7:$L$102,2,FALSE()),IF($F25="PLEO",VLOOKUP($E25,'PLEO N_DESON.'!$A$4:$D$14999,2,FALSE()),IF($F25="SICRO",VLOOKUP($E25,'SICRO N_DESON.'!$A$4:$D$50010,2,FALSE()),IF($F25="SINAPI",IFERROR((VLOOKUP($E25,'comp. SINAPI N_DESON.'!$G$7:$L$50000,2,FALSE())),(VLOOKUP($E25,'ins. SINAPI N_DESON.'!$A$8:$E$15000,2,FALSE()))),"-"))))))) -> - | H25: =IF(OR($F25="ANP",$F25="DAER",$F25="CONSULTORIA DNIT",$F25="PREGÃO ELETRÔNICO",$F25="DMLU",$F25="DMAE",$F25="CEEE",$F25="EPTC",$F25="ORSE",$F25="SEINFRA",$F25="CREA",$F25="CAU",$F25="CEHOP",$F25="SIURB",$F25="DER-PR",$F25="SUDECAP",$F25=Aux.!$G$24,$F25=Aux.!$G$25),VLOOKUP($E25,'Planilha Auxiliar'!$A$4:$L$1000,4,FALSE()),IF($F25="INDEXADO",VLOOKUP($E25,'Index N_DESON.'!$A$9:$S$1305,4,FALSE()),IF($F25="CCU",VLOOKUP($E25,'Resumo CCU N_DESON.'!$A$2:$D$202,3,FALSE()),IF($F25="MERCADO",VLOOKUP('Orçamento N_DESON.'!$E25,'Planillha de cotações'!$B$7:$L$1143,10,FALSE()),IF($F25="PLEO",VLOOKUP($E25,'PLEO N_DESON.'!$A$4:$D$14999,3,FALSE()),IF($F25="SICRO",VLOOKUP($E25,'SICRO N_DESON.'!$A$4:$D$50010,3,FALSE()),IF($F25="SINAPI",IFERROR((VLOOKUP($E25,'comp. SINAPI N_DESON.'!$G$7:$L$50000,3,FALSE())),(VLOOKUP($E25,'ins. SINAPI N_DESON.'!$A$8:$E$15000,3,FALSE()))),"-"))))))) -> - | J25: =IF(OR($F25="ANP",$F25="DAER",$F25="CONSULTORIA DNIT",$F25="PREGÃO ELETRÔNICO",$F25="DMLU",$F25="DMAE",$F25="CEEE",$F25="EPTC",$F25="ORSE",$F25="SEINFRA",$F25="CREA",$F25="CAU",$F25="CEHOP",$F25="SIURB",$F25="DER-PR",$F25="SUDECAP",$F25=Aux.!$G$24,$F25=Aux.!$G$25),VLOOKUP($E25,'Planilha Auxiliar'!$A$4:$H$1000,6,FALSE()),IF($F25="INDEXADO",VLOOKUP($E25,'Index N_DESON.'!$A$9:$U$1305,16,FALSE()),IF($F25="CCU",VLOOKUP($E25,'Resumo CCU N_DESON.'!$A$2:$G$202,5,FALSE()),IF($F25="MERCADO",VLOOKUP('Orçamento N_DESON.'!$E25,'Planillha de cotações'!$B$7:$L$1143,7,FALSE()),IF($F25="PLEO",VLOOKUP($E25,'PLEO N_DESON.'!$A$4:$D$14999,4,FALSE()),IF($F25="SICRO",VLOOKUP($E25,'SICRO N_DESON.'!$A$4:$G$50010,5,FALSE()),IF($F25="SINAPI",IFERROR((VLOOKUP($E25,'comp. SINAPI N_DESON.'!$G$7:$X$50000,18,FALSE())),"-"),"-"))))))) -> - | K25: =IF(OR($F25="ANP",$F25="DAER",$F25="CONSULTORIA DNIT",$F25="PREGÃO ELETRÔNICO",$F25="DMLU",$F25="DMAE",$F25="CEEE",$F25="EPTC",$F25="ORSE",$F25="SEINFRA",$F25="CREA",$F25="CAU",$F25="CEHOP",$F25="SIURB",$F25="DER-PR",$F25="SUDECAP",$F25=Aux.!$G$24,$F25=Aux.!$G$25),VLOOKUP($E25,'Planilha Auxiliar'!$A$4:$H$1000,7,FALSE()),IF($F25="INDEXADO",VLOOKUP($E25,'Index N_DESON.'!$A$9:$U$1305,17,FALSE()),IF($F25="CCU",VLOOKUP($E25,'Resumo CCU N_DESON.'!$A$2:$G$202,6,FALSE()),IF($F25="MERCADO",VLOOKUP('Orçamento N_DESON.'!$E25,'Planillha de cotações'!$B$7:$L$1143,8,FALSE()),IF($F25="PLEO",VLOOKUP($E25,'PLEO N_DESON.'!$A$4:$D$14999,4,FALSE()),IF($F25="SICRO",VLOOKUP($E25,'SICRO N_DESON.'!$A$4:$G$50010,6,FALSE()),IF($F25="SINAPI",SUM(IFERROR((VLOOKUP($E25,'comp. SINAPI N_DESON.'!$G$7:$X$50000,14,FALSE())),"-"),VLOOKUP($E25,'comp. SINAPI N_DESON.'!$G$7:$AB$50000,20,FALSE()),VLOOKUP($E25,'comp. SINAPI N_DESON.'!$G$7:$AB$50000,22,FALSE())),"-"))))))) -> - | L25: =IF(OR($F25="ANP",$F25="DAER",$F25="CONSULTORIA DNIT",$F25="PREGÃO ELETRÔNICO",$F25="DMLU",$F25="DMAE",$F25="CEEE",$F25="EPTC",$F25="ORSE",$F25="SEINFRA",$F25="CREA",$F25="CAU",$F25="CEHOP",$F25="SIURB",$F25="DER-PR",$F25="SUDECAP",$F25=Aux.!$G$24,$F25=Aux.!$G$25),VLOOKUP($E25,'Planilha Auxiliar'!$A$4:$H$1000,8,FALSE()),IF($F25="INDEXADO",VLOOKUP($E25,'Index N_DESON.'!$A$9:$U$1305,18,FALSE()),IF($F25="CCU",VLOOKUP($E25,'Resumo CCU N_DESON.'!$A$2:$G$202,7,FALSE()),IF($F25="MERCADO",VLOOKUP('Orçamento N_DESON.'!$E25,'Planillha de cotações'!$B$7:$L$1143,9,FALSE()),IF($F25="PLEO",VLOOKUP($E25,'PLEO N_DESON.'!$A$4:$D$14999,4,FALSE()),IF($F25="SICRO",VLOOKUP($E25,'SICRO N_DESON.'!$A$4:$G$50010,7,FALSE()),IF($F25="SINAPI",IFERROR((VLOOKUP($E25,'comp. SINAPI N_DESON.'!$G$7:$X$50000,16,FALSE())),(VLOOKUP($E25,'ins. SINAPI N_DESON.'!$A$8:$E$15000,5,FALSE()))),"-"))))))) -> - | M25: =IF(OR($F25="ANP",$F25="DAER",$F25="CONSULTORIA DNIT",$F25="PREGÃO ELETRÔNICO",$F25="DMLU",$F25="DMAE",$F25="CEEE",$F25="EPTC",$F25="ORSE",$F25="SEINFRA",$F25="CREA",$F25="CAU",$F25="CEHOP",$F25="SIURB",$F25="DER-PR",$F25="SUDECAP",$F25=Aux.!$G$24,$F25=Aux.!$G$25),VLOOKUP($E25,'Planilha Auxiliar'!$A$4:$L$1000,5,FALSE()),IF($F25="INDEXADO",VLOOKUP($E25,'Index N_DESON.'!$A$9:$U$1305,19,FALSE()),IF($F25="CCU",VLOOKUP($E25,'Resumo CCU N_DESON.'!$A$2:$D$202,4,FALSE()),IF($F25="MERCADO",VLOOKUP('Orçamento N_DESON.'!$E25,'Planillha de cotações'!$B$7:$L$1143,6,FALSE()),IF($F25="PLEO",VLOOKUP($E25,'PLEO N_DESON.'!$A$4:$D$14999,4,FALSE()),IF($F25="SICRO",VLOOKUP($E25,'SICRO N_DESON.'!$A$4:$D$50010,4,FALSE()),IF($F25="SINAPI",IFERROR((VLOOKUP($E25,'comp. SINAPI N_DESON.'!$G$7:$L$50000,5,FALSE())),(VLOOKUP($E25,'ins. SINAPI N_DESON.'!$A$8:$E$15000,5,FALSE()))),"-"))))))) -> - | N25: - | O25: - | P25: 0 | Q25: 0 | R25: 0 | S25: 0 | V25: 1.15
B26: 0 | D26: 1.16 | G26: =IF(OR($F26="ANP",$F26="DAER",$F26="CONSULTORIA DNIT",$F26="PREGÃO ELETRÔNICO",$F26="DMLU",$F26="DMAE",$F26="CEEE",$F26="EPTC",$F26="ORSE",$F26="SEINFRA",$F26="CREA",$F26="CAU",$F26="CEHOP",$F26="SIURB",$F26="DER-PR",$F26="SUDECAP",$F26=Aux.!$G$24,$F26=Aux.!$G$25),VLOOKUP($E26,'Planilha Auxiliar'!$A$4:$L$1000,3,FALSE()),IF($F26="INDEXADO",CONCATENATE(VLOOKUP($E26,'Index N_DESON.'!$A$9:$S$1305,3,FALSE())," (",VLOOKUP($E26,'Index N_DESON.'!$A$9:$S$1305,2,FALSE()),")"),IF($F26="CCU",VLOOKUP($E26,'Resumo CCU N_DESON.'!$A$2:$D$202,2,FALSE()),IF($F26="MERCADO",VLOOKUP($E26,'Planillha de cotações'!$B$7:$L$102,2,FALSE()),IF($F26="PLEO",VLOOKUP($E26,'PLEO N_DESON.'!$A$4:$D$14999,2,FALSE()),IF($F26="SICRO",VLOOKUP($E26,'SICRO N_DESON.'!$A$4:$D$50010,2,FALSE()),IF($F26="SINAPI",IFERROR((VLOOKUP($E26,'comp. SINAPI N_DESON.'!$G$7:$L$50000,2,FALSE())),(VLOOKUP($E26,'ins. SINAPI N_DESON.'!$A$8:$E$15000,2,FALSE()))),"-"))))))) -> - | H26: =IF(OR($F26="ANP",$F26="DAER",$F26="CONSULTORIA DNIT",$F26="PREGÃO ELETRÔNICO",$F26="DMLU",$F26="DMAE",$F26="CEEE",$F26="EPTC",$F26="ORSE",$F26="SEINFRA",$F26="CREA",$F26="CAU",$F26="CEHOP",$F26="SIURB",$F26="DER-PR",$F26="SUDECAP",$F26=Aux.!$G$24,$F26=Aux.!$G$25),VLOOKUP($E26,'Planilha Auxiliar'!$A$4:$L$1000,4,FALSE()),IF($F26="INDEXADO",VLOOKUP($E26,'Index N_DESON.'!$A$9:$S$1305,4,FALSE()),IF($F26="CCU",VLOOKUP($E26,'Resumo CCU N_DESON.'!$A$2:$D$202,3,FALSE()),IF($F26="MERCADO",VLOOKUP('Orçamento N_DESON.'!$E26,'Planillha de cotações'!$B$7:$L$1143,10,FALSE()),IF($F26="PLEO",VLOOKUP($E26,'PLEO N_DESON.'!$A$4:$D$14999,3,FALSE()),IF($F26="SICRO",VLOOKUP($E26,'SICRO N_DESON.'!$A$4:$D$50010,3,FALSE()),IF($F26="SINAPI",IFERROR((VLOOKUP($E26,'comp. SINAPI N_DESON.'!$G$7:$L$50000,3,FALSE())),(VLOOKUP($E26,'ins. SINAPI N_DESON.'!$A$8:$E$15000,3,FALSE()))),"-"))))))) -> - | J26: =IF(OR($F26="ANP",$F26="DAER",$F26="CONSULTORIA DNIT",$F26="PREGÃO ELETRÔNICO",$F26="DMLU",$F26="DMAE",$F26="CEEE",$F26="EPTC",$F26="ORSE",$F26="SEINFRA",$F26="CREA",$F26="CAU",$F26="CEHOP",$F26="SIURB",$F26="DER-PR",$F26="SUDECAP",$F26=Aux.!$G$24,$F26=Aux.!$G$25),VLOOKUP($E26,'Planilha Auxiliar'!$A$4:$H$1000,6,FALSE()),IF($F26="INDEXADO",VLOOKUP($E26,'Index N_DESON.'!$A$9:$U$1305,16,FALSE()),IF($F26="CCU",VLOOKUP($E26,'Resumo CCU N_DESON.'!$A$2:$G$202,5,FALSE()),IF($F26="MERCADO",VLOOKUP('Orçamento N_DESON.'!$E26,'Planillha de cotações'!$B$7:$L$1143,7,FALSE()),IF($F26="PLEO",VLOOKUP($E26,'PLEO N_DESON.'!$A$4:$D$14999,4,FALSE()),IF($F26="SICRO",VLOOKUP($E26,'SICRO N_DESON.'!$A$4:$G$50010,5,FALSE()),IF($F26="SINAPI",IFERROR((VLOOKUP($E26,'comp. SINAPI N_DESON.'!$G$7:$X$50000,18,FALSE())),"-"),"-"))))))) -> - | K26: =IF(OR($F26="ANP",$F26="DAER",$F26="CONSULTORIA DNIT",$F26="PREGÃO ELETRÔNICO",$F26="DMLU",$F26="DMAE",$F26="CEEE",$F26="EPTC",$F26="ORSE",$F26="SEINFRA",$F26="CREA",$F26="CAU",$F26="CEHOP",$F26="SIURB",$F26="DER-PR",$F26="SUDECAP",$F26=Aux.!$G$24,$F26=Aux.!$G$25),VLOOKUP($E26,'Planilha Auxiliar'!$A$4:$H$1000,7,FALSE()),IF($F26="INDEXADO",VLOOKUP($E26,'Index N_DESON.'!$A$9:$U$1305,17,FALSE()),IF($F26="CCU",VLOOKUP($E26,'Resumo CCU N_DESON.'!$A$2:$G$202,6,FALSE()),IF($F26="MERCADO",VLOOKUP('Orçamento N_DESON.'!$E26,'Planillha de cotações'!$B$7:$L$1143,8,FALSE()),IF($F26="PLEO",VLOOKUP($E26,'PLEO N_DESON.'!$A$4:$D$14999,4,FALSE()),IF($F26="SICRO",VLOOKUP($E26,'SICRO N_DESON.'!$A$4:$G$50010,6,FALSE()),IF($F26="SINAPI",SUM(IFERROR((VLOOKUP($E26,'comp. SINAPI N_DESON.'!$G$7:$X$50000,14,FALSE())),"-"),VLOOKUP($E26,'comp. SINAPI N_DESON.'!$G$7:$AB$50000,20,FALSE()),VLOOKUP($E26,'comp. SINAPI N_DESON.'!$G$7:$AB$50000,22,FALSE())),"-"))))))) -> - | L26: =IF(OR($F26="ANP",$F26="DAER",$F26="CONSULTORIA DNIT",$F26="PREGÃO ELETRÔNICO",$F26="DMLU",$F26="DMAE",$F26="CEEE",$F26="EPTC",$F26="ORSE",$F26="SEINFRA",$F26="CREA",$F26="CAU",$F26="CEHOP",$F26="SIURB",$F26="DER-PR",$F26="SUDECAP",$F26=Aux.!$G$24,$F26=Aux.!$G$25),VLOOKUP($E26,'Planilha Auxiliar'!$A$4:$H$1000,8,FALSE()),IF($F26="INDEXADO",VLOOKUP($E26,'Index N_DESON.'!$A$9:$U$1305,18,FALSE()),IF($F26="CCU",VLOOKUP($E26,'Resumo CCU N_DESON.'!$A$2:$G$202,7,FALSE()),IF($F26="MERCADO",VLOOKUP('Orçamento N_DESON.'!$E26,'Planillha de cotações'!$B$7:$L$1143,9,FALSE()),IF($F26="PLEO",VLOOKUP($E26,'PLEO N_DESON.'!$A$4:$D$14999,4,FALSE()),IF($F26="SICRO",VLOOKUP($E26,'SICRO N_DESON.'!$A$4:$G$50010,7,FALSE()),IF($F26="SINAPI",IFERROR((VLOOKUP($E26,'comp. SINAPI N_DESON.'!$G$7:$X$50000,16,FALSE())),(VLOOKUP($E26,'ins. SINAPI N_DESON.'!$A$8:$E$15000,5,FALSE()))),"-"))))))) -> - | M26: =IF(OR($F26="ANP",$F26="DAER",$F26="CONSULTORIA DNIT",$F26="PREGÃO ELETRÔNICO",$F26="DMLU",$F26="DMAE",$F26="CEEE",$F26="EPTC",$F26="ORSE",$F26="SEINFRA",$F26="CREA",$F26="CAU",$F26="CEHOP",$F26="SIURB",$F26="DER-PR",$F26="SUDECAP",$F26=Aux.!$G$24,$F26=Aux.!$G$25),VLOOKUP($E26,'Planilha Auxiliar'!$A$4:$L$1000,5,FALSE()),IF($F26="INDEXADO",VLOOKUP($E26,'Index N_DESON.'!$A$9:$U$1305,19,FALSE()),IF($F26="CCU",VLOOKUP($E26,'Resumo CCU N_DESON.'!$A$2:$D$202,4,FALSE()),IF($F26="MERCADO",VLOOKUP('Orçamento N_DESON.'!$E26,'Planillha de cotações'!$B$7:$L$1143,6,FALSE()),IF($F26="PLEO",VLOOKUP($E26,'PLEO N_DESON.'!$A$4:$D$14999,4,FALSE()),IF($F26="SICRO",VLOOKUP($E26,'SICRO N_DESON.'!$A$4:$D$50010,4,FALSE()),IF($F26="SINAPI",IFERROR((VLOOKUP($E26,'comp. SINAPI N_DESON.'!$G$7:$L$50000,5,FALSE())),(VLOOKUP($E26,'ins. SINAPI N_DESON.'!$A$8:$E$15000,5,FALSE()))),"-"))))))) -> - | N26: - | O26: - | P26: 0 | Q26: 0 | R26: 0 | S26: 0 | V26: 1.16
B27: 0 | D27: 1.17 | G27: =IF(OR($F27="ANP",$F27="DAER",$F27="CONSULTORIA DNIT",$F27="PREGÃO ELETRÔNICO",$F27="DMLU",$F27="DMAE",$F27="CEEE",$F27="EPTC",$F27="ORSE",$F27="SEINFRA",$F27="CREA",$F27="CAU",$F27="CEHOP",$F27="SIURB",$F27="DER-PR",$F27="SUDECAP",$F27=Aux.!$G$24,$F27=Aux.!$G$25),VLOOKUP($E27,'Planilha Auxiliar'!$A$4:$L$1000,3,FALSE()),IF($F27="INDEXADO",CONCATENATE(VLOOKUP($E27,'Index N_DESON.'!$A$9:$S$1305,3,FALSE())," (",VLOOKUP($E27,'Index N_DESON.'!$A$9:$S$1305,2,FALSE()),")"),IF($F27="CCU",VLOOKUP($E27,'Resumo CCU N_DESON.'!$A$2:$D$202,2,FALSE()),IF($F27="MERCADO",VLOOKUP($E27,'Planillha de cotações'!$B$7:$L$102,2,FALSE()),IF($F27="PLEO",VLOOKUP($E27,'PLEO N_DESON.'!$A$4:$D$14999,2,FALSE()),IF($F27="SICRO",VLOOKUP($E27,'SICRO N_DESON.'!$A$4:$D$50010,2,FALSE()),IF($F27="SINAPI",IFERROR((VLOOKUP($E27,'comp. SINAPI N_DESON.'!$G$7:$L$50000,2,FALSE())),(VLOOKUP($E27,'ins. SINAPI N_DESON.'!$A$8:$E$15000,2,FALSE()))),"-"))))))) -> - | H27: =IF(OR($F27="ANP",$F27="DAER",$F27="CONSULTORIA DNIT",$F27="PREGÃO ELETRÔNICO",$F27="DMLU",$F27="DMAE",$F27="CEEE",$F27="EPTC",$F27="ORSE",$F27="SEINFRA",$F27="CREA",$F27="CAU",$F27="CEHOP",$F27="SIURB",$F27="DER-PR",$F27="SUDECAP",$F27=Aux.!$G$24,$F27=Aux.!$G$25),VLOOKUP($E27,'Planilha Auxiliar'!$A$4:$L$1000,4,FALSE()),IF($F27="INDEXADO",VLOOKUP($E27,'Index N_DESON.'!$A$9:$S$1305,4,FALSE()),IF($F27="CCU",VLOOKUP($E27,'Resumo CCU N_DESON.'!$A$2:$D$202,3,FALSE()),IF($F27="MERCADO",VLOOKUP('Orçamento N_DESON.'!$E27,'Planillha de cotações'!$B$7:$L$1143,10,FALSE()),IF($F27="PLEO",VLOOKUP($E27,'PLEO N_DESON.'!$A$4:$D$14999,3,FALSE()),IF($F27="SICRO",VLOOKUP($E27,'SICRO N_DESON.'!$A$4:$D$50010,3,FALSE()),IF($F27="SINAPI",IFERROR((VLOOKUP($E27,'comp. SINAPI N_DESON.'!$G$7:$L$50000,3,FALSE())),(VLOOKUP($E27,'ins. SINAPI N_DESON.'!$A$8:$E$15000,3,FALSE()))),"-"))))))) -> - | J27: =IF(OR($F27="ANP",$F27="DAER",$F27="CONSULTORIA DNIT",$F27="PREGÃO ELETRÔNICO",$F27="DMLU",$F27="DMAE",$F27="CEEE",$F27="EPTC",$F27="ORSE",$F27="SEINFRA",$F27="CREA",$F27="CAU",$F27="CEHOP",$F27="SIURB",$F27="DER-PR",$F27="SUDECAP",$F27=Aux.!$G$24,$F27=Aux.!$G$25),VLOOKUP($E27,'Planilha Auxiliar'!$A$4:$H$1000,6,FALSE()),IF($F27="INDEXADO",VLOOKUP($E27,'Index N_DESON.'!$A$9:$U$1305,16,FALSE()),IF($F27="CCU",VLOOKUP($E27,'Resumo CCU N_DESON.'!$A$2:$G$202,5,FALSE()),IF($F27="MERCADO",VLOOKUP('Orçamento N_DESON.'!$E27,'Planillha de cotações'!$B$7:$L$1143,7,FALSE()),IF($F27="PLEO",VLOOKUP($E27,'PLEO N_DESON.'!$A$4:$D$14999,4,FALSE()),IF($F27="SICRO",VLOOKUP($E27,'SICRO N_DESON.'!$A$4:$G$50010,5,FALSE()),IF($F27="SINAPI",IFERROR((VLOOKUP($E27,'comp. SINAPI N_DESON.'!$G$7:$X$50000,18,FALSE())),"-"),"-"))))))) -> - | K27: =IF(OR($F27="ANP",$F27="DAER",$F27="CONSULTORIA DNIT",$F27="PREGÃO ELETRÔNICO",$F27="DMLU",$F27="DMAE",$F27="CEEE",$F27="EPTC",$F27="ORSE",$F27="SEINFRA",$F27="CREA",$F27="CAU",$F27="CEHOP",$F27="SIURB",$F27="DER-PR",$F27="SUDECAP",$F27=Aux.!$G$24,$F27=Aux.!$G$25),VLOOKUP($E27,'Planilha Auxiliar'!$A$4:$H$1000,7,FALSE()),IF($F27="INDEXADO",VLOOKUP($E27,'Index N_DESON.'!$A$9:$U$1305,17,FALSE()),IF($F27="CCU",VLOOKUP($E27,'Resumo CCU N_DESON.'!$A$2:$G$202,6,FALSE()),IF($F27="MERCADO",VLOOKUP('Orçamento N_DESON.'!$E27,'Planillha de cotações'!$B$7:$L$1143,8,FALSE()),IF($F27="PLEO",VLOOKUP($E27,'PLEO N_DESON.'!$A$4:$D$14999,4,FALSE()),IF($F27="SICRO",VLOOKUP($E27,'SICRO N_DESON.'!$A$4:$G$50010,6,FALSE()),IF($F27="SINAPI",SUM(IFERROR((VLOOKUP($E27,'comp. SINAPI N_DESON.'!$G$7:$X$50000,14,FALSE())),"-"),VLOOKUP($E27,'comp. SINAPI N_DESON.'!$G$7:$AB$50000,20,FALSE()),VLOOKUP($E27,'comp. SINAPI N_DESON.'!$G$7:$AB$50000,22,FALSE())),"-"))))))) -> - | L27: =IF(OR($F27="ANP",$F27="DAER",$F27="CONSULTORIA DNIT",$F27="PREGÃO ELETRÔNICO",$F27="DMLU",$F27="DMAE",$F27="CEEE",$F27="EPTC",$F27="ORSE",$F27="SEINFRA",$F27="CREA",$F27="CAU",$F27="CEHOP",$F27="SIURB",$F27="DER-PR",$F27="SUDECAP",$F27=Aux.!$G$24,$F27=Aux.!$G$25),VLOOKUP($E27,'Planilha Auxiliar'!$A$4:$H$1000,8,FALSE()),IF($F27="INDEXADO",VLOOKUP($E27,'Index N_DESON.'!$A$9:$U$1305,18,FALSE()),IF($F27="CCU",VLOOKUP($E27,'Resumo CCU N_DESON.'!$A$2:$G$202,7,FALSE()),IF($F27="MERCADO",VLOOKUP('Orçamento N_DESON.'!$E27,'Planillha de cotações'!$B$7:$L$1143,9,FALSE()),IF($F27="PLEO",VLOOKUP($E27,'PLEO N_DESON.'!$A$4:$D$14999,4,FALSE()),IF($F27="SICRO",VLOOKUP($E27,'SICRO N_DESON.'!$A$4:$G$50010,7,FALSE()),IF($F27="SINAPI",IFERROR((VLOOKUP($E27,'comp. SINAPI N_DESON.'!$G$7:$X$50000,16,FALSE())),(VLOOKUP($E27,'ins. SINAPI N_DESON.'!$A$8:$E$15000,5,FALSE()))),"-"))))))) -> - | M27: =IF(OR($F27="ANP",$F27="DAER",$F27="CONSULTORIA DNIT",$F27="PREGÃO ELETRÔNICO",$F27="DMLU",$F27="DMAE",$F27="CEEE",$F27="EPTC",$F27="ORSE",$F27="SEINFRA",$F27="CREA",$F27="CAU",$F27="CEHOP",$F27="SIURB",$F27="DER-PR",$F27="SUDECAP",$F27=Aux.!$G$24,$F27=Aux.!$G$25),VLOOKUP($E27,'Planilha Auxiliar'!$A$4:$L$1000,5,FALSE()),IF($F27="INDEXADO",VLOOKUP($E27,'Index N_DESON.'!$A$9:$U$1305,19,FALSE()),IF($F27="CCU",VLOOKUP($E27,'Resumo CCU N_DESON.'!$A$2:$D$202,4,FALSE()),IF($F27="MERCADO",VLOOKUP('Orçamento N_DESON.'!$E27,'Planillha de cotações'!$B$7:$L$1143,6,FALSE()),IF($F27="PLEO",VLOOKUP($E27,'PLEO N_DESON.'!$A$4:$D$14999,4,FALSE()),IF($F27="SICRO",VLOOKUP($E27,'SICRO N_DESON.'!$A$4:$D$50010,4,FALSE()),IF($F27="SINAPI",IFERROR((VLOOKUP($E27,'comp. SINAPI N_DESON.'!$G$7:$L$50000,5,FALSE())),(VLOOKUP($E27,'ins. SINAPI N_DESON.'!$A$8:$E$15000,5,FALSE()))),"-"))))))) -> - | N27: - | O27: - | P27: 0 | Q27: 0 | R27: 0 | S27: 0 | V27: 1.17
B28: 0 | D28: 1.18 | G28: =IF(OR($F28="ANP",$F28="DAER",$F28="CONSULTORIA DNIT",$F28="PREGÃO ELETRÔNICO",$F28="DMLU",$F28="DMAE",$F28="CEEE",$F28="EPTC",$F28="ORSE",$F28="SEINFRA",$F28="CREA",$F28="CAU",$F28="CEHOP",$F28="SIURB",$F28="DER-PR",$F28="SUDECAP",$F28=Aux.!$G$24,$F28=Aux.!$G$25),VLOOKUP($E28,'Planilha Auxiliar'!$A$4:$L$1000,3,FALSE()),IF($F28="INDEXADO",CONCATENATE(VLOOKUP($E28,'Index N_DESON.'!$A$9:$S$1305,3,FALSE())," (",VLOOKUP($E28,'Index N_DESON.'!$A$9:$S$1305,2,FALSE()),")"),IF($F28="CCU",VLOOKUP($E28,'Resumo CCU N_DESON.'!$A$2:$D$202,2,FALSE()),IF($F28="MERCADO",VLOOKUP($E28,'Planillha de cotações'!$B$7:$L$102,2,FALSE()),IF($F28="PLEO",VLOOKUP($E28,'PLEO N_DESON.'!$A$4:$D$14999,2,FALSE()),IF($F28="SICRO",VLOOKUP($E28,'SICRO N_DESON.'!$A$4:$D$50010,2,FALSE()),IF($F28="SINAPI",IFERROR((VLOOKUP($E28,'comp. SINAPI N_DESON.'!$G$7:$L$50000,2,FALSE())),(VLOOKUP($E28,'ins. SINAPI N_DESON.'!$A$8:$E$15000,2,FALSE()))),"-"))))))) -> - | H28: =IF(OR($F28="ANP",$F28="DAER",$F28="CONSULTORIA DNIT",$F28="PREGÃO ELETRÔNICO",$F28="DMLU",$F28="DMAE",$F28="CEEE",$F28="EPTC",$F28="ORSE",$F28="SEINFRA",$F28="CREA",$F28="CAU",$F28="CEHOP",$F28="SIURB",$F28="DER-PR",$F28="SUDECAP",$F28=Aux.!$G$24,$F28=Aux.!$G$25),VLOOKUP($E28,'Planilha Auxiliar'!$A$4:$L$1000,4,FALSE()),IF($F28="INDEXADO",VLOOKUP($E28,'Index N_DESON.'!$A$9:$S$1305,4,FALSE()),IF($F28="CCU",VLOOKUP($E28,'Resumo CCU N_DESON.'!$A$2:$D$202,3,FALSE()),IF($F28="MERCADO",VLOOKUP('Orçamento N_DESON.'!$E28,'Planillha de cotações'!$B$7:$L$1143,10,FALSE()),IF($F28="PLEO",VLOOKUP($E28,'PLEO N_DESON.'!$A$4:$D$14999,3,FALSE()),IF($F28="SICRO",VLOOKUP($E28,'SICRO N_DESON.'!$A$4:$D$50010,3,FALSE()),IF($F28="SINAPI",IFERROR((VLOOKUP($E28,'comp. SINAPI N_DESON.'!$G$7:$L$50000,3,FALSE())),(VLOOKUP($E28,'ins. SINAPI N_DESON.'!$A$8:$E$15000,3,FALSE()))),"-"))))))) -> - | J28: =IF(OR($F28="ANP",$F28="DAER",$F28="CONSULTORIA DNIT",$F28="PREGÃO ELETRÔNICO",$F28="DMLU",$F28="DMAE",$F28="CEEE",$F28="EPTC",$F28="ORSE",$F28="SEINFRA",$F28="CREA",$F28="CAU",$F28="CEHOP",$F28="SIURB",$F28="DER-PR",$F28="SUDECAP",$F28=Aux.!$G$24,$F28=Aux.!$G$25),VLOOKUP($E28,'Planilha Auxiliar'!$A$4:$H$1000,6,FALSE()),IF($F28="INDEXADO",VLOOKUP($E28,'Index N_DESON.'!$A$9:$U$1305,16,FALSE()),IF($F28="CCU",VLOOKUP($E28,'Resumo CCU N_DESON.'!$A$2:$G$202,5,FALSE()),IF($F28="MERCADO",VLOOKUP('Orçamento N_DESON.'!$E28,'Planillha de cotações'!$B$7:$L$1143,7,FALSE()),IF($F28="PLEO",VLOOKUP($E28,'PLEO N_DESON.'!$A$4:$D$14999,4,FALSE()),IF($F28="SICRO",VLOOKUP($E28,'SICRO N_DESON.'!$A$4:$G$50010,5,FALSE()),IF($F28="SINAPI",IFERROR((VLOOKUP($E28,'comp. SINAPI N_DESON.'!$G$7:$X$50000,18,FALSE())),"-"),"-"))))))) -> - | K28: =IF(OR($F28="ANP",$F28="DAER",$F28="CONSULTORIA DNIT",$F28="PREGÃO ELETRÔNICO",$F28="DMLU",$F28="DMAE",$F28="CEEE",$F28="EPTC",$F28="ORSE",$F28="SEINFRA",$F28="CREA",$F28="CAU",$F28="CEHOP",$F28="SIURB",$F28="DER-PR",$F28="SUDECAP",$F28=Aux.!$G$24,$F28=Aux.!$G$25),VLOOKUP($E28,'Planilha Auxiliar'!$A$4:$H$1000,7,FALSE()),IF($F28="INDEXADO",VLOOKUP($E28,'Index N_DESON.'!$A$9:$U$1305,17,FALSE()),IF($F28="CCU",VLOOKUP($E28,'Resumo CCU N_DESON.'!$A$2:$G$202,6,FALSE()),IF($F28="MERCADO",VLOOKUP('Orçamento N_DESON.'!$E28,'Planillha de cotações'!$B$7:$L$1143,8,FALSE()),IF($F28="PLEO",VLOOKUP($E28,'PLEO N_DESON.'!$A$4:$D$14999,4,FALSE()),IF($F28="SICRO",VLOOKUP($E28,'SICRO N_DESON.'!$A$4:$G$50010,6,FALSE()),IF($F28="SINAPI",SUM(IFERROR((VLOOKUP($E28,'comp. SINAPI N_DESON.'!$G$7:$X$50000,14,FALSE())),"-"),VLOOKUP($E28,'comp. SINAPI N_DESON.'!$G$7:$AB$50000,20,FALSE()),VLOOKUP($E28,'comp. SINAPI N_DESON.'!$G$7:$AB$50000,22,FALSE())),"-"))))))) -> - | L28: =IF(OR($F28="ANP",$F28="DAER",$F28="CONSULTORIA DNIT",$F28="PREGÃO ELETRÔNICO",$F28="DMLU",$F28="DMAE",$F28="CEEE",$F28="EPTC",$F28="ORSE",$F28="SEINFRA",$F28="CREA",$F28="CAU",$F28="CEHOP",$F28="SIURB",$F28="DER-PR",$F28="SUDECAP",$F28=Aux.!$G$24,$F28=Aux.!$G$25),VLOOKUP($E28,'Planilha Auxiliar'!$A$4:$H$1000,8,FALSE()),IF($F28="INDEXADO",VLOOKUP($E28,'Index N_DESON.'!$A$9:$U$1305,18,FALSE()),IF($F28="CCU",VLOOKUP($E28,'Resumo CCU N_DESON.'!$A$2:$G$202,7,FALSE()),IF($F28="MERCADO",VLOOKUP('Orçamento N_DESON.'!$E28,'Planillha de cotações'!$B$7:$L$1143,9,FALSE()),IF($F28="PLEO",VLOOKUP($E28,'PLEO N_DESON.'!$A$4:$D$14999,4,FALSE()),IF($F28="SICRO",VLOOKUP($E28,'SICRO N_DESON.'!$A$4:$G$50010,7,FALSE()),IF($F28="SINAPI",IFERROR((VLOOKUP($E28,'comp. SINAPI N_DESON.'!$G$7:$X$50000,16,FALSE())),(VLOOKUP($E28,'ins. SINAPI N_DESON.'!$A$8:$E$15000,5,FALSE()))),"-"))))))) -> - | M28: =IF(OR($F28="ANP",$F28="DAER",$F28="CONSULTORIA DNIT",$F28="PREGÃO ELETRÔNICO",$F28="DMLU",$F28="DMAE",$F28="CEEE",$F28="EPTC",$F28="ORSE",$F28="SEINFRA",$F28="CREA",$F28="CAU",$F28="CEHOP",$F28="SIURB",$F28="DER-PR",$F28="SUDECAP",$F28=Aux.!$G$24,$F28=Aux.!$G$25),VLOOKUP($E28,'Planilha Auxiliar'!$A$4:$L$1000,5,FALSE()),IF($F28="INDEXADO",VLOOKUP($E28,'Index N_DESON.'!$A$9:$U$1305,19,FALSE()),IF($F28="CCU",VLOOKUP($E28,'Resumo CCU N_DESON.'!$A$2:$D$202,4,FALSE()),IF($F28="MERCADO",VLOOKUP('Orçamento N_DESON.'!$E28,'Planillha de cotações'!$B$7:$L$1143,6,FALSE()),IF($F28="PLEO",VLOOKUP($E28,'PLEO N_DESON.'!$A$4:$D$14999,4,FALSE()),IF($F28="SICRO",VLOOKUP($E28,'SICRO N_DESON.'!$A$4:$D$50010,4,FALSE()),IF($F28="SINAPI",IFERROR((VLOOKUP($E28,'comp. SINAPI N_DESON.'!$G$7:$L$50000,5,FALSE())),(VLOOKUP($E28,'ins. SINAPI N_DESON.'!$A$8:$E$15000,5,FALSE()))),"-"))))))) -> - | N28: - | O28: - | P28: 0 | Q28: 0 | R28: 0 | S28: 0 | V28: 1.18
B29: 0 | D29: 1.19 | G29: =IF(OR($F29="ANP",$F29="DAER",$F29="CONSULTORIA DNIT",$F29="PREGÃO ELETRÔNICO",$F29="DMLU",$F29="DMAE",$F29="CEEE",$F29="EPTC",$F29="ORSE",$F29="SEINFRA",$F29="CREA",$F29="CAU",$F29="CEHOP",$F29="SIURB",$F29="DER-PR",$F29="SUDECAP",$F29=Aux.!$G$24,$F29=Aux.!$G$25),VLOOKUP($E29,'Planilha Auxiliar'!$A$4:$L$1000,3,FALSE()),IF($F29="INDEXADO",CONCATENATE(VLOOKUP($E29,'Index N_DESON.'!$A$9:$S$1305,3,FALSE())," (",VLOOKUP($E29,'Index N_DESON.'!$A$9:$S$1305,2,FALSE()),")"),IF($F29="CCU",VLOOKUP($E29,'Resumo CCU N_DESON.'!$A$2:$D$202,2,FALSE()),IF($F29="MERCADO",VLOOKUP($E29,'Planillha de cotações'!$B$7:$L$102,2,FALSE()),IF($F29="PLEO",VLOOKUP($E29,'PLEO N_DESON.'!$A$4:$D$14999,2,FALSE()),IF($F29="SICRO",VLOOKUP($E29,'SICRO N_DESON.'!$A$4:$D$50010,2,FALSE()),IF($F29="SINAPI",IFERROR((VLOOKUP($E29,'comp. SINAPI N_DESON.'!$G$7:$L$50000,2,FALSE())),(VLOOKUP($E29,'ins. SINAPI N_DESON.'!$A$8:$E$15000,2,FALSE()))),"-"))))))) -> - | H29: =IF(OR($F29="ANP",$F29="DAER",$F29="CONSULTORIA DNIT",$F29="PREGÃO ELETRÔNICO",$F29="DMLU",$F29="DMAE",$F29="CEEE",$F29="EPTC",$F29="ORSE",$F29="SEINFRA",$F29="CREA",$F29="CAU",$F29="CEHOP",$F29="SIURB",$F29="DER-PR",$F29="SUDECAP",$F29=Aux.!$G$24,$F29=Aux.!$G$25),VLOOKUP($E29,'Planilha Auxiliar'!$A$4:$L$1000,4,FALSE()),IF($F29="INDEXADO",VLOOKUP($E29,'Index N_DESON.'!$A$9:$S$1305,4,FALSE()),IF($F29="CCU",VLOOKUP($E29,'Resumo CCU N_DESON.'!$A$2:$D$202,3,FALSE()),IF($F29="MERCADO",VLOOKUP('Orçamento N_DESON.'!$E29,'Planillha de cotações'!$B$7:$L$1143,10,FALSE()),IF($F29="PLEO",VLOOKUP($E29,'PLEO N_DESON.'!$A$4:$D$14999,3,FALSE()),IF($F29="SICRO",VLOOKUP($E29,'SICRO N_DESON.'!$A$4:$D$50010,3,FALSE()),IF($F29="SINAPI",IFERROR((VLOOKUP($E29,'comp. SINAPI N_DESON.'!$G$7:$L$50000,3,FALSE())),(VLOOKUP($E29,'ins. SINAPI N_DESON.'!$A$8:$E$15000,3,FALSE()))),"-"))))))) -> - | J29: =IF(OR($F29="ANP",$F29="DAER",$F29="CONSULTORIA DNIT",$F29="PREGÃO ELETRÔNICO",$F29="DMLU",$F29="DMAE",$F29="CEEE",$F29="EPTC",$F29="ORSE",$F29="SEINFRA",$F29="CREA",$F29="CAU",$F29="CEHOP",$F29="SIURB",$F29="DER-PR",$F29="SUDECAP",$F29=Aux.!$G$24,$F29=Aux.!$G$25),VLOOKUP($E29,'Planilha Auxiliar'!$A$4:$H$1000,6,FALSE()),IF($F29="INDEXADO",VLOOKUP($E29,'Index N_DESON.'!$A$9:$U$1305,16,FALSE()),IF($F29="CCU",VLOOKUP($E29,'Resumo CCU N_DESON.'!$A$2:$G$202,5,FALSE()),IF($F29="MERCADO",VLOOKUP('Orçamento N_DESON.'!$E29,'Planillha de cotações'!$B$7:$L$1143,7,FALSE()),IF($F29="PLEO",VLOOKUP($E29,'PLEO N_DESON.'!$A$4:$D$14999,4,FALSE()),IF($F29="SICRO",VLOOKUP($E29,'SICRO N_DESON.'!$A$4:$G$50010,5,FALSE()),IF($F29="SINAPI",IFERROR((VLOOKUP($E29,'comp. SINAPI N_DESON.'!$G$7:$X$50000,18,FALSE())),"-"),"-"))))))) -> - | K29: =IF(OR($F29="ANP",$F29="DAER",$F29="CONSULTORIA DNIT",$F29="PREGÃO ELETRÔNICO",$F29="DMLU",$F29="DMAE",$F29="CEEE",$F29="EPTC",$F29="ORSE",$F29="SEINFRA",$F29="CREA",$F29="CAU",$F29="CEHOP",$F29="SIURB",$F29="DER-PR",$F29="SUDECAP",$F29=Aux.!$G$24,$F29=Aux.!$G$25),VLOOKUP($E29,'Planilha Auxiliar'!$A$4:$H$1000,7,FALSE()),IF($F29="INDEXADO",VLOOKUP($E29,'Index N_DESON.'!$A$9:$U$1305,17,FALSE()),IF($F29="CCU",VLOOKUP($E29,'Resumo CCU N_DESON.'!$A$2:$G$202,6,FALSE()),IF($F29="MERCADO",VLOOKUP('Orçamento N_DESON.'!$E29,'Planillha de cotações'!$B$7:$L$1143,8,FALSE()),IF($F29="PLEO",VLOOKUP($E29,'PLEO N_DESON.'!$A$4:$D$14999,4,FALSE()),IF($F29="SICRO",VLOOKUP($E29,'SICRO N_DESON.'!$A$4:$G$50010,6,FALSE()),IF($F29="SINAPI",SUM(IFERROR((VLOOKUP($E29,'comp. SINAPI N_DESON.'!$G$7:$X$50000,14,FALSE())),"-"),VLOOKUP($E29,'comp. SINAPI N_DESON.'!$G$7:$AB$50000,20,FALSE()),VLOOKUP($E29,'comp. SINAPI N_DESON.'!$G$7:$AB$50000,22,FALSE())),"-"))))))) -> - | L29: =IF(OR($F29="ANP",$F29="DAER",$F29="CONSULTORIA DNIT",$F29="PREGÃO ELETRÔNICO",$F29="DMLU",$F29="DMAE",$F29="CEEE",$F29="EPTC",$F29="ORSE",$F29="SEINFRA",$F29="CREA",$F29="CAU",$F29="CEHOP",$F29="SIURB",$F29="DER-PR",$F29="SUDECAP",$F29=Aux.!$G$24,$F29=Aux.!$G$25),VLOOKUP($E29,'Planilha Auxiliar'!$A$4:$H$1000,8,FALSE()),IF($F29="INDEXADO",VLOOKUP($E29,'Index N_DESON.'!$A$9:$U$1305,18,FALSE()),IF($F29="CCU",VLOOKUP($E29,'Resumo CCU N_DESON.'!$A$2:$G$202,7,FALSE()),IF($F29="MERCADO",VLOOKUP('Orçamento N_DESON.'!$E29,'Planillha de cotações'!$B$7:$L$1143,9,FALSE()),IF($F29="PLEO",VLOOKUP($E29,'PLEO N_DESON.'!$A$4:$D$14999,4,FALSE()),IF($F29="SICRO",VLOOKUP($E29,'SICRO N_DESON.'!$A$4:$G$50010,7,FALSE()),IF($F29="SINAPI",IFERROR((VLOOKUP($E29,'comp. SINAPI N_DESON.'!$G$7:$X$50000,16,FALSE())),(VLOOKUP($E29,'ins. SINAPI N_DESON.'!$A$8:$E$15000,5,FALSE()))),"-"))))))) -> - | M29: =IF(OR($F29="ANP",$F29="DAER",$F29="CONSULTORIA DNIT",$F29="PREGÃO ELETRÔNICO",$F29="DMLU",$F29="DMAE",$F29="CEEE",$F29="EPTC",$F29="ORSE",$F29="SEINFRA",$F29="CREA",$F29="CAU",$F29="CEHOP",$F29="SIURB",$F29="DER-PR",$F29="SUDECAP",$F29=Aux.!$G$24,$F29=Aux.!$G$25),VLOOKUP($E29,'Planilha Auxiliar'!$A$4:$L$1000,5,FALSE()),IF($F29="INDEXADO",VLOOKUP($E29,'Index N_DESON.'!$A$9:$U$1305,19,FALSE()),IF($F29="CCU",VLOOKUP($E29,'Resumo CCU N_DESON.'!$A$2:$D$202,4,FALSE()),IF($F29="MERCADO",VLOOKUP('Orçamento N_DESON.'!$E29,'Planillha de cotações'!$B$7:$L$1143,6,FALSE()),IF($F29="PLEO",VLOOKUP($E29,'PLEO N_DESON.'!$A$4:$D$14999,4,FALSE()),IF($F29="SICRO",VLOOKUP($E29,'SICRO N_DESON.'!$A$4:$D$50010,4,FALSE()),IF($F29="SINAPI",IFERROR((VLOOKUP($E29,'comp. SINAPI N_DESON.'!$G$7:$L$50000,5,FALSE())),(VLOOKUP($E29,'ins. SINAPI N_DESON.'!$A$8:$E$15000,5,FALSE()))),"-"))))))) -> - | N29: - | O29: - | P29: 0 | Q29: 0 | R29: 0 | S29: 0 | V29: 1.19
B30: 0 | D30: 1.20 | G30: =IF(OR($F30="ANP",$F30="DAER",$F30="CONSULTORIA DNIT",$F30="PREGÃO ELETRÔNICO",$F30="DMLU",$F30="DMAE",$F30="CEEE",$F30="EPTC",$F30="ORSE",$F30="SEINFRA",$F30="CREA",$F30="CAU",$F30="CEHOP",$F30="SIURB",$F30="DER-PR",$F30="SUDECAP",$F30=Aux.!$G$24,$F30=Aux.!$G$25),VLOOKUP($E30,'Planilha Auxiliar'!$A$4:$L$1000,3,FALSE()),IF($F30="INDEXADO",CONCATENATE(VLOOKUP($E30,'Index N_DESON.'!$A$9:$S$1305,3,FALSE())," (",VLOOKUP($E30,'Index N_DESON.'!$A$9:$S$1305,2,FALSE()),")"),IF($F30="CCU",VLOOKUP($E30,'Resumo CCU N_DESON.'!$A$2:$D$202,2,FALSE()),IF($F30="MERCADO",VLOOKUP($E30,'Planillha de cotações'!$B$7:$L$102,2,FALSE()),IF($F30="PLEO",VLOOKUP($E30,'PLEO N_DESON.'!$A$4:$D$14999,2,FALSE()),IF($F30="SICRO",VLOOKUP($E30,'SICRO N_DESON.'!$A$4:$D$50010,2,FALSE()),IF($F30="SINAPI",IFERROR((VLOOKUP($E30,'comp. SINAPI N_DESON.'!$G$7:$L$50000,2,FALSE())),(VLOOKUP($E30,'ins. SINAPI N_DESON.'!$A$8:$E$15000,2,FALSE()))),"-"))))))) -> - | H30: =IF(OR($F30="ANP",$F30="DAER",$F30="CONSULTORIA DNIT",$F30="PREGÃO ELETRÔNICO",$F30="DMLU",$F30="DMAE",$F30="CEEE",$F30="EPTC",$F30="ORSE",$F30="SEINFRA",$F30="CREA",$F30="CAU",$F30="CEHOP",$F30="SIURB",$F30="DER-PR",$F30="SUDECAP",$F30=Aux.!$G$24,$F30=Aux.!$G$25),VLOOKUP($E30,'Planilha Auxiliar'!$A$4:$L$1000,4,FALSE()),IF($F30="INDEXADO",VLOOKUP($E30,'Index N_DESON.'!$A$9:$S$1305,4,FALSE()),IF($F30="CCU",VLOOKUP($E30,'Resumo CCU N_DESON.'!$A$2:$D$202,3,FALSE()),IF($F30="MERCADO",VLOOKUP('Orçamento N_DESON.'!$E30,'Planillha de cotações'!$B$7:$L$1143,10,FALSE()),IF($F30="PLEO",VLOOKUP($E30,'PLEO N_DESON.'!$A$4:$D$14999,3,FALSE()),IF($F30="SICRO",VLOOKUP($E30,'SICRO N_DESON.'!$A$4:$D$50010,3,FALSE()),IF($F30="SINAPI",IFERROR((VLOOKUP($E30,'comp. SINAPI N_DESON.'!$G$7:$L$50000,3,FALSE())),(VLOOKUP($E30,'ins. SINAPI N_DESON.'!$A$8:$E$15000,3,FALSE()))),"-"))))))) -> - | J30: =IF(OR($F30="ANP",$F30="DAER",$F30="CONSULTORIA DNIT",$F30="PREGÃO ELETRÔNICO",$F30="DMLU",$F30="DMAE",$F30="CEEE",$F30="EPTC",$F30="ORSE",$F30="SEINFRA",$F30="CREA",$F30="CAU",$F30="CEHOP",$F30="SIURB",$F30="DER-PR",$F30="SUDECAP",$F30=Aux.!$G$24,$F30=Aux.!$G$25),VLOOKUP($E30,'Planilha Auxiliar'!$A$4:$H$1000,6,FALSE()),IF($F30="INDEXADO",VLOOKUP($E30,'Index N_DESON.'!$A$9:$U$1305,16,FALSE()),IF($F30="CCU",VLOOKUP($E30,'Resumo CCU N_DESON.'!$A$2:$G$202,5,FALSE()),IF($F30="MERCADO",VLOOKUP('Orçamento N_DESON.'!$E30,'Planillha de cotações'!$B$7:$L$1143,7,FALSE()),IF($F30="PLEO",VLOOKUP($E30,'PLEO N_DESON.'!$A$4:$D$14999,4,FALSE()),IF($F30="SICRO",VLOOKUP($E30,'SICRO N_DESON.'!$A$4:$G$50010,5,FALSE()),IF($F30="SINAPI",IFERROR((VLOOKUP($E30,'comp. SINAPI N_DESON.'!$G$7:$X$50000,18,FALSE())),"-"),"-"))))))) -> - | K30: =IF(OR($F30="ANP",$F30="DAER",$F30="CONSULTORIA DNIT",$F30="PREGÃO ELETRÔNICO",$F30="DMLU",$F30="DMAE",$F30="CEEE",$F30="EPTC",$F30="ORSE",$F30="SEINFRA",$F30="CREA",$F30="CAU",$F30="CEHOP",$F30="SIURB",$F30="DER-PR",$F30="SUDECAP",$F30=Aux.!$G$24,$F30=Aux.!$G$25),VLOOKUP($E30,'Planilha Auxiliar'!$A$4:$H$1000,7,FALSE()),IF($F30="INDEXADO",VLOOKUP($E30,'Index N_DESON.'!$A$9:$U$1305,17,FALSE()),IF($F30="CCU",VLOOKUP($E30,'Resumo CCU N_DESON.'!$A$2:$G$202,6,FALSE()),IF($F30="MERCADO",VLOOKUP('Orçamento N_DESON.'!$E30,'Planillha de cotações'!$B$7:$L$1143,8,FALSE()),IF($F30="PLEO",VLOOKUP($E30,'PLEO N_DESON.'!$A$4:$D$14999,4,FALSE()),IF($F30="SICRO",VLOOKUP($E30,'SICRO N_DESON.'!$A$4:$G$50010,6,FALSE()),IF($F30="SINAPI",SUM(IFERROR((VLOOKUP($E30,'comp. SINAPI N_DESON.'!$G$7:$X$50000,14,FALSE())),"-"),VLOOKUP($E30,'comp. SINAPI N_DESON.'!$G$7:$AB$50000,20,FALSE()),VLOOKUP($E30,'comp. SINAPI N_DESON.'!$G$7:$AB$50000,22,FALSE())),"-"))))))) -> - | L30: =IF(OR($F30="ANP",$F30="DAER",$F30="CONSULTORIA DNIT",$F30="PREGÃO ELETRÔNICO",$F30="DMLU",$F30="DMAE",$F30="CEEE",$F30="EPTC",$F30="ORSE",$F30="SEINFRA",$F30="CREA",$F30="CAU",$F30="CEHOP",$F30="SIURB",$F30="DER-PR",$F30="SUDECAP",$F30=Aux.!$G$24,$F30=Aux.!$G$25),VLOOKUP($E30,'Planilha Auxiliar'!$A$4:$H$1000,8,FALSE()),IF($F30="INDEXADO",VLOOKUP($E30,'Index N_DESON.'!$A$9:$U$1305,18,FALSE()),IF($F30="CCU",VLOOKUP($E30,'Resumo CCU N_DESON.'!$A$2:$G$202,7,FALSE()),IF($F30="MERCADO",VLOOKUP('Orçamento N_DESON.'!$E30,'Planillha de cotações'!$B$7:$L$1143,9,FALSE()),IF($F30="PLEO",VLOOKUP($E30,'PLEO N_DESON.'!$A$4:$D$14999,4,FALSE()),IF($F30="SICRO",VLOOKUP($E30,'SICRO N_DESON.'!$A$4:$G$50010,7,FALSE()),IF($F30="SINAPI",IFERROR((VLOOKUP($E30,'comp. SINAPI N_DESON.'!$G$7:$X$50000,16,FALSE())),(VLOOKUP($E30,'ins. SINAPI N_DESON.'!$A$8:$E$15000,5,FALSE()))),"-"))))))) -> - | M30: =IF(OR($F30="ANP",$F30="DAER",$F30="CONSULTORIA DNIT",$F30="PREGÃO ELETRÔNICO",$F30="DMLU",$F30="DMAE",$F30="CEEE",$F30="EPTC",$F30="ORSE",$F30="SEINFRA",$F30="CREA",$F30="CAU",$F30="CEHOP",$F30="SIURB",$F30="DER-PR",$F30="SUDECAP",$F30=Aux.!$G$24,$F30=Aux.!$G$25),VLOOKUP($E30,'Planilha Auxiliar'!$A$4:$L$1000,5,FALSE()),IF($F30="INDEXADO",VLOOKUP($E30,'Index N_DESON.'!$A$9:$U$1305,19,FALSE()),IF($F30="CCU",VLOOKUP($E30,'Resumo CCU N_DESON.'!$A$2:$D$202,4,FALSE()),IF($F30="MERCADO",VLOOKUP('Orçamento N_DESON.'!$E30,'Planillha de cotações'!$B$7:$L$1143,6,FALSE()),IF($F30="PLEO",VLOOKUP($E30,'PLEO N_DESON.'!$A$4:$D$14999,4,FALSE()),IF($F30="SICRO",VLOOKUP($E30,'SICRO N_DESON.'!$A$4:$D$50010,4,FALSE()),IF($F30="SINAPI",IFERROR((VLOOKUP($E30,'comp. SINAPI N_DESON.'!$G$7:$L$50000,5,FALSE())),(VLOOKUP($E30,'ins. SINAPI N_DESON.'!$A$8:$E$15000,5,FALSE()))),"-"))))))) -> - | N30: - | O30: - | P30: 0 | Q30: 0 | R30: 0 | S30: 0 | V30: 1.20
B31: 0 | D31: 1.21 | G31: =IF(OR($F31="ANP",$F31="DAER",$F31="CONSULTORIA DNIT",$F31="PREGÃO ELETRÔNICO",$F31="DMLU",$F31="DMAE",$F31="CEEE",$F31="EPTC",$F31="ORSE",$F31="SEINFRA",$F31="CREA",$F31="CAU",$F31="CEHOP",$F31="SIURB",$F31="DER-PR",$F31="SUDECAP",$F31=Aux.!$G$24,$F31=Aux.!$G$25),VLOOKUP($E31,'Planilha Auxiliar'!$A$4:$L$1000,3,FALSE()),IF($F31="INDEXADO",CONCATENATE(VLOOKUP($E31,'Index N_DESON.'!$A$9:$S$1305,3,FALSE())," (",VLOOKUP($E31,'Index N_DESON.'!$A$9:$S$1305,2,FALSE()),")"),IF($F31="CCU",VLOOKUP($E31,'Resumo CCU N_DESON.'!$A$2:$D$202,2,FALSE()),IF($F31="MERCADO",VLOOKUP($E31,'Planillha de cotações'!$B$7:$L$102,2,FALSE()),IF($F31="PLEO",VLOOKUP($E31,'PLEO N_DESON.'!$A$4:$D$14999,2,FALSE()),IF($F31="SICRO",VLOOKUP($E31,'SICRO N_DESON.'!$A$4:$D$50010,2,FALSE()),IF($F31="SINAPI",IFERROR((VLOOKUP($E31,'comp. SINAPI N_DESON.'!$G$7:$L$50000,2,FALSE())),(VLOOKUP($E31,'ins. SINAPI N_DESON.'!$A$8:$E$15000,2,FALSE()))),"-"))))))) -> - | H31: =IF(OR($F31="ANP",$F31="DAER",$F31="CONSULTORIA DNIT",$F31="PREGÃO ELETRÔNICO",$F31="DMLU",$F31="DMAE",$F31="CEEE",$F31="EPTC",$F31="ORSE",$F31="SEINFRA",$F31="CREA",$F31="CAU",$F31="CEHOP",$F31="SIURB",$F31="DER-PR",$F31="SUDECAP",$F31=Aux.!$G$24,$F31=Aux.!$G$25),VLOOKUP($E31,'Planilha Auxiliar'!$A$4:$L$1000,4,FALSE()),IF($F31="INDEXADO",VLOOKUP($E31,'Index N_DESON.'!$A$9:$S$1305,4,FALSE()),IF($F31="CCU",VLOOKUP($E31,'Resumo CCU N_DESON.'!$A$2:$D$202,3,FALSE()),IF($F31="MERCADO",VLOOKUP('Orçamento N_DESON.'!$E31,'Planillha de cotações'!$B$7:$L$1143,10,FALSE()),IF($F31="PLEO",VLOOKUP($E31,'PLEO N_DESON.'!$A$4:$D$14999,3,FALSE()),IF($F31="SICRO",VLOOKUP($E31,'SICRO N_DESON.'!$A$4:$D$50010,3,FALSE()),IF($F31="SINAPI",IFERROR((VLOOKUP($E31,'comp. SINAPI N_DESON.'!$G$7:$L$50000,3,FALSE())),(VLOOKUP($E31,'ins. SINAPI N_DESON.'!$A$8:$E$15000,3,FALSE()))),"-"))))))) -> - | J31: =IF(OR($F31="ANP",$F31="DAER",$F31="CONSULTORIA DNIT",$F31="PREGÃO ELETRÔNICO",$F31="DMLU",$F31="DMAE",$F31="CEEE",$F31="EPTC",$F31="ORSE",$F31="SEINFRA",$F31="CREA",$F31="CAU",$F31="CEHOP",$F31="SIURB",$F31="DER-PR",$F31="SUDECAP",$F31=Aux.!$G$24,$F31=Aux.!$G$25),VLOOKUP($E31,'Planilha Auxiliar'!$A$4:$H$1000,6,FALSE()),IF($F31="INDEXADO",VLOOKUP($E31,'Index N_DESON.'!$A$9:$U$1305,16,FALSE()),IF($F31="CCU",VLOOKUP($E31,'Resumo CCU N_DESON.'!$A$2:$G$202,5,FALSE()),IF($F31="MERCADO",VLOOKUP('Orçamento N_DESON.'!$E31,'Planillha de cotações'!$B$7:$L$1143,7,FALSE()),IF($F31="PLEO",VLOOKUP($E31,'PLEO N_DESON.'!$A$4:$D$14999,4,FALSE()),IF($F31="SICRO",VLOOKUP($E31,'SICRO N_DESON.'!$A$4:$G$50010,5,FALSE()),IF($F31="SINAPI",IFERROR((VLOOKUP($E31,'comp. SINAPI N_DESON.'!$G$7:$X$50000,18,FALSE())),"-"),"-"))))))) -> - | K31: =IF(OR($F31="ANP",$F31="DAER",$F31="CONSULTORIA DNIT",$F31="PREGÃO ELETRÔNICO",$F31="DMLU",$F31="DMAE",$F31="CEEE",$F31="EPTC",$F31="ORSE",$F31="SEINFRA",$F31="CREA",$F31="CAU",$F31="CEHOP",$F31="SIURB",$F31="DER-PR",$F31="SUDECAP",$F31=Aux.!$G$24,$F31=Aux.!$G$25),VLOOKUP($E31,'Planilha Auxiliar'!$A$4:$H$1000,7,FALSE()),IF($F31="INDEXADO",VLOOKUP($E31,'Index N_DESON.'!$A$9:$U$1305,17,FALSE()),IF($F31="CCU",VLOOKUP($E31,'Resumo CCU N_DESON.'!$A$2:$G$202,6,FALSE()),IF($F31="MERCADO",VLOOKUP('Orçamento N_DESON.'!$E31,'Planillha de cotações'!$B$7:$L$1143,8,FALSE()),IF($F31="PLEO",VLOOKUP($E31,'PLEO N_DESON.'!$A$4:$D$14999,4,FALSE()),IF($F31="SICRO",VLOOKUP($E31,'SICRO N_DESON.'!$A$4:$G$50010,6,FALSE()),IF($F31="SINAPI",SUM(IFERROR((VLOOKUP($E31,'comp. SINAPI N_DESON.'!$G$7:$X$50000,14,FALSE())),"-"),VLOOKUP($E31,'comp. SINAPI N_DESON.'!$G$7:$AB$50000,20,FALSE()),VLOOKUP($E31,'comp. SINAPI N_DESON.'!$G$7:$AB$50000,22,FALSE())),"-"))))))) -> - | L31: =IF(OR($F31="ANP",$F31="DAER",$F31="CONSULTORIA DNIT",$F31="PREGÃO ELETRÔNICO",$F31="DMLU",$F31="DMAE",$F31="CEEE",$F31="EPTC",$F31="ORSE",$F31="SEINFRA",$F31="CREA",$F31="CAU",$F31="CEHOP",$F31="SIURB",$F31="DER-PR",$F31="SUDECAP",$F31=Aux.!$G$24,$F31=Aux.!$G$25),VLOOKUP($E31,'Planilha Auxiliar'!$A$4:$H$1000,8,FALSE()),IF($F31="INDEXADO",VLOOKUP($E31,'Index N_DESON.'!$A$9:$U$1305,18,FALSE()),IF($F31="CCU",VLOOKUP($E31,'Resumo CCU N_DESON.'!$A$2:$G$202,7,FALSE()),IF($F31="MERCADO",VLOOKUP('Orçamento N_DESON.'!$E31,'Planillha de cotações'!$B$7:$L$1143,9,FALSE()),IF($F31="PLEO",VLOOKUP($E31,'PLEO N_DESON.'!$A$4:$D$14999,4,FALSE()),IF($F31="SICRO",VLOOKUP($E31,'SICRO N_DESON.'!$A$4:$G$50010,7,FALSE()),IF($F31="SINAPI",IFERROR((VLOOKUP($E31,'comp. SINAPI N_DESON.'!$G$7:$X$50000,16,FALSE())),(VLOOKUP($E31,'ins. SINAPI N_DESON.'!$A$8:$E$15000,5,FALSE()))),"-"))))))) -> - | M31: =IF(OR($F31="ANP",$F31="DAER",$F31="CONSULTORIA DNIT",$F31="PREGÃO ELETRÔNICO",$F31="DMLU",$F31="DMAE",$F31="CEEE",$F31="EPTC",$F31="ORSE",$F31="SEINFRA",$F31="CREA",$F31="CAU",$F31="CEHOP",$F31="SIURB",$F31="DER-PR",$F31="SUDECAP",$F31=Aux.!$G$24,$F31=Aux.!$G$25),VLOOKUP($E31,'Planilha Auxiliar'!$A$4:$L$1000,5,FALSE()),IF($F31="INDEXADO",VLOOKUP($E31,'Index N_DESON.'!$A$9:$U$1305,19,FALSE()),IF($F31="CCU",VLOOKUP($E31,'Resumo CCU N_DESON.'!$A$2:$D$202,4,FALSE()),IF($F31="MERCADO",VLOOKUP('Orçamento N_DESON.'!$E31,'Planillha de cotações'!$B$7:$L$1143,6,FALSE()),IF($F31="PLEO",VLOOKUP($E31,'PLEO N_DESON.'!$A$4:$D$14999,4,FALSE()),IF($F31="SICRO",VLOOKUP($E31,'SICRO N_DESON.'!$A$4:$D$50010,4,FALSE()),IF($F31="SINAPI",IFERROR((VLOOKUP($E31,'comp. SINAPI N_DESON.'!$G$7:$L$50000,5,FALSE())),(VLOOKUP($E31,'ins. SINAPI N_DESON.'!$A$8:$E$15000,5,FALSE()))),"-"))))))) -> - | N31: - | O31: - | P31: 0 | Q31: 0 | R31: 0 | S31: 0 | V31: 1.21
B32: 0 | D32: 1.22 | G32: =IF(OR($F32="ANP",$F32="DAER",$F32="CONSULTORIA DNIT",$F32="PREGÃO ELETRÔNICO",$F32="DMLU",$F32="DMAE",$F32="CEEE",$F32="EPTC",$F32="ORSE",$F32="SEINFRA",$F32="CREA",$F32="CAU",$F32="CEHOP",$F32="SIURB",$F32="DER-PR",$F32="SUDECAP",$F32=Aux.!$G$24,$F32=Aux.!$G$25),VLOOKUP($E32,'Planilha Auxiliar'!$A$4:$L$1000,3,FALSE()),IF($F32="INDEXADO",CONCATENATE(VLOOKUP($E32,'Index N_DESON.'!$A$9:$S$1305,3,FALSE())," (",VLOOKUP($E32,'Index N_DESON.'!$A$9:$S$1305,2,FALSE()),")"),IF($F32="CCU",VLOOKUP($E32,'Resumo CCU N_DESON.'!$A$2:$D$202,2,FALSE()),IF($F32="MERCADO",VLOOKUP($E32,'Planillha de cotações'!$B$7:$L$102,2,FALSE()),IF($F32="PLEO",VLOOKUP($E32,'PLEO N_DESON.'!$A$4:$D$14999,2,FALSE()),IF($F32="SICRO",VLOOKUP($E32,'SICRO N_DESON.'!$A$4:$D$50010,2,FALSE()),IF($F32="SINAPI",IFERROR((VLOOKUP($E32,'comp. SINAPI N_DESON.'!$G$7:$L$50000,2,FALSE())),(VLOOKUP($E32,'ins. SINAPI N_DESON.'!$A$8:$E$15000,2,FALSE()))),"-"))))))) -> - | H32: =IF(OR($F32="ANP",$F32="DAER",$F32="CONSULTORIA DNIT",$F32="PREGÃO ELETRÔNICO",$F32="DMLU",$F32="DMAE",$F32="CEEE",$F32="EPTC",$F32="ORSE",$F32="SEINFRA",$F32="CREA",$F32="CAU",$F32="CEHOP",$F32="SIURB",$F32="DER-PR",$F32="SUDECAP",$F32=Aux.!$G$24,$F32=Aux.!$G$25),VLOOKUP($E32,'Planilha Auxiliar'!$A$4:$L$1000,4,FALSE()),IF($F32="INDEXADO",VLOOKUP($E32,'Index N_DESON.'!$A$9:$S$1305,4,FALSE()),IF($F32="CCU",VLOOKUP($E32,'Resumo CCU N_DESON.'!$A$2:$D$202,3,FALSE()),IF($F32="MERCADO",VLOOKUP('Orçamento N_DESON.'!$E32,'Planillha de cotações'!$B$7:$L$1143,10,FALSE()),IF($F32="PLEO",VLOOKUP($E32,'PLEO N_DESON.'!$A$4:$D$14999,3,FALSE()),IF($F32="SICRO",VLOOKUP($E32,'SICRO N_DESON.'!$A$4:$D$50010,3,FALSE()),IF($F32="SINAPI",IFERROR((VLOOKUP($E32,'comp. SINAPI N_DESON.'!$G$7:$L$50000,3,FALSE())),(VLOOKUP($E32,'ins. SINAPI N_DESON.'!$A$8:$E$15000,3,FALSE()))),"-"))))))) -> - | J32: =IF(OR($F32="ANP",$F32="DAER",$F32="CONSULTORIA DNIT",$F32="PREGÃO ELETRÔNICO",$F32="DMLU",$F32="DMAE",$F32="CEEE",$F32="EPTC",$F32="ORSE",$F32="SEINFRA",$F32="CREA",$F32="CAU",$F32="CEHOP",$F32="SIURB",$F32="DER-PR",$F32="SUDECAP",$F32=Aux.!$G$24,$F32=Aux.!$G$25),VLOOKUP($E32,'Planilha Auxiliar'!$A$4:$H$1000,6,FALSE()),IF($F32="INDEXADO",VLOOKUP($E32,'Index N_DESON.'!$A$9:$U$1305,16,FALSE()),IF($F32="CCU",VLOOKUP($E32,'Resumo CCU N_DESON.'!$A$2:$G$202,5,FALSE()),IF($F32="MERCADO",VLOOKUP('Orçamento N_DESON.'!$E32,'Planillha de cotações'!$B$7:$L$1143,7,FALSE()),IF($F32="PLEO",VLOOKUP($E32,'PLEO N_DESON.'!$A$4:$D$14999,4,FALSE()),IF($F32="SICRO",VLOOKUP($E32,'SICRO N_DESON.'!$A$4:$G$50010,5,FALSE()),IF($F32="SINAPI",IFERROR((VLOOKUP($E32,'comp. SINAPI N_DESON.'!$G$7:$X$50000,18,FALSE())),"-"),"-"))))))) -> - | K32: =IF(OR($F32="ANP",$F32="DAER",$F32="CONSULTORIA DNIT",$F32="PREGÃO ELETRÔNICO",$F32="DMLU",$F32="DMAE",$F32="CEEE",$F32="EPTC",$F32="ORSE",$F32="SEINFRA",$F32="CREA",$F32="CAU",$F32="CEHOP",$F32="SIURB",$F32="DER-PR",$F32="SUDECAP",$F32=Aux.!$G$24,$F32=Aux.!$G$25),VLOOKUP($E32,'Planilha Auxiliar'!$A$4:$H$1000,7,FALSE()),IF($F32="INDEXADO",VLOOKUP($E32,'Index N_DESON.'!$A$9:$U$1305,17,FALSE()),IF($F32="CCU",VLOOKUP($E32,'Resumo CCU N_DESON.'!$A$2:$G$202,6,FALSE()),IF($F32="MERCADO",VLOOKUP('Orçamento N_DESON.'!$E32,'Planillha de cotações'!$B$7:$L$1143,8,FALSE()),IF($F32="PLEO",VLOOKUP($E32,'PLEO N_DESON.'!$A$4:$D$14999,4,FALSE()),IF($F32="SICRO",VLOOKUP($E32,'SICRO N_DESON.'!$A$4:$G$50010,6,FALSE()),IF($F32="SINAPI",SUM(IFERROR((VLOOKUP($E32,'comp. SINAPI N_DESON.'!$G$7:$X$50000,14,FALSE())),"-"),VLOOKUP($E32,'comp. SINAPI N_DESON.'!$G$7:$AB$50000,20,FALSE()),VLOOKUP($E32,'comp. SINAPI N_DESON.'!$G$7:$AB$50000,22,FALSE())),"-"))))))) -> - | L32: =IF(OR($F32="ANP",$F32="DAER",$F32="CONSULTORIA DNIT",$F32="PREGÃO ELETRÔNICO",$F32="DMLU",$F32="DMAE",$F32="CEEE",$F32="EPTC",$F32="ORSE",$F32="SEINFRA",$F32="CREA",$F32="CAU",$F32="CEHOP",$F32="SIURB",$F32="DER-PR",$F32="SUDECAP",$F32=Aux.!$G$24,$F32=Aux.!$G$25),VLOOKUP($E32,'Planilha Auxiliar'!$A$4:$H$1000,8,FALSE()),IF($F32="INDEXADO",VLOOKUP($E32,'Index N_DESON.'!$A$9:$U$1305,18,FALSE()),IF($F32="CCU",VLOOKUP($E32,'Resumo CCU N_DESON.'!$A$2:$G$202,7,FALSE()),IF($F32="MERCADO",VLOOKUP('Orçamento N_DESON.'!$E32,'Planillha de cotações'!$B$7:$L$1143,9,FALSE()),IF($F32="PLEO",VLOOKUP($E32,'PLEO N_DESON.'!$A$4:$D$14999,4,FALSE()),IF($F32="SICRO",VLOOKUP($E32,'SICRO N_DESON.'!$A$4:$G$50010,7,FALSE()),IF($F32="SINAPI",IFERROR((VLOOKUP($E32,'comp. SINAPI N_DESON.'!$G$7:$X$50000,16,FALSE())),(VLOOKUP($E32,'ins. SINAPI N_DESON.'!$A$8:$E$15000,5,FALSE()))),"-"))))))) -> - | M32: =IF(OR($F32="ANP",$F32="DAER",$F32="CONSULTORIA DNIT",$F32="PREGÃO ELETRÔNICO",$F32="DMLU",$F32="DMAE",$F32="CEEE",$F32="EPTC",$F32="ORSE",$F32="SEINFRA",$F32="CREA",$F32="CAU",$F32="CEHOP",$F32="SIURB",$F32="DER-PR",$F32="SUDECAP",$F32=Aux.!$G$24,$F32=Aux.!$G$25),VLOOKUP($E32,'Planilha Auxiliar'!$A$4:$L$1000,5,FALSE()),IF($F32="INDEXADO",VLOOKUP($E32,'Index N_DESON.'!$A$9:$U$1305,19,FALSE()),IF($F32="CCU",VLOOKUP($E32,'Resumo CCU N_DESON.'!$A$2:$D$202,4,FALSE()),IF($F32="MERCADO",VLOOKUP('Orçamento N_DESON.'!$E32,'Planillha de cotações'!$B$7:$L$1143,6,FALSE()),IF($F32="PLEO",VLOOKUP($E32,'PLEO N_DESON.'!$A$4:$D$14999,4,FALSE()),IF($F32="SICRO",VLOOKUP($E32,'SICRO N_DESON.'!$A$4:$D$50010,4,FALSE()),IF($F32="SINAPI",IFERROR((VLOOKUP($E32,'comp. SINAPI N_DESON.'!$G$7:$L$50000,5,FALSE())),(VLOOKUP($E32,'ins. SINAPI N_DESON.'!$A$8:$E$15000,5,FALSE()))),"-"))))))) -> - | N32: - | O32: - | P32: 0 | Q32: 0 | R32: 0 | S32: 0 | V32: 1.22
B33: 0 | D33: 1.23 | G33: =IF(OR($F33="ANP",$F33="DAER",$F33="CONSULTORIA DNIT",$F33="PREGÃO ELETRÔNICO",$F33="DMLU",$F33="DMAE",$F33="CEEE",$F33="EPTC",$F33="ORSE",$F33="SEINFRA",$F33="CREA",$F33="CAU",$F33="CEHOP",$F33="SIURB",$F33="DER-PR",$F33="SUDECAP",$F33=Aux.!$G$24,$F33=Aux.!$G$25),VLOOKUP($E33,'Planilha Auxiliar'!$A$4:$L$1000,3,FALSE()),IF($F33="INDEXADO",CONCATENATE(VLOOKUP($E33,'Index N_DESON.'!$A$9:$S$1305,3,FALSE())," (",VLOOKUP($E33,'Index N_DESON.'!$A$9:$S$1305,2,FALSE()),")"),IF($F33="CCU",VLOOKUP($E33,'Resumo CCU N_DESON.'!$A$2:$D$202,2,FALSE()),IF($F33="MERCADO",VLOOKUP($E33,'Planillha de cotações'!$B$7:$L$102,2,FALSE()),IF($F33="PLEO",VLOOKUP($E33,'PLEO N_DESON.'!$A$4:$D$14999,2,FALSE()),IF($F33="SICRO",VLOOKUP($E33,'SICRO N_DESON.'!$A$4:$D$50010,2,FALSE()),IF($F33="SINAPI",IFERROR((VLOOKUP($E33,'comp. SINAPI N_DESON.'!$G$7:$L$50000,2,FALSE())),(VLOOKUP($E33,'ins. SINAPI N_DESON.'!$A$8:$E$15000,2,FALSE()))),"-"))))))) -> - | H33: =IF(OR($F33="ANP",$F33="DAER",$F33="CONSULTORIA DNIT",$F33="PREGÃO ELETRÔNICO",$F33="DMLU",$F33="DMAE",$F33="CEEE",$F33="EPTC",$F33="ORSE",$F33="SEINFRA",$F33="CREA",$F33="CAU",$F33="CEHOP",$F33="SIURB",$F33="DER-PR",$F33="SUDECAP",$F33=Aux.!$G$24,$F33=Aux.!$G$25),VLOOKUP($E33,'Planilha Auxiliar'!$A$4:$L$1000,4,FALSE()),IF($F33="INDEXADO",VLOOKUP($E33,'Index N_DESON.'!$A$9:$S$1305,4,FALSE()),IF($F33="CCU",VLOOKUP($E33,'Resumo CCU N_DESON.'!$A$2:$D$202,3,FALSE()),IF($F33="MERCADO",VLOOKUP('Orçamento N_DESON.'!$E33,'Planillha de cotações'!$B$7:$L$1143,10,FALSE()),IF($F33="PLEO",VLOOKUP($E33,'PLEO N_DESON.'!$A$4:$D$14999,3,FALSE()),IF($F33="SICRO",VLOOKUP($E33,'SICRO N_DESON.'!$A$4:$D$50010,3,FALSE()),IF($F33="SINAPI",IFERROR((VLOOKUP($E33,'comp. SINAPI N_DESON.'!$G$7:$L$50000,3,FALSE())),(VLOOKUP($E33,'ins. SINAPI N_DESON.'!$A$8:$E$15000,3,FALSE()))),"-"))))))) -> - | J33: =IF(OR($F33="ANP",$F33="DAER",$F33="CONSULTORIA DNIT",$F33="PREGÃO ELETRÔNICO",$F33="DMLU",$F33="DMAE",$F33="CEEE",$F33="EPTC",$F33="ORSE",$F33="SEINFRA",$F33="CREA",$F33="CAU",$F33="CEHOP",$F33="SIURB",$F33="DER-PR",$F33="SUDECAP",$F33=Aux.!$G$24,$F33=Aux.!$G$25),VLOOKUP($E33,'Planilha Auxiliar'!$A$4:$H$1000,6,FALSE()),IF($F33="INDEXADO",VLOOKUP($E33,'Index N_DESON.'!$A$9:$U$1305,16,FALSE()),IF($F33="CCU",VLOOKUP($E33,'Resumo CCU N_DESON.'!$A$2:$G$202,5,FALSE()),IF($F33="MERCADO",VLOOKUP('Orçamento N_DESON.'!$E33,'Planillha de cotações'!$B$7:$L$1143,7,FALSE()),IF($F33="PLEO",VLOOKUP($E33,'PLEO N_DESON.'!$A$4:$D$14999,4,FALSE()),IF($F33="SICRO",VLOOKUP($E33,'SICRO N_DESON.'!$A$4:$G$50010,5,FALSE()),IF($F33="SINAPI",IFERROR((VLOOKUP($E33,'comp. SINAPI N_DESON.'!$G$7:$X$50000,18,FALSE())),"-"),"-"))))))) -> - | K33: =IF(OR($F33="ANP",$F33="DAER",$F33="CONSULTORIA DNIT",$F33="PREGÃO ELETRÔNICO",$F33="DMLU",$F33="DMAE",$F33="CEEE",$F33="EPTC",$F33="ORSE",$F33="SEINFRA",$F33="CREA",$F33="CAU",$F33="CEHOP",$F33="SIURB",$F33="DER-PR",$F33="SUDECAP",$F33=Aux.!$G$24,$F33=Aux.!$G$25),VLOOKUP($E33,'Planilha Auxiliar'!$A$4:$H$1000,7,FALSE()),IF($F33="INDEXADO",VLOOKUP($E33,'Index N_DESON.'!$A$9:$U$1305,17,FALSE()),IF($F33="CCU",VLOOKUP($E33,'Resumo CCU N_DESON.'!$A$2:$G$202,6,FALSE()),IF($F33="MERCADO",VLOOKUP('Orçamento N_DESON.'!$E33,'Planillha de cotações'!$B$7:$L$1143,8,FALSE()),IF($F33="PLEO",VLOOKUP($E33,'PLEO N_DESON.'!$A$4:$D$14999,4,FALSE()),IF($F33="SICRO",VLOOKUP($E33,'SICRO N_DESON.'!$A$4:$G$50010,6,FALSE()),IF($F33="SINAPI",SUM(IFERROR((VLOOKUP($E33,'comp. SINAPI N_DESON.'!$G$7:$X$50000,14,FALSE())),"-"),VLOOKUP($E33,'comp. SINAPI N_DESON.'!$G$7:$AB$50000,20,FALSE()),VLOOKUP($E33,'comp. SINAPI N_DESON.'!$G$7:$AB$50000,22,FALSE())),"-"))))))) -> - | L33: =IF(OR($F33="ANP",$F33="DAER",$F33="CONSULTORIA DNIT",$F33="PREGÃO ELETRÔNICO",$F33="DMLU",$F33="DMAE",$F33="CEEE",$F33="EPTC",$F33="ORSE",$F33="SEINFRA",$F33="CREA",$F33="CAU",$F33="CEHOP",$F33="SIURB",$F33="DER-PR",$F33="SUDECAP",$F33=Aux.!$G$24,$F33=Aux.!$G$25),VLOOKUP($E33,'Planilha Auxiliar'!$A$4:$H$1000,8,FALSE()),IF($F33="INDEXADO",VLOOKUP($E33,'Index N_DESON.'!$A$9:$U$1305,18,FALSE()),IF($F33="CCU",VLOOKUP($E33,'Resumo CCU N_DESON.'!$A$2:$G$202,7,FALSE()),IF($F33="MERCADO",VLOOKUP('Orçamento N_DESON.'!$E33,'Planillha de cotações'!$B$7:$L$1143,9,FALSE()),IF($F33="PLEO",VLOOKUP($E33,'PLEO N_DESON.'!$A$4:$D$14999,4,FALSE()),IF($F33="SICRO",VLOOKUP($E33,'SICRO N_DESON.'!$A$4:$G$50010,7,FALSE()),IF($F33="SINAPI",IFERROR((VLOOKUP($E33,'comp. SINAPI N_DESON.'!$G$7:$X$50000,16,FALSE())),(VLOOKUP($E33,'ins. SINAPI N_DESON.'!$A$8:$E$15000,5,FALSE()))),"-"))))))) -> - | M33: =IF(OR($F33="ANP",$F33="DAER",$F33="CONSULTORIA DNIT",$F33="PREGÃO ELETRÔNICO",$F33="DMLU",$F33="DMAE",$F33="CEEE",$F33="EPTC",$F33="ORSE",$F33="SEINFRA",$F33="CREA",$F33="CAU",$F33="CEHOP",$F33="SIURB",$F33="DER-PR",$F33="SUDECAP",$F33=Aux.!$G$24,$F33=Aux.!$G$25),VLOOKUP($E33,'Planilha Auxiliar'!$A$4:$L$1000,5,FALSE()),IF($F33="INDEXADO",VLOOKUP($E33,'Index N_DESON.'!$A$9:$U$1305,19,FALSE()),IF($F33="CCU",VLOOKUP($E33,'Resumo CCU N_DESON.'!$A$2:$D$202,4,FALSE()),IF($F33="MERCADO",VLOOKUP('Orçamento N_DESON.'!$E33,'Planillha de cotações'!$B$7:$L$1143,6,FALSE()),IF($F33="PLEO",VLOOKUP($E33,'PLEO N_DESON.'!$A$4:$D$14999,4,FALSE()),IF($F33="SICRO",VLOOKUP($E33,'SICRO N_DESON.'!$A$4:$D$50010,4,FALSE()),IF($F33="SINAPI",IFERROR((VLOOKUP($E33,'comp. SINAPI N_DESON.'!$G$7:$L$50000,5,FALSE())),(VLOOKUP($E33,'ins. SINAPI N_DESON.'!$A$8:$E$15000,5,FALSE()))),"-"))))))) -> - | N33: - | O33: - | P33: 0 | Q33: 0 | R33: 0 | S33: 0 | V33: 1.23
B34: 0 | D34: 1.24 | G34: =IF(OR($F34="ANP",$F34="DAER",$F34="CONSULTORIA DNIT",$F34="PREGÃO ELETRÔNICO",$F34="DMLU",$F34="DMAE",$F34="CEEE",$F34="EPTC",$F34="ORSE",$F34="SEINFRA",$F34="CREA",$F34="CAU",$F34="CEHOP",$F34="SIURB",$F34="DER-PR",$F34="SUDECAP",$F34=Aux.!$G$24,$F34=Aux.!$G$25),VLOOKUP($E34,'Planilha Auxiliar'!$A$4:$L$1000,3,FALSE()),IF($F34="INDEXADO",CONCATENATE(VLOOKUP($E34,'Index N_DESON.'!$A$9:$S$1305,3,FALSE())," (",VLOOKUP($E34,'Index N_DESON.'!$A$9:$S$1305,2,FALSE()),")"),IF($F34="CCU",VLOOKUP($E34,'Resumo CCU N_DESON.'!$A$2:$D$202,2,FALSE()),IF($F34="MERCADO",VLOOKUP($E34,'Planillha de cotações'!$B$7:$L$102,2,FALSE()),IF($F34="PLEO",VLOOKUP($E34,'PLEO N_DESON.'!$A$4:$D$14999,2,FALSE()),IF($F34="SICRO",VLOOKUP($E34,'SICRO N_DESON.'!$A$4:$D$50010,2,FALSE()),IF($F34="SINAPI",IFERROR((VLOOKUP($E34,'comp. SINAPI N_DESON.'!$G$7:$L$50000,2,FALSE())),(VLOOKUP($E34,'ins. SINAPI N_DESON.'!$A$8:$E$15000,2,FALSE()))),"-"))))))) -> - | H34: =IF(OR($F34="ANP",$F34="DAER",$F34="CONSULTORIA DNIT",$F34="PREGÃO ELETRÔNICO",$F34="DMLU",$F34="DMAE",$F34="CEEE",$F34="EPTC",$F34="ORSE",$F34="SEINFRA",$F34="CREA",$F34="CAU",$F34="CEHOP",$F34="SIURB",$F34="DER-PR",$F34="SUDECAP",$F34=Aux.!$G$24,$F34=Aux.!$G$25),VLOOKUP($E34,'Planilha Auxiliar'!$A$4:$L$1000,4,FALSE()),IF($F34="INDEXADO",VLOOKUP($E34,'Index N_DESON.'!$A$9:$S$1305,4,FALSE()),IF($F34="CCU",VLOOKUP($E34,'Resumo CCU N_DESON.'!$A$2:$D$202,3,FALSE()),IF($F34="MERCADO",VLOOKUP('Orçamento N_DESON.'!$E34,'Planillha de cotações'!$B$7:$L$1143,10,FALSE()),IF($F34="PLEO",VLOOKUP($E34,'PLEO N_DESON.'!$A$4:$D$14999,3,FALSE()),IF($F34="SICRO",VLOOKUP($E34,'SICRO N_DESON.'!$A$4:$D$50010,3,FALSE()),IF($F34="SINAPI",IFERROR((VLOOKUP($E34,'comp. SINAPI N_DESON.'!$G$7:$L$50000,3,FALSE())),(VLOOKUP($E34,'ins. SINAPI N_DESON.'!$A$8:$E$15000,3,FALSE()))),"-"))))))) -> - | J34: =IF(OR($F34="ANP",$F34="DAER",$F34="CONSULTORIA DNIT",$F34="PREGÃO ELETRÔNICO",$F34="DMLU",$F34="DMAE",$F34="CEEE",$F34="EPTC",$F34="ORSE",$F34="SEINFRA",$F34="CREA",$F34="CAU",$F34="CEHOP",$F34="SIURB",$F34="DER-PR",$F34="SUDECAP",$F34=Aux.!$G$24,$F34=Aux.!$G$25),VLOOKUP($E34,'Planilha Auxiliar'!$A$4:$H$1000,6,FALSE()),IF($F34="INDEXADO",VLOOKUP($E34,'Index N_DESON.'!$A$9:$U$1305,16,FALSE()),IF($F34="CCU",VLOOKUP($E34,'Resumo CCU N_DESON.'!$A$2:$G$202,5,FALSE()),IF($F34="MERCADO",VLOOKUP('Orçamento N_DESON.'!$E34,'Planillha de cotações'!$B$7:$L$1143,7,FALSE()),IF($F34="PLEO",VLOOKUP($E34,'PLEO N_DESON.'!$A$4:$D$14999,4,FALSE()),IF($F34="SICRO",VLOOKUP($E34,'SICRO N_DESON.'!$A$4:$G$50010,5,FALSE()),IF($F34="SINAPI",IFERROR((VLOOKUP($E34,'comp. SINAPI N_DESON.'!$G$7:$X$50000,18,FALSE())),"-"),"-"))))))) -> - | K34: =IF(OR($F34="ANP",$F34="DAER",$F34="CONSULTORIA DNIT",$F34="PREGÃO ELETRÔNICO",$F34="DMLU",$F34="DMAE",$F34="CEEE",$F34="EPTC",$F34="ORSE",$F34="SEINFRA",$F34="CREA",$F34="CAU",$F34="CEHOP",$F34="SIURB",$F34="DER-PR",$F34="SUDECAP",$F34=Aux.!$G$24,$F34=Aux.!$G$25),VLOOKUP($E34,'Planilha Auxiliar'!$A$4:$H$1000,7,FALSE()),IF($F34="INDEXADO",VLOOKUP($E34,'Index N_DESON.'!$A$9:$U$1305,17,FALSE()),IF($F34="CCU",VLOOKUP($E34,'Resumo CCU N_DESON.'!$A$2:$G$202,6,FALSE()),IF($F34="MERCADO",VLOOKUP('Orçamento N_DESON.'!$E34,'Planillha de cotações'!$B$7:$L$1143,8,FALSE()),IF($F34="PLEO",VLOOKUP($E34,'PLEO N_DESON.'!$A$4:$D$14999,4,FALSE()),IF($F34="SICRO",VLOOKUP($E34,'SICRO N_DESON.'!$A$4:$G$50010,6,FALSE()),IF($F34="SINAPI",SUM(IFERROR((VLOOKUP($E34,'comp. SINAPI N_DESON.'!$G$7:$X$50000,14,FALSE())),"-"),VLOOKUP($E34,'comp. SINAPI N_DESON.'!$G$7:$AB$50000,20,FALSE()),VLOOKUP($E34,'comp. SINAPI N_DESON.'!$G$7:$AB$50000,22,FALSE())),"-"))))))) -> - | L34: =IF(OR($F34="ANP",$F34="DAER",$F34="CONSULTORIA DNIT",$F34="PREGÃO ELETRÔNICO",$F34="DMLU",$F34="DMAE",$F34="CEEE",$F34="EPTC",$F34="ORSE",$F34="SEINFRA",$F34="CREA",$F34="CAU",$F34="CEHOP",$F34="SIURB",$F34="DER-PR",$F34="SUDECAP",$F34=Aux.!$G$24,$F34=Aux.!$G$25),VLOOKUP($E34,'Planilha Auxiliar'!$A$4:$H$1000,8,FALSE()),IF($F34="INDEXADO",VLOOKUP($E34,'Index N_DESON.'!$A$9:$U$1305,18,FALSE()),IF($F34="CCU",VLOOKUP($E34,'Resumo CCU N_DESON.'!$A$2:$G$202,7,FALSE()),IF($F34="MERCADO",VLOOKUP('Orçamento N_DESON.'!$E34,'Planillha de cotações'!$B$7:$L$1143,9,FALSE()),IF($F34="PLEO",VLOOKUP($E34,'PLEO N_DESON.'!$A$4:$D$14999,4,FALSE()),IF($F34="SICRO",VLOOKUP($E34,'SICRO N_DESON.'!$A$4:$G$50010,7,FALSE()),IF($F34="SINAPI",IFERROR((VLOOKUP($E34,'comp. SINAPI N_DESON.'!$G$7:$X$50000,16,FALSE())),(VLOOKUP($E34,'ins. SINAPI N_DESON.'!$A$8:$E$15000,5,FALSE()))),"-"))))))) -> - | M34: =IF(OR($F34="ANP",$F34="DAER",$F34="CONSULTORIA DNIT",$F34="PREGÃO ELETRÔNICO",$F34="DMLU",$F34="DMAE",$F34="CEEE",$F34="EPTC",$F34="ORSE",$F34="SEINFRA",$F34="CREA",$F34="CAU",$F34="CEHOP",$F34="SIURB",$F34="DER-PR",$F34="SUDECAP",$F34=Aux.!$G$24,$F34=Aux.!$G$25),VLOOKUP($E34,'Planilha Auxiliar'!$A$4:$L$1000,5,FALSE()),IF($F34="INDEXADO",VLOOKUP($E34,'Index N_DESON.'!$A$9:$U$1305,19,FALSE()),IF($F34="CCU",VLOOKUP($E34,'Resumo CCU N_DESON.'!$A$2:$D$202,4,FALSE()),IF($F34="MERCADO",VLOOKUP('Orçamento N_DESON.'!$E34,'Planillha de cotações'!$B$7:$L$1143,6,FALSE()),IF($F34="PLEO",VLOOKUP($E34,'PLEO N_DESON.'!$A$4:$D$14999,4,FALSE()),IF($F34="SICRO",VLOOKUP($E34,'SICRO N_DESON.'!$A$4:$D$50010,4,FALSE()),IF($F34="SINAPI",IFERROR((VLOOKUP($E34,'comp. SINAPI N_DESON.'!$G$7:$L$50000,5,FALSE())),(VLOOKUP($E34,'ins. SINAPI N_DESON.'!$A$8:$E$15000,5,FALSE()))),"-"))))))) -> - | N34: - | O34: - | P34: 0 | Q34: 0 | R34: 0 | S34: 0 | V34: 1.24
B35: 0 | D35: 1.25 | G35: =IF(OR($F35="ANP",$F35="DAER",$F35="CONSULTORIA DNIT",$F35="PREGÃO ELETRÔNICO",$F35="DMLU",$F35="DMAE",$F35="CEEE",$F35="EPTC",$F35="ORSE",$F35="SEINFRA",$F35="CREA",$F35="CAU",$F35="CEHOP",$F35="SIURB",$F35="DER-PR",$F35="SUDECAP",$F35=Aux.!$G$24,$F35=Aux.!$G$25),VLOOKUP($E35,'Planilha Auxiliar'!$A$4:$L$1000,3,FALSE()),IF($F35="INDEXADO",CONCATENATE(VLOOKUP($E35,'Index N_DESON.'!$A$9:$S$1305,3,FALSE())," (",VLOOKUP($E35,'Index N_DESON.'!$A$9:$S$1305,2,FALSE()),")"),IF($F35="CCU",VLOOKUP($E35,'Resumo CCU N_DESON.'!$A$2:$D$202,2,FALSE()),IF($F35="MERCADO",VLOOKUP($E35,'Planillha de cotações'!$B$7:$L$102,2,FALSE()),IF($F35="PLEO",VLOOKUP($E35,'PLEO N_DESON.'!$A$4:$D$14999,2,FALSE()),IF($F35="SICRO",VLOOKUP($E35,'SICRO N_DESON.'!$A$4:$D$50010,2,FALSE()),IF($F35="SINAPI",IFERROR((VLOOKUP($E35,'comp. SINAPI N_DESON.'!$G$7:$L$50000,2,FALSE())),(VLOOKUP($E35,'ins. SINAPI N_DESON.'!$A$8:$E$15000,2,FALSE()))),"-"))))))) -> - | H35: =IF(OR($F35="ANP",$F35="DAER",$F35="CONSULTORIA DNIT",$F35="PREGÃO ELETRÔNICO",$F35="DMLU",$F35="DMAE",$F35="CEEE",$F35="EPTC",$F35="ORSE",$F35="SEINFRA",$F35="CREA",$F35="CAU",$F35="CEHOP",$F35="SIURB",$F35="DER-PR",$F35="SUDECAP",$F35=Aux.!$G$24,$F35=Aux.!$G$25),VLOOKUP($E35,'Planilha Auxiliar'!$A$4:$L$1000,4,FALSE()),IF($F35="INDEXADO",VLOOKUP($E35,'Index N_DESON.'!$A$9:$S$1305,4,FALSE()),IF($F35="CCU",VLOOKUP($E35,'Resumo CCU N_DESON.'!$A$2:$D$202,3,FALSE()),IF($F35="MERCADO",VLOOKUP('Orçamento N_DESON.'!$E35,'Planillha de cotações'!$B$7:$L$1143,10,FALSE()),IF($F35="PLEO",VLOOKUP($E35,'PLEO N_DESON.'!$A$4:$D$14999,3,FALSE()),IF($F35="SICRO",VLOOKUP($E35,'SICRO N_DESON.'!$A$4:$D$50010,3,FALSE()),IF($F35="SINAPI",IFERROR((VLOOKUP($E35,'comp. SINAPI N_DESON.'!$G$7:$L$50000,3,FALSE())),(VLOOKUP($E35,'ins. SINAPI N_DESON.'!$A$8:$E$15000,3,FALSE()))),"-"))))))) -> - | J35: =IF(OR($F35="ANP",$F35="DAER",$F35="CONSULTORIA DNIT",$F35="PREGÃO ELETRÔNICO",$F35="DMLU",$F35="DMAE",$F35="CEEE",$F35="EPTC",$F35="ORSE",$F35="SEINFRA",$F35="CREA",$F35="CAU",$F35="CEHOP",$F35="SIURB",$F35="DER-PR",$F35="SUDECAP",$F35=Aux.!$G$24,$F35=Aux.!$G$25),VLOOKUP($E35,'Planilha Auxiliar'!$A$4:$H$1000,6,FALSE()),IF($F35="INDEXADO",VLOOKUP($E35,'Index N_DESON.'!$A$9:$U$1305,16,FALSE()),IF($F35="CCU",VLOOKUP($E35,'Resumo CCU N_DESON.'!$A$2:$G$202,5,FALSE()),IF($F35="MERCADO",VLOOKUP('Orçamento N_DESON.'!$E35,'Planillha de cotações'!$B$7:$L$1143,7,FALSE()),IF($F35="PLEO",VLOOKUP($E35,'PLEO N_DESON.'!$A$4:$D$14999,4,FALSE()),IF($F35="SICRO",VLOOKUP($E35,'SICRO N_DESON.'!$A$4:$G$50010,5,FALSE()),IF($F35="SINAPI",IFERROR((VLOOKUP($E35,'comp. SINAPI N_DESON.'!$G$7:$X$50000,18,FALSE())),"-"),"-"))))))) -> - | K35: =IF(OR($F35="ANP",$F35="DAER",$F35="CONSULTORIA DNIT",$F35="PREGÃO ELETRÔNICO",$F35="DMLU",$F35="DMAE",$F35="CEEE",$F35="EPTC",$F35="ORSE",$F35="SEINFRA",$F35="CREA",$F35="CAU",$F35="CEHOP",$F35="SIURB",$F35="DER-PR",$F35="SUDECAP",$F35=Aux.!$G$24,$F35=Aux.!$G$25),VLOOKUP($E35,'Planilha Auxiliar'!$A$4:$H$1000,7,FALSE()),IF($F35="INDEXADO",VLOOKUP($E35,'Index N_DESON.'!$A$9:$U$1305,17,FALSE()),IF($F35="CCU",VLOOKUP($E35,'Resumo CCU N_DESON.'!$A$2:$G$202,6,FALSE()),IF($F35="MERCADO",VLOOKUP('Orçamento N_DESON.'!$E35,'Planillha de cotações'!$B$7:$L$1143,8,FALSE()),IF($F35="PLEO",VLOOKUP($E35,'PLEO N_DESON.'!$A$4:$D$14999,4,FALSE()),IF($F35="SICRO",VLOOKUP($E35,'SICRO N_DESON.'!$A$4:$G$50010,6,FALSE()),IF($F35="SINAPI",SUM(IFERROR((VLOOKUP($E35,'comp. SINAPI N_DESON.'!$G$7:$X$50000,14,FALSE())),"-"),VLOOKUP($E35,'comp. SINAPI N_DESON.'!$G$7:$AB$50000,20,FALSE()),VLOOKUP($E35,'comp. SINAPI N_DESON.'!$G$7:$AB$50000,22,FALSE())),"-"))))))) -> - | L35: =IF(OR($F35="ANP",$F35="DAER",$F35="CONSULTORIA DNIT",$F35="PREGÃO ELETRÔNICO",$F35="DMLU",$F35="DMAE",$F35="CEEE",$F35="EPTC",$F35="ORSE",$F35="SEINFRA",$F35="CREA",$F35="CAU",$F35="CEHOP",$F35="SIURB",$F35="DER-PR",$F35="SUDECAP",$F35=Aux.!$G$24,$F35=Aux.!$G$25),VLOOKUP($E35,'Planilha Auxiliar'!$A$4:$H$1000,8,FALSE()),IF($F35="INDEXADO",VLOOKUP($E35,'Index N_DESON.'!$A$9:$U$1305,18,FALSE()),IF($F35="CCU",VLOOKUP($E35,'Resumo CCU N_DESON.'!$A$2:$G$202,7,FALSE()),IF($F35="MERCADO",VLOOKUP('Orçamento N_DESON.'!$E35,'Planillha de cotações'!$B$7:$L$1143,9,FALSE()),IF($F35="PLEO",VLOOKUP($E35,'PLEO N_DESON.'!$A$4:$D$14999,4,FALSE()),IF($F35="SICRO",VLOOKUP($E35,'SICRO N_DESON.'!$A$4:$G$50010,7,FALSE()),IF($F35="SINAPI",IFERROR((VLOOKUP($E35,'comp. SINAPI N_DESON.'!$G$7:$X$50000,16,FALSE())),(VLOOKUP($E35,'ins. SINAPI N_DESON.'!$A$8:$E$15000,5,FALSE()))),"-"))))))) -> - | M35: =IF(OR($F35="ANP",$F35="DAER",$F35="CONSULTORIA DNIT",$F35="PREGÃO ELETRÔNICO",$F35="DMLU",$F35="DMAE",$F35="CEEE",$F35="EPTC",$F35="ORSE",$F35="SEINFRA",$F35="CREA",$F35="CAU",$F35="CEHOP",$F35="SIURB",$F35="DER-PR",$F35="SUDECAP",$F35=Aux.!$G$24,$F35=Aux.!$G$25),VLOOKUP($E35,'Planilha Auxiliar'!$A$4:$L$1000,5,FALSE()),IF($F35="INDEXADO",VLOOKUP($E35,'Index N_DESON.'!$A$9:$U$1305,19,FALSE()),IF($F35="CCU",VLOOKUP($E35,'Resumo CCU N_DESON.'!$A$2:$D$202,4,FALSE()),IF($F35="MERCADO",VLOOKUP('Orçamento N_DESON.'!$E35,'Planillha de cotações'!$B$7:$L$1143,6,FALSE()),IF($F35="PLEO",VLOOKUP($E35,'PLEO N_DESON.'!$A$4:$D$14999,4,FALSE()),IF($F35="SICRO",VLOOKUP($E35,'SICRO N_DESON.'!$A$4:$D$50010,4,FALSE()),IF($F35="SINAPI",IFERROR((VLOOKUP($E35,'comp. SINAPI N_DESON.'!$G$7:$L$50000,5,FALSE())),(VLOOKUP($E35,'ins. SINAPI N_DESON.'!$A$8:$E$15000,5,FALSE()))),"-"))))))) -> - | N35: - | O35: - | P35: 0 | Q35: 0 | R35: 0 | S35: 0 | V35: 1.25
B36: 0 | D36: 1.26 | G36: =IF(OR($F36="ANP",$F36="DAER",$F36="CONSULTORIA DNIT",$F36="PREGÃO ELETRÔNICO",$F36="DMLU",$F36="DMAE",$F36="CEEE",$F36="EPTC",$F36="ORSE",$F36="SEINFRA",$F36="CREA",$F36="CAU",$F36="CEHOP",$F36="SIURB",$F36="DER-PR",$F36="SUDECAP",$F36=Aux.!$G$24,$F36=Aux.!$G$25),VLOOKUP($E36,'Planilha Auxiliar'!$A$4:$L$1000,3,FALSE()),IF($F36="INDEXADO",CONCATENATE(VLOOKUP($E36,'Index N_DESON.'!$A$9:$S$1305,3,FALSE())," (",VLOOKUP($E36,'Index N_DESON.'!$A$9:$S$1305,2,FALSE()),")"),IF($F36="CCU",VLOOKUP($E36,'Resumo CCU N_DESON.'!$A$2:$D$202,2,FALSE()),IF($F36="MERCADO",VLOOKUP($E36,'Planillha de cotações'!$B$7:$L$102,2,FALSE()),IF($F36="PLEO",VLOOKUP($E36,'PLEO N_DESON.'!$A$4:$D$14999,2,FALSE()),IF($F36="SICRO",VLOOKUP($E36,'SICRO N_DESON.'!$A$4:$D$50010,2,FALSE()),IF($F36="SINAPI",IFERROR((VLOOKUP($E36,'comp. SINAPI N_DESON.'!$G$7:$L$50000,2,FALSE())),(VLOOKUP($E36,'ins. SINAPI N_DESON.'!$A$8:$E$15000,2,FALSE()))),"-"))))))) -> - | H36: =IF(OR($F36="ANP",$F36="DAER",$F36="CONSULTORIA DNIT",$F36="PREGÃO ELETRÔNICO",$F36="DMLU",$F36="DMAE",$F36="CEEE",$F36="EPTC",$F36="ORSE",$F36="SEINFRA",$F36="CREA",$F36="CAU",$F36="CEHOP",$F36="SIURB",$F36="DER-PR",$F36="SUDECAP",$F36=Aux.!$G$24,$F36=Aux.!$G$25),VLOOKUP($E36,'Planilha Auxiliar'!$A$4:$L$1000,4,FALSE()),IF($F36="INDEXADO",VLOOKUP($E36,'Index N_DESON.'!$A$9:$S$1305,4,FALSE()),IF($F36="CCU",VLOOKUP($E36,'Resumo CCU N_DESON.'!$A$2:$D$202,3,FALSE()),IF($F36="MERCADO",VLOOKUP('Orçamento N_DESON.'!$E36,'Planillha de cotações'!$B$7:$L$1143,10,FALSE()),IF($F36="PLEO",VLOOKUP($E36,'PLEO N_DESON.'!$A$4:$D$14999,3,FALSE()),IF($F36="SICRO",VLOOKUP($E36,'SICRO N_DESON.'!$A$4:$D$50010,3,FALSE()),IF($F36="SINAPI",IFERROR((VLOOKUP($E36,'comp. SINAPI N_DESON.'!$G$7:$L$50000,3,FALSE())),(VLOOKUP($E36,'ins. SINAPI N_DESON.'!$A$8:$E$15000,3,FALSE()))),"-"))))))) -> - | J36: =IF(OR($F36="ANP",$F36="DAER",$F36="CONSULTORIA DNIT",$F36="PREGÃO ELETRÔNICO",$F36="DMLU",$F36="DMAE",$F36="CEEE",$F36="EPTC",$F36="ORSE",$F36="SEINFRA",$F36="CREA",$F36="CAU",$F36="CEHOP",$F36="SIURB",$F36="DER-PR",$F36="SUDECAP",$F36=Aux.!$G$24,$F36=Aux.!$G$25),VLOOKUP($E36,'Planilha Auxiliar'!$A$4:$H$1000,6,FALSE()),IF($F36="INDEXADO",VLOOKUP($E36,'Index N_DESON.'!$A$9:$U$1305,16,FALSE()),IF($F36="CCU",VLOOKUP($E36,'Resumo CCU N_DESON.'!$A$2:$G$202,5,FALSE()),IF($F36="MERCADO",VLOOKUP('Orçamento N_DESON.'!$E36,'Planillha de cotações'!$B$7:$L$1143,7,FALSE()),IF($F36="PLEO",VLOOKUP($E36,'PLEO N_DESON.'!$A$4:$D$14999,4,FALSE()),IF($F36="SICRO",VLOOKUP($E36,'SICRO N_DESON.'!$A$4:$G$50010,5,FALSE()),IF($F36="SINAPI",IFERROR((VLOOKUP($E36,'comp. SINAPI N_DESON.'!$G$7:$X$50000,18,FALSE())),"-"),"-"))))))) -> - | K36: =IF(OR($F36="ANP",$F36="DAER",$F36="CONSULTORIA DNIT",$F36="PREGÃO ELETRÔNICO",$F36="DMLU",$F36="DMAE",$F36="CEEE",$F36="EPTC",$F36="ORSE",$F36="SEINFRA",$F36="CREA",$F36="CAU",$F36="CEHOP",$F36="SIURB",$F36="DER-PR",$F36="SUDECAP",$F36=Aux.!$G$24,$F36=Aux.!$G$25),VLOOKUP($E36,'Planilha Auxiliar'!$A$4:$H$1000,7,FALSE()),IF($F36="INDEXADO",VLOOKUP($E36,'Index N_DESON.'!$A$9:$U$1305,17,FALSE()),IF($F36="CCU",VLOOKUP($E36,'Resumo CCU N_DESON.'!$A$2:$G$202,6,FALSE()),IF($F36="MERCADO",VLOOKUP('Orçamento N_DESON.'!$E36,'Planillha de cotações'!$B$7:$L$1143,8,FALSE()),IF($F36="PLEO",VLOOKUP($E36,'PLEO N_DESON.'!$A$4:$D$14999,4,FALSE()),IF($F36="SICRO",VLOOKUP($E36,'SICRO N_DESON.'!$A$4:$G$50010,6,FALSE()),IF($F36="SINAPI",SUM(IFERROR((VLOOKUP($E36,'comp. SINAPI N_DESON.'!$G$7:$X$50000,14,FALSE())),"-"),VLOOKUP($E36,'comp. SINAPI N_DESON.'!$G$7:$AB$50000,20,FALSE()),VLOOKUP($E36,'comp. SINAPI N_DESON.'!$G$7:$AB$50000,22,FALSE())),"-"))))))) -> - | L36: =IF(OR($F36="ANP",$F36="DAER",$F36="CONSULTORIA DNIT",$F36="PREGÃO ELETRÔNICO",$F36="DMLU",$F36="DMAE",$F36="CEEE",$F36="EPTC",$F36="ORSE",$F36="SEINFRA",$F36="CREA",$F36="CAU",$F36="CEHOP",$F36="SIURB",$F36="DER-PR",$F36="SUDECAP",$F36=Aux.!$G$24,$F36=Aux.!$G$25),VLOOKUP($E36,'Planilha Auxiliar'!$A$4:$H$1000,8,FALSE()),IF($F36="INDEXADO",VLOOKUP($E36,'Index N_DESON.'!$A$9:$U$1305,18,FALSE()),IF($F36="CCU",VLOOKUP($E36,'Resumo CCU N_DESON.'!$A$2:$G$202,7,FALSE()),IF($F36="MERCADO",VLOOKUP('Orçamento N_DESON.'!$E36,'Planillha de cotações'!$B$7:$L$1143,9,FALSE()),IF($F36="PLEO",VLOOKUP($E36,'PLEO N_DESON.'!$A$4:$D$14999,4,FALSE()),IF($F36="SICRO",VLOOKUP($E36,'SICRO N_DESON.'!$A$4:$G$50010,7,FALSE()),IF($F36="SINAPI",IFERROR((VLOOKUP($E36,'comp. SINAPI N_DESON.'!$G$7:$X$50000,16,FALSE())),(VLOOKUP($E36,'ins. SINAPI N_DESON.'!$A$8:$E$15000,5,FALSE()))),"-"))))))) -> - | M36: =IF(OR($F36="ANP",$F36="DAER",$F36="CONSULTORIA DNIT",$F36="PREGÃO ELETRÔNICO",$F36="DMLU",$F36="DMAE",$F36="CEEE",$F36="EPTC",$F36="ORSE",$F36="SEINFRA",$F36="CREA",$F36="CAU",$F36="CEHOP",$F36="SIURB",$F36="DER-PR",$F36="SUDECAP",$F36=Aux.!$G$24,$F36=Aux.!$G$25),VLOOKUP($E36,'Planilha Auxiliar'!$A$4:$L$1000,5,FALSE()),IF($F36="INDEXADO",VLOOKUP($E36,'Index N_DESON.'!$A$9:$U$1305,19,FALSE()),IF($F36="CCU",VLOOKUP($E36,'Resumo CCU N_DESON.'!$A$2:$D$202,4,FALSE()),IF($F36="MERCADO",VLOOKUP('Orçamento N_DESON.'!$E36,'Planillha de cotações'!$B$7:$L$1143,6,FALSE()),IF($F36="PLEO",VLOOKUP($E36,'PLEO N_DESON.'!$A$4:$D$14999,4,FALSE()),IF($F36="SICRO",VLOOKUP($E36,'SICRO N_DESON.'!$A$4:$D$50010,4,FALSE()),IF($F36="SINAPI",IFERROR((VLOOKUP($E36,'comp. SINAPI N_DESON.'!$G$7:$L$50000,5,FALSE())),(VLOOKUP($E36,'ins. SINAPI N_DESON.'!$A$8:$E$15000,5,FALSE()))),"-"))))))) -> - | N36: - | O36: - | P36: 0 | Q36: 0 | R36: 0 | S36: 0 | V36: 1.26
B37: 0 | D37: 1.27 | G37: =IF(OR($F37="ANP",$F37="DAER",$F37="CONSULTORIA DNIT",$F37="PREGÃO ELETRÔNICO",$F37="DMLU",$F37="DMAE",$F37="CEEE",$F37="EPTC",$F37="ORSE",$F37="SEINFRA",$F37="CREA",$F37="CAU",$F37="CEHOP",$F37="SIURB",$F37="DER-PR",$F37="SUDECAP",$F37=Aux.!$G$24,$F37=Aux.!$G$25),VLOOKUP($E37,'Planilha Auxiliar'!$A$4:$L$1000,3,FALSE()),IF($F37="INDEXADO",CONCATENATE(VLOOKUP($E37,'Index N_DESON.'!$A$9:$S$1305,3,FALSE())," (",VLOOKUP($E37,'Index N_DESON.'!$A$9:$S$1305,2,FALSE()),")"),IF($F37="CCU",VLOOKUP($E37,'Resumo CCU N_DESON.'!$A$2:$D$202,2,FALSE()),IF($F37="MERCADO",VLOOKUP($E37,'Planillha de cotações'!$B$7:$L$102,2,FALSE()),IF($F37="PLEO",VLOOKUP($E37,'PLEO N_DESON.'!$A$4:$D$14999,2,FALSE()),IF($F37="SICRO",VLOOKUP($E37,'SICRO N_DESON.'!$A$4:$D$50010,2,FALSE()),IF($F37="SINAPI",IFERROR((VLOOKUP($E37,'comp. SINAPI N_DESON.'!$G$7:$L$50000,2,FALSE())),(VLOOKUP($E37,'ins. SINAPI N_DESON.'!$A$8:$E$15000,2,FALSE()))),"-"))))))) -> - | H37: =IF(OR($F37="ANP",$F37="DAER",$F37="CONSULTORIA DNIT",$F37="PREGÃO ELETRÔNICO",$F37="DMLU",$F37="DMAE",$F37="CEEE",$F37="EPTC",$F37="ORSE",$F37="SEINFRA",$F37="CREA",$F37="CAU",$F37="CEHOP",$F37="SIURB",$F37="DER-PR",$F37="SUDECAP",$F37=Aux.!$G$24,$F37=Aux.!$G$25),VLOOKUP($E37,'Planilha Auxiliar'!$A$4:$L$1000,4,FALSE()),IF($F37="INDEXADO",VLOOKUP($E37,'Index N_DESON.'!$A$9:$S$1305,4,FALSE()),IF($F37="CCU",VLOOKUP($E37,'Resumo CCU N_DESON.'!$A$2:$D$202,3,FALSE()),IF($F37="MERCADO",VLOOKUP('Orçamento N_DESON.'!$E37,'Planillha de cotações'!$B$7:$L$1143,10,FALSE()),IF($F37="PLEO",VLOOKUP($E37,'PLEO N_DESON.'!$A$4:$D$14999,3,FALSE()),IF($F37="SICRO",VLOOKUP($E37,'SICRO N_DESON.'!$A$4:$D$50010,3,FALSE()),IF($F37="SINAPI",IFERROR((VLOOKUP($E37,'comp. SINAPI N_DESON.'!$G$7:$L$50000,3,FALSE())),(VLOOKUP($E37,'ins. SINAPI N_DESON.'!$A$8:$E$15000,3,FALSE()))),"-"))))))) -> - | J37: =IF(OR($F37="ANP",$F37="DAER",$F37="CONSULTORIA DNIT",$F37="PREGÃO ELETRÔNICO",$F37="DMLU",$F37="DMAE",$F37="CEEE",$F37="EPTC",$F37="ORSE",$F37="SEINFRA",$F37="CREA",$F37="CAU",$F37="CEHOP",$F37="SIURB",$F37="DER-PR",$F37="SUDECAP",$F37=Aux.!$G$24,$F37=Aux.!$G$25),VLOOKUP($E37,'Planilha Auxiliar'!$A$4:$H$1000,6,FALSE()),IF($F37="INDEXADO",VLOOKUP($E37,'Index N_DESON.'!$A$9:$U$1305,16,FALSE()),IF($F37="CCU",VLOOKUP($E37,'Resumo CCU N_DESON.'!$A$2:$G$202,5,FALSE()),IF($F37="MERCADO",VLOOKUP('Orçamento N_DESON.'!$E37,'Planillha de cotações'!$B$7:$L$1143,7,FALSE()),IF($F37="PLEO",VLOOKUP($E37,'PLEO N_DESON.'!$A$4:$D$14999,4,FALSE()),IF($F37="SICRO",VLOOKUP($E37,'SICRO N_DESON.'!$A$4:$G$50010,5,FALSE()),IF($F37="SINAPI",IFERROR((VLOOKUP($E37,'comp. SINAPI N_DESON.'!$G$7:$X$50000,18,FALSE())),"-"),"-"))))))) -> - | K37: =IF(OR($F37="ANP",$F37="DAER",$F37="CONSULTORIA DNIT",$F37="PREGÃO ELETRÔNICO",$F37="DMLU",$F37="DMAE",$F37="CEEE",$F37="EPTC",$F37="ORSE",$F37="SEINFRA",$F37="CREA",$F37="CAU",$F37="CEHOP",$F37="SIURB",$F37="DER-PR",$F37="SUDECAP",$F37=Aux.!$G$24,$F37=Aux.!$G$25),VLOOKUP($E37,'Planilha Auxiliar'!$A$4:$H$1000,7,FALSE()),IF($F37="INDEXADO",VLOOKUP($E37,'Index N_DESON.'!$A$9:$U$1305,17,FALSE()),IF($F37="CCU",VLOOKUP($E37,'Resumo CCU N_DESON.'!$A$2:$G$202,6,FALSE()),IF($F37="MERCADO",VLOOKUP('Orçamento N_DESON.'!$E37,'Planillha de cotações'!$B$7:$L$1143,8,FALSE()),IF($F37="PLEO",VLOOKUP($E37,'PLEO N_DESON.'!$A$4:$D$14999,4,FALSE()),IF($F37="SICRO",VLOOKUP($E37,'SICRO N_DESON.'!$A$4:$G$50010,6,FALSE()),IF($F37="SINAPI",SUM(IFERROR((VLOOKUP($E37,'comp. SINAPI N_DESON.'!$G$7:$X$50000,14,FALSE())),"-"),VLOOKUP($E37,'comp. SINAPI N_DESON.'!$G$7:$AB$50000,20,FALSE()),VLOOKUP($E37,'comp. SINAPI N_DESON.'!$G$7:$AB$50000,22,FALSE())),"-"))))))) -> - | L37: =IF(OR($F37="ANP",$F37="DAER",$F37="CONSULTORIA DNIT",$F37="PREGÃO ELETRÔNICO",$F37="DMLU",$F37="DMAE",$F37="CEEE",$F37="EPTC",$F37="ORSE",$F37="SEINFRA",$F37="CREA",$F37="CAU",$F37="CEHOP",$F37="SIURB",$F37="DER-PR",$F37="SUDECAP",$F37=Aux.!$G$24,$F37=Aux.!$G$25),VLOOKUP($E37,'Planilha Auxiliar'!$A$4:$H$1000,8,FALSE()),IF($F37="INDEXADO",VLOOKUP($E37,'Index N_DESON.'!$A$9:$U$1305,18,FALSE()),IF($F37="CCU",VLOOKUP($E37,'Resumo CCU N_DESON.'!$A$2:$G$202,7,FALSE()),IF($F37="MERCADO",VLOOKUP('Orçamento N_DESON.'!$E37,'Planillha de cotações'!$B$7:$L$1143,9,FALSE()),IF($F37="PLEO",VLOOKUP($E37,'PLEO N_DESON.'!$A$4:$D$14999,4,FALSE()),IF($F37="SICRO",VLOOKUP($E37,'SICRO N_DESON.'!$A$4:$G$50010,7,FALSE()),IF($F37="SINAPI",IFERROR((VLOOKUP($E37,'comp. SINAPI N_DESON.'!$G$7:$X$50000,16,FALSE())),(VLOOKUP($E37,'ins. SINAPI N_DESON.'!$A$8:$E$15000,5,FALSE()))),"-"))))))) -> - | M37: =IF(OR($F37="ANP",$F37="DAER",$F37="CONSULTORIA DNIT",$F37="PREGÃO ELETRÔNICO",$F37="DMLU",$F37="DMAE",$F37="CEEE",$F37="EPTC",$F37="ORSE",$F37="SEINFRA",$F37="CREA",$F37="CAU",$F37="CEHOP",$F37="SIURB",$F37="DER-PR",$F37="SUDECAP",$F37=Aux.!$G$24,$F37=Aux.!$G$25),VLOOKUP($E37,'Planilha Auxiliar'!$A$4:$L$1000,5,FALSE()),IF($F37="INDEXADO",VLOOKUP($E37,'Index N_DESON.'!$A$9:$U$1305,19,FALSE()),IF($F37="CCU",VLOOKUP($E37,'Resumo CCU N_DESON.'!$A$2:$D$202,4,FALSE()),IF($F37="MERCADO",VLOOKUP('Orçamento N_DESON.'!$E37,'Planillha de cotações'!$B$7:$L$1143,6,FALSE()),IF($F37="PLEO",VLOOKUP($E37,'PLEO N_DESON.'!$A$4:$D$14999,4,FALSE()),IF($F37="SICRO",VLOOKUP($E37,'SICRO N_DESON.'!$A$4:$D$50010,4,FALSE()),IF($F37="SINAPI",IFERROR((VLOOKUP($E37,'comp. SINAPI N_DESON.'!$G$7:$L$50000,5,FALSE())),(VLOOKUP($E37,'ins. SINAPI N_DESON.'!$A$8:$E$15000,5,FALSE()))),"-"))))))) -> - | N37: - | O37: - | P37: 0 | Q37: 0 | R37: 0 | S37: 0 | V37: 1.27
